Workbook

Sheet Données FDC déc 2019 (2)
A1: REGION | B1: TERRITOIRE | C1: PDV | D1: EDS_EXTR_PERS_MOIS | E1: CODE_SEGM_ACTV | F1: Nb clients | G1: Détenteurs 10 12 ans | H1: Détenteurs 12 25 ans | I1: Détenteurs sup 12ans | J1: Détenteurs majeurs | K1: Détenteurs 12 17 ans | L1: Détenteurs 16 25 ans | M1: Détenteurs 18 28 ans | N1: Nouveaux clients | O1: Clients sortants | P1: Age moyen | Q1: SF moyenne | R1: Encours collecte | S1: CRD Crédits | T1: TOP_UNVR_BNCA | U1: TOP_UNVR_EPAR | V1: TOP_UNVR_PLCM | W1: TOP_UNVR_CRDT | X1: TOP_UNVR_ASSR | Y1: Carte de paiement | Z1: Détenteurs IZICARTE | AA1: Détenteurs Carte 1er Plat Inf | AB1: Détenteurs de carte à débit diff | AC1: CBR | AD1: CBR chargée | AE1: Détenteurs Forfait | AF1: Détenteurs BL | AG1: Crédit conso | AH1: Crédit Etudiant | AI1: Crédit 1000€ | AJ1: Crédit projet | AK1: Réserve Izicarte | AL1: Crédit immo | AM1: LVA | AN1: L1012 | AO1: LVJ | AP1: LVB | AQ1: LGF | AR1: LGP | AS1: LVREGION | AT1: LDD | AU1: LEP | AV1: CEL | AW1: Abo sur Liv ou AS | AX1: PEL | AY1: SLR | AZ1: PEP | BA1: PERP | BB1: Assurance Vie | BC1: CAT | BD1: PEA | BE1: CTI | BF1: PARTS SOCIALES | BG1: Parts Sociales +10 | BH1: Auto | BI1: MRH | BJ1: GAV | BK1: SANTE | BL1: PREV_LOCAT | BM1: GF | BN1: ESO ou ASSIST VIE | BO1: Détenteurs GU | BP1: Détenteurs PJ | BQ1: Détenteurs SECUR MEDIA | BR1: Détenteurs ECARTE BLEUE | BS1: Détenteurs relevé num | BT1: Détenteurs ASSUR SUR EPAR | BU1: Détenteurs ALERT'ECUREUIL | BV1: Détenteurs CFN
A2: BAS_RHIN | B2: STRASBOURG | C2: STRASBOURG NEUDORF | D2: 6 | E2: BPe | F2: 1186 | G2: 0 | H2: 0 | I2: 1186 | J2: 1186 | K2: 0 | L2: 0 | M2: 60 | N2: 11 | O2: 12 | P2: 48.79005059 | Q2: 44045.07394 | R2: 52237457.69 | S2: 33499765.22 | T2: 1143 | U2: 1050 | V2: 791 | W2: 661 | X2: 595 | Y2: 1171 | Z2: 652 | AA2: 501 | AB2: 270 | AC2: 0 | AD2: 0 | AE2: 1190 | AF2: 1076 | AG2: 318 | AH2: 4 | AI2: 3 | AJ2: 23 | AK2: 192 | AL2: 342 | AM2: 1102 | AN2: 0 | AO2: 0 | AP2: 64 | AQ2: 57 | AR2: 22 | AS2: 18 | AT2: 371 | AU2: 161 | AV2: 163 | AW2: 491 | AX2: 434 | AY2: 16 | AZ2: 2 | BA2: 33 | BB2: 384 | BC2: 37 | BD2: 151 | BE2: 96 | BF2: 701 | BG2: 329 | BH2: 122 | BI2: 334 | BJ2: 257 | BK2: 56 | BL2: 1 | BM2: 203 | BN2: 36 | BO2: 126 | BP2: 206 | BQ2: 51 | BR2: 103 | BS2: 876 | BT2: 85 | BU2: 249 | BV2: 253
A3: BAS_RHIN | B3: STRASBOURG | C3: STRASBOURG NEUDORF | D3: 6 | E3: BPne | F3: 639 | G3: 0 | H3: 0 | I3: 639 | J3: 639 | K3: 0 | L3: 0 | M3: 51 | N3: 14 | O3: 23 | P3: 49.57276995 | Q3: 12605.25859 | R3: 8054760.24 | S3: 3770550.92 | T3: 478 | U3: 311 | V3: 66 | W3: 95 | X3: 59 | Y3: 536 | Z3: 157 | AA3: 120 | AB3: 69 | AC3: 0 | AD3: 0 | AE3: 589 | AF3: 499 | AG3: 39 | AI3: 2 | AJ3: 2 | AK3: 34 | AL3: 50 | AM3: 475 | AN3: 0 | AO3: 0 | AP3: 11 | AQ3: 9 | AR3: 7 | AS3: 3 | AT3: 84 | AU3: 56 | AV3: 18 | AW3: 105 | AX3: 16 | AY3: 1 | AZ3: 1 | BA3: 3 | BB3: 32 | BC3: 2 | BD3: 14 | BE3: 8 | BF3: 213 | BG3: 30 | BH3: 9 | BI3: 26 | BJ3: 24 | BK3: 4 | BL3: 1 | BM3: 19 | BN3: 3 | BO3: 46 | BP3: 41 | BQ3: 12 | BR3: 52 | BS3: 404 | BT3: 16 | BU3: 123 | BV3: 87
A4: BAS_RHIN | B4: STRASBOURG | C4: STRASBOURG NEUDORF | D4: 6 | E4: De | F4: 946 | G4: 0 | H4: 0 | I4: 946 | J4: 946 | K4: 0 | L4: 0 | M4: 29 | N4: 6 | O4: 34 | P4: 62.56236786 | Q4: 61300.66939 | R4: 57990433.24 | S4: 6624605.22 | T4: 192 | U4: 861 | V4: 780 | W4: 124 | X4: 149 | Y4: 330 | Z4: 63 | AA4: 44 | AB4: 44 | AC4: 0 | AD4: 0 | AE4: 348 | AF4: 247 | AG4: 43 | AH4: 1 | AI4: 3 | AK4: 23 | AL4: 74 | AM4: 839 | AN4: 0 | AO4: 0 | AP4: 51 | AQ4: 56 | AR4: 20 | AS4: 12 | AT4: 239 | AU4: 163 | AV4: 79 | AW4: 144 | AX4: 322 | AY4: 2 | AZ4: 6 | BA4: 10 | BB4: 419 | BC4: 27 | BD4: 104 | BE4: 88 | BF4: 589 | BG4: 362 | BH4: 12 | BI4: 77 | BJ4: 49 | BK4: 11 | BL4: 0 | BM4: 25 | BN4: 9 | BO4: 30 | BP4: 42 | BQ4: 0 | BR4: 17 | BS4: 257 | BT4: 16 | BU4: 52 | BV4: 54
A5: BAS_RHIN | B5: STRASBOURG | C5: STRASBOURG NEUDORF | D5: 6 | E5: Dne | F5: 2335 | G5: 0 | H5: 0 | I5: 2335 | J5: 2335 | K5: 0 | L5: 0 | M5: 103 | N5: 27 | O5: 197 | P5: 57.20985011 | Q5: 9310.529302 | R5: 21740085.92 | S5: 3193900.32 | T5: 85 | U5: 1074 | V5: 246 | W5: 87 | X5: 35 | Y5: 295 | Z5: 26 | AA5: 25 | AB5: 18 | AC5: 0 | AD5: 0 | AE5: 286 | AF5: 186 | AG5: 40 | AH5: 4 | AJ5: 1 | AK5: 5 | AL5: 49 | AM5: 1603 | AN5: 0 | AO5: 0 | AP5: 48 | AQ5: 31 | AR5: 10 | AS5: 5 | AT5: 171 | AU5: 116 | AV5: 28 | AW5: 52 | AX5: 40 | AY5: 0 | AZ5: 4 | BA5: 22 | BB5: 144 | BC5: 4 | BD5: 34 | BE5: 30 | BF5: 623 | BG5: 58 | BH5: 3 | BI5: 13 | BJ5: 14 | BK5: 2 | BL5: 0 | BM5: 8 | BN5: 2 | BO5: 24 | BP5: 19 | BQ5: 5 | BR5: 13 | BS5: 327 | BT5: 9 | BU5: 61 | BV5: 52
A6: BAS_RHIN | B6: STRASBOURG | C6: STRASBOURG NEUDORF | D6: 6 | E6: Ee | F6: 400 | G6: 50 | H6: 111 | I6: 111 | J6: 0 | K6: 111 | L6: 0 | M6: 0 | N6: 22 | O6: 9 | P6: 8.295 | Q6: 4307.682225 | R6: 1723072.89 | S6: 0 | T6: 5 | U6: 309 | V6: 152 | W6: 0 | X6: 0 | Y6: 9 | Z6: 0 | AA6: 0 | AC6: 5 | AD6: 2 | AE6: 9 | AF6: 9 | AG6: 0 | AK6: 0 | AL6: 0 | AM6: 365 | AN6: 10 | AO6: 70 | AP6: 4 | AQ6: 0 | AR6: 0 | AS6: 1 | AT6: 0 | AU6: 0 | AV6: 1 | AW6: 189 | AX6: 83 | AY6: 0 | AZ6: 0 | BA6: 0 | BB6: 57 | BC6: 2 | BD6: 0 | BE6: 1 | BF6: 43 | BG6: 8 | BH6: 0 | BI6: 0 | BJ6: 0 | BK6: 0 | BL6: 0 | BM6: 0 | BN6: 0 | BP6: 0 | BQ6: 0 | BR6: 0 | BS6: 35 | BT6: 0 | BU6: 4 | BV6: 0
A7: BAS_RHIN | B7: STRASBOURG | C7: STRASBOURG NEUDORF | D7: 6 | E7: Ene | F7: 291 | G7: 118 | H7: 117 | I7: 117 | J7: 0 | K7: 117 | L7: 0 | M7: 0 | N7: 9 | O7: 11 | P7: 10.21993127 | Q7: 710.4542268 | R7: 206742.18 | S7: 0 | T7: 0 | U7: 0 | V7: 0 | W7: 0 | X7: 0 | Y7: 1 | Z7: 0 | AA7: 0 | AC7: 0 | AD7: 0 | AE7: 1 | AF7: 1 | AG7: 0 | AK7: 0 | AL7: 0 | AM7: 247 | AN7: 1 | AO7: 6 | AP7: 2 | AQ7: 0 | AR7: 0 | AS7: 0 | AT7: 0 | AU7: 0 | AV7: 0 | AW7: 25 | AX7: 0 | AY7: 0 | AZ7: 0 | BA7: 0 | BB7: 0 | BC7: 0 | BD7: 0 | BE7: 0 | BF7: 36 | BG7: 3 | BH7: 0 | BI7: 0 | BJ7: 0 | BK7: 0 | BL7: 0 | BM7: 0 | BN7: 0 | BP7: 0 | BQ7: 0 | BR7: 0 | BS7: 17 | BT7: 0 | BU7: 1 | BV7: 0
A8: BAS_RHIN | B8: STRASBOURG | C8: STRASBOURG NEUDORF | D8: 6 | E8: I | F8: 1639 | G8: 0 | H8: 0 | I8: 1639 | J8: 1639 | K8: 0 | L8: 0 | M8: 123 | N8: 1 | O8: 280 | P8: 49.38743136 | Q8: 15.88521049 | R8: 26035.86 | S8: 0 | T8: 0 | U8: 26 | V8: 17 | W8: 0 | X8: 25 | Y8: 1 | Z8: 0 | AA8: 0 | AC8: 0 | AD8: 0 | AE8: 3 | AF8: 3 | AG8: 0 | AK8: 0 | AL8: 0 | AM8: 897 | AN8: 0 | AO8: 0 | AP8: 4 | AQ8: 1 | AR8: 0 | AS8: 1 | AT8: 31 | AU8: 1 | AV8: 0 | AW8: 0 | AX8: 0 | AY8: 0 | AZ8: 1 | BA8: 16 | BB8: 0 | BC8: 0 | BD8: 0 | BE8: 0 | BF8: 22 | BG8: 0 | BH8: 4 | BI8: 8 | BJ8: 2 | BK8: 5 | BL8: 0 | BM8: 7 | BN8: 0 | BO8: 1 | BP8: 4 | BQ8: 0 | BR8: 0 | BS8: 15 | BT8: 0 | BU8: 0 | BV8: 0
A9: BAS_RHIN | B9: STRASBOURG | C9: STRASBOURG NEUDORF | D9: 6 | E9: JBPe | F9: 252 | G9: 0 | H9: 252 | I9: 252 | J9: 240 | K9: 12 | L9: 252 | M9: 240 | N9: 4 | O9: 7 | P9: 21.78571429 | Q9: 10240.39262 | R9: 2580578.94 | S9: 393174.67 | T9: 245 | U9: 212 | V9: 87 | W9: 60 | X9: 78 | Y9: 247 | Z9: 33 | AA9: 64 | AB9: 33 | AC9: 0 | AD9: 0 | AE9: 252 | AF9: 246 | AG9: 51 | AH9: 17 | AI9: 11 | AJ9: 1 | AK9: 12 | AL9: 5 | AM9: 219 | AN9: 0 | AO9: 229 | AP9: 4 | AQ9: 0 | AR9: 0 | AS9: 1 | AT9: 11 | AU9: 6 | AV9: 1 | AW9: 77 | AX9: 57 | AY9: 0 | AZ9: 0 | BA9: 0 | BB9: 26 | BC9: 3 | BD9: 7 | BE9: 0 | BF9: 60 | BG9: 27 | BH9: 3 | BI9: 26 | BJ9: 24 | BK9: 2 | BL9: 1 | BM9: 60 | BN9: 0 | BO9: 54 | BP9: 11 | BQ9: 13 | BR9: 14 | BS9: 226 | BT9: 3 | BU9: 224 | BV9: 134
A10: BAS_RHIN | B10: STRASBOURG | C10: STRASBOURG NEUDORF | D10: 6 | E10: JBPne | F10: 70 | G10: 0 | H10: 70 | I10: 70 | J10: 62 | K10: 8 | L10: 70 | M10: 62 | N10: 14 | O10: 14 | P10: 21.31428571 | Q10: 1050.103571 | R10: 73507.25 | S10: 0 | T10: 43 | U10: 6 | V10: 1 | W10: 1 | X10: 4 | Y10: 67 | Z10: 0 | AA10: 11 | AB10: 2 | AC10: 0 | AD10: 0 | AE10: 63 | AF10: 63 | AG10: 1 | AH10: 1 | AK10: 0 | AL10: 0 | AM10: 43 | AN10: 0 | AO10: 43 | AP10: 0 | AQ10: 0 | AR10: 0 | AS10: 1 | AT10: 1 | AU10: 0 | AV10: 0 | AW10: 2 | AX10: 1 | AY10: 0 | AZ10: 0 | BA10: 0 | BB10: 0 | BC10: 0 | BD10: 0 | BE10: 0 | BF10: 6 | BG10: 0 | BH10: 0 | BI10: 0 | BJ10: 1 | BK10: 0 | BL10: 0 | BM10: 3 | BN10: 0 | BO10: 7 | BP10: 0 | BQ10: 1 | BR10: 4 | BS10: 59 | BT10: 0 | BU10: 58 | BV10: 22
A11: BAS_RHIN | B11: STRASBOURG | C11: STRASBOURG NEUDORF | D11: 6 | E11: JDe | F11: 42 | G11: 0 | H11: 42 | I11: 42 | J11: 27 | K11: 15 | L11: 42 | M11: 27 | O11: 1 | P11: 19.02380952 | Q11: 11638.40595 | R11: 488813.05 | S11: 0 | T11: 2 | U11: 41 | V11: 38 | W11: 3 | X11: 1 | Y11: 5 | Z11: 0 | AA11: 0 | AC11: 0 | AD11: 0 | AE11: 4 | AF11: 4 | AG11: 3 | AH11: 2 | AI11: 1 | AK11: 0 | AL11: 0 | AM11: 39 | AN11: 0 | AO11: 32 | AP11: 0 | AQ11: 0 | AR11: 0 | AS11: 0 | AT11: 0 | AU11: 1 | AV11: 4 | AW11: 6 | AX11: 28 | AY11: 0 | AZ11: 0 | BA11: 0 | BB11: 9 | BC11: 0 | BD11: 0 | BE11: 0 | BF11: 15 | BG11: 10 | BH11: 1 | BI11: 1 | BJ11: 0 | BK11: 0 | BL11: 0 | BM11: 0 | BN11: 0 | BO11: 2 | BP11: 0 | BQ11: 0 | BR11: 0 | BS11: 7 | BT11: 0 | BU11: 3 | BV11: 0
A12: BAS_RHIN | B12: STRASBOURG | C12: STRASBOURG NEUDORF | D12: 6 | E12: JDne | F12: 452 | G12: 0 | H12: 452 | I12: 452 | J12: 330 | K12: 122 | L12: 452 | M12: 330 | N12: 11 | O12: 43 | P12: 20.17699115 | Q12: 1960.568009 | R12: 886176.74 | S12: 0 | T12: 2 | U12: 153 | V12: 37 | W12: 4 | X12: 5 | Y12: 46 | Z12: 0 | AA12: 5 | AB12: 2 | AC12: 0 | AD12: 0 | AE12: 46 | AF12: 43 | AG12: 4 | AH12: 3 | AI12: 1 | AK12: 0 | AL12: 0 | AM12: 326 | AN12: 0 | AO12: 179 | AP12: 1 | AQ12: 0 | AR12: 0 | AS12: 1 | AT12: 0 | AU12: 0 | AV12: 4 | AW12: 29 | AX12: 8 | AY12: 0 | AZ12: 0 | BA12: 0 | BB12: 26 | BC12: 1 | BD12: 0 | BE12: 1 | BF12: 55 | BG12: 4 | BH12: 0 | BI12: 2 | BJ12: 0 | BK12: 0 | BL12: 0 | BM12: 3 | BN12: 0 | BO12: 3 | BP12: 0 | BQ12: 3 | BR12: 3 | BS12: 57 | BT12: 0 | BU12: 38 | BV12: 16
A13: BAS_RHIN | B13: SELESTAT | C13: ILLKIRCH CENTRE | D13: 7 | E13: BPe | F13: 1375 | G13: 0 | H13: 0 | I13: 1375 | J13: 1375 | K13: 0 | L13: 0 | M13: 54 | N13: 11 | O13: 10 | P13: 51.80436364 | Q13: 58119.7186 | R13: 79914613.07 | S13: 57380167.6 | T13: 1305 | U13: 1220 | V13: 1024 | W13: 864 | X13: 600 | Y13: 1341 | Z13: 801 | AA13: 620 | AB13: 445 | AC13: 0 | AD13: 0 | AE13: 1346 | AF13: 1193 | AG13: 434 | AH13: 12 | AI13: 8 | AJ13: 48 | AK13: 193 | AL13: 573 | AM13: 1240 | AN13: 0 | AO13: 0 | AP13: 80 | AQ13: 107 | AR13: 14 | AS13: 32 | AT13: 565 | AU13: 179 | AV13: 281 | AW13: 465 | AX13: 549 | AY13: 7 | AZ13: 2 | BA13: 46 | BB13: 555 | BC13: 42 | BD13: 293 | BE13: 122 | BF13: 795 | BG13: 506 | BH13: 181 | BI13: 346 | BJ13: 235 | BK13: 33 | BL13: 2 | BM13: 189 | BN13: 46 | BO13: 124 | BP13: 216 | BQ13: 45 | BR13: 186 | BS13: 983 | BT13: 82 | BU13: 169 | BV13: 191
A14: BAS_RHIN | B14: SELESTAT | C14: ILLKIRCH CENTRE | D14: 7 | E14: BPne | F14: 517 | G14: 0 | H14: 0 | I14: 517 | J14: 517 | K14: 0 | L14: 0 | M14: 27 | N14: 10 | O14: 21 | P14: 55.44487427 | Q14: 28953.4118 | R14: 14968913.9 | S14: 4169813.09 | T14: 305 | U14: 270 | V14: 115 | W14: 100 | X14: 47 | Y14: 373 | Z14: 124 | AA14: 73 | AB14: 71 | AC14: 0 | AD14: 0 | AE14: 446 | AF14: 379 | AG14: 53 | AH14: 1 | AJ14: 2 | AK14: 19 | AL14: 66 | AM14: 364 | AN14: 0 | AO14: 0 | AP14: 13 | AQ14: 23 | AR14: 3 | AS14: 4 | AT14: 112 | AU14: 57 | AV14: 32 | AW14: 65 | AX14: 44 | AY14: 1 | AZ14: 0 | BA14: 2 | BB14: 71 | BC14: 5 | BD14: 36 | BE14: 18 | BF14: 173 | BG14: 59 | BH14: 9 | BI14: 19 | BJ14: 19 | BK14: 10 | BL14: 0 | BM14: 13 | BN14: 5 | BO14: 28 | BP14: 39 | BQ14: 6 | BR14: 40 | BS14: 285 | BT14: 10 | BU14: 58 | BV14: 56
A15: BAS_RHIN | B15: SELESTAT | C15: ILLKIRCH CENTRE | D15: 7 | E15: De | F15: 738 | G15: 0 | H15: 0 | I15: 738 | J15: 738 | K15: 0 | L15: 0 | M15: 22 | N15: 7 | O15: 17 | P15: 63.77506775 | Q15: 74542.43098 | R15: 55012314.06 | S15: 6200463.19 | T15: 121 | U15: 682 | V15: 643 | W15: 105 | X15: 103 | Y15: 230 | Z15: 57 | AA15: 40 | AB15: 44 | AC15: 0 | AD15: 0 | AE15: 224 | AF15: 151 | AG15: 27 | AH15: 1 | AJ15: 1 | AK15: 8 | AL15: 77 | AM15: 621 | AN15: 0 | AO15: 0 | AP15: 45 | AQ15: 91 | AR15: 9 | AS15: 12 | AT15: 200 | AU15: 112 | AV15: 120 | AW15: 95 | AX15: 244 | AY15: 4 | AZ15: 2 | BA15: 16 | BB15: 385 | BC15: 29 | BD15: 132 | BE15: 64 | BF15: 416 | BG15: 336 | BH15: 23 | BI15: 38 | BJ15: 23 | BK15: 5 | BL15: 0 | BM15: 18 | BN15: 23 | BO15: 10 | BP15: 17 | BQ15: 4 | BR15: 14 | BS15: 212 | BT15: 13 | BU15: 20 | BV15: 40
A16: BAS_RHIN | B16: SELESTAT | C16: ILLKIRCH CENTRE | D16: 7 | E16: Dne | F16: 1547 | G16: 0 | H16: 0 | I16: 1547 | J16: 1547 | K16: 0 | L16: 0 | M16: 64 | N16: 26 | O16: 99 | P16: 57.01292825 | Q16: 12035.49498 | R16: 18618910.74 | S16: 1932418.24 | T16: 27 | U16: 692 | V16: 241 | W16: 85 | X16: 37 | Y16: 157 | Z16: 33 | AA16: 26 | AB16: 28 | AC16: 0 | AD16: 0 | AE16: 162 | AF16: 110 | AG16: 40 | AH16: 2 | AJ16: 3 | AK16: 6 | AL16: 50 | AM16: 917 | AN16: 0 | AO16: 0 | AP16: 27 | AQ16: 34 | AR16: 3 | AS16: 2 | AT16: 115 | AU16: 50 | AV16: 26 | AW16: 36 | AX16: 40 | AY16: 0 | AZ16: 1 | BA16: 16 | BB16: 144 | BC16: 15 | BD16: 36 | BE16: 20 | BF16: 283 | BG16: 68 | BH16: 7 | BI16: 15 | BJ16: 7 | BK16: 3 | BL16: 0 | BM16: 15 | BN16: 4 | BO16: 14 | BP16: 20 | BQ16: 3 | BR16: 10 | BS16: 276 | BT16: 9 | BU16: 27 | BV16: 21
A17: BAS_RHIN | B17: SELESTAT | C17: ILLKIRCH CENTRE | D17: 7 | E17: Ee | F17: 378 | G17: 66 | H17: 107 | I17: 107 | J17: 0 | K17: 107 | L17: 0 | M17: 0 | N17: 15 | O17: 15 | P17: 8.267195767 | Q17: 5284.284153 | R17: 1997459.41 | S17: 0 | T17: 10 | U17: 265 | V17: 180 | W17: 0 | X17: 0 | Y17: 13 | Z17: 0 | AA17: 0 | AC17: 7 | AD17: 6 | AE17: 13 | AF17: 13 | AG17: 0 | AK17: 0 | AL17: 0 | AM17: 320 | AN17: 9 | AO17: 67 | AP17: 1 | AQ17: 0 | AR17: 0 | AS17: 2 | AT17: 0 | AU17: 0 | AV17: 6 | AW17: 119 | AX17: 91 | AY17: 0 | AZ17: 0 | BA17: 0 | BB17: 69 | BC17: 5 | BD17: 0 | BE17: 1 | BF17: 34 | BG17: 17 | BH17: 0 | BI17: 0 | BJ17: 0 | BK17: 0 | BL17: 0 | BM17: 0 | BN17: 0 | BP17: 0 | BQ17: 0 | BR17: 0 | BS17: 69 | BT17: 0 | BU17: 5 | BV17: 0
A18: BAS_RHIN | B18: SELESTAT | C18: ILLKIRCH CENTRE | D18: 7 | E18: Ene | F18: 257 | G18: 73 | H18: 107 | I18: 107 | J18: 0 | K18: 107 | L18: 0 | M18: 0 | N18: 15 | O18: 17 | P18: 10.0233463 | Q18: 1309.740039 | R18: 336603.19 | S18: 0 | T18: 0 | U18: 0 | V18: 0 | W18: 0 | X18: 0 | Y18: 4 | Z18: 0 | AA18: 0 | AC18: 0 | AD18: 0 | AE18: 2 | AF18: 2 | AG18: 0 | AK18: 0 | AL18: 0 | AM18: 209 | AN18: 0 | AO18: 4 | AP18: 1 | AQ18: 0 | AR18: 0 | AS18: 0 | AT18: 0 | AU18: 0 | AV18: 1 | AW18: 30 | AX18: 0 | AY18: 0 | AZ18: 0 | BA18: 0 | BB18: 0 | BC18: 0 | BD18: 0 | BE18: 0 | BF18: 30 | BG18: 5 | BH18: 0 | BI18: 0 | BJ18: 0 | BK18: 0 | BL18: 0 | BM18: 0 | BN18: 0 | BP18: 0 | BQ18: 0 | BR18: 0 | BS18: 29 | BT18: 0 | BU18: 1 | BV18: 0
A19: BAS_RHIN | B19: SELESTAT | C19: ILLKIRCH CENTRE | D19: 7 | E19: I | F19: 872 | G19: 0 | H19: 0 | I19: 872 | J19: 872 | K19: 0 | L19: 0 | M19: 53 | N19: 1 | O19: 202 | P19: 50.31651376 | Q19: 15.11475917 | R19: 13180.07 | S19: 0 | T19: 0 | U19: 18 | V19: 3 | W19: 0 | X19: 19 | Y19: 3 | AC19: 0 | AD19: 0 | AG19: 0 | AK19: 0 | AL19: 0 | AM19: 506 | AN19: 0 | AO19: 0 | AP19: 1 | AQ19: 2 | AR19: 1 | AS19: 0 | AT19: 9 | AU19: 0 | AV19: 0 | AW19: 0 | AX19: 0 | AY19: 0 | AZ19: 0 | BA19: 3 | BB19: 0 | BC19: 0 | BD19: 0 | BE19: 0 | BF19: 4 | BG19: 0 | BH19: 1 | BI19: 8 | BJ19: 1 | BK19: 5 | BL19: 0 | BM19: 5 | BN19: 0 | BO19: 2 | BP19: 2 | BQ19: 0 | BR19: 0 | BS19: 10 | BT19: 1 | BU19: 0 | BV19: 0
A20: BAS_RHIN | B20: SELESTAT | C20: ILLKIRCH CENTRE | D20: 7 | E20: JBPe | F20: 265 | G20: 0 | H20: 265 | I20: 265 | J20: 246 | K20: 19 | L20: 265 | M20: 246 | N20: 3 | O20: 6 | P20: 21.30566038 | Q20: 14238.88362 | R20: 3773304.16 | S20: 1273565.12 | T20: 256 | U20: 238 | V20: 133 | W20: 63 | X20: 63 | Y20: 263 | Z20: 34 | AA20: 72 | AB20: 42 | AC20: 0 | AD20: 0 | AE20: 262 | AF20: 253 | AG20: 55 | AH20: 31 | AI20: 11 | AJ20: 1 | AK20: 8 | AL20: 10 | AM20: 230 | AN20: 0 | AO20: 240 | AP20: 1 | AQ20: 0 | AR20: 0 | AS20: 2 | AT20: 22 | AU20: 2 | AV20: 5 | AW20: 76 | AX20: 88 | AY20: 0 | AZ20: 0 | BA20: 0 | BB20: 63 | BC20: 0 | BD20: 6 | BE20: 0 | BF20: 74 | BG20: 28 | BH20: 18 | BI20: 20 | BJ20: 26 | BK20: 10 | BL20: 1 | BM20: 26 | BN20: 0 | BO20: 32 | BP20: 16 | BQ20: 15 | BR20: 16 | BS20: 233 | BT20: 4 | BU20: 210 | BV20: 89
A21: BAS_RHIN | B21: SELESTAT | C21: ILLKIRCH CENTRE | D21: 7 | E21: JBPne | F21: 60 | G21: 0 | H21: 60 | I21: 60 | J21: 53 | K21: 7 | L21: 60 | M21: 53 | N21: 1 | O21: 7 | P21: 21.15 | Q21: 742.9163333 | R21: 44574.98 | S21: 0 | T21: 34 | U21: 5 | V21: 0 | W21: 1 | X21: 2 | Y21: 53 | Z21: 2 | AA21: 6 | AB21: 5 | AC21: 0 | AD21: 0 | AE21: 50 | AF21: 47 | AG21: 1 | AH21: 1 | AK21: 0 | AL21: 0 | AM21: 29 | AN21: 0 | AO21: 34 | AP21: 0 | AQ21: 0 | AR21: 0 | AS21: 0 | AT21: 0 | AU21: 0 | AV21: 0 | AW21: 2 | AX21: 0 | AY21: 0 | AZ21: 0 | BA21: 0 | BB21: 0 | BC21: 0 | BD21: 2 | BE21: 0 | BF21: 8 | BG21: 0 | BH21: 0 | BI21: 0 | BJ21: 2 | BK21: 0 | BL21: 0 | BM21: 1 | BN21: 0 | BO21: 2 | BP21: 3 | BQ21: 1 | BR21: 4 | BS21: 52 | BT21: 0 | BU21: 38 | BV21: 13
A22: BAS_RHIN | B22: SELESTAT | C22: ILLKIRCH CENTRE | D22: 7 | E22: JDe | F22: 65 | G22: 0 | H22: 65 | I22: 65 | J22: 45 | K22: 20 | L22: 65 | M22: 45 | N22: 1 | O22: 1 | P22: 19.76923077 | Q22: 21556.11108 | R22: 1401147.22 | S22: 0 | T22: 2 | U22: 64 | V22: 65 | W22: 2 | X22: 1 | Y22: 17 | Z22: 0 | AA22: 2 | AB22: 2 | AC22: 0 | AD22: 0 | AE22: 14 | AF22: 14 | AG22: 2 | AH22: 2 | AK22: 0 | AL22: 0 | AM22: 59 | AN22: 1 | AO22: 53 | AP22: 1 | AQ22: 0 | AR22: 0 | AS22: 0 | AT22: 1 | AU22: 1 | AV22: 2 | AW22: 12 | AX22: 42 | AY22: 0 | AZ22: 0 | BA22: 0 | BB22: 21 | BC22: 5 | BD22: 1 | BE22: 1 | BF22: 20 | BG22: 12 | BH22: 0 | BI22: 1 | BJ22: 0 | BK22: 0 | BL22: 0 | BM22: 0 | BN22: 0 | BP22: 0 | BQ22: 0 | BR22: 0 | BS22: 22 | BT22: 0 | BU22: 5 | BV22: 1
A23: BAS_RHIN | B23: SELESTAT | C23: ILLKIRCH CENTRE | D23: 7 | E23: JDne | F23: 304 | G23: 0 | H23: 304 | I23: 304 | J23: 227 | K23: 77 | L23: 304 | M23: 227 | N23: 3 | O23: 49 | P23: 20.16447368 | Q23: 2671.244704 | R23: 812058.39 | S23: 0 | T23: 0 | U23: 119 | V23: 30 | W23: 4 | X23: 2 | Y23: 27 | Z23: 0 | AA23: 2 | AB23: 4 | AC23: 0 | AD23: 0 | AE23: 26 | AF23: 23 | AG23: 3 | AH23: 2 | AI23: 1 | AK23: 1 | AL23: 0 | AM23: 227 | AN23: 0 | AO23: 139 | AP23: 0 | AQ23: 0 | AR23: 0 | AS23: 0 | AT23: 0 | AU23: 0 | AV23: 4 | AW23: 11 | AX23: 12 | AY23: 0 | AZ23: 0 | BA23: 0 | BB23: 15 | BC23: 0 | BD23: 0 | BE23: 0 | BF23: 29 | BG23: 4 | BH23: 0 | BI23: 0 | BJ23: 0 | BK23: 1 | BL23: 0 | BM23: 1 | BN23: 0 | BO23: 4 | BP23: 0 | BQ23: 0 | BR23: 1 | BS23: 36 | BT23: 0 | BU23: 18 | BV23: 6
A24: BAS_RHIN | B24: SELESTAT | C24: FEGERSHEIM | D24: 8 | E24: BPe | F24: 724 | G24: 0 | H24: 0 | I24: 724 | J24: 724 | K24: 0 | L24: 0 | M24: 45 | N24: 7 | O24: 2 | P24: 50.2679558 | Q24: 51848.71584 | R24: 37538470.27 | S24: 27507080.94 | T24: 695 | U24: 629 | V24: 573 | W24: 453 | X24: 362 | Y24: 714 | Z24: 508 | AA24: 375 | AB24: 195 | AC24: 0 | AD24: 0 | AE24: 719 | AF24: 702 | AG24: 215 | AH24: 4 | AI24: 10 | AJ24: 22 | AK24: 102 | AL24: 287 | AM24: 648 | AN24: 0 | AO24: 0 | AP24: 51 | AQ24: 60 | AR24: 23 | AS24: 17 | AT24: 308 | AU24: 142 | AV24: 143 | AW24: 227 | AX24: 334 | AY24: 8 | AZ24: 0 | BA24: 15 | BB24: 291 | BC24: 28 | BD24: 160 | BE24: 48 | BF24: 472 | BG24: 306 | BH24: 116 | BI24: 208 | BJ24: 128 | BK24: 19 | BL24: 4 | BM24: 166 | BN24: 33 | BO24: 88 | BP24: 152 | BQ24: 19 | BR24: 135 | BS24: 549 | BT24: 84 | BU24: 146 | BV24: 260
A25: BAS_RHIN | B25: SELESTAT | C25: FEGERSHEIM | D25: 8 | E25: BPne | F25: 236 | G25: 0 | H25: 0 | I25: 236 | J25: 236 | K25: 0 | L25: 0 | M25: 15 | N25: 2 | O25: 6 | P25: 53.52542373 | Q25: 19869.63186 | R25: 4689233.12 | S25: 1546476.9 | T25: 136 | U25: 108 | V25: 58 | W25: 45 | X25: 26 | Y25: 157 | Z25: 59 | AA25: 51 | AB25: 35 | AC25: 0 | AD25: 0 | AE25: 215 | AF25: 204 | AG25: 18 | AI25: 2 | AJ25: 5 | AK25: 9 | AL25: 25 | AM25: 152 | AN25: 0 | AO25: 0 | AP25: 6 | AQ25: 5 | AR25: 1 | AS25: 2 | AT25: 57 | AU25: 25 | AV25: 17 | AW25: 22 | AX25: 25 | AY25: 0 | AZ25: 0 | BA25: 1 | BB25: 28 | BC25: 1 | BD25: 14 | BE25: 6 | BF25: 95 | BG25: 32 | BH25: 8 | BI25: 12 | BJ25: 15 | BK25: 2 | BL25: 2 | BM25: 10 | BN25: 1 | BO25: 16 | BP25: 20 | BQ25: 5 | BR25: 21 | BS25: 139 | BT25: 10 | BU25: 37 | BV25: 53
A26: BAS_RHIN | B26: SELESTAT | C26: FEGERSHEIM | D26: 8 | E26: De | F26: 410 | G26: 0 | H26: 0 | I26: 410 | J26: 410 | K26: 0 | L26: 0 | M26: 12 | N26: 11 | O26: 7 | P26: 59.62195122 | Q26: 65532.72383 | R26: 26868416.77 | S26: 2973833.02 | T26: 40 | U26: 371 | V26: 370 | W26: 60 | X26: 74 | Y26: 100 | Z26: 34 | AA26: 30 | AB26: 17 | AC26: 0 | AD26: 0 | AE26: 99 | AF26: 88 | AG26: 18 | AH26: 2 | AJ26: 2 | AK26: 4 | AL26: 43 | AM26: 345 | AN26: 0 | AO26: 0 | AP26: 24 | AQ26: 54 | AR26: 16 | AS26: 10 | AT26: 107 | AU26: 55 | AV26: 63 | AW26: 51 | AX26: 151 | AY26: 3 | AZ26: 0 | BA26: 4 | BB26: 209 | BC26: 16 | BD26: 62 | BE26: 33 | BF26: 224 | BG26: 190 | BH26: 8 | BI26: 27 | BJ26: 22 | BK26: 4 | BL26: 0 | BM26: 27 | BN26: 8 | BO26: 12 | BP26: 18 | BQ26: 2 | BR26: 4 | BS26: 124 | BT26: 14 | BU26: 13 | BV26: 34
A27: BAS_RHIN | B27: SELESTAT | C27: FEGERSHEIM | D27: 8 | E27: Dne | F27: 801 | G27: 0 | H27: 0 | I27: 801 | J27: 801 | K27: 0 | L27: 0 | M27: 40 | N27: 20 | O27: 62 | P27: 55.70661673 | Q27: 10836.93412 | R27: 8680384.23 | S27: 338563.68 | T27: 10 | U27: 367 | V27: 148 | W27: 34 | X27: 20 | Y27: 67 | Z27: 12 | AA27: 11 | AB27: 8 | AC27: 0 | AD27: 0 | AE27: 72 | AF27: 62 | AG27: 15 | AI27: 1 | AK27: 3 | AL27: 16 | AM27: 468 | AN27: 0 | AO27: 0 | AP27: 21 | AQ27: 18 | AR27: 1 | AS27: 5 | AT27: 73 | AU27: 29 | AV27: 15 | AW27: 19 | AX27: 23 | AY27: 0 | AZ27: 0 | BA27: 7 | BB27: 90 | BC27: 5 | BD27: 27 | BE27: 11 | BF27: 191 | BG27: 67 | BH27: 1 | BI27: 4 | BJ27: 5 | BK27: 3 | BL27: 1 | BM27: 8 | BN27: 2 | BO27: 15 | BP27: 12 | BQ27: 0 | BR27: 4 | BS27: 148 | BT27: 3 | BU27: 6 | BV27: 28
A28: BAS_RHIN | B28: SELESTAT | C28: FEGERSHEIM | D28: 8 | E28: Ee | F28: 274 | G28: 57 | H28: 92 | I28: 92 | J28: 0 | K28: 92 | L28: 0 | M28: 0 | N28: 17 | O28: 11 | P28: 8.642335766 | Q28: 7505.679088 | R28: 2056556.07 | S28: 0 | T28: 6 | U28: 221 | V28: 118 | W28: 0 | X28: 0 | Y28: 15 | Z28: 0 | AA28: 0 | AC28: 1 | AD28: 0 | AE28: 15 | AF28: 15 | AG28: 0 | AK28: 0 | AL28: 0 | AM28: 234 | AN28: 25 | AO28: 79 | AP28: 4 | AQ28: 0 | AR28: 0 | AS28: 2 | AT28: 0 | AU28: 0 | AV28: 2 | AW28: 80 | AX28: 79 | AY28: 0 | AZ28: 0 | BA28: 0 | BB28: 35 | BC28: 1 | BD28: 0 | BE28: 0 | BF28: 54 | BG28: 40 | BH28: 0 | BI28: 0 | BJ28: 0 | BK28: 0 | BL28: 0 | BM28: 0 | BN28: 0 | BP28: 0 | BQ28: 0 | BR28: 0 | BS28: 39 | BT28: 0 | BU28: 9 | BV28: 0
A29: BAS_RHIN | B29: SELESTAT | C29: FEGERSHEIM | D29: 8 | E29: Ene | F29: 91 | G29: 37 | H29: 34 | I29: 34 | J29: 0 | K29: 34 | L29: 0 | M29: 0 | N29: 8 | O29: 4 | P29: 9.692307692 | Q29: 1286.439121 | R29: 117065.96 | S29: 0 | T29: 0 | U29: 0 | V29: 0 | W29: 0 | X29: 0 | Y29: 0 | AC29: 0 | AD29: 0 | AG29: 0 | AK29: 0 | AL29: 0 | AM29: 68 | AN29: 0 | AO29: 3 | AP29: 0 | AQ29: 0 | AR29: 0 | AS29: 0 | AT29: 0 | AU29: 0 | AV29: 0 | AW29: 16 | AX29: 0 | AY29: 0 | AZ29: 0 | BA29: 0 | BB29: 0 | BC29: 0 | BD29: 0 | BE29: 0 | BF29: 13 | BG29: 5 | BH29: 0 | BI29: 0 | BJ29: 0 | BK29: 0 | BL29: 0 | BM29: 0 | BN29: 0 | BS29: 14
A30: BAS_RHIN | B30: SELESTAT | C30: FEGERSHEIM | D30: 8 | E30: I | F30: 473 | G30: 0 | H30: 0 | I30: 473 | J30: 473 | K30: 0 | L30: 0 | M30: 49 | O30: 80 | P30: 47.33403805 | Q30: 16.65145877 | R30: 7876.14 | S30: 0 | T30: 0 | U30: 12 | V30: 0 | W30: 0 | X30: 15 | Y30: 0 | AC30: 0 | AD30: 0 | AG30: 0 | AK30: 0 | AL30: 0 | AM30: 223 | AN30: 0 | AO30: 0 | AP30: 2 | AQ30: 0 | AR30: 0 | AS30: 1 | AT30: 8 | AU30: 1 | AV30: 0 | AW30: 0 | AX30: 0 | AY30: 0 | AZ30: 0 | BA30: 0 | BB30: 0 | BC30: 0 | BD30: 0 | BE30: 0 | BF30: 7 | BG30: 0 | BH30: 0 | BI30: 5 | BJ30: 3 | BK30: 5 | BL30: 0 | BM30: 1 | BN30: 2 | BO30: 2 | BP30: 4 | BQ30: 0 | BR30: 0 | BS30: 8 | BT30: 0 | BU30: 0 | BV30: 0
A31: BAS_RHIN | B31: SELESTAT | C31: FEGERSHEIM | D31: 8 | E31: JBPe | F31: 187 | G31: 0 | H31: 187 | I31: 187 | J31: 174 | K31: 13 | L31: 187 | M31: 174 | N31: 2 | O31: 4 | P31: 21.38502674 | Q31: 13171.29738 | R31: 2463032.61 | S31: 552951.95 | T31: 179 | U31: 155 | V31: 118 | W31: 49 | X31: 60 | Y31: 186 | Z31: 38 | AA31: 64 | AB31: 4 | AC31: 0 | AD31: 0 | AE31: 189 | AF31: 182 | AG31: 42 | AH31: 26 | AI31: 11 | AK31: 10 | AL31: 6 | AM31: 173 | AN31: 1 | AO31: 170 | AP31: 1 | AQ31: 1 | AR31: 0 | AS31: 0 | AT31: 6 | AU31: 8 | AV31: 4 | AW31: 33 | AX31: 92 | AY31: 0 | AZ31: 0 | BA31: 0 | BB31: 31 | BC31: 2 | BD31: 6 | BE31: 3 | BF31: 61 | BG31: 34 | BH31: 10 | BI31: 15 | BJ31: 15 | BK31: 6 | BL31: 0 | BM31: 39 | BN31: 0 | BO31: 38 | BP31: 6 | BQ31: 6 | BR31: 14 | BS31: 157 | BT31: 3 | BU31: 164 | BV31: 90
A32: BAS_RHIN | B32: SELESTAT | C32: FEGERSHEIM | D32: 8 | E32: JBPne | F32: 26 | G32: 0 | H32: 26 | I32: 26 | J32: 23 | K32: 3 | L32: 26 | M32: 23 | N32: 5 | O32: 3 | P32: 20.23076923 | Q32: 528.7942308 | R32: 13748.65 | S32: 0 | T32: 15 | U32: 2 | V32: 0 | W32: 1 | X32: 3 | Y32: 22 | Z32: 3 | AA32: 9 | AB32: 1 | AC32: 0 | AD32: 0 | AE32: 24 | AF32: 24 | AG32: 1 | AH32: 1 | AK32: 0 | AL32: 0 | AM32: 11 | AN32: 0 | AO32: 16 | AP32: 0 | AQ32: 0 | AR32: 0 | AS32: 1 | AT32: 1 | AU32: 0 | AV32: 0 | AW32: 0 | AX32: 0 | AY32: 0 | AZ32: 0 | BA32: 0 | BB32: 0 | BC32: 0 | BD32: 0 | BE32: 0 | BF32: 3 | BG32: 0 | BH32: 1 | BI32: 0 | BJ32: 0 | BK32: 0 | BL32: 0 | BM32: 2 | BN32: 0 | BO32: 6 | BP32: 1 | BQ32: 0 | BR32: 1 | BS32: 19 | BT32: 0 | BU32: 20 | BV32: 7
A33: BAS_RHIN | B33: SELESTAT | C33: FEGERSHEIM | D33: 8 | E33: JDe | F33: 65 | G33: 0 | H33: 65 | I33: 65 | J33: 43 | K33: 22 | L33: 65 | M33: 43 | P33: 19.95384615 | Q33: 13436.45538 | R33: 873369.6 | S33: 0 | T33: 1 | U33: 60 | V33: 61 | W33: 5 | X33: 3 | Y33: 13 | Z33: 0 | AA33: 2 | AB33: 1 | AC33: 0 | AD33: 0 | AE33: 13 | AF33: 13 | AG33: 5 | AH33: 4 | AI33: 1 | AK33: 0 | AL33: 0 | AM33: 58 | AN33: 0 | AO33: 53 | AP33: 0 | AQ33: 1 | AR33: 0 | AS33: 0 | AT33: 1 | AU33: 0 | AV33: 4 | AW33: 11 | AX33: 38 | AY33: 0 | AZ33: 0 | BA33: 0 | BB33: 15 | BC33: 0 | BD33: 0 | BE33: 0 | BF33: 26 | BG33: 20 | BH33: 0 | BI33: 1 | BJ33: 2 | BK33: 0 | BL33: 0 | BM33: 2 | BN33: 0 | BO33: 1 | BP33: 0 | BQ33: 0 | BR33: 1 | BS33: 20 | BT33: 0 | BU33: 9 | BV33: 6
A34: BAS_RHIN | B34: SELESTAT | C34: FEGERSHEIM | D34: 8 | E34: JDne | F34: 193 | G34: 0 | H34: 193 | I34: 193 | J34: 153 | K34: 40 | L34: 193 | M34: 153 | N34: 4 | O34: 28 | P34: 20.64766839 | Q34: 2222.238135 | R34: 428891.96 | S34: 0 | T34: 0 | U34: 65 | V34: 24 | W34: 3 | X34: 2 | Y34: 17 | Z34: 0 | AA34: 0 | AC34: 0 | AD34: 0 | AE34: 16 | AF34: 16 | AG34: 3 | AH34: 1 | AK34: 0 | AL34: 0 | AM34: 124 | AN34: 0 | AO34: 88 | AP34: 0 | AQ34: 1 | AR34: 0 | AS34: 0 | AT34: 1 | AU34: 0 | AV34: 0 | AW34: 8 | AX34: 7 | AY34: 0 | AZ34: 0 | BA34: 0 | BB34: 15 | BC34: 0 | BD34: 0 | BE34: 0 | BF34: 17 | BG34: 2 | BH34: 0 | BI34: 0 | BJ34: 0 | BK34: 2 | BL34: 0 | BM34: 1 | BN34: 0 | BO34: 4 | BP34: 1 | BQ34: 0 | BR34: 0 | BS34: 20 | BT34: 0 | BU34: 12 | BV34: 6
A35: BAS_RHIN | B35: STRASBOURG | C35: STRASBOURG MEINAU | D35: 10 | E35: BPe | F35: 644 | G35: 0 | H35: 0 | I35: 644 | J35: 644 | K35: 0 | L35: 0 | M35: 54 | N35: 2 | O35: 3 | P35: 49.40062112 | Q35: 37934.50244 | R35: 24429819.57 | S35: 14122848.48 | T35: 627 | U35: 564 | V35: 428 | W35: 350 | X35: 310 | Y35: 640 | Z35: 358 | AA35: 280 | AB35: 134 | AC35: 0 | AD35: 0 | AE35: 635 | AF35: 590 | AG35: 223 | AH35: 3 | AI35: 12 | AJ35: 10 | AK35: 114 | AL35: 144 | AM35: 594 | AN35: 0 | AO35: 0 | AP35: 17 | AQ35: 22 | AR35: 13 | AS35: 14 | AT35: 193 | AU35: 69 | AV35: 54 | AW35: 250 | AX35: 204 | AY35: 8 | AZ35: 1 | BA35: 23 | BB35: 191 | BC35: 19 | BD35: 118 | BE35: 47 | BF35: 406 | BG35: 185 | BH35: 55 | BI35: 175 | BJ35: 122 | BK35: 16 | BL35: 4 | BM35: 126 | BN35: 18 | BO35: 81 | BP35: 99 | BQ35: 30 | BR35: 61 | BS35: 465 | BT35: 29 | BU35: 116 | BV35: 163
A36: BAS_RHIN | B36: STRASBOURG | C36: STRASBOURG MEINAU | D36: 10 | E36: BPne | F36: 389 | G36: 0 | H36: 0 | I36: 389 | J36: 389 | K36: 0 | L36: 0 | M36: 26 | N36: 5 | O36: 12 | P36: 52.8714653 | Q36: 12601.03589 | R36: 4901802.96 | S36: 416851.83 | T36: 277 | U36: 208 | V36: 39 | W36: 34 | X36: 25 | Y36: 327 | Z36: 62 | AA36: 36 | AB36: 37 | AC36: 0 | AD36: 0 | AE36: 356 | AF36: 292 | AG36: 20 | AH36: 1 | AJ36: 1 | AK36: 9 | AL36: 10 | AM36: 294 | AN36: 0 | AO36: 0 | AP36: 2 | AQ36: 5 | AR36: 2 | AS36: 1 | AT36: 56 | AU36: 39 | AV36: 8 | AW36: 63 | AX36: 19 | AY36: 1 | AZ36: 0 | BA36: 0 | BB36: 21 | BC36: 3 | BD36: 14 | BE36: 4 | BF36: 141 | BG36: 22 | BH36: 2 | BI36: 9 | BJ36: 9 | BK36: 1 | BL36: 0 | BM36: 11 | BN36: 1 | BO36: 23 | BP36: 22 | BQ36: 5 | BR36: 33 | BS36: 234 | BT36: 4 | BU36: 48 | BV36: 69
A37: BAS_RHIN | B37: STRASBOURG | C37: STRASBOURG MEINAU | D37: 10 | E37: De | F37: 534 | G37: 0 | H37: 0 | I37: 534 | J37: 534 | K37: 0 | L37: 0 | M37: 23 | N37: 5 | O37: 17 | P37: 62.63108614 | Q37: 64952.23343 | R37: 34684492.65 | S37: 1393392.45 | T37: 127 | U37: 472 | V37: 424 | W37: 63 | X37: 91 | Y37: 207 | Z37: 43 | AA37: 32 | AB37: 12 | AC37: 0 | AD37: 0 | AE37: 196 | AF37: 147 | AG37: 33 | AH37: 4 | AI37: 1 | AJ37: 2 | AK37: 7 | AL37: 27 | AM37: 481 | AN37: 0 | AO37: 0 | AP37: 25 | AQ37: 41 | AR37: 13 | AS37: 6 | AT37: 141 | AU37: 97 | AV37: 30 | AW37: 82 | AX37: 157 | AY37: 2 | AZ37: 2 | BA37: 10 | BB37: 258 | BC37: 16 | BD37: 71 | BE37: 63 | BF37: 289 | BG37: 193 | BH37: 10 | BI37: 47 | BJ37: 32 | BK37: 11 | BL37: 0 | BM37: 15 | BN37: 15 | BO37: 14 | BP37: 18 | BQ37: 3 | BR37: 9 | BS37: 151 | BT37: 8 | BU37: 19 | BV37: 54
A38: BAS_RHIN | B38: STRASBOURG | C38: STRASBOURG MEINAU | D38: 10 | E38: Dne | F38: 1128 | G38: 0 | H38: 0 | I38: 1128 | J38: 1128 | K38: 0 | L38: 0 | M38: 63 | N38: 16 | O38: 79 | P38: 56.64007092 | Q38: 8891.102535 | R38: 10029163.66 | S38: 401871.33 | T38: 51 | U38: 499 | V38: 114 | W38: 47 | X38: 25 | Y38: 180 | Z38: 19 | AA38: 19 | AB38: 11 | AC38: 0 | AD38: 0 | AE38: 177 | AF38: 122 | AG38: 23 | AK38: 4 | AL38: 26 | AM38: 768 | AN38: 0 | AO38: 0 | AP38: 13 | AQ38: 20 | AR38: 7 | AS38: 1 | AT38: 82 | AU38: 62 | AV38: 7 | AW38: 34 | AX38: 26 | AY38: 0 | AZ38: 1 | BA38: 15 | BB38: 57 | BC38: 2 | BD38: 18 | BE38: 12 | BF38: 236 | BG38: 29 | BH38: 3 | BI38: 12 | BJ38: 4 | BK38: 0 | BL38: 0 | BM38: 9 | BN38: 0 | BO38: 18 | BP38: 9 | BQ38: 3 | BR38: 11 | BS38: 189 | BT38: 2 | BU38: 27 | BV38: 45
A39: BAS_RHIN | B39: STRASBOURG | C39: STRASBOURG MEINAU | D39: 10 | E39: Ee | F39: 199 | G39: 30 | H39: 55 | I39: 55 | J39: 0 | K39: 55 | L39: 0 | M39: 0 | N39: 7 | O39: 12 | P39: 8.361809045 | Q39: 3235.456281 | R39: 643855.8 | S39: 0 | T39: 2 | U39: 138 | V39: 85 | W39: 0 | X39: 0 | Y39: 4 | Z39: 0 | AA39: 0 | AC39: 0 | AD39: 0 | AE39: 4 | AF39: 4 | AG39: 0 | AK39: 0 | AL39: 0 | AM39: 172 | AN39: 4 | AO39: 32 | AP39: 1 | AQ39: 0 | AR39: 0 | AS39: 0 | AT39: 0 | AU39: 0 | AV39: 0 | AW39: 85 | AX39: 26 | AY39: 0 | AZ39: 0 | BA39: 0 | BB39: 30 | BC39: 3 | BD39: 0 | BE39: 0 | BF39: 30 | BG39: 10 | BH39: 0 | BI39: 0 | BJ39: 0 | BK39: 0 | BL39: 0 | BM39: 0 | BN39: 0 | BP39: 0 | BQ39: 0 | BR39: 0 | BS39: 25 | BT39: 0 | BU39: 4 | BV39: 0
A40: BAS_RHIN | B40: STRASBOURG | C40: STRASBOURG MEINAU | D40: 10 | E40: Ene | F40: 137 | G40: 49 | H40: 53 | I40: 53 | J40: 0 | K40: 53 | L40: 0 | M40: 0 | N40: 4 | O40: 3 | P40: 10.18978102 | Q40: 774.1844526 | R40: 106063.27 | S40: 0 | T40: 0 | U40: 0 | V40: 0 | W40: 0 | X40: 0 | Y40: 1 | Z40: 0 | AA40: 0 | AC40: 0 | AD40: 0 | AE40: 1 | AF40: 1 | AG40: 0 | AK40: 0 | AL40: 0 | AM40: 116 | AN40: 0 | AO40: 4 | AP40: 1 | AQ40: 0 | AR40: 0 | AS40: 0 | AT40: 0 | AU40: 0 | AV40: 0 | AW40: 20 | AX40: 0 | AY40: 0 | AZ40: 0 | BA40: 0 | BB40: 0 | BC40: 0 | BD40: 0 | BE40: 0 | BF40: 15 | BG40: 1 | BH40: 0 | BI40: 0 | BJ40: 0 | BK40: 0 | BL40: 0 | BM40: 0 | BN40: 0 | BP40: 0 | BQ40: 0 | BR40: 0 | BS40: 10 | BT40: 0 | BU40: 1 | BV40: 0
A41: BAS_RHIN | B41: STRASBOURG | C41: STRASBOURG MEINAU | D41: 10 | E41: I | F41: 754 | G41: 0 | H41: 0 | I41: 754 | J41: 754 | K41: 0 | L41: 0 | M41: 53 | N41: 2 | O41: 157 | P41: 49.47745358 | Q41: 15.75595491 | R41: 11879.99 | S41: 0 | T41: 0 | U41: 15 | V41: 8 | W41: 0 | X41: 7 | Y41: 1 | AC41: 0 | AD41: 0 | AG41: 0 | AK41: 0 | AL41: 0 | AM41: 520 | AN41: 0 | AO41: 0 | AP41: 2 | AQ41: 1 | AR41: 0 | AS41: 1 | AT41: 9 | AU41: 1 | AV41: 0 | AW41: 0 | AX41: 0 | AY41: 0 | AZ41: 0 | BA41: 8 | BB41: 0 | BC41: 0 | BD41: 0 | BE41: 0 | BF41: 8 | BG41: 0 | BH41: 3 | BI41: 1 | BJ41: 1 | BK41: 1 | BL41: 0 | BM41: 2 | BN41: 0 | BS41: 1
A42: BAS_RHIN | B42: STRASBOURG | C42: STRASBOURG MEINAU | D42: 10 | E42: JBPe | F42: 164 | G42: 0 | H42: 164 | I42: 164 | J42: 156 | K42: 8 | L42: 164 | M42: 156 | N42: 7 | O42: 2 | P42: 22.20731707 | Q42: 7022.670183 | R42: 1151717.91 | S42: 75635.86 | T42: 162 | U42: 143 | V42: 43 | W42: 36 | X42: 37 | Y42: 163 | Z42: 27 | AA42: 29 | AB42: 8 | AC42: 0 | AD42: 0 | AE42: 166 | AF42: 165 | AG42: 34 | AH42: 12 | AI42: 9 | AK42: 5 | AL42: 2 | AM42: 139 | AN42: 0 | AO42: 136 | AP42: 0 | AQ42: 2 | AR42: 0 | AS42: 2 | AT42: 12 | AU42: 1 | AV42: 2 | AW42: 66 | AX42: 25 | AY42: 0 | AZ42: 0 | BA42: 0 | BB42: 11 | BC42: 1 | BD42: 3 | BE42: 0 | BF42: 44 | BG42: 9 | BH42: 5 | BI42: 12 | BJ42: 7 | BK42: 1 | BL42: 0 | BM42: 24 | BN42: 0 | BO42: 33 | BP42: 6 | BQ42: 9 | BR42: 15 | BS42: 146 | BT42: 0 | BU42: 140 | BV42: 123
A43: BAS_RHIN | B43: STRASBOURG | C43: STRASBOURG MEINAU | D43: 10 | E43: JBPne | F43: 38 | G43: 0 | H43: 38 | I43: 38 | J43: 31 | K43: 7 | L43: 38 | M43: 31 | N43: 2 | O43: 6 | P43: 20.71052632 | Q43: 1398.206842 | R43: 53131.86 | S43: 0 | T43: 18 | U43: 6 | V43: 0 | W43: 2 | X43: 0 | Y43: 34 | Z43: 1 | AA43: 2 | AB43: 2 | AC43: 0 | AD43: 0 | AE43: 35 | AF43: 34 | AG43: 2 | AH43: 2 | AI43: 2 | AK43: 0 | AL43: 0 | AM43: 20 | AN43: 0 | AO43: 21 | AP43: 0 | AQ43: 1 | AR43: 0 | AS43: 0 | AT43: 0 | AU43: 0 | AV43: 0 | AW43: 5 | AX43: 0 | AY43: 0 | AZ43: 0 | BA43: 0 | BB43: 0 | BC43: 0 | BD43: 0 | BE43: 0 | BF43: 7 | BG43: 0 | BH43: 0 | BI43: 0 | BJ43: 0 | BK43: 0 | BL43: 0 | BM43: 0 | BN43: 0 | BO43: 5 | BP43: 0 | BQ43: 0 | BR43: 3 | BS43: 26 | BT43: 0 | BU43: 31 | BV43: 18
A44: BAS_RHIN | B44: STRASBOURG | C44: STRASBOURG MEINAU | D44: 10 | E44: JDe | F44: 30 | G44: 0 | H44: 30 | I44: 30 | J44: 24 | K44: 6 | L44: 30 | M44: 24 | O44: 1 | P44: 19.9 | Q44: 17086.127 | R44: 512583.81 | S44: 0 | T44: 1 | U44: 30 | V44: 29 | W44: 0 | X44: 0 | Y44: 4 | Z44: 0 | AA44: 1 | AC44: 0 | AD44: 0 | AE44: 4 | AF44: 4 | AG44: 0 | AK44: 0 | AL44: 0 | AM44: 24 | AN44: 0 | AO44: 26 | AP44: 0 | AQ44: 0 | AR44: 0 | AS44: 1 | AT44: 0 | AU44: 0 | AV44: 0 | AW44: 6 | AX44: 19 | AY44: 0 | AZ44: 0 | BA44: 0 | BB44: 7 | BC44: 1 | BD44: 1 | BE44: 0 | BF44: 9 | BG44: 7 | BH44: 0 | BI44: 0 | BJ44: 0 | BK44: 0 | BL44: 0 | BM44: 0 | BN44: 0 | BP44: 0 | BQ44: 0 | BR44: 1 | BS44: 8 | BT44: 0 | BU44: 4 | BV44: 2
A45: BAS_RHIN | B45: STRASBOURG | C45: STRASBOURG MEINAU | D45: 10 | E45: JDne | F45: 197 | G45: 0 | H45: 197 | I45: 197 | J45: 142 | K45: 55 | L45: 197 | M45: 142 | N45: 5 | O45: 29 | P45: 20.20304569 | Q45: 2907.208782 | R45: 572720.13 | S45: 0 | T45: 1 | U45: 74 | V45: 13 | W45: 5 | X45: 2 | Y45: 25 | Z45: 0 | AA45: 2 | AC45: 0 | AD45: 0 | AE45: 24 | AF45: 23 | AG45: 3 | AH45: 2 | AK45: 2 | AL45: 0 | AM45: 142 | AN45: 0 | AO45: 99 | AP45: 0 | AQ45: 0 | AR45: 0 | AS45: 0 | AT45: 1 | AU45: 0 | AV45: 0 | AW45: 16 | AX45: 4 | AY45: 0 | AZ45: 0 | BA45: 0 | BB45: 5 | BC45: 0 | BD45: 0 | BE45: 0 | BF45: 18 | BG45: 4 | BH45: 1 | BI45: 1 | BJ45: 1 | BK45: 0 | BL45: 0 | BM45: 2 | BN45: 0 | BO45: 3 | BP45: 0 | BQ45: 0 | BR45: 2 | BS45: 37 | BT45: 0 | BU45: 18 | BV45: 11
A46: BAS_RHIN | B46: STRASBOURG | C46: STRASBOURG STOCKFELD | D46: 12 | E46: BPe | F46: 524 | G46: 0 | H46: 0 | I46: 524 | J46: 524 | K46: 0 | L46: 0 | M46: 37 | N46: 6 | O46: 5 | P46: 50.62977099 | Q46: 28563.32496 | R46: 14967182.28 | S46: 10337239.64 | T46: 500 | U46: 445 | V46: 334 | W46: 288 | X46: 286 | Y46: 516 | Z46: 257 | AA46: 207 | AB46: 91 | AC46: 0 | AD46: 0 | AE46: 510 | AF46: 478 | AG46: 167 | AH46: 2 | AI46: 5 | AJ46: 11 | AK46: 87 | AL46: 120 | AM46: 497 | AN46: 0 | AO46: 0 | AP46: 23 | AQ46: 25 | AR46: 2 | AS46: 4 | AT46: 111 | AU46: 60 | AV46: 31 | AW46: 262 | AX46: 161 | AY46: 12 | AZ46: 1 | BA46: 5 | BB46: 169 | BC46: 20 | BD46: 55 | BE46: 34 | BF46: 343 | BG46: 148 | BH46: 49 | BI46: 142 | BJ46: 134 | BK46: 18 | BL46: 4 | BM46: 84 | BN46: 38 | BO46: 49 | BP46: 100 | BQ46: 32 | BR46: 63 | BS46: 343 | BT46: 46 | BU46: 121 | BV46: 191
A47: BAS_RHIN | B47: STRASBOURG | C47: STRASBOURG STOCKFELD | D47: 12 | E47: BPne | F47: 304 | G47: 0 | H47: 0 | I47: 304 | J47: 304 | K47: 0 | L47: 0 | M47: 21 | N47: 2 | O47: 15 | P47: 50.49342105 | Q47: 13068.79697 | R47: 3972914.28 | S47: 1524543.99 | T47: 225 | U47: 160 | V47: 37 | W47: 41 | X47: 33 | Y47: 259 | Z47: 61 | AA47: 41 | AB47: 22 | AC47: 0 | AD47: 0 | AE47: 276 | AF47: 248 | AG47: 22 | AH47: 1 | AJ47: 1 | AK47: 8 | AL47: 18 | AM47: 242 | AN47: 0 | AO47: 0 | AP47: 8 | AQ47: 3 | AR47: 1 | AS47: 8 | AT47: 35 | AU47: 36 | AV47: 7 | AW47: 74 | AX47: 16 | AY47: 0 | AZ47: 0 | BA47: 0 | BB47: 24 | BC47: 0 | BD47: 3 | BE47: 7 | BF47: 121 | BG47: 9 | BH47: 7 | BI47: 15 | BJ47: 13 | BK47: 2 | BL47: 0 | BM47: 14 | BN47: 1 | BO47: 23 | BP47: 28 | BQ47: 11 | BR47: 29 | BS47: 191 | BT47: 4 | BU47: 54 | BV47: 81
A48: BAS_RHIN | B48: STRASBOURG | C48: STRASBOURG STOCKFELD | D48: 12 | E48: De | F48: 328 | G48: 0 | H48: 0 | I48: 328 | J48: 328 | K48: 0 | L48: 0 | M48: 6 | N48: 3 | O48: 20 | P48: 61.27743902 | Q48: 50978.93463 | R48: 16721090.56 | S48: 1970560.21 | T48: 82 | U48: 307 | V48: 245 | W48: 43 | X48: 77 | Y48: 142 | Z48: 23 | AA48: 17 | AB48: 18 | AC48: 0 | AD48: 0 | AE48: 128 | AF48: 110 | AG48: 22 | AH48: 2 | AI48: 2 | AJ48: 3 | AK48: 5 | AL48: 24 | AM48: 289 | AN48: 0 | AO48: 0 | AP48: 22 | AQ48: 24 | AR48: 2 | AS48: 13 | AT48: 72 | AU48: 61 | AV48: 30 | AW48: 90 | AX48: 86 | AY48: 8 | AZ48: 0 | BA48: 3 | BB48: 140 | BC48: 23 | BD48: 23 | BE48: 38 | BF48: 185 | BG48: 111 | BH48: 9 | BI48: 34 | BJ48: 33 | BK48: 7 | BL48: 1 | BM48: 9 | BN48: 9 | BO48: 9 | BP48: 18 | BQ48: 1 | BR48: 10 | BS48: 96 | BT48: 4 | BU48: 25 | BV48: 52
A49: BAS_RHIN | B49: STRASBOURG | C49: STRASBOURG STOCKFELD | D49: 12 | E49: Dne | F49: 845 | G49: 0 | H49: 0 | I49: 845 | J49: 845 | K49: 0 | L49: 0 | M49: 46 | N49: 14 | O49: 82 | P49: 55.49112426 | Q49: 7478.527018 | R49: 6319355.33 | S49: 475198.66 | T49: 26 | U49: 363 | V49: 88 | W49: 36 | X49: 23 | Y49: 144 | Z49: 10 | AA49: 8 | AB49: 15 | AC49: 0 | AD49: 0 | AE49: 154 | AF49: 104 | AG49: 24 | AK49: 5 | AL49: 10 | AM49: 585 | AN49: 0 | AO49: 0 | AP49: 10 | AQ49: 8 | AR49: 3 | AS49: 7 | AT49: 70 | AU49: 42 | AV49: 6 | AW49: 35 | AX49: 18 | AY49: 2 | AZ49: 2 | BA49: 6 | BB49: 47 | BC49: 5 | BD49: 8 | BE49: 3 | BF49: 215 | BG49: 20 | BH49: 3 | BI49: 11 | BJ49: 9 | BK49: 0 | BL49: 0 | BM49: 4 | BN49: 1 | BO49: 11 | BP49: 12 | BQ49: 3 | BR49: 13 | BS49: 125 | BT49: 2 | BU49: 32 | BV49: 40
A50: BAS_RHIN | B50: STRASBOURG | C50: STRASBOURG STOCKFELD | D50: 12 | E50: Ee | F50: 167 | G50: 18 | H50: 41 | I50: 41 | J50: 0 | K50: 41 | L50: 0 | M50: 0 | N50: 7 | O50: 13 | P50: 8.233532934 | Q50: 2697.818743 | R50: 450535.73 | S50: 0 | T50: 1 | U50: 119 | V50: 63 | W50: 0 | X50: 0 | Y50: 5 | Z50: 0 | AA50: 0 | AC50: 0 | AD50: 0 | AE50: 4 | AF50: 4 | AG50: 0 | AK50: 0 | AL50: 0 | AM50: 146 | AN50: 2 | AO50: 24 | AP50: 1 | AQ50: 0 | AR50: 0 | AS50: 1 | AT50: 0 | AU50: 0 | AV50: 0 | AW50: 74 | AX50: 13 | AY50: 0 | AZ50: 0 | BA50: 0 | BB50: 29 | BC50: 0 | BD50: 0 | BE50: 0 | BF50: 5 | BG50: 2 | BH50: 0 | BI50: 0 | BJ50: 0 | BK50: 0 | BL50: 0 | BM50: 0 | BN50: 0 | BP50: 0 | BQ50: 0 | BR50: 0 | BS50: 12 | BT50: 0 | BU50: 4 | BV50: 0
A51: BAS_RHIN | B51: STRASBOURG | C51: STRASBOURG STOCKFELD | D51: 12 | E51: Ene | F51: 161 | G51: 59 | H51: 76 | I51: 76 | J51: 0 | K51: 76 | L51: 0 | M51: 0 | N51: 16 | O51: 14 | P51: 10.45962733 | Q51: 631.6631056 | R51: 101697.76 | S51: 0 | T51: 0 | U51: 0 | V51: 0 | W51: 0 | X51: 0 | Y51: 1 | Z51: 0 | AA51: 0 | AC51: 0 | AD51: 0 | AE51: 1 | AF51: 1 | AG51: 0 | AK51: 0 | AL51: 0 | AM51: 143 | AN51: 0 | AO51: 6 | AP51: 3 | AQ51: 0 | AR51: 0 | AS51: 0 | AT51: 0 | AU51: 0 | AV51: 0 | AW51: 17 | AX51: 0 | AY51: 0 | AZ51: 0 | BA51: 0 | BB51: 0 | BC51: 0 | BD51: 0 | BE51: 0 | BF51: 9 | BG51: 2 | BH51: 0 | BI51: 0 | BJ51: 0 | BK51: 0 | BL51: 0 | BM51: 0 | BN51: 0 | BS51: 13
A52: BAS_RHIN | B52: STRASBOURG | C52: STRASBOURG STOCKFELD | D52: 12 | E52: I | F52: 569 | G52: 0 | H52: 0 | I52: 569 | J52: 569 | K52: 0 | L52: 0 | M52: 56 | N52: 3 | O52: 106 | P52: 48.41476274 | Q52: 14.51592267 | R52: 8259.56 | S52: 0 | T52: 0 | U52: 11 | V52: 1 | W52: 0 | X52: 9 | Y52: 0 | AC52: 0 | AD52: 0 | AG52: 0 | AK52: 0 | AL52: 0 | AM52: 401 | AN52: 0 | AO52: 0 | AP52: 0 | AQ52: 1 | AR52: 0 | AS52: 0 | AT52: 8 | AU52: 0 | AV52: 0 | AW52: 0 | AX52: 0 | AY52: 0 | AZ52: 0 | BA52: 1 | BB52: 0 | BC52: 0 | BD52: 0 | BE52: 0 | BF52: 11 | BG52: 0 | BH52: 0 | BI52: 3 | BJ52: 3 | BK52: 1 | BL52: 0 | BM52: 2 | BN52: 0 | BO52: 2 | BP52: 2 | BQ52: 1 | BR52: 0 | BS52: 2 | BT52: 1 | BU52: 0 | BV52: 0
A53: BAS_RHIN | B53: STRASBOURG | C53: STRASBOURG STOCKFELD | D53: 12 | E53: JBPe | F53: 116 | G53: 0 | H53: 116 | I53: 116 | J53: 110 | K53: 6 | L53: 116 | M53: 110 | N53: 1 | O53: 6 | P53: 21.46551724 | Q53: 5787.741034 | R53: 671377.96 | S53: 127366.61 | T53: 108 | U53: 92 | V53: 40 | W53: 32 | X53: 32 | Y53: 113 | Z53: 12 | AA53: 19 | AB53: 11 | AC53: 0 | AD53: 0 | AE53: 113 | AF53: 110 | AG53: 30 | AH53: 5 | AI53: 14 | AK53: 3 | AL53: 2 | AM53: 104 | AN53: 0 | AO53: 95 | AP53: 1 | AQ53: 1 | AR53: 0 | AS53: 0 | AT53: 2 | AU53: 2 | AV53: 1 | AW53: 40 | AX53: 23 | AY53: 0 | AZ53: 0 | BA53: 0 | BB53: 13 | BC53: 0 | BD53: 0 | BE53: 1 | BF53: 33 | BG53: 10 | BH53: 2 | BI53: 6 | BJ53: 12 | BK53: 3 | BL53: 0 | BM53: 19 | BN53: 0 | BO53: 22 | BP53: 6 | BQ53: 16 | BR53: 19 | BS53: 92 | BT53: 0 | BU53: 99 | BV53: 52
A54: BAS_RHIN | B54: STRASBOURG | C54: STRASBOURG STOCKFELD | D54: 12 | E54: JBPne | F54: 36 | G54: 0 | H54: 36 | I54: 36 | J54: 34 | K54: 2 | L54: 36 | M54: 34 | N54: 1 | O54: 10 | P54: 21.33333333 | Q54: 801.2177778 | R54: 28843.84 | S54: 0 | T54: 22 | U54: 6 | V54: 1 | W54: 0 | X54: 1 | Y54: 33 | Z54: 1 | AA54: 3 | AB54: 3 | AC54: 0 | AD54: 0 | AE54: 35 | AF54: 31 | AG54: 0 | AK54: 0 | AL54: 0 | AM54: 24 | AN54: 0 | AO54: 22 | AP54: 0 | AQ54: 0 | AR54: 0 | AS54: 0 | AT54: 0 | AU54: 0 | AV54: 0 | AW54: 4 | AX54: 1 | AY54: 0 | AZ54: 0 | BA54: 0 | BB54: 0 | BC54: 0 | BD54: 0 | BE54: 0 | BF54: 3 | BG54: 0 | BH54: 0 | BI54: 0 | BJ54: 0 | BK54: 0 | BL54: 0 | BM54: 1 | BN54: 0 | BO54: 7 | BP54: 0 | BQ54: 2 | BR54: 5 | BS54: 26 | BT54: 0 | BU54: 30 | BV54: 9
A55: BAS_RHIN | B55: STRASBOURG | C55: STRASBOURG STOCKFELD | D55: 12 | E55: JDe | F55: 13 | G55: 0 | H55: 13 | I55: 13 | J55: 8 | K55: 5 | L55: 13 | M55: 8 | P55: 18.38461538 | Q55: 10089.85692 | R55: 131168.14 | S55: 0 | T55: 2 | U55: 13 | V55: 11 | W55: 0 | X55: 0 | Y55: 5 | Z55: 0 | AA55: 0 | AB55: 1 | AC55: 0 | AD55: 0 | AE55: 4 | AF55: 4 | AG55: 0 | AK55: 0 | AL55: 0 | AM55: 13 | AN55: 0 | AO55: 12 | AP55: 0 | AQ55: 0 | AR55: 0 | AS55: 0 | AT55: 0 | AU55: 0 | AV55: 0 | AW55: 6 | AX55: 7 | AY55: 0 | AZ55: 0 | BA55: 0 | BB55: 4 | BC55: 0 | BD55: 0 | BE55: 0 | BF55: 4 | BG55: 2 | BH55: 0 | BI55: 0 | BJ55: 0 | BK55: 0 | BL55: 0 | BM55: 0 | BN55: 0 | BO55: 1 | BP55: 0 | BQ55: 0 | BR55: 1 | BS55: 1 | BT55: 0 | BU55: 5 | BV55: 1
A56: BAS_RHIN | B56: STRASBOURG | C56: STRASBOURG STOCKFELD | D56: 12 | E56: JDne | F56: 203 | G56: 0 | H56: 203 | I56: 203 | J56: 149 | K56: 54 | L56: 203 | M56: 149 | N56: 5 | O56: 29 | P56: 19.95073892 | Q56: 996.5178325 | R56: 202293.12 | S56: 0 | T56: 1 | U56: 49 | V56: 9 | W56: 1 | X56: 2 | Y56: 21 | Z56: 0 | AA56: 2 | AB56: 2 | AC56: 0 | AD56: 0 | AE56: 21 | AF56: 21 | AG56: 1 | AI56: 1 | AK56: 0 | AL56: 0 | AM56: 162 | AN56: 0 | AO56: 114 | AP56: 0 | AQ56: 0 | AR56: 0 | AS56: 0 | AT56: 0 | AU56: 0 | AV56: 1 | AW56: 18 | AX56: 2 | AY56: 0 | AZ56: 0 | BA56: 0 | BB56: 6 | BC56: 0 | BD56: 0 | BE56: 0 | BF56: 24 | BG56: 1 | BH56: 0 | BI56: 0 | BJ56: 0 | BK56: 0 | BL56: 0 | BM56: 2 | BN56: 0 | BO56: 2 | BP56: 0 | BQ56: 0 | BR56: 4 | BS56: 12 | BT56: 0 | BU56: 20 | BV56: 5
A57: BAS_RHIN | B57: SELESTAT | C57: ILLKIRCH NORD | D57: 13 | E57: BPe | F57: 504 | G57: 0 | H57: 0 | I57: 504 | J57: 504 | K57: 0 | L57: 0 | M57: 19 | N57: 8 | O57: 5 | P57: 50.71031746 | Q57: 47886.31087 | R57: 24134700.68 | S57: 21386642.45 | T57: 484 | U57: 441 | V57: 376 | W57: 328 | X57: 276 | Y57: 498 | Z57: 345 | AA57: 225 | AB57: 128 | AC57: 0 | AD57: 0 | AE57: 502 | AF57: 475 | AG57: 144 | AH57: 4 | AJ57: 13 | AK57: 91 | AL57: 216 | AM57: 439 | AN57: 0 | AO57: 0 | AP57: 47 | AQ57: 32 | AR57: 2 | AS57: 8 | AT57: 218 | AU57: 105 | AV57: 73 | AW57: 200 | AX57: 182 | AY57: 6 | AZ57: 1 | BA57: 13 | BB57: 214 | BC57: 20 | BD57: 92 | BE57: 46 | BF57: 313 | BG57: 221 | BH57: 81 | BI57: 170 | BJ57: 108 | BK57: 9 | BL57: 1 | BM57: 88 | BN57: 22 | BO57: 50 | BP57: 126 | BQ57: 24 | BR57: 113 | BS57: 354 | BT57: 56 | BU57: 62 | BV57: 118
A58: BAS_RHIN | B58: SELESTAT | C58: ILLKIRCH NORD | D58: 13 | E58: BPne | F58: 161 | G58: 0 | H58: 0 | I58: 161 | J58: 161 | K58: 0 | L58: 0 | M58: 8 | N58: 2 | O58: 9 | P58: 54.40993789 | Q58: 30962.23615 | R58: 4984920.02 | S58: 1203063.9 | T58: 99 | U58: 78 | V58: 34 | W58: 31 | X58: 11 | Y58: 118 | Z58: 47 | AA58: 23 | AB58: 22 | AC58: 0 | AD58: 0 | AE58: 142 | AF58: 133 | AG58: 9 | AH58: 1 | AK58: 9 | AL58: 20 | AM58: 116 | AN58: 0 | AO58: 0 | AP58: 5 | AQ58: 5 | AR58: 0 | AS58: 3 | AT58: 39 | AU58: 17 | AV58: 6 | AW58: 23 | AX58: 17 | AY58: 0 | AZ58: 0 | BA58: 0 | BB58: 23 | BC58: 1 | BD58: 9 | BE58: 5 | BF58: 61 | BG58: 17 | BH58: 3 | BI58: 5 | BJ58: 6 | BK58: 0 | BL58: 1 | BM58: 0 | BN58: 0 | BO58: 12 | BP58: 8 | BQ58: 2 | BR58: 12 | BS58: 91 | BT58: 3 | BU58: 18 | BV58: 30
A59: BAS_RHIN | B59: SELESTAT | C59: ILLKIRCH NORD | D59: 13 | E59: De | F59: 260 | G59: 0 | H59: 0 | I59: 260 | J59: 260 | K59: 0 | L59: 0 | M59: 7 | N59: 3 | O59: 7 | P59: 63.65384615 | Q59: 57898.13469 | R59: 15053515.02 | S59: 2187839.26 | T59: 36 | U59: 240 | V59: 223 | W59: 36 | X59: 48 | Y59: 68 | Z59: 17 | AA59: 13 | AB59: 11 | AC59: 0 | AD59: 0 | AE59: 75 | AF59: 57 | AG59: 14 | AH59: 1 | AJ59: 1 | AK59: 2 | AL59: 26 | AM59: 220 | AN59: 0 | AO59: 0 | AP59: 12 | AQ59: 40 | AR59: 3 | AS59: 2 | AT59: 82 | AU59: 61 | AV59: 25 | AW59: 46 | AX59: 108 | AY59: 1 | AZ59: 0 | BA59: 4 | BB59: 127 | BC59: 7 | BD59: 21 | BE59: 22 | BF59: 152 | BG59: 120 | BH59: 4 | BI59: 20 | BJ59: 13 | BK59: 3 | BL59: 0 | BM59: 7 | BN59: 11 | BO59: 8 | BP59: 16 | BQ59: 1 | BR59: 5 | BS59: 68 | BT59: 6 | BU59: 3 | BV59: 20
A60: BAS_RHIN | B60: SELESTAT | C60: ILLKIRCH NORD | D60: 13 | E60: Dne | F60: 461 | G60: 0 | H60: 0 | I60: 461 | J60: 461 | K60: 0 | L60: 0 | M60: 19 | N60: 22 | O60: 24 | P60: 56.65075922 | Q60: 10908.51701 | R60: 5028826.34 | S60: 887354.5 | T60: 10 | U60: 196 | V60: 76 | W60: 24 | X60: 15 | Y60: 40 | Z60: 6 | AA60: 5 | AB60: 5 | AC60: 0 | AD60: 0 | AE60: 48 | AF60: 37 | AG60: 10 | AH60: 1 | AK60: 1 | AL60: 14 | AM60: 270 | AN60: 0 | AO60: 0 | AP60: 14 | AQ60: 19 | AR60: 1 | AS60: 1 | AT60: 41 | AU60: 24 | AV60: 5 | AW60: 19 | AX60: 16 | AY60: 0 | AZ60: 0 | BA60: 4 | BB60: 44 | BC60: 1 | BD60: 8 | BE60: 7 | BF60: 80 | BG60: 23 | BH60: 3 | BI60: 6 | BJ60: 4 | BK60: 2 | BL60: 0 | BM60: 3 | BN60: 0 | BO60: 10 | BP60: 4 | BQ60: 0 | BR60: 6 | BS60: 84 | BT60: 1 | BU60: 8 | BV60: 13
A61: BAS_RHIN | B61: SELESTAT | C61: ILLKIRCH NORD | D61: 13 | E61: Ee | F61: 151 | G61: 26 | H61: 44 | I61: 44 | J61: 0 | K61: 44 | L61: 0 | M61: 0 | N61: 9 | O61: 4 | P61: 8 | Q61: 4021.232318 | R61: 607206.08 | S61: 0 | T61: 7 | U61: 108 | V61: 86 | W61: 0 | X61: 0 | Y61: 5 | Z61: 0 | AA61: 0 | AC61: 3 | AD61: 3 | AE61: 5 | AF61: 5 | AG61: 0 | AK61: 0 | AL61: 0 | AM61: 126 | AN61: 5 | AO61: 30 | AP61: 0 | AQ61: 0 | AR61: 0 | AS61: 0 | AT61: 0 | AU61: 0 | AV61: 0 | AW61: 55 | AX61: 41 | AY61: 0 | AZ61: 0 | BA61: 0 | BB61: 41 | BC61: 1 | BD61: 0 | BE61: 0 | BF61: 25 | BG61: 12 | BH61: 0 | BI61: 0 | BJ61: 0 | BK61: 0 | BL61: 0 | BM61: 0 | BN61: 0 | BP61: 0 | BQ61: 0 | BR61: 0 | BS61: 38 | BT61: 0 | BU61: 3 | BV61: 0
A62: BAS_RHIN | B62: SELESTAT | C62: ILLKIRCH NORD | D62: 13 | E62: Ene | F62: 74 | G62: 30 | H62: 31 | I62: 31 | J62: 0 | K62: 31 | L62: 0 | M62: 0 | N62: 5 | O62: 4 | P62: 10.25675676 | Q62: 1885.533243 | R62: 139529.46 | S62: 0 | T62: 0 | U62: 0 | V62: 0 | W62: 0 | X62: 0 | Y62: 0 | AC62: 0 | AD62: 0 | AG62: 0 | AK62: 0 | AL62: 0 | AM62: 56 | AN62: 1 | AO62: 2 | AP62: 0 | AQ62: 0 | AR62: 0 | AS62: 0 | AT62: 0 | AU62: 0 | AV62: 0 | AW62: 16 | AX62: 0 | AY62: 0 | AZ62: 0 | BA62: 0 | BB62: 0 | BC62: 0 | BD62: 0 | BE62: 0 | BF62: 9 | BG62: 3 | BH62: 0 | BI62: 0 | BJ62: 0 | BK62: 0 | BL62: 0 | BM62: 0 | BN62: 0 | BS62: 7
A63: BAS_RHIN | B63: SELESTAT | C63: ILLKIRCH NORD | D63: 13 | E63: I | F63: 188 | G63: 0 | H63: 0 | I63: 188 | J63: 188 | K63: 0 | L63: 0 | M63: 15 | O63: 49 | P63: 47.85106383 | Q63: 14.50260638 | R63: 2726.49 | S63: 0 | T63: 0 | U63: 1 | V63: 0 | W63: 0 | X63: 2 | Y63: 0 | AC63: 0 | AD63: 0 | AG63: 0 | AK63: 0 | AL63: 0 | AM63: 85 | AN63: 0 | AO63: 0 | AP63: 0 | AQ63: 0 | AR63: 0 | AS63: 0 | AT63: 6 | AU63: 1 | AV63: 0 | AW63: 0 | AX63: 0 | AY63: 0 | AZ63: 0 | BA63: 0 | BB63: 0 | BC63: 0 | BD63: 0 | BE63: 0 | BF63: 0 | BG63: 0 | BH63: 1 | BI63: 1 | BJ63: 0 | BK63: 0 | BL63: 0 | BM63: 0 | BN63: 0 | BO63: 5
A64: BAS_RHIN | B64: SELESTAT | C64: ILLKIRCH NORD | D64: 13 | E64: JBPe | F64: 106 | G64: 0 | H64: 106 | I64: 106 | J64: 95 | K64: 11 | L64: 106 | M64: 95 | N64: 3 | O64: 1 | P64: 21.55660377 | Q64: 10926.06236 | R64: 1158162.61 | S64: 90764.63 | T64: 102 | U64: 90 | V64: 47 | W64: 30 | X64: 30 | Y64: 104 | Z64: 23 | AA64: 31 | AB64: 5 | AC64: 0 | AD64: 0 | AE64: 107 | AF64: 104 | AG64: 28 | AH64: 7 | AJ64: 3 | AK64: 6 | AL64: 2 | AM64: 90 | AN64: 0 | AO64: 97 | AP64: 3 | AQ64: 0 | AR64: 0 | AS64: 0 | AT64: 12 | AU64: 1 | AV64: 2 | AW64: 26 | AX64: 30 | AY64: 0 | AZ64: 0 | BA64: 0 | BB64: 17 | BC64: 0 | BD64: 2 | BE64: 0 | BF64: 34 | BG64: 20 | BH64: 8 | BI64: 12 | BJ64: 11 | BK64: 2 | BL64: 0 | BM64: 14 | BN64: 0 | BO64: 31 | BP64: 6 | BQ64: 6 | BR64: 10 | BS64: 94 | BT64: 3 | BU64: 86 | BV64: 39
A65: BAS_RHIN | B65: SELESTAT | C65: ILLKIRCH NORD | D65: 13 | E65: JBPne | F65: 18 | G65: 0 | H65: 18 | I65: 18 | J65: 18 | K65: 0 | L65: 18 | M65: 18 | N65: 3 | P65: 21.22222222 | Q65: 1145.645 | R65: 20621.61 | S65: 0 | T65: 11 | U65: 2 | V65: 2 | W65: 0 | X65: 0 | Y65: 17 | Z65: 0 | AA65: 0 | AC65: 0 | AD65: 0 | AE65: 17 | AF65: 17 | AG65: 0 | AK65: 0 | AL65: 0 | AM65: 11 | AN65: 0 | AO65: 12 | AP65: 0 | AQ65: 0 | AR65: 0 | AS65: 0 | AT65: 0 | AU65: 0 | AV65: 0 | AW65: 2 | AX65: 0 | AY65: 0 | AZ65: 0 | BA65: 0 | BB65: 1 | BC65: 0 | BD65: 0 | BE65: 0 | BF65: 8 | BG65: 1 | BH65: 0 | BI65: 0 | BJ65: 0 | BK65: 0 | BL65: 0 | BM65: 0 | BN65: 0 | BO65: 1 | BP65: 0 | BQ65: 0 | BR65: 2 | BS65: 14 | BT65: 0 | BU65: 13 | BV65: 4
A66: BAS_RHIN | B66: SELESTAT | C66: ILLKIRCH NORD | D66: 13 | E66: JDe | F66: 18 | G66: 0 | H66: 18 | I66: 18 | J66: 10 | K66: 8 | L66: 18 | M66: 10 | P66: 19.55555556 | Q66: 7371.185 | R66: 132681.33 | S66: 0 | T66: 0 | U66: 17 | V66: 17 | W66: 1 | X66: 1 | Y66: 3 | Z66: 0 | AA66: 0 | AC66: 0 | AD66: 0 | AE66: 3 | AF66: 3 | AG66: 1 | AH66: 1 | AK66: 0 | AL66: 0 | AM66: 15 | AN66: 0 | AO66: 14 | AP66: 0 | AQ66: 0 | AR66: 0 | AS66: 0 | AT66: 0 | AU66: 0 | AV66: 1 | AW66: 3 | AX66: 10 | AY66: 0 | AZ66: 0 | BA66: 0 | BB66: 7 | BC66: 0 | BD66: 0 | BE66: 0 | BF66: 8 | BG66: 7 | BH66: 0 | BI66: 0 | BJ66: 0 | BK66: 0 | BL66: 0 | BM66: 1 | BN66: 0 | BO66: 1 | BP66: 0 | BQ66: 0 | BR66: 0 | BS66: 2 | BT66: 0 | BU66: 3 | BV66: 0
A67: BAS_RHIN | B67: SELESTAT | C67: ILLKIRCH NORD | D67: 13 | E67: JDne | F67: 102 | G67: 0 | H67: 102 | I67: 102 | J67: 64 | K67: 38 | L67: 102 | M67: 64 | N67: 2 | O67: 8 | P67: 19.40196078 | Q67: 2860.161863 | R67: 291736.51 | S67: 0 | T67: 0 | U67: 41 | V67: 20 | W67: 1 | X67: 2 | Y67: 4 | Z67: 0 | AA67: 0 | AC67: 0 | AD67: 0 | AE67: 2 | AF67: 2 | AG67: 1 | AH67: 1 | AK67: 0 | AL67: 0 | AM67: 74 | AN67: 0 | AO67: 40 | AP67: 0 | AQ67: 0 | AR67: 0 | AS67: 0 | AT67: 0 | AU67: 0 | AV67: 0 | AW67: 10 | AX67: 3 | AY67: 0 | AZ67: 0 | BA67: 0 | BB67: 13 | BC67: 1 | BD67: 0 | BE67: 0 | BF67: 18 | BG67: 4 | BH67: 0 | BI67: 0 | BJ67: 0 | BK67: 0 | BL67: 0 | BM67: 2 | BN67: 0 | BO67: 1 | BP67: 0 | BQ67: 0 | BR67: 0 | BS67: 7 | BT67: 0 | BU67: 4 | BV67: 0
A68: BAS_RHIN | B68: SELESTAT | C68: OSTWALD | D68: 14 | E68: BPe | F68: 421 | G68: 0 | H68: 0 | I68: 421 | J68: 421 | K68: 0 | L68: 0 | M68: 21 | N68: 3 | O68: 2 | P68: 50.61045131 | Q68: 45718.16893 | R68: 19247349.12 | S68: 15346974.09 | T68: 406 | U68: 356 | V68: 280 | W68: 259 | X68: 202 | Y68: 416 | Z68: 247 | AA68: 153 | AB68: 108 | AC68: 0 | AD68: 0 | AE68: 424 | AF68: 388 | AG68: 127 | AH68: 2 | AI68: 4 | AJ68: 10 | AK68: 82 | AL68: 156 | AM68: 390 | AN68: 0 | AO68: 0 | AP68: 20 | AQ68: 26 | AR68: 2 | AS68: 5 | AT68: 148 | AU68: 84 | AV68: 42 | AW68: 101 | AX68: 153 | AY68: 5 | AZ68: 0 | BA68: 13 | BB68: 130 | BC68: 10 | BD68: 60 | BE68: 30 | BF68: 217 | BG68: 112 | BH68: 64 | BI68: 115 | BJ68: 45 | BK68: 9 | BL68: 0 | BM68: 70 | BN68: 20 | BO68: 46 | BP68: 52 | BQ68: 16 | BR68: 21 | BS68: 320 | BT68: 13 | BU68: 26 | BV68: 67
A69: BAS_RHIN | B69: SELESTAT | C69: OSTWALD | D69: 14 | E69: BPne | F69: 226 | G69: 0 | H69: 0 | I69: 226 | J69: 226 | K69: 0 | L69: 0 | M69: 15 | N69: 5 | O69: 9 | P69: 51.96460177 | Q69: 22422.06168 | R69: 5067385.94 | S69: 2097778.81 | T69: 155 | U69: 98 | V69: 37 | W69: 61 | X69: 28 | Y69: 182 | Z69: 68 | AA69: 52 | AB69: 35 | AC69: 0 | AD69: 0 | AE69: 207 | AF69: 184 | AG69: 30 | AH69: 1 | AJ69: 2 | AK69: 25 | AL69: 26 | AM69: 174 | AN69: 0 | AO69: 0 | AP69: 4 | AQ69: 10 | AR69: 1 | AS69: 2 | AT69: 36 | AU69: 26 | AV69: 4 | AW69: 22 | AX69: 22 | AY69: 0 | AZ69: 0 | BA69: 3 | BB69: 16 | BC69: 0 | BD69: 6 | BE69: 4 | BF69: 66 | BG69: 16 | BH69: 4 | BI69: 17 | BJ69: 10 | BK69: 3 | BL69: 0 | BM69: 14 | BN69: 1 | BO69: 17 | BP69: 18 | BQ69: 3 | BR69: 4 | BS69: 139 | BT69: 3 | BU69: 15 | BV69: 23
A70: BAS_RHIN | B70: SELESTAT | C70: OSTWALD | D70: 14 | E70: De | F70: 229 | G70: 0 | H70: 0 | I70: 229 | J70: 229 | K70: 0 | L70: 0 | M70: 5 | N70: 3 | O70: 6 | P70: 65.82969432 | Q70: 70736.3255 | R70: 16198618.54 | S70: 1711886.42 | T70: 34 | U70: 215 | V70: 194 | W70: 28 | X70: 31 | Y70: 63 | Z70: 12 | AA70: 5 | AB70: 8 | AC70: 0 | AD70: 0 | AE70: 56 | AF70: 39 | AG70: 2 | AK70: 4 | AL70: 22 | AM70: 212 | AN70: 0 | AO70: 0 | AP70: 19 | AQ70: 26 | AR70: 2 | AS70: 2 | AT70: 73 | AU70: 58 | AV70: 12 | AW70: 32 | AX70: 84 | AY70: 0 | AZ70: 0 | BA70: 2 | BB70: 112 | BC70: 8 | BD70: 30 | BE70: 20 | BF70: 131 | BG70: 83 | BH70: 5 | BI70: 21 | BJ70: 6 | BK70: 3 | BL70: 0 | BM70: 3 | BN70: 5 | BO70: 3 | BP70: 6 | BQ70: 1 | BR70: 2 | BS70: 49 | BT70: 1 | BU70: 3 | BV70: 8
A71: BAS_RHIN | B71: SELESTAT | C71: OSTWALD | D71: 14 | E71: Dne | F71: 569 | G71: 0 | H71: 0 | I71: 569 | J71: 569 | K71: 0 | L71: 0 | M71: 29 | N71: 13 | O71: 36 | P71: 57.00351494 | Q71: 11448.17735 | R71: 6514012.91 | S71: 11140.35 | T71: 14 | U71: 279 | V71: 72 | W71: 24 | X71: 11 | Y71: 60 | Z71: 9 | AA71: 5 | AB71: 4 | AC71: 0 | AD71: 0 | AE71: 57 | AF71: 40 | AG71: 12 | AH71: 2 | AI71: 2 | AK71: 5 | AL71: 7 | AM71: 387 | AN71: 0 | AO71: 0 | AP71: 10 | AQ71: 4 | AR71: 3 | AS71: 1 | AT71: 54 | AU71: 43 | AV71: 5 | AW71: 15 | AX71: 8 | AY71: 0 | AZ71: 1 | BA71: 4 | BB71: 50 | BC71: 2 | BD71: 7 | BE71: 5 | BF71: 113 | BG71: 17 | BH71: 3 | BI71: 6 | BJ71: 4 | BK71: 1 | BL71: 0 | BM71: 3 | BN71: 0 | BO71: 6 | BP71: 3 | BQ71: 1 | BR71: 2 | BS71: 82 | BT71: 1 | BU71: 6 | BV71: 11
A72: BAS_RHIN | B72: SELESTAT | C72: OSTWALD | D72: 14 | E72: Ee | F72: 140 | G72: 19 | H72: 43 | I72: 43 | J72: 0 | K72: 43 | L72: 0 | M72: 0 | N72: 2 | O72: 6 | P72: 8.321428571 | Q72: 3991.447429 | R72: 558802.64 | S72: 0 | T72: 3 | U72: 114 | V72: 50 | W72: 0 | X72: 0 | Y72: 3 | Z72: 0 | AA72: 0 | AC72: 1 | AD72: 1 | AE72: 3 | AF72: 3 | AG72: 0 | AK72: 0 | AL72: 0 | AM72: 126 | AN72: 1 | AO72: 32 | AP72: 1 | AQ72: 0 | AR72: 0 | AS72: 0 | AT72: 0 | AU72: 0 | AV72: 3 | AW72: 64 | AX72: 35 | AY72: 0 | AZ72: 0 | BA72: 0 | BB72: 13 | BC72: 1 | BD72: 0 | BE72: 0 | BF72: 11 | BG72: 4 | BH72: 0 | BI72: 0 | BJ72: 0 | BK72: 0 | BL72: 0 | BM72: 0 | BN72: 0 | BP72: 0 | BQ72: 0 | BR72: 0 | BS72: 16 | BT72: 0 | BU72: 1 | BV72: 0
A73: BAS_RHIN | B73: SELESTAT | C73: OSTWALD | D73: 14 | E73: Ene | F73: 99 | G73: 39 | H73: 34 | I73: 34 | J73: 0 | K73: 34 | L73: 0 | M73: 0 | N73: 3 | O73: 3 | P73: 9.565656566 | Q73: 609.4936364 | R73: 60339.87 | S73: 0 | T73: 0 | U73: 0 | V73: 0 | W73: 0 | X73: 0 | Y73: 1 | Z73: 0 | AA73: 0 | AC73: 0 | AD73: 0 | AE73: 1 | AF73: 1 | AG73: 0 | AK73: 0 | AL73: 0 | AM73: 94 | AN73: 0 | AO73: 1 | AP73: 0 | AQ73: 0 | AR73: 0 | AS73: 0 | AT73: 0 | AU73: 0 | AV73: 0 | AW73: 12 | AX73: 0 | AY73: 0 | AZ73: 0 | BA73: 0 | BB73: 0 | BC73: 0 | BD73: 0 | BE73: 0 | BF73: 5 | BG73: 0 | BH73: 0 | BI73: 0 | BJ73: 0 | BK73: 0 | BL73: 0 | BM73: 0 | BN73: 0 | BP73: 0 | BQ73: 0 | BR73: 0 | BS73: 10 | BT73: 0 | BU73: 1 | BV73: 0
A74: BAS_RHIN | B74: SELESTAT | C74: OSTWALD | D74: 14 | E74: I | F74: 318 | G74: 0 | H74: 0 | I74: 318 | J74: 318 | K74: 0 | L74: 0 | M74: 21 | N74: 3 | O74: 63 | P74: 48.61006289 | Q74: 15.53172956 | R74: 4939.09 | S74: 0 | T74: 0 | U74: 7 | V74: 0 | W74: 0 | X74: 6 | Y74: 0 | AC74: 0 | AD74: 0 | AG74: 0 | AK74: 0 | AL74: 0 | AM74: 222 | AN74: 0 | AO74: 0 | AP74: 1 | AQ74: 1 | AR74: 0 | AS74: 0 | AT74: 9 | AU74: 0 | AV74: 0 | AW74: 0 | AX74: 0 | AY74: 0 | AZ74: 0 | BA74: 0 | BB74: 0 | BC74: 0 | BD74: 0 | BE74: 0 | BF74: 3 | BG74: 0 | BH74: 1 | BI74: 3 | BJ74: 1 | BK74: 0 | BL74: 0 | BM74: 1 | BN74: 0 | BO74: 1 | BP74: 3 | BQ74: 0 | BR74: 0 | BS74: 1 | BT74: 0 | BU74: 0 | BV74: 0
A75: BAS_RHIN | B75: SELESTAT | C75: OSTWALD | D75: 14 | E75: JBPe | F75: 71 | G75: 0 | H75: 71 | I75: 71 | J75: 63 | K75: 8 | L75: 71 | M75: 63 | O75: 1 | P75: 20.95774648 | Q75: 14368.50662 | R75: 1020163.97 | S75: 0 | T75: 67 | U75: 61 | V75: 28 | W75: 22 | X75: 10 | Y75: 71 | Z75: 4 | AA75: 17 | AB75: 5 | AC75: 0 | AD75: 0 | AE75: 70 | AF75: 69 | AG75: 22 | AH75: 17 | AI75: 5 | AK75: 0 | AL75: 0 | AM75: 59 | AN75: 0 | AO75: 62 | AP75: 2 | AQ75: 0 | AR75: 0 | AS75: 0 | AT75: 5 | AU75: 1 | AV75: 0 | AW75: 13 | AX75: 24 | AY75: 0 | AZ75: 0 | BA75: 0 | BB75: 5 | BC75: 1 | BD75: 0 | BE75: 0 | BF75: 14 | BG75: 3 | BH75: 2 | BI75: 5 | BJ75: 1 | BK75: 1 | BL75: 0 | BM75: 5 | BN75: 0 | BO75: 4 | BP75: 1 | BQ75: 4 | BR75: 0 | BS75: 62 | BT75: 0 | BU75: 57 | BV75: 27
A76: BAS_RHIN | B76: SELESTAT | C76: OSTWALD | D76: 14 | E76: JBPne | F76: 22 | G76: 0 | H76: 22 | I76: 22 | J76: 18 | K76: 4 | L76: 22 | M76: 18 | O76: 3 | P76: 20.09090909 | Q76: 456.2659091 | R76: 10037.85 | S76: 0 | T76: 18 | U76: 2 | V76: 0 | W76: 1 | X76: 0 | Y76: 20 | Z76: 0 | AA76: 2 | AB76: 1 | AC76: 0 | AD76: 0 | AE76: 20 | AF76: 20 | AG76: 1 | AK76: 0 | AL76: 0 | AM76: 11 | AN76: 0 | AO76: 15 | AP76: 0 | AQ76: 0 | AR76: 0 | AS76: 0 | AT76: 0 | AU76: 0 | AV76: 0 | AW76: 1 | AX76: 0 | AY76: 0 | AZ76: 0 | BA76: 0 | BB76: 0 | BC76: 0 | BD76: 0 | BE76: 0 | BF76: 0 | BG76: 0 | BH76: 0 | BI76: 0 | BJ76: 0 | BK76: 0 | BL76: 0 | BM76: 0 | BN76: 0 | BO76: 3 | BP76: 0 | BQ76: 0 | BR76: 0 | BS76: 15 | BT76: 0 | BU76: 16 | BV76: 7
A77: BAS_RHIN | B77: SELESTAT | C77: OSTWALD | D77: 14 | E77: JDe | F77: 17 | G77: 0 | H77: 17 | I77: 17 | J77: 9 | K77: 8 | L77: 17 | M77: 9 | P77: 18.17647059 | Q77: 14148.94118 | R77: 240532 | S77: 0 | T77: 2 | U77: 17 | V77: 16 | W77: 0 | X77: 0 | Y77: 5 | Z77: 0 | AA77: 0 | AC77: 0 | AD77: 0 | AE77: 5 | AF77: 5 | AG77: 0 | AK77: 0 | AL77: 0 | AM77: 14 | AN77: 0 | AO77: 15 | AP77: 0 | AQ77: 0 | AR77: 0 | AS77: 0 | AT77: 0 | AU77: 0 | AV77: 0 | AW77: 6 | AX77: 14 | AY77: 0 | AZ77: 0 | BA77: 0 | BB77: 3 | BC77: 0 | BD77: 0 | BE77: 0 | BF77: 5 | BG77: 3 | BH77: 0 | BI77: 0 | BJ77: 0 | BK77: 0 | BL77: 0 | BM77: 0 | BN77: 0 | BP77: 0 | BQ77: 0 | BR77: 0 | BS77: 4 | BT77: 0 | BU77: 3 | BV77: 0
A78: BAS_RHIN | B78: SELESTAT | C78: OSTWALD | D78: 14 | E78: JDne | F78: 117 | G78: 0 | H78: 117 | I78: 117 | J78: 87 | K78: 30 | L78: 117 | M78: 87 | N78: 3 | O78: 11 | P78: 19.95726496 | Q78: 2020.403932 | R78: 236387.26 | S78: 0 | T78: 0 | U78: 66 | V78: 5 | W78: 2 | X78: 1 | Y78: 6 | Z78: 0 | AA78: 0 | AC78: 0 | AD78: 0 | AE78: 4 | AF78: 3 | AG78: 2 | AH78: 2 | AK78: 0 | AL78: 0 | AM78: 98 | AN78: 0 | AO78: 61 | AP78: 0 | AQ78: 0 | AR78: 0 | AS78: 0 | AT78: 0 | AU78: 0 | AV78: 0 | AW78: 8 | AX78: 1 | AY78: 0 | AZ78: 0 | BA78: 0 | BB78: 4 | BC78: 0 | BD78: 0 | BE78: 0 | BF78: 9 | BG78: 0 | BH78: 1 | BI78: 0 | BJ78: 0 | BK78: 0 | BL78: 0 | BM78: 0 | BN78: 0 | BP78: 0 | BQ78: 0 | BR78: 0 | BS78: 12 | BT78: 0 | BU78: 4 | BV78: 0
A79: BAS_RHIN | B79: SELESTAT | C79: LINGOLSHEIM | D79: 15 | E79: BPe | F79: 691 | G79: 0 | H79: 0 | I79: 691 | J79: 691 | K79: 0 | L79: 0 | M79: 51 | N79: 16 | O79: 6 | P79: 48.73516643 | Q79: 40636.10171 | R79: 28079546.28 | S79: 24418802.85 | T79: 671 | U79: 595 | V79: 478 | W79: 445 | X79: 329 | Y79: 684 | Z79: 462 | AA79: 291 | AB79: 234 | AC79: 0 | AD79: 0 | AE79: 679 | AF79: 633 | AG79: 221 | AH79: 6 | AI79: 5 | AJ79: 30 | AK79: 114 | AL79: 266 | AM79: 616 | AN79: 0 | AO79: 0 | AP79: 20 | AQ79: 54 | AR79: 22 | AS79: 29 | AT79: 240 | AU79: 85 | AV79: 117 | AW79: 233 | AX79: 231 | AY79: 2 | AZ79: 0 | BA79: 15 | BB79: 234 | BC79: 13 | BD79: 139 | BE79: 52 | BF79: 381 | BG79: 229 | BH79: 75 | BI79: 211 | BJ79: 117 | BK79: 17 | BL79: 8 | BM79: 96 | BN79: 28 | BO79: 51 | BP79: 98 | BQ79: 27 | BR79: 96 | BS79: 522 | BT79: 33 | BU79: 91 | BV79: 151
A80: BAS_RHIN | B80: SELESTAT | C80: LINGOLSHEIM | D80: 15 | E80: BPne | F80: 396 | G80: 0 | H80: 0 | I80: 396 | J80: 396 | K80: 0 | L80: 0 | M80: 29 | N80: 14 | O80: 12 | P80: 50.51262626 | Q80: 13721.8299 | R80: 5433844.64 | S80: 2342107.83 | T80: 277 | U80: 176 | V80: 36 | W80: 84 | X80: 47 | Y80: 315 | Z80: 120 | AA80: 82 | AB80: 55 | AC80: 0 | AD80: 0 | AE80: 375 | AF80: 330 | AG80: 41 | AH80: 1 | AI80: 1 | AJ80: 3 | AK80: 23 | AL80: 42 | AM80: 283 | AN80: 0 | AO80: 0 | AP80: 8 | AQ80: 18 | AR80: 12 | AS80: 4 | AT80: 71 | AU80: 42 | AV80: 16 | AW80: 34 | AX80: 12 | AY80: 0 | AZ80: 0 | BA80: 1 | BB80: 20 | BC80: 1 | BD80: 6 | BE80: 2 | BF80: 120 | BG80: 15 | BH80: 9 | BI80: 23 | BJ80: 15 | BK80: 1 | BL80: 1 | BM80: 19 | BN80: 3 | BO80: 22 | BP80: 27 | BQ80: 4 | BR80: 28 | BS80: 259 | BT80: 5 | BU80: 52 | BV80: 68
A81: BAS_RHIN | B81: SELESTAT | C81: LINGOLSHEIM | D81: 15 | E81: De | F81: 428 | G81: 0 | H81: 0 | I81: 428 | J81: 428 | K81: 0 | L81: 0 | M81: 8 | N81: 4 | O81: 18 | P81: 64.9182243 | Q81: 70355.05647 | R81: 30111964.17 | S81: 1583487.85 | T81: 68 | U81: 407 | V81: 364 | W81: 48 | X81: 59 | Y81: 120 | Z81: 41 | AA81: 19 | AB81: 20 | AC81: 0 | AD81: 0 | AE81: 124 | AF81: 87 | AG81: 17 | AI81: 1 | AJ81: 2 | AK81: 4 | AL81: 32 | AM81: 374 | AN81: 0 | AO81: 0 | AP81: 12 | AQ81: 50 | AR81: 20 | AS81: 17 | AT81: 136 | AU81: 70 | AV81: 53 | AW81: 52 | AX81: 156 | AY81: 0 | AZ81: 0 | BA81: 7 | BB81: 219 | BC81: 14 | BD81: 57 | BE81: 55 | BF81: 221 | BG81: 166 | BH81: 9 | BI81: 27 | BJ81: 11 | BK81: 3 | BL81: 0 | BM81: 15 | BN81: 12 | BO81: 3 | BP81: 11 | BQ81: 4 | BR81: 6 | BS81: 99 | BT81: 11 | BU81: 5 | BV81: 18
A82: BAS_RHIN | B82: SELESTAT | C82: LINGOLSHEIM | D82: 15 | E82: Dne | F82: 957 | G82: 0 | H82: 0 | I82: 957 | J82: 957 | K82: 0 | L82: 0 | M82: 44 | N82: 32 | O82: 75 | P82: 55.88505747 | Q82: 9424.450251 | R82: 9019198.89 | S82: 1360315.5 | T82: 29 | U82: 435 | V82: 130 | W82: 48 | X82: 18 | Y82: 118 | Z82: 18 | AA82: 23 | AB82: 29 | AC82: 0 | AD82: 0 | AE82: 128 | AF82: 100 | AG82: 18 | AK82: 4 | AL82: 26 | AM82: 600 | AN82: 0 | AO82: 0 | AP82: 10 | AQ82: 27 | AR82: 14 | AS82: 7 | AT82: 73 | AU82: 36 | AV82: 25 | AW82: 30 | AX82: 19 | AY82: 0 | AZ82: 0 | BA82: 8 | BB82: 81 | BC82: 2 | BD82: 14 | BE82: 16 | BF82: 154 | BG82: 24 | BH82: 2 | BI82: 6 | BJ82: 7 | BK82: 1 | BL82: 0 | BM82: 5 | BN82: 1 | BO82: 9 | BP82: 5 | BQ82: 2 | BR82: 7 | BS82: 185 | BT82: 1 | BU82: 19 | BV82: 27
A83: BAS_RHIN | B83: SELESTAT | C83: LINGOLSHEIM | D83: 15 | E83: Ee | F83: 217 | G83: 34 | H83: 64 | I83: 64 | J83: 0 | K83: 64 | L83: 0 | M83: 0 | N83: 6 | O83: 9 | P83: 8.239631336 | Q83: 3803.588341 | R83: 825378.67 | S83: 0 | T83: 3 | U83: 158 | V83: 91 | W83: 0 | X83: 0 | Y83: 5 | Z83: 0 | AA83: 0 | AC83: 4 | AD83: 1 | AE83: 4 | AF83: 4 | AG83: 0 | AK83: 0 | AL83: 0 | AM83: 194 | AN83: 6 | AO83: 43 | AP83: 1 | AQ83: 0 | AR83: 0 | AS83: 0 | AT83: 0 | AU83: 0 | AV83: 3 | AW83: 94 | AX83: 32 | AY83: 0 | AZ83: 0 | BA83: 0 | BB83: 43 | BC83: 0 | BD83: 0 | BE83: 0 | BF83: 10 | BG83: 4 | BH83: 0 | BI83: 0 | BJ83: 0 | BK83: 0 | BL83: 0 | BM83: 0 | BN83: 0 | BP83: 0 | BQ83: 0 | BR83: 0 | BS83: 30 | BT83: 0 | BU83: 3 | BV83: 0
A84: BAS_RHIN | B84: SELESTAT | C84: LINGOLSHEIM | D84: 15 | E84: Ene | F84: 185 | G84: 64 | H84: 83 | I84: 83 | J84: 0 | K84: 83 | L84: 0 | M84: 0 | N84: 10 | O84: 13 | P84: 10.07027027 | Q84: 1034.249946 | R84: 191336.24 | S84: 0 | T84: 0 | U84: 0 | V84: 0 | W84: 0 | X84: 0 | Y84: 5 | Z84: 0 | AA84: 0 | AC84: 0 | AD84: 0 | AE84: 4 | AF84: 4 | AG84: 0 | AK84: 0 | AL84: 0 | AM84: 159 | AN84: 1 | AO84: 10 | AP84: 0 | AQ84: 0 | AR84: 0 | AS84: 0 | AT84: 0 | AU84: 0 | AV84: 0 | AW84: 18 | AX84: 0 | AY84: 0 | AZ84: 0 | BA84: 0 | BB84: 0 | BC84: 0 | BD84: 0 | BE84: 0 | BF84: 11 | BG84: 1 | BH84: 0 | BI84: 0 | BJ84: 0 | BK84: 0 | BL84: 0 | BM84: 0 | BN84: 0 | BP84: 0 | BQ84: 0 | BR84: 0 | BS84: 18 | BT84: 0 | BU84: 3 | BV84: 0
A85: BAS_RHIN | B85: SELESTAT | C85: LINGOLSHEIM | D85: 15 | E85: I | F85: 442 | G85: 0 | H85: 0 | I85: 442 | J85: 442 | K85: 0 | L85: 0 | M85: 37 | N85: 1 | O85: 93 | P85: 48.5 | Q85: 16.59081448 | R85: 7333.14 | S85: 0 | T85: 0 | U85: 12 | V85: 1 | W85: 0 | X85: 6 | Y85: 0 | Z85: 0 | AA85: 0 | AC85: 0 | AD85: 0 | AE85: 1 | AF85: 1 | AG85: 0 | AK85: 0 | AL85: 0 | AM85: 254 | AN85: 0 | AO85: 0 | AP85: 0 | AQ85: 2 | AR85: 1 | AS85: 1 | AT85: 6 | AU85: 1 | AV85: 0 | AW85: 0 | AX85: 0 | AY85: 0 | AZ85: 0 | BA85: 1 | BB85: 0 | BC85: 0 | BD85: 0 | BE85: 0 | BF85: 1 | BG85: 0 | BH85: 1 | BI85: 1 | BJ85: 0 | BK85: 2 | BL85: 1 | BM85: 1 | BN85: 0 | BO85: 2 | BP85: 1 | BQ85: 1 | BR85: 0 | BS85: 6 | BT85: 0 | BU85: 0 | BV85: 0
A86: BAS_RHIN | B86: SELESTAT | C86: LINGOLSHEIM | D86: 15 | E86: JBPe | F86: 172 | G86: 0 | H86: 172 | I86: 172 | J86: 159 | K86: 13 | L86: 172 | M86: 159 | N86: 6 | O86: 5 | P86: 21.41860465 | Q86: 11049.4386 | R86: 1900503.44 | S86: 295731.3 | T86: 169 | U86: 146 | V86: 77 | W86: 50 | X86: 30 | Y86: 170 | Z86: 31 | AA86: 54 | AB86: 32 | AC86: 0 | AD86: 0 | AE86: 173 | AF86: 165 | AG86: 44 | AH86: 17 | AI86: 12 | AJ86: 1 | AK86: 12 | AL86: 4 | AM86: 154 | AN86: 0 | AO86: 154 | AP86: 1 | AQ86: 0 | AR86: 0 | AS86: 1 | AT86: 12 | AU86: 9 | AV86: 2 | AW86: 47 | AX86: 53 | AY86: 0 | AZ86: 0 | BA86: 0 | BB86: 30 | BC86: 0 | BD86: 3 | BE86: 1 | BF86: 32 | BG86: 17 | BH86: 4 | BI86: 11 | BJ86: 4 | BK86: 3 | BL86: 0 | BM86: 17 | BN86: 0 | BO86: 23 | BP86: 4 | BQ86: 6 | BR86: 5 | BS86: 140 | BT86: 2 | BU86: 145 | BV86: 87
A87: BAS_RHIN | B87: SELESTAT | C87: LINGOLSHEIM | D87: 15 | E87: JBPne | F87: 48 | G87: 0 | H87: 48 | I87: 48 | J87: 46 | K87: 2 | L87: 48 | M87: 46 | N87: 2 | O87: 1 | P87: 21.70833333 | Q87: 2222.796667 | R87: 106694.24 | S87: 0 | T87: 43 | U87: 1 | V87: 1 | W87: 0 | X87: 0 | Y87: 48 | Z87: 2 | AA87: 9 | AB87: 4 | AC87: 0 | AD87: 0 | AE87: 48 | AF87: 46 | AG87: 0 | AK87: 0 | AL87: 0 | AM87: 27 | AN87: 0 | AO87: 31 | AP87: 0 | AQ87: 0 | AR87: 0 | AS87: 0 | AT87: 2 | AU87: 0 | AV87: 0 | AW87: 1 | AX87: 1 | AY87: 0 | AZ87: 0 | BA87: 0 | BB87: 1 | BC87: 0 | BD87: 0 | BE87: 0 | BF87: 3 | BG87: 0 | BH87: 0 | BI87: 0 | BJ87: 0 | BK87: 0 | BL87: 0 | BM87: 0 | BN87: 0 | BO87: 2 | BP87: 0 | BQ87: 1 | BR87: 5 | BS87: 42 | BT87: 0 | BU87: 39 | BV87: 27
A88: BAS_RHIN | B88: SELESTAT | C88: LINGOLSHEIM | D88: 15 | E88: JDe | F88: 21 | G88: 0 | H88: 21 | I88: 21 | J88: 16 | K88: 5 | L88: 21 | M88: 16 | N88: 1 | O88: 1 | P88: 20.71428571 | Q88: 42182.0019 | R88: 885822.04 | S88: 0 | T88: 2 | U88: 19 | V88: 19 | W88: 1 | X88: 2 | Y88: 8 | Z88: 0 | AA88: 3 | AB88: 3 | AC88: 0 | AD88: 0 | AE88: 7 | AF88: 7 | AG88: 1 | AI88: 1 | AK88: 0 | AL88: 0 | AM88: 20 | AN88: 0 | AO88: 16 | AP88: 1 | AQ88: 0 | AR88: 0 | AS88: 0 | AT88: 0 | AU88: 0 | AV88: 1 | AW88: 5 | AX88: 16 | AY88: 0 | AZ88: 0 | BA88: 0 | BB88: 6 | BC88: 1 | BD88: 0 | BE88: 1 | BF88: 2 | BG88: 0 | BH88: 0 | BI88: 0 | BJ88: 0 | BK88: 0 | BL88: 0 | BM88: 2 | BN88: 0 | BP88: 0 | BQ88: 0 | BR88: 2 | BS88: 7 | BT88: 0 | BU88: 7 | BV88: 5
A89: BAS_RHIN | B89: SELESTAT | C89: LINGOLSHEIM | D89: 15 | E89: JDne | F89: 226 | G89: 0 | H89: 226 | I89: 226 | J89: 160 | K89: 66 | L89: 226 | M89: 160 | N89: 6 | O89: 15 | P89: 19.83628319 | Q89: 2030.967257 | R89: 458998.6 | S89: 0 | T89: 2 | U89: 97 | V89: 5 | W89: 3 | X89: 0 | Y89: 24 | Z89: 2 | AA89: 3 | AB89: 2 | AC89: 0 | AD89: 0 | AE89: 24 | AF89: 23 | AG89: 3 | AH89: 2 | AK89: 0 | AL89: 0 | AM89: 183 | AN89: 0 | AO89: 116 | AP89: 1 | AQ89: 0 | AR89: 0 | AS89: 0 | AT89: 3 | AU89: 1 | AV89: 1 | AW89: 20 | AX89: 2 | AY89: 0 | AZ89: 0 | BA89: 0 | BB89: 3 | BC89: 0 | BD89: 0 | BE89: 0 | BF89: 10 | BG89: 0 | BH89: 0 | BI89: 0 | BJ89: 0 | BK89: 0 | BL89: 0 | BM89: 0 | BN89: 0 | BO89: 1 | BP89: 0 | BQ89: 1 | BR89: 2 | BS89: 28 | BT89: 0 | BU89: 23 | BV89: 6
A90: BANQUE_DIGITALE | B90: MON_AGENCE | C90: MON AGENCE | D90: 17 | E90: BPe | F90: 3025 | G90: 0 | H90: 0 | I90: 3025 | J90: 3025 | K90: 0 | L90: 0 | M90: 118 | N90: 9 | O90: 2 | P90: 44.7385124 | Q90: 42681.37666 | R90: 129111164.4 | S90: 191265471.8 | T90: 2914 | U90: 2756 | V90: 2160 | W90: 2572 | X90: 2035 | Y90: 2952 | Z90: 1681 | AA90: 1907 | AB90: 1562 | AC90: 0 | AD90: 0 | AE90: 3011 | AF90: 2342 | AG90: 1406 | AH90: 13 | AI90: 30 | AJ90: 8 | AK90: 477 | AL90: 2064 | AM90: 2756 | AN90: 0 | AO90: 0 | AP90: 363 | AQ90: 211 | AR90: 123 | AS90: 223 | AT90: 1952 | AU90: 361 | AV90: 783 | AW90: 1398 | AX90: 1406 | AY90: 76 | AZ90: 18 | BA90: 234 | BB90: 1229 | BC90: 153 | BD90: 643 | BE90: 593 | BF90: 1432 | BG90: 681 | BH90: 1385 | BI90: 1464 | BJ90: 1001 | BK90: 6 | BL90: 0 | BM90: 444 | BN90: 48 | BO90: 276 | BP90: 823 | BQ90: 490 | BR90: 233 | BS90: 2553 | BT90: 122 | BU90: 37 | BV90: 466
A91: BANQUE_DIGITALE | B91: MON_AGENCE | C91: MON AGENCE | D91: 17 | E91: BPne | F91: 396 | G91: 0 | H91: 0 | I91: 396 | J91: 396 | K91: 0 | L91: 0 | M91: 24 | N91: 11 | O91: 4 | P91: 44.61111111 | Q91: 12917.47907 | R91: 5115321.71 | S91: 8249541.95 | T91: 252 | U91: 111 | V91: 42 | W91: 205 | X91: 51 | Y91: 291 | Z91: 76 | AA91: 135 | AB91: 124 | AC91: 0 | AD91: 0 | AE91: 346 | AF91: 276 | AG91: 114 | AH91: 1 | AI91: 1 | AJ91: 2 | AK91: 29 | AL91: 149 | AM91: 220 | AN91: 0 | AO91: 0 | AP91: 19 | AQ91: 6 | AR91: 2 | AS91: 6 | AT91: 86 | AU91: 21 | AV91: 17 | AW91: 29 | AX91: 21 | AY91: 1 | AZ91: 2 | BA91: 5 | BB91: 18 | BC91: 2 | BD91: 17 | BE91: 15 | BF91: 71 | BG91: 12 | BH91: 25 | BI91: 22 | BJ91: 11 | BK91: 0 | BL91: 0 | BM91: 16 | BN91: 0 | BO91: 21 | BP91: 24 | BQ91: 24 | BR91: 10 | BS91: 262 | BT91: 0 | BU91: 9 | BV91: 35
A92: BANQUE_DIGITALE | B92: MON_AGENCE | C92: MON AGENCE | D92: 17 | E92: De | F92: 179 | G92: 0 | H92: 0 | I92: 179 | J92: 179 | K92: 0 | L92: 0 | M92: 14 | N92: 6 | P92: 44.51955307 | Q92: 34640.81626 | R92: 6200706.11 | S92: 8254821.03 | T92: 24 | U92: 126 | V92: 113 | W92: 116 | X92: 82 | Y92: 56 | Z92: 12 | AA92: 14 | AB92: 18 | AC92: 0 | AD92: 0 | AE92: 45 | AF92: 33 | AG92: 47 | AH92: 2 | AI92: 1 | AJ92: 1 | AK92: 3 | AL92: 97 | AM92: 110 | AN92: 0 | AO92: 0 | AP92: 11 | AQ92: 14 | AR92: 9 | AS92: 8 | AT92: 68 | AU92: 17 | AV92: 43 | AW92: 32 | AX92: 65 | AY92: 2 | AZ92: 0 | BA92: 9 | BB92: 47 | BC92: 3 | BD92: 18 | BE92: 25 | BF92: 61 | BG92: 27 | BH92: 42 | BI92: 48 | BJ92: 15 | BK92: 1 | BL92: 0 | BM92: 16 | BN92: 2 | BO92: 9 | BP92: 12 | BQ92: 4 | BR92: 1 | BS92: 97 | BT92: 1 | BU92: 4 | BV92: 7
A93: BANQUE_DIGITALE | B93: MON_AGENCE | C93: MON AGENCE | D93: 17 | E93: Dne | F93: 239 | G93: 0 | H93: 0 | I93: 239 | J93: 239 | K93: 0 | L93: 0 | M93: 23 | N93: 21 | O93: 6 | P93: 40.62343096 | Q93: 5172.818996 | R93: 1236303.74 | S93: 1807317.43 | T93: 7 | U93: 30 | V93: 10 | W93: 78 | X93: 23 | Y93: 47 | Z93: 8 | AA93: 17 | AB93: 20 | AC93: 0 | AD93: 0 | AE93: 43 | AF93: 34 | AG93: 29 | AH93: 2 | AK93: 6 | AL93: 60 | AM93: 54 | AN93: 0 | AO93: 0 | AP93: 3 | AQ93: 3 | AR93: 1 | AS93: 1 | AT93: 18 | AU93: 1 | AV93: 1 | AW93: 2 | AX93: 3 | AY93: 1 | AZ93: 0 | BA93: 1 | BB93: 4 | BC93: 1 | BD93: 2 | BE93: 1 | BF93: 23 | BG93: 1 | BH93: 18 | BI93: 14 | BJ93: 4 | BK93: 0 | BL93: 0 | BM93: 4 | BN93: 0 | BO93: 12 | BP93: 5 | BQ93: 3 | BR93: 2 | BS93: 113 | BT93: 0 | BU93: 2 | BV93: 6
A94: BANQUE_DIGITALE | B94: MON_AGENCE | C94: MON AGENCE | D94: 17 | E94: Ee | F94: 957 | G94: 148 | H94: 242 | I94: 242 | J94: 0 | K94: 242 | L94: 0 | M94: 0 | N94: 57 | O94: 4 | P94: 7.775339603 | Q94: 5922.611505 | R94: 5667939.21 | S94: 0 | T94: 47 | U94: 744 | V94: 606 | W94: 0 | X94: 0 | Y94: 39 | Z94: 0 | AA94: 0 | AC94: 42 | AD94: 35 | AE94: 36 | AF94: 36 | AG94: 0 | AK94: 0 | AL94: 0 | AM94: 913 | AN94: 27 | AO94: 185 | AP94: 4 | AQ94: 0 | AR94: 0 | AS94: 4 | AT94: 0 | AU94: 0 | AV94: 40 | AW94: 445 | AX94: 447 | AY94: 0 | AZ94: 0 | BA94: 0 | BB94: 164 | BC94: 3 | BD94: 0 | BE94: 6 | BF94: 155 | BG94: 84 | BH94: 0 | BI94: 0 | BJ94: 0 | BK94: 0 | BL94: 0 | BM94: 0 | BN94: 0 | BP94: 0 | BQ94: 0 | BR94: 0 | BS94: 237 | BT94: 0 | BU94: 9 | BV94: 0
A95: BANQUE_DIGITALE | B95: MON_AGENCE | C95: MON AGENCE | D95: 17 | E95: Ene | F95: 174 | G95: 77 | H95: 55 | I95: 55 | J95: 0 | K95: 55 | L95: 0 | M95: 0 | N95: 11 | O95: 1 | P95: 9.24137931 | Q95: 1341.67 | R95: 233450.58 | S95: 0 | T95: 0 | U95: 0 | V95: 0 | W95: 0 | X95: 0 | Y95: 7 | Z95: 0 | AA95: 0 | AC95: 0 | AD95: 0 | AE95: 7 | AF95: 7 | AG95: 0 | AK95: 0 | AL95: 0 | AM95: 163 | AN95: 1 | AO95: 2 | AP95: 3 | AQ95: 0 | AR95: 0 | AS95: 0 | AT95: 0 | AU95: 0 | AV95: 3 | AW95: 41 | AX95: 0 | AY95: 0 | AZ95: 0 | BA95: 0 | BB95: 0 | BC95: 0 | BD95: 0 | BE95: 0 | BF95: 23 | BG95: 8 | BH95: 0 | BI95: 0 | BJ95: 0 | BK95: 0 | BL95: 0 | BM95: 0 | BN95: 0 | BP95: 0 | BQ95: 0 | BR95: 0 | BS95: 37 | BT95: 0 | BU95: 3 | BV95: 0
A96: BANQUE_DIGITALE | B96: MON_AGENCE | C96: MON AGENCE | D96: 17 | E96: I | F96: 21 | G96: 0 | H96: 0 | I96: 21 | J96: 21 | K96: 0 | L96: 0 | M96: 0 | N96: 1 | P96: 44.42857143 | Q96: 8.802380952 | R96: 184.85 | S96: 0 | T96: 0 | U96: 0 | V96: 0 | W96: 0 | X96: 3 | Y96: 0 | AC96: 0 | AD96: 0 | AG96: 0 | AK96: 0 | AL96: 0 | AM96: 7 | AN96: 0 | AO96: 0 | AP96: 0 | AQ96: 0 | AR96: 0 | AS96: 0 | AT96: 0 | AU96: 0 | AV96: 0 | AW96: 0 | AX96: 0 | AY96: 0 | AZ96: 0 | BA96: 0 | BB96: 0 | BC96: 0 | BD96: 0 | BE96: 0 | BF96: 0 | BG96: 0 | BH96: 2 | BI96: 2 | BJ96: 0 | BK96: 0 | BL96: 0 | BM96: 0 | BN96: 0 | BP96: 1 | BQ96: 2 | BR96: 0 | BS96: 1 | BT96: 0 | BU96: 0 | BV96: 0
A97: BANQUE_DIGITALE | B97: MON_AGENCE | C97: MON AGENCE | D97: 17 | E97: JBPe | F97: 373 | G97: 0 | H97: 373 | I97: 373 | J97: 341 | K97: 32 | L97: 373 | M97: 341 | N97: 10 | O97: 1 | P97: 21.19571046 | Q97: 16714.02847 | R97: 6234332.62 | S97: 2833721.74 | T97: 363 | U97: 339 | V97: 230 | W97: 103 | X97: 102 | Y97: 372 | Z97: 51 | AA97: 160 | AB97: 56 | AC97: 0 | AD97: 0 | AE97: 376 | AF97: 359 | AG97: 92 | AH97: 48 | AI97: 31 | AK97: 11 | AL97: 33 | AM97: 333 | AN97: 1 | AO97: 313 | AP97: 8 | AQ97: 0 | AR97: 0 | AS97: 7 | AT97: 39 | AU97: 29 | AV97: 50 | AW97: 88 | AX97: 197 | AY97: 1 | AZ97: 0 | BA97: 0 | BB97: 58 | BC97: 4 | BD97: 6 | BE97: 7 | BF97: 110 | BG97: 48 | BH97: 40 | BI97: 69 | BJ97: 22 | BK97: 5 | BL97: 0 | BM97: 8 | BN97: 0 | BO97: 17 | BP97: 14 | BQ97: 23 | BR97: 4 | BS97: 295 | BT97: 1 | BU97: 159 | BV97: 110
A98: BANQUE_DIGITALE | B98: MON_AGENCE | C98: MON AGENCE | D98: 17 | E98: JBPne | F98: 36 | G98: 0 | H98: 36 | I98: 36 | J98: 29 | K98: 7 | L98: 36 | M98: 29 | N98: 3 | P98: 20.72222222 | Q98: 810.9222222 | R98: 29193.2 | S98: 355378.78 | T98: 17 | U98: 5 | V98: 1 | W98: 5 | X98: 1 | Y98: 31 | Z98: 0 | AA98: 10 | AB98: 4 | AC98: 0 | AD98: 0 | AE98: 32 | AF98: 31 | AG98: 2 | AK98: 0 | AL98: 4 | AM98: 18 | AN98: 0 | AO98: 19 | AP98: 0 | AQ98: 0 | AR98: 0 | AS98: 0 | AT98: 0 | AU98: 0 | AV98: 0 | AW98: 1 | AX98: 1 | AY98: 0 | AZ98: 0 | BA98: 0 | BB98: 0 | BC98: 0 | BD98: 0 | BE98: 0 | BF98: 2 | BG98: 0 | BH98: 1 | BI98: 0 | BJ98: 0 | BK98: 0 | BL98: 0 | BM98: 0 | BN98: 0 | BO98: 2 | BP98: 1 | BQ98: 0 | BR98: 0 | BS98: 24 | BT98: 0 | BU98: 11 | BV98: 3
A99: BANQUE_DIGITALE | B99: MON_AGENCE | C99: MON AGENCE | D99: 17 | E99: JDe | F99: 59 | G99: 0 | H99: 59 | I99: 59 | J99: 11 | K99: 48 | L99: 59 | M99: 11 | P99: 17.3220339 | Q99: 20943.21492 | R99: 1235649.68 | S99: 0 | T99: 4 | U99: 58 | V99: 56 | W99: 0 | X99: 1 | Y99: 21 | Z99: 0 | AA99: 1 | AC99: 0 | AD99: 0 | AE99: 20 | AF99: 19 | AG99: 0 | AK99: 0 | AL99: 0 | AM99: 53 | AN99: 0 | AO99: 53 | AP99: 0 | AQ99: 0 | AR99: 0 | AS99: 4 | AT99: 1 | AU99: 0 | AV99: 11 | AW99: 22 | AX99: 52 | AY99: 0 | AZ99: 0 | BA99: 0 | BB99: 11 | BC99: 1 | BD99: 0 | BE99: 0 | BF99: 17 | BG99: 9 | BH99: 0 | BI99: 1 | BJ99: 0 | BK99: 0 | BL99: 0 | BM99: 0 | BN99: 0 | BP99: 0 | BQ99: 1 | BR99: 1 | BS99: 16 | BT99: 0 | BU99: 8 | BV99: 1
A100: BANQUE_DIGITALE | B100: MON_AGENCE | C100: MON AGENCE | D100: 17 | E100: JDne | F100: 81 | G100: 0 | H100: 81 | I100: 81 | J100: 46 | K100: 35 | L100: 81 | M100: 46 | N100: 4 | O100: 1 | P100: 19.41975309 | Q100: 2868.860123 | R100: 232377.67 | S100: 0 | T100: 2 | U100: 46 | V100: 6 | W100: 2 | X100: 6 | Y100: 22 | Z100: 0 | AA100: 4 | AB100: 2 | AC100: 0 | AD100: 0 | AE100: 23 | AF100: 23 | AG100: 1 | AH100: 1 | AK100: 0 | AL100: 1 | AM100: 53 | AN100: 0 | AO100: 49 | AP100: 1 | AQ100: 0 | AR100: 0 | AS100: 0 | AT100: 1 | AU100: 0 | AV100: 2 | AW100: 13 | AX100: 4 | AY100: 0 | AZ100: 0 | BA100: 0 | BB100: 1 | BC100: 0 | BD100: 1 | BE100: 0 | BF100: 10 | BG100: 2 | BH100: 2 | BI100: 3 | BJ100: 3 | BK100: 0 | BL100: 0 | BM100: 0 | BN100: 0 | BP100: 1 | BQ100: 0 | BR100: 0 | BS100: 16 | BT100: 0 | BU100: 8 | BV100: 2
A101: BAS_RHIN | B101: STRASBOURG | C101: ESPACE MESANGE | D101: 18 | E101: BPe | F101: 106 | G101: 0 | H101: 0 | I101: 106 | J101: 106 | K101: 0 | L101: 0 | M101: 6 | O101: 2 | P101: 49.55660377 | Q101: 125946.4909 | R101: 13350328.04 | S101: 14409221.63 | T101: 100 | U101: 90 | V101: 83 | W101: 75 | X101: 30 | Y101: 103 | Z101: 30 | AA101: 66 | AB101: 49 | AC101: 0 | AD101: 0 | AE101: 106 | AF101: 90 | AG101: 24 | AH101: 1 | AJ101: 1 | AK101: 3 | AL101: 70 | AM101: 84 | AN101: 0 | AO101: 0 | AP101: 7 | AQ101: 14 | AR101: 6 | AS101: 17 | AT101: 50 | AU101: 1 | AV101: 26 | AW101: 26 | AX101: 47 | AY101: 0 | AZ101: 1 | BA101: 3 | BB101: 52 | BC101: 2 | BD101: 16 | BE101: 20 | BF101: 44 | BG101: 37 | BH101: 7 | BI101: 20 | BJ101: 7 | BK101: 0 | BL101: 0 | BM101: 7 | BN101: 3 | BO101: 4 | BP101: 4 | BQ101: 1 | BR101: 11 | BS101: 78 | BT101: 4 | BU101: 10 | BV101: 6
A102: BAS_RHIN | B102: STRASBOURG | C102: ESPACE MESANGE | D102: 18 | E102: BPne | F102: 55 | G102: 0 | H102: 0 | I102: 55 | J102: 55 | K102: 0 | L102: 0 | M102: 1 | N102: 1 | O102: 2 | P102: 44.63636364 | Q102: 36772.12182 | R102: 2022466.7 | S102: 4455786.95 | T102: 35 | U102: 9 | V102: 9 | W102: 26 | X102: 5 | Y102: 43 | Z102: 4 | AA102: 28 | AB102: 17 | AC102: 0 | AD102: 0 | AE102: 49 | AF102: 47 | AG102: 12 | AJ102: 2 | AK102: 2 | AL102: 22 | AM102: 13 | AN102: 0 | AO102: 0 | AP102: 3 | AQ102: 0 | AR102: 0 | AS102: 6 | AT102: 7 | AU102: 0 | AV102: 1 | AW102: 3 | AX102: 2 | AY102: 0 | AZ102: 0 | BA102: 0 | BB102: 8 | BC102: 0 | BD102: 1 | BE102: 0 | BF102: 4 | BG102: 3 | BH102: 1 | BI102: 2 | BJ102: 1 | BK102: 0 | BL102: 0 | BM102: 1 | BN102: 0 | BP102: 1 | BQ102: 1 | BR102: 1 | BS102: 41 | BT102: 1 | BU102: 0 | BV102: 3
A103: BAS_RHIN | B103: STRASBOURG | C103: ESPACE MESANGE | D103: 18 | E103: De | F103: 106 | G103: 0 | H103: 0 | I103: 106 | J103: 106 | K103: 0 | L103: 0 | M103: 0 | N103: 5 | O103: 3 | P103: 65.01886792 | Q103: 118691.7034 | R103: 12581320.56 | S103: 2975217.94 | T103: 13 | U103: 80 | V103: 89 | W103: 33 | X103: 19 | Y103: 35 | Z103: 3 | AA103: 14 | AB103: 12 | AC103: 0 | AD103: 0 | AE103: 35 | AF103: 30 | AG103: 15 | AJ103: 1 | AK103: 0 | AL103: 20 | AM103: 73 | AN103: 0 | AO103: 0 | AP103: 7 | AQ103: 9 | AR103: 7 | AS103: 5 | AT103: 33 | AU103: 4 | AV103: 8 | AW103: 6 | AX103: 31 | AY103: 1 | AZ103: 1 | BA103: 3 | BB103: 48 | BC103: 8 | BD103: 20 | BE103: 19 | BF103: 47 | BG103: 36 | BH103: 2 | BI103: 8 | BJ103: 2 | BK103: 2 | BL103: 0 | BM103: 3 | BN103: 3 | BP103: 2 | BQ103: 0 | BR103: 0 | BS103: 34 | BT103: 1 | BU103: 0 | BV103: 7
A104: BAS_RHIN | B104: STRASBOURG | C104: ESPACE MESANGE | D104: 18 | E104: Dne | F104: 126 | G104: 0 | H104: 0 | I104: 126 | J104: 126 | K104: 0 | L104: 0 | M104: 3 | N104: 13 | O104: 5 | P104: 52.99206349 | Q104: 27588.48762 | R104: 3476149.44 | S104: 4031327.95 | T104: 1 | U104: 24 | V104: 26 | W104: 34 | X104: 3 | Y104: 23 | Z104: 0 | AA104: 8 | AB104: 12 | AC104: 0 | AD104: 0 | AE104: 29 | AF104: 28 | AG104: 14 | AH104: 1 | AK104: 0 | AL104: 22 | AM104: 33 | AN104: 0 | AO104: 0 | AP104: 3 | AQ104: 1 | AR104: 1 | AS104: 2 | AT104: 9 | AU104: 1 | AV104: 0 | AW104: 2 | AX104: 4 | AY104: 0 | AZ104: 0 | BA104: 1 | BB104: 15 | BC104: 3 | BD104: 2 | BE104: 3 | BF104: 11 | BG104: 2 | BH104: 1 | BI104: 2 | BJ104: 1 | BK104: 0 | BL104: 0 | BM104: 0 | BN104: 0 | BP104: 0 | BQ104: 0 | BR104: 0 | BS104: 41 | BT104: 0 | BU104: 0 | BV104: 2
A105: BAS_RHIN | B105: STRASBOURG | C105: ESPACE MESANGE | D105: 18 | E105: Ee | F105: 37 | G105: 5 | H105: 9 | I105: 9 | J105: 0 | K105: 9 | L105: 0 | M105: 0 | N105: 1 | O105: 1 | P105: 7.216216216 | Q105: 6902.041081 | R105: 255375.52 | S105: 0 | T105: 0 | U105: 20 | V105: 21 | W105: 0 | X105: 0 | Y105: 1 | Z105: 0 | AA105: 0 | AC105: 0 | AD105: 0 | AE105: 1 | AF105: 1 | AG105: 0 | AK105: 0 | AL105: 0 | AM105: 31 | AN105: 0 | AO105: 3 | AP105: 2 | AQ105: 0 | AR105: 0 | AS105: 0 | AT105: 0 | AU105: 0 | AV105: 0 | AW105: 11 | AX105: 17 | AY105: 0 | AZ105: 0 | BA105: 0 | BB105: 6 | BC105: 0 | BD105: 0 | BE105: 0 | BF105: 0 | BG105: 0 | BH105: 0 | BI105: 0 | BJ105: 0 | BK105: 0 | BL105: 0 | BM105: 0 | BN105: 0 | BS105: 8
A106: BAS_RHIN | B106: STRASBOURG | C106: ESPACE MESANGE | D106: 18 | E106: Ene | F106: 10 | G106: 2 | H106: 2 | I106: 2 | J106: 0 | K106: 2 | L106: 0 | M106: 0 | N106: 1 | O106: 4 | P106: 6.6 | Q106: 1278.927 | R106: 12789.27 | S106: 0 | T106: 0 | U106: 0 | V106: 0 | W106: 0 | X106: 0 | Y106: 0 | AC106: 0 | AD106: 0 | AG106: 0 | AK106: 0 | AL106: 0 | AM106: 4 | AN106: 0 | AO106: 0 | AP106: 0 | AQ106: 0 | AR106: 0 | AS106: 0 | AT106: 0 | AU106: 0 | AV106: 0 | AW106: 0 | AX106: 0 | AY106: 0 | AZ106: 0 | BA106: 0 | BB106: 0 | BC106: 0 | BD106: 0 | BE106: 0 | BF106: 1 | BG106: 0 | BH106: 0 | BI106: 0 | BJ106: 0 | BK106: 0 | BL106: 0 | BM106: 0 | BN106: 0 | BS106: 3
A107: BAS_RHIN | B107: STRASBOURG | C107: ESPACE MESANGE | D107: 18 | E107: I | F107: 20 | G107: 0 | H107: 0 | I107: 20 | J107: 20 | K107: 0 | L107: 0 | M107: 3 | N107: 4 | O107: 2 | P107: 45.95 | Q107: 21.8455 | R107: 436.91 | S107: 0 | T107: 0 | U107: 2 | V107: 0 | W107: 0 | X107: 0 | Y107: 0 | AC107: 0 | AD107: 0 | AG107: 0 | AK107: 0 | AL107: 0 | AM107: 4 | AN107: 0 | AO107: 0 | AP107: 0 | AQ107: 0 | AR107: 0 | AS107: 0 | AT107: 0 | AU107: 0 | AV107: 0 | AW107: 0 | AX107: 0 | AY107: 0 | AZ107: 0 | BA107: 0 | BB107: 0 | BC107: 0 | BD107: 0 | BE107: 0 | BF107: 0 | BG107: 0 | BH107: 0 | BI107: 0 | BJ107: 0 | BK107: 0 | BL107: 0 | BM107: 0 | BN107: 0 | BP107: 1 | BQ107: 0 | BR107: 0 | BS107: 3 | BT107: 0 | BU107: 0 | BV107: 0
A108: BAS_RHIN | B108: STRASBOURG | C108: ESPACE MESANGE | D108: 18 | E108: JBPe | F108: 21 | G108: 0 | H108: 21 | I108: 21 | J108: 19 | K108: 2 | L108: 21 | M108: 19 | P108: 20.19047619 | Q108: 17413.34048 | R108: 365680.15 | S108: 61090.73 | T108: 20 | U108: 18 | V108: 8 | W108: 3 | X108: 2 | Y108: 21 | Z108: 0 | AA108: 2 | AB108: 1 | AC108: 0 | AD108: 0 | AE108: 21 | AF108: 20 | AG108: 2 | AH108: 2 | AK108: 0 | AL108: 1 | AM108: 14 | AN108: 0 | AO108: 18 | AP108: 0 | AQ108: 0 | AR108: 0 | AS108: 0 | AT108: 0 | AU108: 1 | AV108: 0 | AW108: 0 | AX108: 6 | AY108: 0 | AZ108: 0 | BA108: 0 | BB108: 5 | BC108: 0 | BD108: 0 | BE108: 0 | BF108: 2 | BG108: 0 | BH108: 0 | BI108: 1 | BJ108: 0 | BK108: 1 | BL108: 0 | BM108: 0 | BN108: 0 | BP108: 0 | BQ108: 1 | BR108: 0 | BS108: 17 | BT108: 0 | BU108: 7 | BV108: 3
A109: BAS_RHIN | B109: STRASBOURG | C109: ESPACE MESANGE | D109: 18 | E109: JBPne | F109: 6 | G109: 0 | H109: 6 | I109: 6 | J109: 5 | K109: 1 | L109: 6 | M109: 5 | N109: 2 | O109: 1 | P109: 20.5 | Q109: 6651.888333 | R109: 39911.33 | S109: 0 | T109: 4 | U109: 0 | V109: 0 | W109: 0 | X109: 1 | Y109: 6 | Z109: 0 | AA109: 1 | AB109: 1 | AC109: 0 | AD109: 0 | AE109: 6 | AF109: 6 | AG109: 0 | AK109: 0 | AL109: 0 | AM109: 0 | AN109: 0 | AO109: 0 | AP109: 0 | AQ109: 0 | AR109: 0 | AS109: 0 | AT109: 0 | AU109: 0 | AV109: 0 | AW109: 0 | AX109: 0 | AY109: 0 | AZ109: 0 | BA109: 0 | BB109: 0 | BC109: 0 | BD109: 0 | BE109: 0 | BF109: 0 | BG109: 0 | BH109: 0 | BI109: 1 | BJ109: 0 | BK109: 0 | BL109: 0 | BM109: 0 | BN109: 0 | BP109: 0 | BQ109: 0 | BR109: 0 | BS109: 5 | BT109: 0 | BU109: 2 | BV109: 1
A110: BAS_RHIN | B110: STRASBOURG | C110: ESPACE MESANGE | D110: 18 | E110: JDe | F110: 1 | G110: 0 | H110: 1 | I110: 1 | J110: 0 | K110: 1 | L110: 1 | M110: 0 | P110: 16 | Q110: 24661.5 | R110: 24661.5 | S110: 0 | T110: 0 | U110: 1 | V110: 1 | W110: 0 | X110: 0 | Y110: 0 | AC110: 0 | AD110: 0 | AG110: 0 | AK110: 0 | AL110: 0 | AM110: 1 | AN110: 0 | AO110: 1 | AP110: 0 | AQ110: 0 | AR110: 0 | AS110: 0 | AT110: 0 | AU110: 0 | AV110: 1 | AW110: 0 | AX110: 1 | AY110: 0 | AZ110: 0 | BA110: 0 | BB110: 0 | BC110: 0 | BD110: 0 | BE110: 0 | BF110: 0 | BG110: 0 | BH110: 0 | BI110: 0 | BJ110: 0 | BK110: 0 | BL110: 0 | BM110: 0 | BN110: 0
A111: BAS_RHIN | B111: STRASBOURG | C111: ESPACE MESANGE | D111: 18 | E111: JDne | F111: 8 | G111: 0 | H111: 8 | I111: 8 | J111: 5 | K111: 3 | L111: 8 | M111: 5 | O111: 1 | P111: 20.375 | Q111: 10110.89875 | R111: 80887.19 | S111: 0 | T111: 0 | U111: 5 | V111: 1 | W111: 0 | X111: 0 | Y111: 1 | Z111: 0 | AA111: 0 | AC111: 0 | AD111: 0 | AE111: 1 | AF111: 1 | AG111: 0 | AK111: 0 | AL111: 0 | AM111: 4 | AN111: 0 | AO111: 1 | AP111: 0 | AQ111: 0 | AR111: 0 | AS111: 1 | AT111: 0 | AU111: 0 | AV111: 0 | AW111: 0 | AX111: 1 | AY111: 0 | AZ111: 0 | BA111: 0 | BB111: 0 | BC111: 0 | BD111: 0 | BE111: 0 | BF111: 0 | BG111: 0 | BH111: 0 | BI111: 0 | BJ111: 0 | BK111: 0 | BL111: 0 | BM111: 0 | BN111: 0 | BS111: 1
A112: BAS_RHIN | B112: STRASBOURG | C112: STRASBOURG ANVERS | D112: 19 | E112: BPe | F112: 791 | G112: 0 | H112: 0 | I112: 791 | J112: 791 | K112: 0 | L112: 0 | M112: 57 | N112: 18 | O112: 4 | P112: 50.75221239 | Q112: 66142.93233 | R112: 52319059.47 | S112: 38632447.08 | T112: 760 | U112: 700 | V112: 616 | W112: 452 | X112: 372 | Y112: 776 | Z112: 403 | AA112: 450 | AB112: 298 | AC112: 0 | AD112: 0 | AE112: 778 | AF112: 736 | AG112: 203 | AH112: 11 | AI112: 4 | AJ112: 28 | AK112: 104 | AL112: 298 | AM112: 748 | AN112: 0 | AO112: 0 | AP112: 73 | AQ112: 58 | AR112: 30 | AS112: 50 | AT112: 313 | AU112: 93 | AV112: 167 | AW112: 239 | AX112: 339 | AY112: 3 | AZ112: 2 | BA112: 23 | BB112: 329 | BC112: 16 | BD112: 224 | BE112: 62 | BF112: 516 | BG112: 306 | BH112: 70 | BI112: 222 | BJ112: 141 | BK112: 29 | BL112: 0 | BM112: 123 | BN112: 12 | BO112: 65 | BP112: 120 | BQ112: 28 | BR112: 92 | BS112: 563 | BT112: 38 | BU112: 117 | BV112: 130
A113: BAS_RHIN | B113: STRASBOURG | C113: STRASBOURG ANVERS | D113: 19 | E113: BPne | F113: 408 | G113: 0 | H113: 0 | I113: 408 | J113: 408 | K113: 0 | L113: 0 | M113: 24 | N113: 5 | O113: 13 | P113: 52.10539216 | Q113: 18893.26466 | R113: 7708451.98 | S113: 2348317.42 | T113: 283 | U113: 194 | V113: 54 | W113: 64 | X113: 58 | Y113: 343 | Z113: 89 | AA113: 118 | AB113: 66 | AC113: 0 | AD113: 0 | AE113: 382 | AF113: 359 | AG113: 35 | AH113: 3 | AI113: 1 | AJ113: 4 | AK113: 14 | AL113: 30 | AM113: 307 | AN113: 0 | AO113: 0 | AP113: 18 | AQ113: 20 | AR113: 6 | AS113: 8 | AT113: 69 | AU113: 27 | AV113: 27 | AW113: 44 | AX113: 21 | AY113: 0 | AZ113: 0 | BA113: 0 | BB113: 32 | BC113: 1 | BD113: 26 | BE113: 10 | BF113: 153 | BG113: 23 | BH113: 11 | BI113: 37 | BJ113: 20 | BK113: 5 | BL113: 0 | BM113: 16 | BN113: 1 | BO113: 43 | BP113: 41 | BQ113: 11 | BR113: 38 | BS113: 246 | BT113: 4 | BU113: 55 | BV113: 48
A114: BAS_RHIN | B114: STRASBOURG | C114: STRASBOURG ANVERS | D114: 19 | E114: De | F114: 659 | G114: 0 | H114: 0 | I114: 659 | J114: 659 | K114: 0 | L114: 0 | M114: 19 | N114: 12 | O114: 20 | P114: 64.34294385 | Q114: 71592.31146 | R114: 47179333.25 | S114: 4415685.99 | T114: 82 | U114: 603 | V114: 583 | W114: 65 | X114: 104 | Y114: 172 | Z114: 44 | AA114: 46 | AB114: 41 | AC114: 0 | AD114: 0 | AE114: 185 | AF114: 152 | AG114: 20 | AI114: 2 | AJ114: 1 | AK114: 7 | AL114: 46 | AM114: 588 | AN114: 0 | AO114: 0 | AP114: 54 | AQ114: 85 | AR114: 30 | AS114: 31 | AT114: 189 | AU114: 78 | AV114: 84 | AW114: 61 | AX114: 226 | AY114: 0 | AZ114: 0 | BA114: 7 | BB114: 331 | BC114: 23 | BD114: 114 | BE114: 82 | BF114: 411 | BG114: 292 | BH114: 8 | BI114: 60 | BJ114: 27 | BK114: 7 | BL114: 0 | BM114: 22 | BN114: 7 | BO114: 7 | BP114: 31 | BQ114: 0 | BR114: 9 | BS114: 191 | BT114: 7 | BU114: 13 | BV114: 22
A115: BAS_RHIN | B115: STRASBOURG | C115: STRASBOURG ANVERS | D115: 19 | E115: Dne | F115: 1530 | G115: 0 | H115: 0 | I115: 1530 | J115: 1530 | K115: 0 | L115: 0 | M115: 70 | N115: 44 | O115: 93 | P115: 58.00849673 | Q115: 13983.92982 | R115: 21395412.62 | S115: 2990376.46 | T115: 21 | U115: 768 | V115: 192 | W115: 72 | X115: 29 | Y115: 144 | Z115: 21 | AA115: 24 | AB115: 23 | AC115: 0 | AD115: 0 | AE115: 142 | AF115: 115 | AG115: 34 | AH115: 7 | AI115: 1 | AJ115: 2 | AK115: 2 | AL115: 40 | AM115: 996 | AN115: 0 | AO115: 0 | AP115: 57 | AQ115: 61 | AR115: 15 | AS115: 11 | AT115: 114 | AU115: 61 | AV115: 23 | AW115: 26 | AX115: 33 | AY115: 0 | AZ115: 1 | BA115: 6 | BB115: 101 | BC115: 4 | BD115: 51 | BE115: 20 | BF115: 346 | BG115: 73 | BH115: 3 | BI115: 14 | BJ115: 8 | BK115: 2 | BL115: 0 | BM115: 7 | BN115: 3 | BO115: 21 | BP115: 17 | BQ115: 3 | BR115: 11 | BS115: 245 | BT115: 2 | BU115: 30 | BV115: 20
A116: BAS_RHIN | B116: STRASBOURG | C116: STRASBOURG ANVERS | D116: 19 | E116: Ee | F116: 308 | G116: 42 | H116: 96 | I116: 96 | J116: 0 | K116: 96 | L116: 0 | M116: 0 | N116: 26 | O116: 6 | P116: 8.652597403 | Q116: 5748.448766 | R116: 1770522.22 | S116: 0 | T116: 10 | U116: 226 | V116: 136 | W116: 0 | X116: 0 | Y116: 6 | Z116: 0 | AA116: 0 | AC116: 7 | AD116: 7 | AE116: 6 | AF116: 6 | AG116: 0 | AK116: 0 | AL116: 0 | AM116: 269 | AN116: 12 | AO116: 61 | AP116: 1 | AQ116: 0 | AR116: 0 | AS116: 4 | AT116: 0 | AU116: 0 | AV116: 3 | AW116: 115 | AX116: 62 | AY116: 0 | AZ116: 0 | BA116: 0 | BB116: 53 | BC116: 1 | BD116: 0 | BE116: 0 | BF116: 40 | BG116: 9 | BH116: 0 | BI116: 0 | BJ116: 0 | BK116: 0 | BL116: 0 | BM116: 0 | BN116: 0 | BP116: 0 | BQ116: 0 | BR116: 0 | BS116: 69 | BT116: 0 | BU116: 4 | BV116: 0
A117: BAS_RHIN | B117: STRASBOURG | C117: STRASBOURG ANVERS | D117: 19 | E117: Ene | F117: 188 | G117: 60 | H117: 75 | I117: 75 | J117: 0 | K117: 75 | L117: 0 | M117: 0 | N117: 15 | O117: 4 | P117: 9.808510638 | Q117: 1259.759362 | R117: 236834.76 | S117: 0 | T117: 0 | U117: 0 | V117: 0 | W117: 0 | X117: 0 | Y117: 1 | Z117: 0 | AA117: 0 | AC117: 0 | AD117: 0 | AE117: 1 | AF117: 1 | AG117: 0 | AK117: 0 | AL117: 0 | AM117: 151 | AN117: 0 | AO117: 4 | AP117: 0 | AQ117: 0 | AR117: 0 | AS117: 0 | AT117: 0 | AU117: 0 | AV117: 0 | AW117: 15 | AX117: 0 | AY117: 0 | AZ117: 0 | BA117: 0 | BB117: 0 | BC117: 0 | BD117: 0 | BE117: 0 | BF117: 14 | BG117: 7 | BH117: 0 | BI117: 0 | BJ117: 0 | BK117: 0 | BL117: 0 | BM117: 0 | BN117: 0 | BS117: 18
A118: BAS_RHIN | B118: STRASBOURG | C118: STRASBOURG ANVERS | D118: 19 | E118: I | F118: 705 | G118: 0 | H118: 0 | I118: 705 | J118: 705 | K118: 0 | L118: 0 | M118: 40 | N118: 1 | O118: 160 | P118: 50.6751773 | Q118: 19.88913475 | R118: 14021.84 | S118: 0 | T118: 0 | U118: 26 | V118: 2 | W118: 0 | X118: 19 | Y118: 2 | Z118: 0 | AA118: 0 | AC118: 0 | AD118: 0 | AG118: 0 | AK118: 0 | AL118: 0 | AM118: 439 | AN118: 0 | AO118: 0 | AP118: 4 | AQ118: 2 | AR118: 2 | AS118: 0 | AT118: 10 | AU118: 2 | AV118: 0 | AW118: 0 | AX118: 0 | AY118: 0 | AZ118: 0 | BA118: 2 | BB118: 0 | BC118: 0 | BD118: 0 | BE118: 0 | BF118: 7 | BG118: 0 | BH118: 2 | BI118: 8 | BJ118: 1 | BK118: 9 | BL118: 0 | BM118: 0 | BN118: 0 | BO118: 2 | BP118: 2 | BQ118: 1 | BR118: 0 | BS118: 19 | BT118: 0 | BU118: 0 | BV118: 0
A119: BAS_RHIN | B119: STRASBOURG | C119: STRASBOURG ANVERS | D119: 19 | E119: JBPe | F119: 150 | G119: 0 | H119: 150 | I119: 150 | J119: 140 | K119: 10 | L119: 150 | M119: 140 | N119: 7 | O119: 2 | P119: 21.64 | Q119: 12177.615 | R119: 1826642.25 | S119: 547476.25 | T119: 144 | U119: 115 | V119: 71 | W119: 39 | X119: 38 | Y119: 150 | Z119: 11 | AA119: 60 | AB119: 31 | AC119: 0 | AD119: 0 | AE119: 150 | AF119: 145 | AG119: 35 | AH119: 28 | AI119: 7 | AJ119: 1 | AK119: 4 | AL119: 4 | AM119: 126 | AN119: 0 | AO119: 120 | AP119: 4 | AQ119: 0 | AR119: 0 | AS119: 1 | AT119: 8 | AU119: 1 | AV119: 6 | AW119: 33 | AX119: 45 | AY119: 0 | AZ119: 0 | BA119: 0 | BB119: 26 | BC119: 2 | BD119: 5 | BE119: 0 | BF119: 44 | BG119: 15 | BH119: 5 | BI119: 12 | BJ119: 11 | BK119: 2 | BL119: 0 | BM119: 20 | BN119: 0 | BO119: 20 | BP119: 11 | BQ119: 11 | BR119: 17 | BS119: 124 | BT119: 2 | BU119: 120 | BV119: 51
A120: BAS_RHIN | B120: STRASBOURG | C120: STRASBOURG ANVERS | D120: 19 | E120: JBPne | F120: 57 | G120: 0 | H120: 57 | I120: 57 | J120: 51 | K120: 6 | L120: 57 | M120: 51 | N120: 6 | O120: 8 | P120: 20.68421053 | Q120: 1372.330877 | R120: 78222.86 | S120: 0 | T120: 43 | U120: 6 | V120: 0 | W120: 1 | X120: 1 | Y120: 57 | Z120: 1 | AA120: 10 | AB120: 7 | AC120: 0 | AD120: 0 | AE120: 57 | AF120: 55 | AG120: 1 | AK120: 0 | AL120: 0 | AM120: 31 | AN120: 0 | AO120: 29 | AP120: 0 | AQ120: 0 | AR120: 0 | AS120: 0 | AT120: 1 | AU120: 0 | AV120: 0 | AW120: 1 | AX120: 0 | AY120: 0 | AZ120: 0 | BA120: 0 | BB120: 0 | BC120: 0 | BD120: 0 | BE120: 0 | BF120: 7 | BG120: 0 | BH120: 0 | BI120: 1 | BJ120: 0 | BK120: 0 | BL120: 0 | BM120: 0 | BN120: 0 | BO120: 8 | BP120: 0 | BQ120: 2 | BR120: 7 | BS120: 45 | BT120: 0 | BU120: 48 | BV120: 11
A121: BAS_RHIN | B121: STRASBOURG | C121: STRASBOURG ANVERS | D121: 19 | E121: JDe | F121: 47 | G121: 0 | H121: 47 | I121: 47 | J121: 36 | K121: 11 | L121: 47 | M121: 36 | N121: 2 | P121: 19.40425532 | Q121: 15521.9617 | R121: 729532.2 | S121: 0 | T121: 4 | U121: 47 | V121: 42 | W121: 1 | X121: 2 | Y121: 9 | Z121: 0 | AA121: 1 | AB121: 1 | AC121: 0 | AD121: 0 | AE121: 9 | AF121: 9 | AG121: 1 | AH121: 1 | AK121: 0 | AL121: 0 | AM121: 42 | AN121: 0 | AO121: 35 | AP121: 1 | AQ121: 0 | AR121: 0 | AS121: 0 | AT121: 1 | AU121: 0 | AV121: 1 | AW121: 11 | AX121: 31 | AY121: 0 | AZ121: 0 | BA121: 0 | BB121: 18 | BC121: 1 | BD121: 0 | BE121: 0 | BF121: 21 | BG121: 8 | BH121: 0 | BI121: 1 | BJ121: 1 | BK121: 0 | BL121: 0 | BM121: 1 | BN121: 0 | BP121: 0 | BQ121: 0 | BR121: 0 | BS121: 6 | BT121: 0 | BU121: 6 | BV121: 1
A122: BAS_RHIN | B122: STRASBOURG | C122: STRASBOURG ANVERS | D122: 19 | E122: JDne | F122: 274 | G122: 0 | H122: 274 | I122: 274 | J122: 209 | K122: 65 | L122: 274 | M122: 209 | N122: 8 | O122: 21 | P122: 20.37226277 | Q122: 3256.676022 | R122: 892329.23 | S122: 0 | T122: 1 | U122: 113 | V122: 20 | W122: 4 | X122: 4 | Y122: 26 | Z122: 0 | AA122: 3 | AB122: 4 | AC122: 0 | AD122: 0 | AE122: 26 | AF122: 25 | AG122: 4 | AH122: 5 | AK122: 0 | AL122: 0 | AM122: 208 | AN122: 0 | AO122: 110 | AP122: 4 | AQ122: 0 | AR122: 0 | AS122: 0 | AT122: 0 | AU122: 0 | AV122: 0 | AW122: 13 | AX122: 4 | AY122: 0 | AZ122: 0 | BA122: 0 | BB122: 14 | BC122: 0 | BD122: 1 | BE122: 0 | BF122: 24 | BG122: 3 | BH122: 0 | BI122: 2 | BJ122: 0 | BK122: 0 | BL122: 0 | BM122: 3 | BN122: 0 | BO122: 2 | BP122: 1 | BQ122: 0 | BR122: 0 | BS122: 29 | BT122: 0 | BU122: 22 | BV122: 7
A123: BAS_RHIN | B123: STRASBOURG | C123: STRASBOURG ROBERTSAU | D123: 20 | E123: BPe | F123: 904 | G123: 0 | H123: 0 | I123: 904 | J123: 904 | K123: 0 | L123: 0 | M123: 50 | N123: 7 | O123: 14 | P123: 50.4800885 | Q123: 65538.79564 | R123: 59247071.26 | S123: 33910638.08 | T123: 879 | U123: 805 | V123: 654 | W123: 522 | X123: 377 | Y123: 894 | Z123: 511 | AA123: 433 | AB123: 200 | AC123: 0 | AD123: 0 | AE123: 904 | AF123: 824 | AG123: 250 | AH123: 6 | AI123: 6 | AJ123: 23 | AK123: 110 | AL123: 317 | AM123: 835 | AN123: 0 | AO123: 0 | AP123: 56 | AQ123: 67 | AR123: 22 | AS123: 26 | AT123: 354 | AU123: 138 | AV123: 137 | AW123: 325 | AX123: 365 | AY123: 6 | AZ123: 7 | BA123: 31 | BB123: 375 | BC123: 22 | BD123: 150 | BE123: 82 | BF123: 479 | BG123: 250 | BH123: 90 | BI123: 229 | BJ123: 133 | BK123: 24 | BL123: 0 | BM123: 119 | BN123: 26 | BO123: 57 | BP123: 135 | BQ123: 28 | BR123: 96 | BS123: 662 | BT123: 31 | BU123: 138 | BV123: 145
A124: BAS_RHIN | B124: STRASBOURG | C124: STRASBOURG ROBERTSAU | D124: 20 | E124: BPne | F124: 427 | G124: 0 | H124: 0 | I124: 427 | J124: 427 | K124: 0 | L124: 0 | M124: 32 | N124: 15 | O124: 14 | P124: 50.52693208 | Q124: 22245.06464 | R124: 9498642.6 | S124: 3842416.23 | T124: 297 | U124: 188 | V124: 65 | W124: 76 | X124: 36 | Y124: 343 | Z124: 90 | AA124: 107 | AB124: 72 | AC124: 0 | AD124: 0 | AE124: 383 | AF124: 349 | AG124: 36 | AH124: 4 | AJ124: 4 | AK124: 16 | AL124: 44 | AM124: 298 | AN124: 0 | AO124: 0 | AP124: 12 | AQ124: 7 | AR124: 2 | AS124: 3 | AT124: 89 | AU124: 42 | AV124: 12 | AW124: 46 | AX124: 29 | AY124: 0 | AZ124: 0 | BA124: 1 | BB124: 34 | BC124: 0 | BD124: 17 | BE124: 7 | BF124: 125 | BG124: 21 | BH124: 6 | BI124: 17 | BJ124: 9 | BK124: 2 | BL124: 0 | BM124: 17 | BN124: 3 | BO124: 25 | BP124: 23 | BQ124: 4 | BR124: 27 | BS124: 273 | BT124: 3 | BU124: 61 | BV124: 68
A125: BAS_RHIN | B125: STRASBOURG | C125: STRASBOURG ROBERTSAU | D125: 20 | E125: De | F125: 638 | G125: 0 | H125: 0 | I125: 638 | J125: 638 | K125: 0 | L125: 0 | M125: 18 | N125: 6 | O125: 26 | P125: 64.28996865 | Q125: 75522.18324 | R125: 48183152.91 | S125: 3988220.43 | T125: 109 | U125: 594 | V125: 561 | W125: 73 | X125: 96 | Y125: 184 | Z125: 39 | AA125: 39 | AB125: 27 | AC125: 0 | AD125: 0 | AE125: 192 | AF125: 146 | AG125: 26 | AH125: 1 | AI125: 1 | AJ125: 1 | AK125: 9 | AL125: 46 | AM125: 559 | AN125: 0 | AO125: 0 | AP125: 37 | AQ125: 72 | AR125: 10 | AS125: 9 | AT125: 206 | AU125: 92 | AV125: 61 | AW125: 97 | AX125: 245 | AY125: 2 | AZ125: 3 | BA125: 5 | BB125: 340 | BC125: 7 | BD125: 80 | BE125: 77 | BF125: 339 | BG125: 245 | BH125: 13 | BI125: 48 | BJ125: 20 | BK125: 4 | BL125: 0 | BM125: 19 | BN125: 19 | BO125: 11 | BP125: 33 | BQ125: 1 | BR125: 9 | BS125: 170 | BT125: 3 | BU125: 22 | BV125: 23
A126: BAS_RHIN | B126: STRASBOURG | C126: STRASBOURG ROBERTSAU | D126: 20 | E126: Dne | F126: 1415 | G126: 0 | H126: 0 | I126: 1415 | J126: 1415 | K126: 0 | L126: 0 | M126: 59 | N126: 33 | O126: 90 | P126: 57.995053 | Q126: 11790.65402 | R126: 16683775.44 | S126: 1584160.17 | T126: 36 | U126: 732 | V126: 178 | W126: 59 | X126: 24 | Y126: 144 | Z126: 21 | AA126: 28 | AB126: 30 | AC126: 0 | AD126: 0 | AE126: 152 | AF126: 115 | AG126: 31 | AH126: 1 | AJ126: 1 | AK126: 2 | AL126: 30 | AM126: 950 | AN126: 0 | AO126: 0 | AP126: 41 | AQ126: 31 | AR126: 3 | AS126: 13 | AT126: 112 | AU126: 49 | AV126: 8 | AW126: 23 | AX126: 31 | AY126: 0 | AZ126: 3 | BA126: 8 | BB126: 103 | BC126: 2 | BD126: 17 | BE126: 19 | BF126: 282 | BG126: 41 | BH126: 5 | BI126: 13 | BJ126: 8 | BK126: 1 | BL126: 0 | BM126: 5 | BN126: 2 | BO126: 11 | BP126: 14 | BQ126: 1 | BR126: 7 | BS126: 230 | BT126: 3 | BU126: 30 | BV126: 35
A127: BAS_RHIN | B127: STRASBOURG | C127: STRASBOURG ROBERTSAU | D127: 20 | E127: Ee | F127: 270 | G127: 33 | H127: 79 | I127: 79 | J127: 0 | K127: 79 | L127: 0 | M127: 0 | N127: 9 | O127: 7 | P127: 8.525925926 | Q127: 9641.693111 | R127: 2603257.14 | S127: 0 | T127: 7 | U127: 192 | V127: 118 | W127: 0 | X127: 0 | Y127: 7 | Z127: 0 | AA127: 0 | AC127: 3 | AD127: 2 | AE127: 8 | AF127: 7 | AG127: 0 | AK127: 0 | AL127: 0 | AM127: 236 | AN127: 7 | AO127: 45 | AP127: 2 | AQ127: 2 | AR127: 0 | AS127: 1 | AT127: 0 | AU127: 0 | AV127: 2 | AW127: 115 | AX127: 79 | AY127: 0 | AZ127: 0 | BA127: 0 | BB127: 42 | BC127: 7 | BD127: 0 | BE127: 3 | BF127: 13 | BG127: 4 | BH127: 0 | BI127: 0 | BJ127: 0 | BK127: 0 | BL127: 0 | BM127: 0 | BN127: 0 | BP127: 0 | BQ127: 0 | BR127: 0 | BS127: 23 | BT127: 0 | BU127: 5 | BV127: 0
A128: BAS_RHIN | B128: STRASBOURG | C128: STRASBOURG ROBERTSAU | D128: 20 | E128: Ene | F128: 211 | G128: 61 | H128: 101 | I128: 101 | J128: 0 | K128: 101 | L128: 0 | M128: 0 | N128: 9 | O128: 7 | P128: 10.51658768 | Q128: 1317.407488 | R128: 277972.98 | S128: 0 | T128: 0 | U128: 0 | V128: 0 | W128: 0 | X128: 0 | Y128: 1 | Z128: 0 | AA128: 0 | AC128: 1 | AD128: 0 | AE128: 1 | AF128: 1 | AG128: 0 | AK128: 0 | AL128: 0 | AM128: 188 | AN128: 1 | AO128: 3 | AP128: 0 | AQ128: 1 | AR128: 0 | AS128: 1 | AT128: 0 | AU128: 0 | AV128: 1 | AW128: 32 | AX128: 0 | AY128: 0 | AZ128: 0 | BA128: 0 | BB128: 0 | BC128: 0 | BD128: 0 | BE128: 1 | BF128: 4 | BG128: 1 | BH128: 0 | BI128: 0 | BJ128: 0 | BK128: 0 | BL128: 0 | BM128: 0 | BN128: 0 | BP128: 0 | BQ128: 0 | BR128: 0 | BS128: 21 | BT128: 0 | BU128: 1 | BV128: 0
A129: BAS_RHIN | B129: STRASBOURG | C129: STRASBOURG ROBERTSAU | D129: 20 | E129: I | F129: 708 | G129: 0 | H129: 0 | I129: 708 | J129: 708 | K129: 0 | L129: 0 | M129: 47 | N129: 3 | O129: 129 | P129: 48.79943503 | Q129: 16.38371469 | R129: 11599.67 | S129: 0 | T129: 0 | U129: 13 | V129: 6 | W129: 0 | X129: 14 | Y129: 1 | Z129: 0 | AA129: 0 | AC129: 0 | AD129: 0 | AE129: 1 | AF129: 1 | AG129: 0 | AK129: 0 | AL129: 0 | AM129: 422 | AN129: 0 | AO129: 0 | AP129: 2 | AQ129: 4 | AR129: 0 | AS129: 0 | AT129: 13 | AU129: 2 | AV129: 0 | AW129: 0 | AX129: 0 | AY129: 0 | AZ129: 1 | BA129: 5 | BB129: 0 | BC129: 0 | BD129: 0 | BE129: 0 | BF129: 14 | BG129: 0 | BH129: 4 | BI129: 6 | BJ129: 4 | BK129: 0 | BL129: 0 | BM129: 2 | BN129: 0 | BO129: 1 | BP129: 1 | BQ129: 0 | BR129: 0 | BS129: 6 | BT129: 0 | BU129: 1 | BV129: 0
A130: BAS_RHIN | B130: STRASBOURG | C130: STRASBOURG ROBERTSAU | D130: 20 | E130: JBPe | F130: 178 | G130: 0 | H130: 178 | I130: 178 | J130: 167 | K130: 11 | L130: 178 | M130: 167 | N130: 4 | O130: 5 | P130: 21.56179775 | Q130: 15248.76753 | R130: 2714280.62 | S130: 1560.27 | T130: 177 | U130: 155 | V130: 76 | W130: 48 | X130: 26 | Y130: 178 | Z130: 22 | AA130: 76 | AB130: 19 | AC130: 0 | AD130: 0 | AE130: 180 | AF130: 175 | AG130: 45 | AH130: 28 | AI130: 2 | AJ130: 1 | AK130: 7 | AL130: 0 | AM130: 160 | AN130: 0 | AO130: 165 | AP130: 2 | AQ130: 1 | AR130: 0 | AS130: 0 | AT130: 4 | AU130: 7 | AV130: 3 | AW130: 43 | AX130: 59 | AY130: 0 | AZ130: 0 | BA130: 0 | BB130: 21 | BC130: 1 | BD130: 5 | BE130: 1 | BF130: 26 | BG130: 12 | BH130: 3 | BI130: 8 | BJ130: 5 | BK130: 3 | BL130: 0 | BM130: 15 | BN130: 0 | BO130: 17 | BP130: 1 | BQ130: 4 | BR130: 7 | BS130: 149 | BT130: 0 | BU130: 149 | BV130: 77
A131: BAS_RHIN | B131: STRASBOURG | C131: STRASBOURG ROBERTSAU | D131: 20 | E131: JBPne | F131: 48 | G131: 0 | H131: 48 | I131: 48 | J131: 41 | K131: 7 | L131: 48 | M131: 41 | N131: 6 | O131: 5 | P131: 20.79166667 | Q131: 3783.473542 | R131: 181606.73 | S131: 0 | T131: 28 | U131: 4 | V131: 1 | W131: 3 | X131: 0 | Y131: 39 | Z131: 0 | AA131: 8 | AB131: 2 | AC131: 0 | AD131: 0 | AE131: 41 | AF131: 40 | AG131: 3 | AI131: 1 | AK131: 0 | AL131: 0 | AM131: 17 | AN131: 0 | AO131: 24 | AP131: 0 | AQ131: 0 | AR131: 0 | AS131: 0 | AT131: 1 | AU131: 0 | AV131: 1 | AW131: 1 | AX131: 1 | AY131: 0 | AZ131: 0 | BA131: 0 | BB131: 0 | BC131: 0 | BD131: 0 | BE131: 0 | BF131: 2 | BG131: 0 | BH131: 0 | BI131: 0 | BJ131: 0 | BK131: 0 | BL131: 0 | BM131: 0 | BN131: 0 | BO131: 7 | BP131: 0 | BQ131: 0 | BR131: 2 | BS131: 34 | BT131: 0 | BU131: 37 | BV131: 14
A132: BAS_RHIN | B132: STRASBOURG | C132: STRASBOURG ROBERTSAU | D132: 20 | E132: JDe | F132: 49 | G132: 0 | H132: 49 | I132: 49 | J132: 23 | K132: 26 | L132: 49 | M132: 23 | N132: 1 | O132: 1 | P132: 18.89795918 | Q132: 21038.95388 | R132: 1030908.74 | S132: 0 | T132: 1 | U132: 48 | V132: 48 | W132: 1 | X132: 0 | Y132: 9 | Z132: 0 | AA132: 0 | AC132: 0 | AD132: 0 | AE132: 9 | AF132: 8 | AG132: 1 | AH132: 1 | AK132: 0 | AL132: 0 | AM132: 44 | AN132: 0 | AO132: 35 | AP132: 0 | AQ132: 0 | AR132: 0 | AS132: 0 | AT132: 0 | AU132: 1 | AV132: 2 | AW132: 7 | AX132: 39 | AY132: 0 | AZ132: 0 | BA132: 0 | BB132: 15 | BC132: 3 | BD132: 0 | BE132: 0 | BF132: 7 | BG132: 5 | BH132: 0 | BI132: 0 | BJ132: 0 | BK132: 0 | BL132: 0 | BM132: 0 | BN132: 0 | BP132: 0 | BQ132: 0 | BR132: 0 | BS132: 9 | BT132: 0 | BU132: 7 | BV132: 1
A133: BAS_RHIN | B133: STRASBOURG | C133: STRASBOURG ROBERTSAU | D133: 20 | E133: JDne | F133: 251 | G133: 0 | H133: 251 | I133: 251 | J133: 170 | K133: 81 | L133: 251 | M133: 170 | N133: 9 | O133: 25 | P133: 19.61752988 | Q133: 3955.314263 | R133: 992783.88 | S133: 0 | T133: 2 | U133: 111 | V133: 21 | W133: 5 | X133: 2 | Y133: 18 | Z133: 1 | AA133: 2 | AB133: 2 | AC133: 0 | AD133: 0 | AE133: 20 | AF133: 20 | AG133: 5 | AH133: 4 | AK133: 0 | AL133: 0 | AM133: 186 | AN133: 0 | AO133: 117 | AP133: 0 | AQ133: 0 | AR133: 0 | AS133: 1 | AT133: 0 | AU133: 0 | AV133: 1 | AW133: 23 | AX133: 8 | AY133: 1 | AZ133: 0 | BA133: 0 | BB133: 12 | BC133: 1 | BD133: 1 | BE133: 0 | BF133: 12 | BG133: 1 | BH133: 0 | BI133: 1 | BJ133: 1 | BK133: 0 | BL133: 0 | BM133: 0 | BN133: 0 | BO133: 2 | BP133: 0 | BQ133: 0 | BR133: 1 | BS133: 23 | BT133: 0 | BU133: 16 | BV133: 4
D134: 22 | E134: Dne | F134: 1 | G134: 0 | H134: 0 | I134: 1 | J134: 1 | K134: 0 | L134: 0 | M134: 1 | P134: 28 | Q134: 0 | R134: 0 | S134: 0 | T134: 0 | U134: 0 | V134: 0 | W134: 1 | X134: 0 | Y134: 0 | AC134: 0 | AD134: 0 | AG134: 0 | AK134: 0 | AL134: 1 | AM134: 0 | AN134: 0 | AO134: 0 | AP134: 0 | AQ134: 0 | AR134: 0 | AS134: 0 | AT134: 0 | AU134: 0 | AV134: 0 | AW134: 0 | AX134: 0 | AY134: 0 | AZ134: 0 | BA134: 0 | BB134: 0 | BC134: 0 | BD134: 0 | BE134: 0 | BF134: 0 | BG134: 0 | BH134: 0 | BI134: 0 | BJ134: 0 | BK134: 0 | BL134: 0 | BM134: 0 | BN134: 0
A135: BAS_RHIN | B135: STRASBOURG | C135: STRASBOURG VOSGES | D135: 23 | E135: BPe | F135: 505 | G135: 0 | H135: 0 | I135: 505 | J135: 505 | K135: 0 | L135: 0 | M135: 33 | N135: 2 | O135: 1 | P135: 49.44158416 | Q135: 65543.27329 | R135: 33099353.01 | S135: 22283551.13 | T135: 495 | U135: 436 | V135: 376 | W135: 275 | X135: 237 | Y135: 497 | Z135: 330 | AA135: 293 | AB135: 184 | AC135: 0 | AD135: 0 | AE135: 507 | AF135: 482 | AG135: 115 | AH135: 16 | AI135: 9 | AJ135: 11 | AK135: 75 | AL135: 167 | AM135: 466 | AN135: 0 | AO135: 0 | AP135: 34 | AQ135: 53 | AR135: 16 | AS135: 33 | AT135: 175 | AU135: 65 | AV135: 91 | AW135: 153 | AX135: 197 | AY135: 5 | AZ135: 0 | BA135: 24 | BB135: 218 | BC135: 24 | BD135: 87 | BE135: 47 | BF135: 320 | BG135: 177 | BH135: 42 | BI135: 138 | BJ135: 83 | BK135: 16 | BL135: 5 | BM135: 70 | BN135: 14 | BO135: 55 | BP135: 100 | BQ135: 34 | BR135: 71 | BS135: 385 | BT135: 50 | BU135: 145 | BV135: 165
A136: BAS_RHIN | B136: STRASBOURG | C136: STRASBOURG VOSGES | D136: 23 | E136: BPne | F136: 331 | G136: 0 | H136: 0 | I136: 331 | J136: 331 | K136: 0 | L136: 0 | M136: 34 | N136: 7 | O136: 5 | P136: 46.5347432 | Q136: 25482.05495 | R136: 8434560.19 | S136: 4733950.28 | T136: 244 | U136: 124 | V136: 50 | W136: 71 | X136: 42 | Y136: 277 | Z136: 113 | AA136: 103 | AB136: 74 | AC136: 0 | AD136: 0 | AE136: 308 | AF136: 290 | AG136: 30 | AH136: 5 | AI136: 2 | AJ136: 4 | AK136: 20 | AL136: 41 | AM136: 245 | AN136: 0 | AO136: 0 | AP136: 4 | AQ136: 11 | AR136: 2 | AS136: 5 | AT136: 58 | AU136: 25 | AV136: 11 | AW136: 22 | AX136: 25 | AY136: 0 | AZ136: 0 | BA136: 2 | BB136: 24 | BC136: 3 | BD136: 18 | BE136: 9 | BF136: 144 | BG136: 21 | BH136: 5 | BI136: 20 | BJ136: 15 | BK136: 0 | BL136: 0 | BM136: 13 | BN136: 0 | BO136: 36 | BP136: 22 | BQ136: 10 | BR136: 28 | BS136: 247 | BT136: 2 | BU136: 92 | BV136: 105
A137: BAS_RHIN | B137: STRASBOURG | C137: STRASBOURG VOSGES | D137: 23 | E137: De | F137: 446 | G137: 0 | H137: 0 | I137: 446 | J137: 446 | K137: 0 | L137: 0 | M137: 17 | N137: 3 | O137: 11 | P137: 61.27130045 | Q137: 72316.66123 | R137: 32253230.91 | S137: 5206923.12 | T137: 51 | U137: 409 | V137: 387 | W137: 59 | X137: 71 | Y137: 109 | Z137: 34 | AA137: 28 | AB137: 26 | AC137: 0 | AD137: 0 | AE137: 112 | AF137: 100 | AG137: 19 | AH137: 9 | AJ137: 1 | AK137: 2 | AL137: 40 | AM137: 406 | AN137: 0 | AO137: 0 | AP137: 26 | AQ137: 53 | AR137: 12 | AS137: 20 | AT137: 124 | AU137: 53 | AV137: 40 | AW137: 43 | AX137: 164 | AY137: 2 | AZ137: 5 | BA137: 6 | BB137: 188 | BC137: 20 | BD137: 50 | BE137: 44 | BF137: 284 | BG137: 191 | BH137: 10 | BI137: 33 | BJ137: 20 | BK137: 6 | BL137: 0 | BM137: 12 | BN137: 12 | BO137: 8 | BP137: 16 | BQ137: 6 | BR137: 9 | BS137: 136 | BT137: 11 | BU137: 27 | BV137: 56
A138: BAS_RHIN | B138: STRASBOURG | C138: STRASBOURG VOSGES | D138: 23 | E138: Dne | F138: 1080 | G138: 0 | H138: 0 | I138: 1080 | J138: 1080 | K138: 0 | L138: 0 | M138: 60 | N138: 9 | O138: 44 | P138: 54.90185185 | Q138: 10575.64487 | R138: 11421696.46 | S138: 531329.01 | T138: 17 | U138: 525 | V138: 162 | W138: 46 | X138: 16 | Y138: 91 | Z138: 17 | AA138: 21 | AB138: 11 | AC138: 0 | AD138: 0 | AE138: 99 | AF138: 87 | AG138: 24 | AH138: 11 | AK138: 4 | AL138: 21 | AM138: 738 | AN138: 0 | AO138: 0 | AP138: 21 | AQ138: 30 | AR138: 12 | AS138: 12 | AT138: 67 | AU138: 32 | AV138: 15 | AW138: 15 | AX138: 41 | AY138: 0 | AZ138: 4 | BA138: 12 | BB138: 80 | BC138: 3 | BD138: 16 | BE138: 26 | BF138: 284 | BG138: 51 | BH138: 3 | BI138: 6 | BJ138: 3 | BK138: 1 | BL138: 2 | BM138: 1 | BN138: 2 | BO138: 11 | BP138: 10 | BQ138: 2 | BR138: 10 | BS138: 207 | BT138: 6 | BU138: 31 | BV138: 55
A139: BAS_RHIN | B139: STRASBOURG | C139: STRASBOURG VOSGES | D139: 23 | E139: Ee | F139: 220 | G139: 31 | H139: 75 | I139: 75 | J139: 0 | K139: 75 | L139: 0 | M139: 0 | N139: 9 | O139: 3 | P139: 8.772727273 | Q139: 6472.889318 | R139: 1424035.65 | S139: 0 | T139: 4 | U139: 146 | V139: 127 | W139: 0 | X139: 0 | Y139: 4 | Z139: 0 | AA139: 0 | AC139: 4 | AD139: 3 | AE139: 4 | AF139: 4 | AG139: 0 | AK139: 0 | AL139: 0 | AM139: 191 | AN139: 5 | AO139: 47 | AP139: 1 | AQ139: 0 | AR139: 0 | AS139: 0 | AT139: 0 | AU139: 0 | AV139: 0 | AW139: 78 | AX139: 60 | AY139: 0 | AZ139: 0 | BA139: 0 | BB139: 64 | BC139: 2 | BD139: 0 | BE139: 0 | BF139: 41 | BG139: 6 | BH139: 0 | BI139: 0 | BJ139: 0 | BK139: 0 | BL139: 0 | BM139: 0 | BN139: 0 | BP139: 0 | BQ139: 0 | BR139: 0 | BS139: 31 | BT139: 0 | BU139: 2 | BV139: 0
A140: BAS_RHIN | B140: STRASBOURG | C140: STRASBOURG VOSGES | D140: 23 | E140: Ene | F140: 132 | G140: 46 | H140: 54 | I140: 54 | J140: 0 | K140: 54 | L140: 0 | M140: 0 | N140: 2 | O140: 4 | P140: 10.15909091 | Q140: 2549.725455 | R140: 336563.76 | S140: 0 | T140: 0 | U140: 0 | V140: 0 | W140: 0 | X140: 0 | Y140: 3 | Z140: 0 | AA140: 0 | AC140: 0 | AD140: 0 | AE140: 3 | AF140: 3 | AG140: 0 | AK140: 0 | AL140: 0 | AM140: 108 | AN140: 1 | AO140: 4 | AP140: 0 | AQ140: 1 | AR140: 0 | AS140: 0 | AT140: 0 | AU140: 0 | AV140: 0 | AW140: 6 | AX140: 0 | AY140: 0 | AZ140: 0 | BA140: 0 | BB140: 0 | BC140: 0 | BD140: 0 | BE140: 0 | BF140: 14 | BG140: 0 | BH140: 0 | BI140: 0 | BJ140: 0 | BK140: 0 | BL140: 0 | BM140: 0 | BN140: 0 | BP140: 0 | BQ140: 0 | BR140: 0 | BS140: 11 | BT140: 0 | BU140: 2 | BV140: 0
A141: BAS_RHIN | B141: STRASBOURG | C141: STRASBOURG VOSGES | D141: 23 | E141: I | F141: 620 | G141: 0 | H141: 0 | I141: 620 | J141: 620 | K141: 0 | L141: 0 | M141: 48 | N141: 1 | O141: 130 | P141: 50.12096774 | Q141: 15.48680645 | R141: 9601.82 | S141: 0 | T141: 0 | U141: 13 | V141: 0 | W141: 0 | X141: 13 | Y141: 0 | AC141: 0 | AD141: 0 | AG141: 0 | AK141: 0 | AL141: 0 | AM141: 388 | AN141: 0 | AO141: 0 | AP141: 1 | AQ141: 1 | AR141: 0 | AS141: 0 | AT141: 10 | AU141: 2 | AV141: 0 | AW141: 0 | AX141: 0 | AY141: 0 | AZ141: 0 | BA141: 0 | BB141: 0 | BC141: 0 | BD141: 0 | BE141: 0 | BF141: 8 | BG141: 0 | BH141: 2 | BI141: 5 | BJ141: 2 | BK141: 2 | BL141: 0 | BM141: 2 | BN141: 0 | BO141: 2 | BS141: 5
A142: BAS_RHIN | B142: STRASBOURG | C142: STRASBOURG VOSGES | D142: 23 | E142: JBPe | F142: 138 | G142: 0 | H142: 138 | I142: 138 | J142: 131 | K142: 7 | L142: 138 | M142: 131 | N142: 2 | O142: 2 | P142: 21.53623188 | Q142: 11482.10594 | R142: 1584530.62 | S142: 108212.52 | T142: 131 | U142: 112 | V142: 62 | W142: 41 | X142: 30 | Y142: 137 | Z142: 8 | AA142: 38 | AB142: 20 | AC142: 0 | AD142: 0 | AE142: 139 | AF142: 138 | AG142: 40 | AH142: 26 | AI142: 7 | AJ142: 1 | AK142: 3 | AL142: 1 | AM142: 118 | AN142: 0 | AO142: 120 | AP142: 1 | AQ142: 0 | AR142: 0 | AS142: 1 | AT142: 5 | AU142: 1 | AV142: 1 | AW142: 24 | AX142: 51 | AY142: 0 | AZ142: 0 | BA142: 0 | BB142: 18 | BC142: 2 | BD142: 1 | BE142: 1 | BF142: 44 | BG142: 12 | BH142: 3 | BI142: 12 | BJ142: 2 | BK142: 3 | BL142: 0 | BM142: 17 | BN142: 0 | BO142: 22 | BP142: 5 | BQ142: 13 | BR142: 14 | BS142: 123 | BT142: 4 | BU142: 127 | BV142: 91
A143: BAS_RHIN | B143: STRASBOURG | C143: STRASBOURG VOSGES | D143: 23 | E143: JBPne | F143: 37 | G143: 0 | H143: 37 | I143: 37 | J143: 33 | K143: 4 | L143: 37 | M143: 33 | N143: 2 | O143: 3 | P143: 21.21621622 | Q143: 928.757027 | R143: 34364.01 | S143: 0 | T143: 24 | U143: 5 | V143: 1 | W143: 1 | X143: 2 | Y143: 37 | Z143: 1 | AA143: 6 | AB143: 3 | AC143: 0 | AD143: 0 | AE143: 32 | AF143: 32 | AG143: 1 | AK143: 0 | AL143: 0 | AM143: 16 | AN143: 0 | AO143: 19 | AP143: 1 | AQ143: 0 | AR143: 0 | AS143: 0 | AT143: 0 | AU143: 0 | AV143: 0 | AW143: 1 | AX143: 0 | AY143: 0 | AZ143: 0 | BA143: 0 | BB143: 0 | BC143: 0 | BD143: 1 | BE143: 0 | BF143: 4 | BG143: 1 | BH143: 0 | BI143: 1 | BJ143: 0 | BK143: 1 | BL143: 0 | BM143: 0 | BN143: 0 | BO143: 4 | BP143: 1 | BQ143: 2 | BR143: 5 | BS143: 29 | BT143: 0 | BU143: 29 | BV143: 18
A144: BAS_RHIN | B144: STRASBOURG | C144: STRASBOURG VOSGES | D144: 23 | E144: JDe | F144: 56 | G144: 0 | H144: 56 | I144: 56 | J144: 42 | K144: 14 | L144: 56 | M144: 42 | O144: 1 | P144: 20.33928571 | Q144: 29730.68982 | R144: 1664918.63 | S144: 0 | T144: 1 | U144: 56 | V144: 54 | W144: 0 | X144: 1 | Y144: 18 | Z144: 0 | AA144: 1 | AB144: 1 | AC144: 0 | AD144: 0 | AE144: 18 | AF144: 16 | AG144: 0 | AH144: 1 | AK144: 0 | AL144: 0 | AM144: 51 | AN144: 0 | AO144: 47 | AP144: 2 | AQ144: 1 | AR144: 0 | AS144: 0 | AT144: 4 | AU144: 0 | AV144: 1 | AW144: 13 | AX144: 42 | AY144: 0 | AZ144: 0 | BA144: 0 | BB144: 19 | BC144: 2 | BD144: 2 | BE144: 1 | BF144: 29 | BG144: 11 | BH144: 0 | BI144: 0 | BJ144: 0 | BK144: 0 | BL144: 0 | BM144: 1 | BN144: 0 | BP144: 0 | BQ144: 0 | BR144: 1 | BS144: 21 | BT144: 0 | BU144: 16 | BV144: 7
A145: BAS_RHIN | B145: STRASBOURG | C145: STRASBOURG VOSGES | D145: 23 | E145: JDne | F145: 254 | G145: 0 | H145: 254 | I145: 254 | J145: 202 | K145: 52 | L145: 254 | M145: 202 | N145: 6 | O145: 22 | P145: 20.49606299 | Q145: 3095.629567 | R145: 786289.91 | S145: 0 | T145: 0 | U145: 99 | V145: 14 | W145: 6 | X145: 4 | Y145: 24 | Z145: 1 | AA145: 4 | AB145: 3 | AC145: 0 | AD145: 0 | AE145: 24 | AF145: 24 | AG145: 6 | AH145: 6 | AK145: 0 | AL145: 0 | AM145: 180 | AN145: 0 | AO145: 137 | AP145: 1 | AQ145: 0 | AR145: 0 | AS145: 1 | AT145: 0 | AU145: 0 | AV145: 1 | AW145: 7 | AX145: 12 | AY145: 0 | AZ145: 0 | BA145: 0 | BB145: 4 | BC145: 0 | BD145: 0 | BE145: 0 | BF145: 57 | BG145: 2 | BH145: 0 | BI145: 3 | BJ145: 0 | BK145: 1 | BL145: 0 | BM145: 0 | BN145: 0 | BO145: 2 | BP145: 0 | BQ145: 2 | BR145: 3 | BS145: 39 | BT145: 0 | BU145: 18 | BV145: 11
A146: BAS_RHIN | B146: STRASBOURG | C146: STRASBOURG AUSTERLITZ | D146: 24 | E146: BPe | F146: 591 | G146: 0 | H146: 0 | I146: 591 | J146: 591 | K146: 0 | L146: 0 | M146: 42 | N146: 11 | O146: 2 | P146: 47.13874788 | Q146: 44424.27453 | R146: 26254746.25 | S146: 13912105.93 | T146: 570 | U146: 509 | V146: 394 | W146: 318 | X146: 288 | Y146: 581 | Z146: 357 | AA146: 274 | AB146: 151 | AC146: 0 | AD146: 0 | AE146: 586 | AF146: 549 | AG146: 177 | AH146: 11 | AI146: 10 | AJ146: 9 | AK146: 105 | AL146: 146 | AM146: 557 | AN146: 0 | AO146: 0 | AP146: 32 | AQ146: 42 | AR146: 10 | AS146: 9 | AT146: 173 | AU146: 69 | AV146: 63 | AW146: 220 | AX146: 221 | AY146: 4 | AZ146: 0 | BA146: 22 | BB146: 212 | BC146: 15 | BD146: 84 | BE146: 49 | BF146: 341 | BG146: 149 | BH146: 49 | BI146: 173 | BJ146: 106 | BK146: 20 | BL146: 3 | BM146: 113 | BN146: 15 | BO146: 76 | BP146: 99 | BQ146: 17 | BR146: 43 | BS146: 450 | BT146: 12 | BU146: 101 | BV146: 119
A147: BAS_RHIN | B147: STRASBOURG | C147: STRASBOURG AUSTERLITZ | D147: 24 | E147: BPne | F147: 299 | G147: 0 | H147: 0 | I147: 299 | J147: 299 | K147: 0 | L147: 0 | M147: 32 | N147: 9 | O147: 13 | P147: 48.39130435 | Q147: 17248.82328 | R147: 5157398.16 | S147: 1370519.24 | T147: 224 | U147: 151 | V147: 34 | W147: 38 | X147: 29 | Y147: 264 | Z147: 73 | AA147: 74 | AB147: 40 | AC147: 0 | AD147: 0 | AE147: 270 | AF147: 237 | AG147: 26 | AI147: 1 | AJ147: 1 | AK147: 17 | AL147: 14 | AM147: 229 | AN147: 0 | AO147: 0 | AP147: 4 | AQ147: 8 | AR147: 1 | AS147: 4 | AT147: 59 | AU147: 33 | AV147: 11 | AW147: 49 | AX147: 17 | AY147: 0 | AZ147: 0 | BA147: 0 | BB147: 22 | BC147: 0 | BD147: 9 | BE147: 3 | BF147: 121 | BG147: 20 | BH147: 4 | BI147: 12 | BJ147: 6 | BK147: 3 | BL147: 0 | BM147: 11 | BN147: 2 | BO147: 27 | BP147: 11 | BQ147: 7 | BR147: 30 | BS147: 207 | BT147: 0 | BU147: 50 | BV147: 56
A148: BAS_RHIN | B148: STRASBOURG | C148: STRASBOURG AUSTERLITZ | D148: 24 | E148: De | F148: 347 | G148: 0 | H148: 0 | I148: 347 | J148: 347 | K148: 0 | L148: 0 | M148: 21 | N148: 6 | O148: 20 | P148: 59.81268012 | Q148: 52265.11115 | R148: 18135993.57 | S148: 1944257.15 | T148: 71 | U148: 310 | V148: 277 | W148: 46 | X148: 71 | Y148: 125 | Z148: 28 | AA148: 27 | AB148: 16 | AC148: 0 | AD148: 0 | AE148: 128 | AF148: 96 | AG148: 17 | AH148: 7 | AI148: 1 | AJ148: 2 | AK148: 10 | AL148: 23 | AM148: 303 | AN148: 0 | AO148: 0 | AP148: 12 | AQ148: 21 | AR148: 9 | AS148: 5 | AT148: 89 | AU148: 60 | AV148: 33 | AW148: 48 | AX148: 114 | AY148: 4 | AZ148: 0 | BA148: 7 | BB148: 153 | BC148: 14 | BD148: 45 | BE148: 22 | BF148: 215 | BG148: 129 | BH148: 6 | BI148: 41 | BJ148: 15 | BK148: 3 | BL148: 0 | BM148: 14 | BN148: 10 | BO148: 6 | BP148: 18 | BQ148: 5 | BR148: 8 | BS148: 107 | BT148: 5 | BU148: 18 | BV148: 25
A149: BAS_RHIN | B149: STRASBOURG | C149: STRASBOURG AUSTERLITZ | D149: 24 | E149: Dne | F149: 808 | G149: 0 | H149: 0 | I149: 808 | J149: 808 | K149: 0 | L149: 0 | M149: 41 | N149: 21 | O149: 49 | P149: 53.66460396 | Q149: 7981.274319 | R149: 6448869.65 | S149: 480598.2 | T149: 28 | U149: 335 | V149: 114 | W149: 27 | X149: 24 | Y149: 130 | Z149: 19 | AA149: 10 | AB149: 14 | AC149: 0 | AD149: 0 | AE149: 116 | AF149: 94 | AG149: 14 | AH149: 2 | AK149: 2 | AL149: 14 | AM149: 509 | AN149: 0 | AO149: 0 | AP149: 19 | AQ149: 11 | AR149: 1 | AS149: 4 | AT149: 61 | AU149: 42 | AV149: 6 | AW149: 24 | AX149: 15 | AY149: 0 | AZ149: 3 | BA149: 9 | BB149: 66 | BC149: 1 | BD149: 16 | BE149: 10 | BF149: 210 | BG149: 27 | BH149: 0 | BI149: 6 | BJ149: 3 | BK149: 2 | BL149: 0 | BM149: 11 | BN149: 4 | BO149: 10 | BP149: 6 | BQ149: 1 | BR149: 9 | BS149: 176 | BT149: 3 | BU149: 34 | BV149: 33
A150: BAS_RHIN | B150: STRASBOURG | C150: STRASBOURG AUSTERLITZ | D150: 24 | E150: Ee | F150: 171 | G150: 24 | H150: 40 | I150: 40 | J150: 0 | K150: 40 | L150: 0 | M150: 0 | N150: 6 | P150: 7.701754386 | Q150: 4797.799825 | R150: 820423.77 | S150: 0 | T150: 4 | U150: 121 | V150: 77 | W150: 0 | X150: 0 | Y150: 8 | Z150: 0 | AA150: 0 | AC150: 0 | AD150: 0 | AE150: 9 | AF150: 8 | AG150: 0 | AK150: 0 | AL150: 0 | AM150: 145 | AN150: 3 | AO150: 24 | AP150: 0 | AQ150: 0 | AR150: 0 | AS150: 0 | AT150: 0 | AU150: 0 | AV150: 1 | AW150: 61 | AX150: 22 | AY150: 0 | AZ150: 0 | BA150: 0 | BB150: 50 | BC150: 1 | BD150: 0 | BE150: 1 | BF150: 16 | BG150: 4 | BH150: 0 | BI150: 0 | BJ150: 0 | BK150: 0 | BL150: 0 | BM150: 0 | BN150: 0 | BP150: 0 | BQ150: 0 | BR150: 0 | BS150: 25 | BT150: 0 | BU150: 6 | BV150: 0
A151: BAS_RHIN | B151: STRASBOURG | C151: STRASBOURG AUSTERLITZ | D151: 24 | E151: Ene | F151: 119 | G151: 48 | H151: 36 | I151: 36 | J151: 0 | K151: 36 | L151: 0 | M151: 0 | N151: 6 | O151: 3 | P151: 9.983193277 | Q151: 638.1307563 | R151: 75937.56 | S151: 0 | T151: 0 | U151: 0 | V151: 0 | W151: 0 | X151: 0 | Y151: 2 | Z151: 0 | AA151: 0 | AC151: 0 | AD151: 0 | AE151: 2 | AF151: 2 | AG151: 0 | AK151: 0 | AL151: 0 | AM151: 107 | AN151: 1 | AO151: 5 | AP151: 0 | AQ151: 0 | AR151: 0 | AS151: 1 | AT151: 0 | AU151: 0 | AV151: 0 | AW151: 11 | AX151: 0 | AY151: 0 | AZ151: 0 | BA151: 0 | BB151: 0 | BC151: 0 | BD151: 0 | BE151: 0 | BF151: 7 | BG151: 0 | BH151: 0 | BI151: 0 | BJ151: 0 | BK151: 0 | BL151: 0 | BM151: 0 | BN151: 0 | BP151: 0 | BQ151: 0 | BR151: 0 | BS151: 6 | BT151: 0 | BU151: 2 | BV151: 0
A152: BAS_RHIN | B152: STRASBOURG | C152: STRASBOURG AUSTERLITZ | D152: 24 | E152: I | F152: 503 | G152: 0 | H152: 0 | I152: 503 | J152: 503 | K152: 0 | L152: 0 | M152: 40 | N152: 3 | O152: 87 | P152: 48.53280318 | Q152: 11.40677932 | R152: 5737.61 | S152: 0 | T152: 1 | U152: 9 | V152: 4 | W152: 0 | X152: 15 | Y152: 2 | AC152: 0 | AD152: 0 | AG152: 0 | AK152: 0 | AL152: 0 | AM152: 293 | AN152: 0 | AO152: 0 | AP152: 1 | AQ152: 1 | AR152: 0 | AS152: 1 | AT152: 6 | AU152: 1 | AV152: 0 | AW152: 0 | AX152: 0 | AY152: 0 | AZ152: 0 | BA152: 4 | BB152: 0 | BC152: 0 | BD152: 0 | BE152: 0 | BF152: 3 | BG152: 0 | BH152: 1 | BI152: 4 | BJ152: 1 | BK152: 6 | BL152: 1 | BM152: 2 | BN152: 0 | BO152: 2 | BP152: 4 | BQ152: 0 | BR152: 0 | BS152: 12 | BT152: 0 | BU152: 0 | BV152: 0
A153: BAS_RHIN | B153: STRASBOURG | C153: STRASBOURG AUSTERLITZ | D153: 24 | E153: JBPe | F153: 141 | G153: 0 | H153: 141 | I153: 141 | J153: 138 | K153: 3 | L153: 141 | M153: 138 | N153: 10 | O153: 5 | P153: 22.12056738 | Q153: 6783.051844 | R153: 956410.31 | S153: 0 | T153: 137 | U153: 117 | V153: 43 | W153: 37 | X153: 31 | Y153: 140 | Z153: 16 | AA153: 35 | AB153: 16 | AC153: 0 | AD153: 0 | AE153: 138 | AF153: 137 | AG153: 34 | AH153: 17 | AI153: 10 | AK153: 7 | AL153: 0 | AM153: 120 | AN153: 0 | AO153: 126 | AP153: 0 | AQ153: 0 | AR153: 0 | AS153: 2 | AT153: 9 | AU153: 0 | AV153: 1 | AW153: 44 | AX153: 26 | AY153: 0 | AZ153: 0 | BA153: 0 | BB153: 17 | BC153: 1 | BD153: 1 | BE153: 3 | BF153: 31 | BG153: 12 | BH153: 1 | BI153: 10 | BJ153: 5 | BK153: 2 | BL153: 1 | BM153: 20 | BN153: 0 | BO153: 23 | BP153: 6 | BQ153: 3 | BR153: 8 | BS153: 132 | BT153: 0 | BU153: 119 | BV153: 69
A154: BAS_RHIN | B154: STRASBOURG | C154: STRASBOURG AUSTERLITZ | D154: 24 | E154: JBPne | F154: 40 | G154: 0 | H154: 40 | I154: 40 | J154: 35 | K154: 5 | L154: 40 | M154: 35 | N154: 6 | O154: 5 | P154: 21.275 | Q154: 2306.66625 | R154: 92266.65 | S154: 0 | T154: 23 | U154: 6 | V154: 3 | W154: 0 | X154: 2 | Y154: 37 | Z154: 1 | AA154: 7 | AB154: 6 | AC154: 0 | AD154: 0 | AE154: 37 | AF154: 36 | AG154: 0 | AI154: 1 | AK154: 0 | AL154: 0 | AM154: 27 | AN154: 0 | AO154: 24 | AP154: 1 | AQ154: 0 | AR154: 0 | AS154: 0 | AT154: 0 | AU154: 0 | AV154: 1 | AW154: 2 | AX154: 2 | AY154: 0 | AZ154: 0 | BA154: 0 | BB154: 3 | BC154: 0 | BD154: 0 | BE154: 1 | BF154: 6 | BG154: 1 | BH154: 0 | BI154: 0 | BJ154: 0 | BK154: 0 | BL154: 0 | BM154: 2 | BN154: 0 | BO154: 5 | BP154: 2 | BQ154: 3 | BR154: 0 | BS154: 33 | BT154: 0 | BU154: 31 | BV154: 11
A155: BAS_RHIN | B155: STRASBOURG | C155: STRASBOURG AUSTERLITZ | D155: 24 | E155: JDe | F155: 11 | G155: 0 | H155: 11 | I155: 11 | J155: 7 | K155: 4 | L155: 11 | M155: 7 | P155: 19.36363636 | Q155: 16470.68727 | R155: 181177.56 | S155: 0 | T155: 0 | U155: 9 | V155: 11 | W155: 1 | X155: 2 | Y155: 2 | Z155: 0 | AA155: 0 | AC155: 0 | AD155: 0 | AE155: 2 | AF155: 2 | AG155: 1 | AI155: 1 | AK155: 0 | AL155: 0 | AM155: 8 | AN155: 0 | AO155: 8 | AP155: 1 | AQ155: 0 | AR155: 0 | AS155: 0 | AT155: 0 | AU155: 0 | AV155: 3 | AW155: 0 | AX155: 6 | AY155: 0 | AZ155: 0 | BA155: 0 | BB155: 5 | BC155: 0 | BD155: 0 | BE155: 1 | BF155: 5 | BG155: 4 | BH155: 0 | BI155: 0 | BJ155: 0 | BK155: 0 | BL155: 0 | BM155: 2 | BN155: 0 | BP155: 0 | BQ155: 0 | BR155: 0 | BS155: 5 | BT155: 0 | BU155: 1 | BV155: 1
A156: BAS_RHIN | B156: STRASBOURG | C156: STRASBOURG AUSTERLITZ | D156: 24 | E156: JDne | F156: 158 | G156: 0 | H156: 158 | I156: 158 | J156: 125 | K156: 33 | L156: 158 | M156: 125 | N156: 6 | O156: 14 | P156: 20.59493671 | Q156: 3053.663671 | R156: 482478.86 | S156: 0 | T156: 0 | U156: 54 | V156: 7 | W156: 3 | X156: 0 | Y156: 19 | Z156: 0 | AA156: 2 | AB156: 3 | AC156: 0 | AD156: 0 | AE156: 18 | AF156: 14 | AG156: 3 | AH156: 2 | AK156: 1 | AL156: 0 | AM156: 111 | AN156: 0 | AO156: 78 | AP156: 0 | AQ156: 0 | AR156: 0 | AS156: 0 | AT156: 1 | AU156: 0 | AV156: 0 | AW156: 12 | AX156: 5 | AY156: 0 | AZ156: 0 | BA156: 0 | BB156: 3 | BC156: 1 | BD156: 0 | BE156: 0 | BF156: 14 | BG156: 2 | BH156: 0 | BI156: 0 | BJ156: 0 | BK156: 0 | BL156: 0 | BM156: 0 | BN156: 0 | BO156: 1 | BP156: 0 | BQ156: 1 | BR156: 1 | BS156: 18 | BT156: 0 | BU156: 14 | BV156: 3
A157: BAS_RHIN | B157: STRASBOURG | C157: STRASBOURG ESPLANADE | D157: 25 | E157: BPe | F157: 642 | G157: 0 | H157: 0 | I157: 642 | J157: 642 | K157: 0 | L157: 0 | M157: 49 | N157: 7 | O157: 7 | P157: 48.72897196 | Q157: 50320.29069 | R157: 32305626.62 | S157: 17077712.4 | T157: 615 | U157: 549 | V157: 457 | W157: 373 | X157: 277 | Y157: 632 | Z157: 284 | AA157: 258 | AB157: 152 | AC157: 0 | AD157: 0 | AE157: 623 | AF157: 579 | AG157: 221 | AH157: 6 | AI157: 12 | AJ157: 11 | AK157: 111 | AL157: 176 | AM157: 581 | AN157: 0 | AO157: 0 | AP157: 30 | AQ157: 30 | AR157: 13 | AS157: 29 | AT157: 224 | AU157: 116 | AV157: 99 | AW157: 207 | AX157: 267 | AY157: 13 | AZ157: 1 | BA157: 26 | BB157: 203 | BC157: 33 | BD157: 104 | BE157: 51 | BF157: 402 | BG157: 207 | BH157: 55 | BI157: 152 | BJ157: 98 | BK157: 20 | BL157: 0 | BM157: 92 | BN157: 15 | BO157: 70 | BP157: 87 | BQ157: 36 | BR157: 64 | BS157: 496 | BT157: 42 | BU157: 111 | BV157: 134
A158: BAS_RHIN | B158: STRASBOURG | C158: STRASBOURG ESPLANADE | D158: 25 | E158: BPne | F158: 415 | G158: 0 | H158: 0 | I158: 415 | J158: 415 | K158: 0 | L158: 0 | M158: 55 | N158: 2 | O158: 10 | P158: 46.62650602 | Q158: 11938.63304 | R158: 4954532.71 | S158: 1770276.84 | T158: 324 | U158: 157 | V158: 44 | W158: 87 | X158: 51 | Y158: 362 | Z158: 80 | AA158: 61 | AB158: 43 | AC158: 0 | AD158: 0 | AE158: 378 | AF158: 330 | AG158: 59 | AH158: 4 | AI158: 7 | AJ158: 2 | AK158: 30 | AL158: 27 | AM158: 293 | AN158: 0 | AO158: 0 | AP158: 6 | AQ158: 9 | AR158: 1 | AS158: 2 | AT158: 48 | AU158: 43 | AV158: 10 | AW158: 47 | AX158: 20 | AY158: 0 | AZ158: 0 | BA158: 2 | BB158: 20 | BC158: 2 | BD158: 19 | BE158: 3 | BF158: 131 | BG158: 15 | BH158: 4 | BI158: 36 | BJ158: 9 | BK158: 2 | BL158: 1 | BM158: 12 | BN158: 2 | BO158: 32 | BP158: 26 | BQ158: 12 | BR158: 21 | BS158: 289 | BT158: 8 | BU158: 89 | BV158: 88
A159: BAS_RHIN | B159: STRASBOURG | C159: STRASBOURG ESPLANADE | D159: 25 | E159: De | F159: 424 | G159: 0 | H159: 0 | I159: 424 | J159: 424 | K159: 0 | L159: 0 | M159: 15 | N159: 1 | O159: 15 | P159: 62.38679245 | Q159: 71712.90144 | R159: 30406270.21 | S159: 1732131.71 | T159: 93 | U159: 380 | V159: 343 | W159: 49 | X159: 78 | Y159: 166 | Z159: 32 | AA159: 25 | AB159: 14 | AC159: 0 | AD159: 0 | AE159: 156 | AF159: 123 | AG159: 26 | AH159: 3 | AI159: 2 | AJ159: 1 | AK159: 9 | AL159: 20 | AM159: 373 | AN159: 0 | AO159: 0 | AP159: 21 | AQ159: 32 | AR159: 6 | AS159: 14 | AT159: 124 | AU159: 90 | AV159: 50 | AW159: 65 | AX159: 150 | AY159: 3 | AZ159: 2 | BA159: 6 | BB159: 172 | BC159: 15 | BD159: 47 | BE159: 58 | BF159: 237 | BG159: 165 | BH159: 4 | BI159: 48 | BJ159: 17 | BK159: 5 | BL159: 0 | BM159: 8 | BN159: 11 | BO159: 15 | BP159: 18 | BQ159: 6 | BR159: 7 | BS159: 136 | BT159: 14 | BU159: 28 | BV159: 47
A160: BAS_RHIN | B160: STRASBOURG | C160: STRASBOURG ESPLANADE | D160: 25 | E160: Dne | F160: 1018 | G160: 0 | H160: 0 | I160: 1018 | J160: 1018 | K160: 0 | L160: 0 | M160: 67 | N160: 20 | O160: 77 | P160: 54.24165029 | Q160: 9123.166847 | R160: 9287383.85 | S160: 1001823.24 | T160: 58 | U160: 441 | V160: 102 | W160: 49 | X160: 17 | Y160: 193 | Z160: 11 | AA160: 18 | AB160: 10 | AC160: 0 | AD160: 0 | AE160: 177 | AF160: 132 | AG160: 35 | AH160: 6 | AJ160: 2 | AK160: 3 | AL160: 18 | AM160: 655 | AN160: 0 | AO160: 0 | AP160: 24 | AQ160: 18 | AR160: 4 | AS160: 7 | AT160: 68 | AU160: 42 | AV160: 15 | AW160: 17 | AX160: 22 | AY160: 0 | AZ160: 0 | BA160: 4 | BB160: 49 | BC160: 6 | BD160: 20 | BE160: 11 | BF160: 227 | BG160: 25 | BH160: 0 | BI160: 9 | BJ160: 3 | BK160: 2 | BL160: 1 | BM160: 8 | BN160: 2 | BO160: 15 | BP160: 8 | BQ160: 4 | BR160: 11 | BS160: 233 | BT160: 4 | BU160: 35 | BV160: 44
A161: BAS_RHIN | B161: STRASBOURG | C161: STRASBOURG ESPLANADE | D161: 25 | E161: Ee | F161: 205 | G161: 36 | H161: 66 | I161: 66 | J161: 0 | K161: 66 | L161: 0 | M161: 0 | N161: 5 | O161: 6 | P161: 8.658536585 | Q161: 7496.320098 | R161: 1536745.62 | S161: 0 | T161: 3 | U161: 112 | V161: 126 | W161: 0 | X161: 0 | Y161: 6 | Z161: 0 | AA161: 0 | AC161: 1 | AD161: 1 | AE161: 5 | AF161: 5 | AG161: 0 | AK161: 0 | AL161: 0 | AM161: 172 | AN161: 3 | AO161: 25 | AP161: 0 | AQ161: 0 | AR161: 0 | AS161: 2 | AT161: 0 | AU161: 0 | AV161: 3 | AW161: 98 | AX161: 51 | AY161: 0 | AZ161: 0 | BA161: 0 | BB161: 56 | BC161: 3 | BD161: 0 | BE161: 0 | BF161: 23 | BG161: 17 | BH161: 0 | BI161: 0 | BJ161: 0 | BK161: 0 | BL161: 0 | BM161: 0 | BN161: 0 | BP161: 0 | BQ161: 0 | BR161: 0 | BS161: 33 | BT161: 0 | BU161: 4 | BV161: 0
A162: BAS_RHIN | B162: STRASBOURG | C162: STRASBOURG ESPLANADE | D162: 25 | E162: Ene | F162: 151 | G162: 58 | H162: 47 | I162: 47 | J162: 0 | K162: 47 | L162: 0 | M162: 0 | N162: 10 | O162: 6 | P162: 9.344370861 | Q162: 1848.681457 | R162: 279150.9 | S162: 0 | T162: 0 | U162: 0 | V162: 0 | W162: 0 | X162: 0 | Y162: 5 | Z162: 0 | AA162: 0 | AC162: 1 | AD162: 0 | AE162: 5 | AF162: 5 | AG162: 0 | AK162: 0 | AL162: 0 | AM162: 141 | AN162: 2 | AO162: 2 | AP162: 0 | AQ162: 1 | AR162: 0 | AS162: 0 | AT162: 0 | AU162: 0 | AV162: 0 | AW162: 21 | AX162: 0 | AY162: 0 | AZ162: 0 | BA162: 0 | BB162: 0 | BC162: 0 | BD162: 0 | BE162: 0 | BF162: 9 | BG162: 2 | BH162: 0 | BI162: 0 | BJ162: 0 | BK162: 0 | BL162: 0 | BM162: 0 | BN162: 0 | BP162: 0 | BQ162: 0 | BR162: 0 | BS162: 15 | BT162: 0 | BU162: 2 | BV162: 0
A163: BAS_RHIN | B163: STRASBOURG | C163: STRASBOURG ESPLANADE | D163: 25 | E163: I | F163: 624 | G163: 0 | H163: 0 | I163: 624 | J163: 624 | K163: 0 | L163: 0 | M163: 36 | N163: 3 | O163: 103 | P163: 48.91987179 | Q163: 15.00684295 | R163: 9364.27 | S163: 0 | T163: 0 | U163: 11 | V163: 0 | W163: 0 | X163: 16 | Y163: 1 | AC163: 0 | AD163: 0 | AG163: 0 | AK163: 0 | AL163: 0 | AM163: 314 | AN163: 0 | AO163: 0 | AP163: 2 | AQ163: 0 | AR163: 0 | AS163: 1 | AT163: 4 | AU163: 1 | AV163: 0 | AW163: 0 | AX163: 0 | AY163: 0 | AZ163: 0 | BA163: 0 | BB163: 0 | BC163: 0 | BD163: 0 | BE163: 0 | BF163: 7 | BG163: 0 | BH163: 1 | BI163: 5 | BJ163: 4 | BK163: 5 | BL163: 0 | BM163: 2 | BN163: 1 | BO163: 3 | BP163: 3 | BQ163: 2 | BR163: 0 | BS163: 6 | BT163: 0 | BU163: 0 | BV163: 0
A164: BAS_RHIN | B164: STRASBOURG | C164: STRASBOURG ESPLANADE | D164: 25 | E164: JBPe | F164: 215 | G164: 0 | H164: 215 | I164: 215 | J164: 212 | K164: 3 | L164: 215 | M164: 212 | N164: 14 | O164: 8 | P164: 21.95348837 | Q164: 7152.91614 | R164: 1537876.97 | S164: 289911.41 | T164: 207 | U164: 161 | V164: 73 | W164: 67 | X164: 49 | Y164: 213 | Z164: 16 | AA164: 31 | AB164: 7 | AC164: 0 | AD164: 0 | AE164: 214 | AF164: 209 | AG164: 62 | AH164: 26 | AI164: 18 | AK164: 5 | AL164: 4 | AM164: 168 | AN164: 0 | AO164: 183 | AP164: 2 | AQ164: 0 | AR164: 0 | AS164: 2 | AT164: 17 | AU164: 4 | AV164: 4 | AW164: 61 | AX164: 26 | AY164: 0 | AZ164: 0 | BA164: 0 | BB164: 23 | BC164: 0 | BD164: 3 | BE164: 1 | BF164: 71 | BG164: 39 | BH164: 4 | BI164: 29 | BJ164: 12 | BK164: 3 | BL164: 0 | BM164: 14 | BN164: 0 | BO164: 31 | BP164: 18 | BQ164: 14 | BR164: 28 | BS164: 198 | BT164: 1 | BU164: 172 | BV164: 121
A165: BAS_RHIN | B165: STRASBOURG | C165: STRASBOURG ESPLANADE | D165: 25 | E165: JBPne | F165: 92 | G165: 0 | H165: 92 | I165: 92 | J165: 89 | K165: 3 | L165: 92 | M165: 89 | N165: 13 | O165: 17 | P165: 21.5326087 | Q165: 1304.513152 | R165: 120015.21 | S165: 0 | T165: 60 | U165: 5 | V165: 2 | W165: 5 | X165: 3 | Y165: 89 | Z165: 3 | AA165: 4 | AB165: 2 | AC165: 0 | AD165: 0 | AE165: 90 | AF165: 88 | AG165: 5 | AH165: 1 | AI165: 2 | AK165: 0 | AL165: 0 | AM165: 37 | AN165: 0 | AO165: 49 | AP165: 0 | AQ165: 0 | AR165: 0 | AS165: 1 | AT165: 1 | AU165: 0 | AV165: 0 | AW165: 3 | AX165: 1 | AY165: 0 | AZ165: 0 | BA165: 0 | BB165: 0 | BC165: 0 | BD165: 0 | BE165: 0 | BF165: 8 | BG165: 1 | BH165: 0 | BI165: 3 | BJ165: 0 | BK165: 0 | BL165: 0 | BM165: 0 | BN165: 0 | BO165: 7 | BP165: 1 | BQ165: 1 | BR165: 11 | BS165: 79 | BT165: 0 | BU165: 67 | BV165: 40
A166: BAS_RHIN | B166: STRASBOURG | C166: STRASBOURG ESPLANADE | D166: 25 | E166: JDe | F166: 20 | G166: 0 | H166: 20 | I166: 20 | J166: 13 | K166: 7 | L166: 20 | M166: 13 | O166: 1 | P166: 19.2 | Q166: 21436.3335 | R166: 428726.67 | S166: 0 | T166: 2 | U166: 19 | V166: 18 | W166: 1 | X166: 1 | Y166: 4 | Z166: 0 | AA166: 0 | AC166: 0 | AD166: 0 | AE166: 4 | AF166: 4 | AG166: 1 | AK166: 0 | AL166: 0 | AM166: 17 | AN166: 0 | AO166: 9 | AP166: 0 | AQ166: 0 | AR166: 0 | AS166: 0 | AT166: 1 | AU166: 0 | AV166: 0 | AW166: 7 | AX166: 10 | AY166: 0 | AZ166: 0 | BA166: 0 | BB166: 6 | BC166: 0 | BD166: 0 | BE166: 0 | BF166: 8 | BG166: 6 | BH166: 0 | BI166: 1 | BJ166: 0 | BK166: 0 | BL166: 0 | BM166: 0 | BN166: 0 | BP166: 0 | BQ166: 1 | BR166: 1 | BS166: 5 | BT166: 0 | BU166: 3 | BV166: 1
A167: BAS_RHIN | B167: STRASBOURG | C167: STRASBOURG ESPLANADE | D167: 25 | E167: JDne | F167: 191 | G167: 0 | H167: 191 | I167: 191 | J167: 148 | K167: 43 | L167: 191 | M167: 148 | N167: 13 | O167: 16 | P167: 20.30366492 | Q167: 1859.612618 | R167: 355186.01 | S167: 0 | T167: 3 | U167: 76 | V167: 12 | W167: 5 | X167: 2 | Y167: 45 | Z167: 0 | AA167: 0 | AB167: 1 | AC167: 0 | AD167: 0 | AE167: 47 | AF167: 45 | AG167: 5 | AH167: 2 | AI167: 1 | AK167: 0 | AL167: 0 | AM167: 119 | AN167: 0 | AO167: 69 | AP167: 0 | AQ167: 0 | AR167: 0 | AS167: 1 | AT167: 2 | AU167: 0 | AV167: 0 | AW167: 25 | AX167: 1 | AY167: 0 | AZ167: 0 | BA167: 0 | BB167: 9 | BC167: 1 | BD167: 0 | BE167: 0 | BF167: 18 | BG167: 3 | BH167: 0 | BI167: 2 | BJ167: 0 | BK167: 0 | BL167: 0 | BM167: 0 | BN167: 0 | BO167: 4 | BP167: 0 | BQ167: 0 | BR167: 3 | BS167: 51 | BT167: 0 | BU167: 32 | BV167: 15
A168: BAS_RHIN | B168: STRASBOURG | C168: STRASBOURG DANUBE | D168: 26 | E168: BPe | F168: 353 | G168: 0 | H168: 0 | I168: 353 | J168: 353 | K168: 0 | L168: 0 | M168: 24 | N168: 8 | O168: 4 | P168: 44.05949008 | Q168: 38371.98643 | R168: 13545311.21 | S168: 16557053.57 | T168: 342 | U168: 299 | V168: 262 | W168: 226 | X168: 170 | Y168: 345 | Z168: 213 | AA168: 169 | AB168: 75 | AC168: 0 | AD168: 0 | AE168: 347 | AF168: 338 | AG168: 98 | AH168: 2 | AJ168: 17 | AK168: 60 | AL168: 145 | AM168: 309 | AN168: 0 | AO168: 0 | AP168: 14 | AQ168: 15 | AR168: 6 | AS168: 14 | AT168: 109 | AU168: 37 | AV168: 51 | AW168: 113 | AX168: 143 | AY168: 7 | AZ168: 0 | BA168: 12 | BB168: 108 | BC168: 16 | BD168: 61 | BE168: 20 | BF168: 184 | BG168: 122 | BH168: 36 | BI168: 90 | BJ168: 56 | BK168: 13 | BL168: 2 | BM168: 55 | BN168: 1 | BO168: 41 | BP168: 44 | BQ168: 21 | BR168: 61 | BS168: 301 | BT168: 16 | BU168: 48 | BV168: 107
A169: BAS_RHIN | B169: STRASBOURG | C169: STRASBOURG DANUBE | D169: 26 | E169: BPne | F169: 214 | G169: 0 | H169: 0 | I169: 214 | J169: 214 | K169: 0 | L169: 0 | M169: 18 | N169: 3 | O169: 7 | P169: 44.3271028 | Q169: 10995.31159 | R169: 2352996.68 | S169: 3421262.33 | T169: 167 | U169: 83 | V169: 23 | W169: 54 | X169: 13 | Y169: 188 | Z169: 66 | AA169: 52 | AB169: 28 | AC169: 0 | AD169: 0 | AE169: 198 | AF169: 191 | AG169: 21 | AH169: 1 | AJ169: 1 | AK169: 11 | AL169: 38 | AM169: 149 | AN169: 0 | AO169: 0 | AP169: 3 | AQ169: 5 | AR169: 0 | AS169: 3 | AT169: 31 | AU169: 13 | AV169: 7 | AW169: 15 | AX169: 13 | AY169: 0 | AZ169: 0 | BA169: 0 | BB169: 7 | BC169: 1 | BD169: 3 | BE169: 1 | BF169: 61 | BG169: 10 | BH169: 3 | BI169: 9 | BJ169: 4 | BK169: 0 | BL169: 1 | BM169: 3 | BN169: 0 | BO169: 16 | BP169: 9 | BQ169: 4 | BR169: 27 | BS169: 170 | BT169: 3 | BU169: 36 | BV169: 46
A170: BAS_RHIN | B170: STRASBOURG | C170: STRASBOURG DANUBE | D170: 26 | E170: De | F170: 282 | G170: 0 | H170: 0 | I170: 282 | J170: 282 | K170: 0 | L170: 0 | M170: 15 | N170: 5 | O170: 8 | P170: 55.59219858 | Q170: 46186.58436 | R170: 13024616.79 | S170: 3018019.88 | T170: 37 | U170: 241 | V170: 247 | W170: 50 | X170: 42 | Y170: 69 | Z170: 22 | AA170: 15 | AB170: 13 | AC170: 0 | AD170: 0 | AE170: 66 | AF170: 64 | AG170: 16 | AH170: 1 | AI170: 1 | AJ170: 3 | AK170: 3 | AL170: 36 | AM170: 239 | AN170: 0 | AO170: 0 | AP170: 3 | AQ170: 7 | AR170: 8 | AS170: 8 | AT170: 54 | AU170: 31 | AV170: 24 | AW170: 32 | AX170: 108 | AY170: 0 | AZ170: 0 | BA170: 7 | BB170: 104 | BC170: 8 | BD170: 28 | BE170: 28 | BF170: 156 | BG170: 129 | BH170: 2 | BI170: 23 | BJ170: 14 | BK170: 2 | BL170: 0 | BM170: 8 | BN170: 3 | BO170: 4 | BP170: 8 | BQ170: 0 | BR170: 10 | BS170: 129 | BT170: 1 | BU170: 7 | BV170: 62
A171: BAS_RHIN | B171: STRASBOURG | C171: STRASBOURG DANUBE | D171: 26 | E171: Dne | F171: 621 | G171: 0 | H171: 0 | I171: 621 | J171: 621 | K171: 0 | L171: 0 | M171: 31 | N171: 13 | O171: 47 | P171: 49.30273752 | Q171: 8790.393784 | R171: 5458834.54 | S171: 1633565.72 | T171: 13 | U171: 281 | V171: 92 | W171: 38 | X171: 17 | Y171: 61 | Z171: 9 | AA171: 7 | AB171: 7 | AC171: 0 | AD171: 0 | AE171: 63 | AF171: 58 | AG171: 14 | AH171: 2 | AK171: 3 | AL171: 23 | AM171: 370 | AN171: 0 | AO171: 0 | AP171: 13 | AQ171: 9 | AR171: 3 | AS171: 2 | AT171: 48 | AU171: 24 | AV171: 14 | AW171: 7 | AX171: 27 | AY171: 1 | AZ171: 0 | BA171: 6 | BB171: 41 | BC171: 2 | BD171: 15 | BE171: 9 | BF171: 111 | BG171: 28 | BH171: 1 | BI171: 6 | BJ171: 4 | BK171: 1 | BL171: 1 | BM171: 6 | BN171: 1 | BO171: 7 | BP171: 1 | BQ171: 0 | BR171: 5 | BS171: 240 | BT171: 1 | BU171: 16 | BV171: 93
A172: BAS_RHIN | B172: STRASBOURG | C172: STRASBOURG DANUBE | D172: 26 | E172: Ee | F172: 116 | G172: 10 | H172: 33 | I172: 33 | J172: 0 | K172: 33 | L172: 0 | M172: 0 | N172: 13 | O172: 5 | P172: 7.982758621 | Q172: 3615.556724 | R172: 419404.58 | S172: 0 | T172: 2 | U172: 81 | V172: 48 | W172: 0 | X172: 0 | Y172: 2 | Z172: 0 | AA172: 0 | AC172: 2 | AD172: 2 | AE172: 2 | AF172: 2 | AG172: 0 | AK172: 0 | AL172: 0 | AM172: 95 | AN172: 0 | AO172: 17 | AP172: 1 | AQ172: 0 | AR172: 0 | AS172: 0 | AT172: 0 | AU172: 0 | AV172: 1 | AW172: 49 | AX172: 14 | AY172: 0 | AZ172: 0 | BA172: 0 | BB172: 25 | BC172: 0 | BD172: 0 | BE172: 0 | BF172: 7 | BG172: 3 | BH172: 0 | BI172: 0 | BJ172: 0 | BK172: 0 | BL172: 0 | BM172: 0 | BN172: 0 | BP172: 0 | BQ172: 0 | BR172: 0 | BS172: 22 | BT172: 0 | BU172: 2 | BV172: 0
A173: BAS_RHIN | B173: STRASBOURG | C173: STRASBOURG DANUBE | D173: 26 | E173: Ene | F173: 81 | G173: 31 | H173: 34 | I173: 34 | J173: 0 | K173: 34 | L173: 0 | M173: 0 | N173: 2 | O173: 2 | P173: 10.02469136 | Q173: 728.5001235 | R173: 59008.51 | S173: 0 | T173: 0 | U173: 0 | V173: 0 | W173: 0 | X173: 0 | Y173: 0 | AC173: 0 | AD173: 0 | AG173: 0 | AK173: 0 | AL173: 0 | AM173: 67 | AN173: 0 | AO173: 1 | AP173: 0 | AQ173: 0 | AR173: 0 | AS173: 1 | AT173: 0 | AU173: 0 | AV173: 0 | AW173: 12 | AX173: 0 | AY173: 0 | AZ173: 0 | BA173: 0 | BB173: 0 | BC173: 0 | BD173: 0 | BE173: 0 | BF173: 3 | BG173: 1 | BH173: 0 | BI173: 0 | BJ173: 0 | BK173: 0 | BL173: 0 | BM173: 0 | BN173: 0 | BS173: 5
A174: BAS_RHIN | B174: STRASBOURG | C174: STRASBOURG DANUBE | D174: 26 | E174: I | F174: 216 | G174: 0 | H174: 0 | I174: 216 | J174: 216 | K174: 0 | L174: 0 | M174: 15 | N174: 3 | O174: 9 | P174: 43.25462963 | Q174: 22.04666667 | R174: 4762.08 | S174: 0 | T174: 0 | U174: 8 | V174: 0 | W174: 0 | X174: 6 | Y174: 0 | AC174: 0 | AD174: 0 | AG174: 0 | AK174: 0 | AL174: 0 | AM174: 146 | AN174: 0 | AO174: 0 | AP174: 1 | AQ174: 0 | AR174: 0 | AS174: 2 | AT174: 6 | AU174: 0 | AV174: 0 | AW174: 0 | AX174: 0 | AY174: 0 | AZ174: 0 | BA174: 0 | BB174: 0 | BC174: 0 | BD174: 0 | BE174: 0 | BF174: 3 | BG174: 0 | BH174: 1 | BI174: 2 | BJ174: 0 | BK174: 1 | BL174: 0 | BM174: 2 | BN174: 0 | BO174: 1 | BS174: 10
A175: BAS_RHIN | B175: STRASBOURG | C175: STRASBOURG DANUBE | D175: 26 | E175: JBPe | F175: 80 | G175: 0 | H175: 80 | I175: 80 | J175: 78 | K175: 2 | L175: 80 | M175: 78 | N175: 5 | O175: 2 | P175: 21.9875 | Q175: 11984.2515 | R175: 958740.12 | S175: 112207.32 | T175: 79 | U175: 64 | V175: 33 | W175: 22 | X175: 21 | Y175: 80 | Z175: 6 | AA175: 18 | AB175: 7 | AC175: 0 | AD175: 0 | AE175: 79 | AF175: 79 | AG175: 19 | AH175: 8 | AI175: 4 | AK175: 2 | AL175: 1 | AM175: 65 | AN175: 0 | AO175: 69 | AP175: 1 | AQ175: 0 | AR175: 0 | AS175: 3 | AT175: 5 | AU175: 0 | AV175: 2 | AW175: 15 | AX175: 23 | AY175: 2 | AZ175: 0 | BA175: 0 | BB175: 4 | BC175: 0 | BD175: 2 | BE175: 0 | BF175: 23 | BG175: 15 | BH175: 3 | BI175: 10 | BJ175: 3 | BK175: 0 | BL175: 0 | BM175: 11 | BN175: 0 | BO175: 9 | BP175: 1 | BQ175: 2 | BR175: 6 | BS175: 74 | BT175: 1 | BU175: 65 | BV175: 44
A176: BAS_RHIN | B176: STRASBOURG | C176: STRASBOURG DANUBE | D176: 26 | E176: JBPne | F176: 37 | G176: 0 | H176: 37 | I176: 37 | J176: 37 | K176: 0 | L176: 37 | M176: 37 | N176: 12 | O176: 4 | P176: 21.02702703 | Q176: 1035.891892 | R176: 38328 | S176: 0 | T176: 25 | U176: 3 | V176: 0 | W176: 1 | X176: 0 | Y176: 34 | Z176: 0 | AA176: 4 | AB176: 1 | AC176: 0 | AD176: 0 | AE176: 36 | AF176: 36 | AG176: 1 | AH176: 1 | AK176: 0 | AL176: 0 | AM176: 9 | AN176: 0 | AO176: 22 | AP176: 0 | AQ176: 0 | AR176: 0 | AS176: 0 | AT176: 1 | AU176: 0 | AV176: 0 | AW176: 0 | AX176: 0 | AY176: 0 | AZ176: 0 | BA176: 0 | BB176: 0 | BC176: 0 | BD176: 0 | BE176: 0 | BF176: 2 | BG176: 0 | BH176: 0 | BI176: 0 | BJ176: 0 | BK176: 0 | BL176: 0 | BM176: 0 | BN176: 0 | BO176: 9 | BP176: 0 | BQ176: 1 | BR176: 2 | BS176: 32 | BT176: 0 | BU176: 27 | BV176: 11
A177: BAS_RHIN | B177: STRASBOURG | C177: STRASBOURG DANUBE | D177: 26 | E177: JDe | F177: 16 | G177: 0 | H177: 16 | I177: 16 | J177: 9 | K177: 7 | L177: 16 | M177: 9 | N177: 1 | P177: 19.4375 | Q177: 11281.4725 | R177: 180503.56 | S177: 0 | T177: 0 | U177: 15 | V177: 16 | W177: 0 | X177: 1 | Y177: 3 | Z177: 0 | AA177: 1 | AC177: 0 | AD177: 0 | AE177: 2 | AF177: 2 | AG177: 0 | AK177: 0 | AL177: 0 | AM177: 13 | AN177: 0 | AO177: 12 | AP177: 0 | AQ177: 1 | AR177: 0 | AS177: 0 | AT177: 0 | AU177: 0 | AV177: 1 | AW177: 6 | AX177: 9 | AY177: 0 | AZ177: 0 | BA177: 0 | BB177: 5 | BC177: 0 | BD177: 0 | BE177: 0 | BF177: 4 | BG177: 4 | BH177: 0 | BI177: 0 | BJ177: 0 | BK177: 0 | BL177: 0 | BM177: 1 | BN177: 0 | BP177: 0 | BQ177: 0 | BR177: 0 | BS177: 7 | BT177: 0 | BU177: 1 | BV177: 1
A178: BAS_RHIN | B178: STRASBOURG | C178: STRASBOURG DANUBE | D178: 26 | E178: JDne | F178: 101 | G178: 0 | H178: 101 | I178: 101 | J178: 78 | K178: 23 | L178: 101 | M178: 78 | N178: 5 | O178: 11 | P178: 20.26732673 | Q178: 2964.618515 | R178: 299426.47 | S178: 150000.04 | T178: 0 | U178: 50 | V178: 7 | W178: 3 | X178: 0 | Y178: 14 | Z178: 1 | AA178: 1 | AB178: 1 | AC178: 0 | AD178: 0 | AE178: 14 | AF178: 14 | AG178: 2 | AH178: 1 | AK178: 0 | AL178: 1 | AM178: 75 | AN178: 0 | AO178: 41 | AP178: 0 | AQ178: 0 | AR178: 0 | AS178: 0 | AT178: 0 | AU178: 0 | AV178: 0 | AW178: 6 | AX178: 3 | AY178: 0 | AZ178: 0 | BA178: 0 | BB178: 2 | BC178: 0 | BD178: 1 | BE178: 0 | BF178: 8 | BG178: 2 | BH178: 0 | BI178: 0 | BJ178: 0 | BK178: 0 | BL178: 0 | BM178: 0 | BN178: 0 | BO178: 1 | BP178: 0 | BQ178: 0 | BR178: 1 | BS178: 23 | BT178: 0 | BU178: 14 | BV178: 6
A179: BAS_RHIN | B179: STRASBOURG | C179: SCHILTIGHEIM CENTRE | D179: 27 | E179: BPe | F179: 798 | G179: 0 | H179: 0 | I179: 798 | J179: 798 | K179: 0 | L179: 0 | M179: 40 | N179: 18 | O179: 4 | P179: 48.56766917 | Q179: 39325.40568 | R179: 31381673.73 | S179: 26567520.06 | T179: 775 | U179: 654 | V179: 502 | W179: 491 | X179: 414 | Y179: 785 | Z179: 461 | AA179: 302 | AB179: 148 | AC179: 0 | AD179: 0 | AE179: 780 | AF179: 772 | AG179: 251 | AH179: 4 | AI179: 10 | AJ179: 31 | AK179: 147 | AL179: 258 | AM179: 694 | AN179: 0 | AO179: 0 | AP179: 56 | AQ179: 30 | AR179: 8 | AS179: 7 | AT179: 265 | AU179: 122 | AV179: 87 | AW179: 296 | AX179: 271 | AY179: 13 | AZ179: 1 | BA179: 27 | BB179: 298 | BC179: 30 | BD179: 118 | BE179: 55 | BF179: 394 | BG179: 182 | BH179: 97 | BI179: 228 | BJ179: 140 | BK179: 28 | BL179: 0 | BM179: 168 | BN179: 38 | BO179: 79 | BP179: 135 | BQ179: 36 | BR179: 62 | BS179: 603 | BT179: 33 | BU179: 111 | BV179: 185
A180: BAS_RHIN | B180: STRASBOURG | C180: SCHILTIGHEIM CENTRE | D180: 27 | E180: BPne | F180: 565 | G180: 0 | H180: 0 | I180: 565 | J180: 565 | K180: 0 | L180: 0 | M180: 52 | N180: 15 | O180: 16 | P180: 47.5840708 | Q180: 12018.71011 | R180: 6790571.21 | S180: 3814777.14 | T180: 419 | U180: 214 | V180: 60 | W180: 112 | X180: 82 | Y180: 473 | Z180: 121 | AA180: 83 | AB180: 51 | AC180: 0 | AD180: 0 | AE180: 506 | AF180: 492 | AG180: 58 | AI180: 3 | AJ180: 3 | AK180: 26 | AL180: 55 | AM180: 403 | AN180: 0 | AO180: 0 | AP180: 8 | AQ180: 4 | AR180: 2 | AS180: 1 | AT180: 92 | AU180: 60 | AV180: 10 | AW180: 54 | AX180: 23 | AY180: 0 | AZ180: 0 | BA180: 4 | BB180: 32 | BC180: 4 | BD180: 18 | BE180: 11 | BF180: 191 | BG180: 26 | BH180: 11 | BI180: 45 | BJ180: 26 | BK180: 10 | BL180: 0 | BM180: 29 | BN180: 1 | BO180: 51 | BP180: 38 | BQ180: 14 | BR180: 41 | BS180: 368 | BT180: 1 | BU180: 72 | BV180: 114
A181: BAS_RHIN | B181: STRASBOURG | C181: SCHILTIGHEIM CENTRE | D181: 27 | E181: De | F181: 570 | G181: 0 | H181: 0 | I181: 570 | J181: 570 | K181: 0 | L181: 0 | M181: 11 | N181: 10 | O181: 18 | P181: 64.04385965 | Q181: 62619.42816 | R181: 35693074.05 | S181: 2399299.13 | T181: 108 | U181: 524 | V181: 466 | W181: 55 | X181: 88 | Y181: 188 | Z181: 41 | AA181: 26 | AB181: 8 | AC181: 0 | AD181: 0 | AE181: 180 | AF181: 151 | AG181: 23 | AH181: 5 | AI181: 1 | AJ181: 3 | AK181: 7 | AL181: 32 | AM181: 512 | AN181: 0 | AO181: 0 | AP181: 32 | AQ181: 49 | AR181: 6 | AS181: 3 | AT181: 145 | AU181: 105 | AV181: 25 | AW181: 75 | AX181: 157 | AY181: 4 | AZ181: 1 | BA181: 6 | BB181: 284 | BC181: 18 | BD181: 70 | BE181: 58 | BF181: 281 | BG181: 197 | BH181: 13 | BI181: 39 | BJ181: 20 | BK181: 7 | BL181: 0 | BM181: 17 | BN181: 12 | BO181: 9 | BP181: 15 | BQ181: 1 | BR181: 12 | BS181: 146 | BT181: 4 | BU181: 13 | BV181: 33
A182: BAS_RHIN | B182: STRASBOURG | C182: SCHILTIGHEIM CENTRE | D182: 27 | E182: Dne | F182: 1482 | G182: 0 | H182: 0 | I182: 1482 | J182: 1482 | K182: 0 | L182: 0 | M182: 60 | N182: 46 | O182: 93 | P182: 57.89068826 | Q182: 9058.357409 | R182: 13424485.68 | S182: 1956782.09 | T182: 48 | U182: 721 | V182: 162 | W182: 65 | X182: 19 | Y182: 179 | Z182: 17 | AA182: 15 | AB182: 10 | AC182: 0 | AD182: 0 | AE182: 187 | AF182: 148 | AG182: 35 | AI182: 1 | AJ182: 1 | AK182: 11 | AL182: 25 | AM182: 954 | AN182: 0 | AO182: 0 | AP182: 39 | AQ182: 29 | AR182: 3 | AS182: 5 | AT182: 116 | AU182: 84 | AV182: 14 | AW182: 36 | AX182: 24 | AY182: 0 | AZ182: 0 | BA182: 15 | BB182: 98 | BC182: 5 | BD182: 29 | BE182: 12 | BF182: 281 | BG182: 35 | BH182: 3 | BI182: 13 | BJ182: 5 | BK182: 1 | BL182: 0 | BM182: 5 | BN182: 1 | BO182: 18 | BP182: 15 | BQ182: 3 | BR182: 7 | BS182: 228 | BT182: 1 | BU182: 28 | BV182: 48
A183: BAS_RHIN | B183: STRASBOURG | C183: SCHILTIGHEIM CENTRE | D183: 27 | E183: Ee | F183: 270 | G183: 31 | H183: 69 | I183: 69 | J183: 0 | K183: 69 | L183: 0 | M183: 0 | N183: 20 | O183: 9 | P183: 7.903703704 | Q183: 3986.600667 | R183: 1076382.18 | S183: 0 | T183: 7 | U183: 202 | V183: 112 | W183: 0 | X183: 0 | Y183: 4 | Z183: 0 | AA183: 0 | AC183: 5 | AD183: 4 | AE183: 6 | AF183: 4 | AG183: 0 | AK183: 0 | AL183: 0 | AM183: 242 | AN183: 6 | AO183: 41 | AP183: 6 | AQ183: 0 | AR183: 0 | AS183: 0 | AT183: 0 | AU183: 0 | AV183: 0 | AW183: 126 | AX183: 44 | AY183: 0 | AZ183: 0 | BA183: 0 | BB183: 44 | BC183: 1 | BD183: 0 | BE183: 0 | BF183: 23 | BG183: 13 | BH183: 0 | BI183: 0 | BJ183: 0 | BK183: 0 | BL183: 0 | BM183: 0 | BN183: 0 | BP183: 0 | BQ183: 0 | BR183: 0 | BS183: 27 | BT183: 0 | BU183: 2 | BV183: 0
A184: BAS_RHIN | B184: STRASBOURG | C184: SCHILTIGHEIM CENTRE | D184: 27 | E184: Ene | F184: 202 | G184: 77 | H184: 64 | I184: 64 | J184: 0 | K184: 64 | L184: 0 | M184: 0 | N184: 5 | O184: 4 | P184: 9.46039604 | Q184: 1115.199307 | R184: 225270.26 | S184: 0 | T184: 0 | U184: 0 | V184: 0 | W184: 0 | X184: 0 | Y184: 4 | Z184: 0 | AA184: 0 | AC184: 1 | AD184: 0 | AE184: 3 | AF184: 3 | AG184: 0 | AK184: 0 | AL184: 0 | AM184: 171 | AN184: 0 | AO184: 4 | AP184: 5 | AQ184: 0 | AR184: 0 | AS184: 1 | AT184: 0 | AU184: 0 | AV184: 0 | AW184: 29 | AX184: 0 | AY184: 0 | AZ184: 0 | BA184: 0 | BB184: 0 | BC184: 2 | BD184: 0 | BE184: 0 | BF184: 13 | BG184: 1 | BH184: 0 | BI184: 0 | BJ184: 0 | BK184: 0 | BL184: 0 | BM184: 0 | BN184: 0 | BP184: 0 | BQ184: 0 | BR184: 0 | BS184: 13 | BT184: 0 | BU184: 1 | BV184: 0
A185: BAS_RHIN | B185: STRASBOURG | C185: SCHILTIGHEIM CENTRE | D185: 27 | E185: I | F185: 1011 | G185: 0 | H185: 0 | I185: 1011 | J185: 1011 | K185: 0 | L185: 0 | M185: 72 | N185: 1 | O185: 176 | P185: 49.54599407 | Q185: 15.64488625 | R185: 15816.98 | S185: 0 | T185: 0 | U185: 23 | V185: 4 | W185: 0 | X185: 14 | Y185: 4 | Z185: 0 | AA185: 0 | AC185: 0 | AD185: 0 | AG185: 0 | AK185: 0 | AL185: 0 | AM185: 640 | AN185: 0 | AO185: 0 | AP185: 4 | AQ185: 2 | AR185: 0 | AS185: 0 | AT185: 13 | AU185: 1 | AV185: 0 | AW185: 0 | AX185: 0 | AY185: 0 | AZ185: 0 | BA185: 4 | BB185: 0 | BC185: 0 | BD185: 0 | BE185: 0 | BF185: 6 | BG185: 0 | BH185: 0 | BI185: 7 | BJ185: 2 | BK185: 3 | BL185: 0 | BM185: 2 | BN185: 1 | BO185: 1 | BP185: 4 | BQ185: 0 | BR185: 0 | BS185: 7 | BT185: 0 | BU185: 0 | BV185: 0
A186: BAS_RHIN | B186: STRASBOURG | C186: SCHILTIGHEIM CENTRE | D186: 27 | E186: JBPe | F186: 203 | G186: 0 | H186: 203 | I186: 203 | J186: 199 | K186: 4 | L186: 203 | M186: 199 | N186: 13 | O186: 3 | P186: 22.09359606 | Q186: 9401.637389 | R186: 1908532.39 | S186: 697747.41 | T186: 197 | U186: 157 | V186: 74 | W186: 61 | X186: 55 | Y186: 203 | Z186: 34 | AA186: 59 | AB186: 21 | AC186: 0 | AD186: 0 | AE186: 204 | AF186: 199 | AG186: 56 | AH186: 20 | AI186: 17 | AJ186: 1 | AK186: 12 | AL186: 7 | AM186: 168 | AN186: 0 | AO186: 171 | AP186: 2 | AQ186: 0 | AR186: 0 | AS186: 0 | AT186: 12 | AU186: 4 | AV186: 1 | AW186: 55 | AX186: 62 | AY186: 0 | AZ186: 0 | BA186: 0 | BB186: 15 | BC186: 2 | BD186: 3 | BE186: 0 | BF186: 28 | BG186: 13 | BH186: 12 | BI186: 23 | BJ186: 13 | BK186: 3 | BL186: 0 | BM186: 25 | BN186: 0 | BO186: 37 | BP186: 7 | BQ186: 30 | BR186: 20 | BS186: 179 | BT186: 4 | BU186: 147 | BV186: 103
A187: BAS_RHIN | B187: STRASBOURG | C187: SCHILTIGHEIM CENTRE | D187: 27 | E187: JBPne | F187: 55 | G187: 0 | H187: 55 | I187: 55 | J187: 53 | K187: 2 | L187: 55 | M187: 53 | N187: 7 | O187: 5 | P187: 21.63636364 | Q187: 907.0721818 | R187: 49888.97 | S187: 0 | T187: 37 | U187: 4 | V187: 1 | W187: 3 | X187: 1 | Y187: 50 | Z187: 0 | AA187: 2 | AB187: 3 | AC187: 0 | AD187: 0 | AE187: 50 | AF187: 49 | AG187: 3 | AH187: 3 | AI187: 1 | AK187: 0 | AL187: 0 | AM187: 24 | AN187: 0 | AO187: 36 | AP187: 0 | AQ187: 0 | AR187: 0 | AS187: 0 | AT187: 1 | AU187: 0 | AV187: 0 | AW187: 1 | AX187: 0 | AY187: 0 | AZ187: 0 | BA187: 0 | BB187: 1 | BC187: 0 | BD187: 0 | BE187: 0 | BF187: 5 | BG187: 0 | BH187: 0 | BI187: 0 | BJ187: 0 | BK187: 0 | BL187: 0 | BM187: 1 | BN187: 0 | BO187: 6 | BP187: 0 | BQ187: 4 | BR187: 5 | BS187: 45 | BT187: 0 | BU187: 37 | BV187: 20
A188: BAS_RHIN | B188: STRASBOURG | C188: SCHILTIGHEIM CENTRE | D188: 27 | E188: JDe | F188: 28 | G188: 0 | H188: 28 | I188: 28 | J188: 16 | K188: 12 | L188: 28 | M188: 16 | O188: 1 | P188: 19.28571429 | Q188: 19652.69714 | R188: 550275.52 | S188: 0 | T188: 3 | U188: 28 | V188: 24 | W188: 1 | X188: 0 | Y188: 8 | Z188: 0 | AA188: 0 | AC188: 0 | AD188: 0 | AE188: 10 | AF188: 8 | AG188: 1 | AI188: 1 | AK188: 0 | AL188: 0 | AM188: 28 | AN188: 0 | AO188: 22 | AP188: 2 | AQ188: 2 | AR188: 0 | AS188: 0 | AT188: 0 | AU188: 0 | AV188: 1 | AW188: 9 | AX188: 15 | AY188: 0 | AZ188: 0 | BA188: 0 | BB188: 8 | BC188: 0 | BD188: 0 | BE188: 0 | BF188: 8 | BG188: 6 | BH188: 0 | BI188: 0 | BJ188: 0 | BK188: 0 | BL188: 0 | BM188: 0 | BN188: 0 | BP188: 0 | BQ188: 0 | BR188: 0 | BS188: 9 | BT188: 0 | BU188: 7 | BV188: 2
A189: BAS_RHIN | B189: STRASBOURG | C189: SCHILTIGHEIM CENTRE | D189: 27 | E189: JDne | F189: 232 | G189: 0 | H189: 232 | I189: 232 | J189: 166 | K189: 66 | L189: 232 | M189: 166 | N189: 8 | O189: 26 | P189: 20.21551724 | Q189: 2261.961034 | R189: 524774.96 | S189: 0 | T189: 1 | U189: 85 | V189: 16 | W189: 6 | X189: 3 | Y189: 30 | Z189: 0 | AA189: 3 | AC189: 0 | AD189: 0 | AE189: 31 | AF189: 30 | AG189: 6 | AH189: 2 | AI189: 1 | AK189: 0 | AL189: 0 | AM189: 171 | AN189: 0 | AO189: 110 | AP189: 3 | AQ189: 0 | AR189: 0 | AS189: 1 | AT189: 2 | AU189: 1 | AV189: 1 | AW189: 12 | AX189: 7 | AY189: 0 | AZ189: 0 | BA189: 0 | BB189: 8 | BC189: 1 | BD189: 0 | BE189: 0 | BF189: 13 | BG189: 0 | BH189: 2 | BI189: 2 | BJ189: 0 | BK189: 0 | BL189: 0 | BM189: 0 | BN189: 0 | BO189: 2 | BP189: 0 | BQ189: 1 | BR189: 0 | BS189: 29 | BT189: 0 | BU189: 20 | BV189: 6
A190: BAS_RHIN | B190: STRASBOURG | C190: BISCHHEIM | D190: 28 | E190: BPe | F190: 835 | G190: 0 | H190: 0 | I190: 835 | J190: 835 | K190: 0 | L190: 0 | M190: 48 | N190: 6 | O190: 6 | P190: 50.98682635 | Q190: 39245.65692 | R190: 32770123.53 | S190: 17627378.7 | T190: 802 | U190: 704 | V190: 556 | W190: 494 | X190: 432 | Y190: 816 | Z190: 472 | AA190: 345 | AB190: 95 | AC190: 0 | AD190: 0 | AE190: 822 | AF190: 760 | AG190: 292 | AH190: 1 | AI190: 5 | AJ190: 25 | AK190: 180 | AL190: 204 | AM190: 778 | AN190: 0 | AO190: 0 | AP190: 19 | AQ190: 28 | AR190: 8 | AS190: 12 | AT190: 261 | AU190: 142 | AV190: 103 | AW190: 307 | AX190: 304 | AY190: 7 | AZ190: 0 | BA190: 26 | BB190: 320 | BC190: 24 | BD190: 138 | BE190: 74 | BF190: 461 | BG190: 204 | BH190: 101 | BI190: 223 | BJ190: 167 | BK190: 35 | BL190: 3 | BM190: 187 | BN190: 33 | BO190: 90 | BP190: 116 | BQ190: 42 | BR190: 71 | BS190: 559 | BT190: 29 | BU190: 166 | BV190: 214
A191: BAS_RHIN | B191: STRASBOURG | C191: BISCHHEIM | D191: 28 | E191: BPne | F191: 473 | G191: 0 | H191: 0 | I191: 473 | J191: 473 | K191: 0 | L191: 0 | M191: 35 | N191: 7 | O191: 21 | P191: 53.23255814 | Q191: 14184.5229 | R191: 6709279.33 | S191: 970236.09 | T191: 348 | U191: 219 | V191: 68 | W191: 71 | X191: 77 | Y191: 390 | Z191: 89 | AA191: 62 | AB191: 26 | AC191: 0 | AD191: 0 | AE191: 432 | AF191: 381 | AG191: 46 | AH191: 1 | AI191: 1 | AJ191: 2 | AK191: 22 | AL191: 24 | AM191: 365 | AN191: 0 | AO191: 0 | AP191: 2 | AQ191: 2 | AR191: 1 | AS191: 3 | AT191: 76 | AU191: 71 | AV191: 7 | AW191: 67 | AX191: 34 | AY191: 0 | AZ191: 0 | BA191: 2 | BB191: 44 | BC191: 1 | BD191: 23 | BE191: 10 | BF191: 181 | BG191: 34 | BH191: 8 | BI191: 41 | BJ191: 23 | BK191: 10 | BL191: 0 | BM191: 33 | BN191: 8 | BO191: 39 | BP191: 38 | BQ191: 12 | BR191: 34 | BS191: 260 | BT191: 2 | BU191: 85 | BV191: 93
A192: BAS_RHIN | B192: STRASBOURG | C192: BISCHHEIM | D192: 28 | E192: De | F192: 633 | G192: 0 | H192: 0 | I192: 633 | J192: 633 | K192: 0 | L192: 0 | M192: 13 | N192: 4 | O192: 22 | P192: 67.0300158 | Q192: 66910.28412 | R192: 42354209.85 | S192: 1419018.81 | T192: 122 | U192: 579 | V192: 519 | W192: 56 | X192: 108 | Y192: 206 | Z192: 28 | AA192: 18 | AB192: 9 | AC192: 0 | AD192: 0 | AE192: 211 | AF192: 169 | AG192: 31 | AH192: 2 | AJ192: 1 | AK192: 7 | AL192: 21 | AM192: 575 | AN192: 0 | AO192: 0 | AP192: 20 | AQ192: 37 | AR192: 15 | AS192: 15 | AT192: 170 | AU192: 137 | AV192: 57 | AW192: 79 | AX192: 224 | AY192: 0 | AZ192: 1 | BA192: 12 | BB192: 324 | BC192: 16 | BD192: 98 | BE192: 80 | BF192: 353 | BG192: 221 | BH192: 10 | BI192: 58 | BJ192: 20 | BK192: 13 | BL192: 0 | BM192: 25 | BN192: 15 | BO192: 12 | BP192: 32 | BQ192: 3 | BR192: 16 | BS192: 122 | BT192: 9 | BU192: 32 | BV192: 43
A193: BAS_RHIN | B193: STRASBOURG | C193: BISCHHEIM | D193: 28 | E193: Dne | F193: 1277 | G193: 0 | H193: 0 | I193: 1277 | J193: 1277 | K193: 0 | L193: 0 | M193: 59 | N193: 16 | O193: 74 | P193: 58.45497259 | Q193: 10019.25016 | R193: 12794582.45 | S193: 1312537.85 | T193: 33 | U193: 593 | V193: 178 | W193: 55 | X193: 25 | Y193: 144 | Z193: 7 | AA193: 7 | AB193: 1 | AC193: 0 | AD193: 0 | AE193: 134 | AF193: 95 | AG193: 31 | AH193: 4 | AI193: 1 | AK193: 4 | AL193: 25 | AM193: 812 | AN193: 0 | AO193: 0 | AP193: 15 | AQ193: 19 | AR193: 7 | AS193: 6 | AT193: 105 | AU193: 85 | AV193: 21 | AW193: 30 | AX193: 30 | AY193: 0 | AZ193: 0 | BA193: 12 | BB193: 99 | BC193: 2 | BD193: 30 | BE193: 28 | BF193: 262 | BG193: 37 | BH193: 3 | BI193: 9 | BJ193: 6 | BK193: 5 | BL193: 0 | BM193: 8 | BN193: 2 | BO193: 11 | BP193: 13 | BQ193: 3 | BR193: 14 | BS193: 137 | BT193: 1 | BU193: 16 | BV193: 34
A194: BAS_RHIN | B194: STRASBOURG | C194: BISCHHEIM | D194: 28 | E194: Ee | F194: 251 | G194: 26 | H194: 67 | I194: 67 | J194: 0 | K194: 67 | L194: 0 | M194: 0 | N194: 9 | O194: 11 | P194: 8.235059761 | Q194: 2957.83247 | R194: 742415.95 | S194: 0 | T194: 4 | U194: 178 | V194: 110 | W194: 0 | X194: 0 | Y194: 4 | Z194: 0 | AA194: 0 | AC194: 1 | AD194: 1 | AE194: 4 | AF194: 3 | AG194: 0 | AK194: 0 | AL194: 0 | AM194: 220 | AN194: 3 | AO194: 31 | AP194: 3 | AQ194: 0 | AR194: 0 | AS194: 2 | AT194: 0 | AU194: 0 | AV194: 3 | AW194: 110 | AX194: 21 | AY194: 0 | AZ194: 0 | BA194: 0 | BB194: 53 | BC194: 2 | BD194: 0 | BE194: 1 | BF194: 19 | BG194: 4 | BH194: 0 | BI194: 0 | BJ194: 0 | BK194: 0 | BL194: 0 | BM194: 0 | BN194: 0 | BP194: 0 | BQ194: 0 | BR194: 0 | BS194: 22 | BT194: 0 | BU194: 2 | BV194: 0
A195: BAS_RHIN | B195: STRASBOURG | C195: BISCHHEIM | D195: 28 | E195: Ene | F195: 171 | G195: 71 | H195: 78 | I195: 78 | J195: 0 | K195: 78 | L195: 0 | M195: 0 | N195: 8 | O195: 11 | P195: 10.64912281 | Q195: 903.4516374 | R195: 154490.23 | S195: 0 | T195: 0 | U195: 0 | V195: 0 | W195: 0 | X195: 0 | Y195: 1 | Z195: 0 | AA195: 0 | AC195: 0 | AD195: 0 | AE195: 1 | AF195: 1 | AG195: 0 | AK195: 0 | AL195: 0 | AM195: 150 | AN195: 0 | AO195: 7 | AP195: 1 | AQ195: 0 | AR195: 0 | AS195: 0 | AT195: 0 | AU195: 0 | AV195: 1 | AW195: 28 | AX195: 0 | AY195: 0 | AZ195: 0 | BA195: 0 | BB195: 0 | BC195: 0 | BD195: 0 | BE195: 1 | BF195: 12 | BG195: 0 | BH195: 0 | BI195: 0 | BJ195: 0 | BK195: 0 | BL195: 0 | BM195: 0 | BN195: 0 | BP195: 0 | BQ195: 0 | BR195: 0 | BS195: 17 | BT195: 0 | BU195: 1 | BV195: 0
A196: BAS_RHIN | B196: STRASBOURG | C196: BISCHHEIM | D196: 28 | E196: I | F196: 773 | G196: 0 | H196: 0 | I196: 773 | J196: 773 | K196: 0 | L196: 0 | M196: 59 | N196: 2 | O196: 167 | P196: 49.3454075 | Q196: 17.14194049 | R196: 13250.72 | S196: 0 | T196: 0 | U196: 23 | V196: 2 | W196: 0 | X196: 9 | Y196: 0 | Z196: 0 | AA196: 0 | AC196: 0 | AD196: 0 | AG196: 0 | AK196: 0 | AL196: 0 | AM196: 548 | AN196: 0 | AO196: 0 | AP196: 0 | AQ196: 0 | AR196: 0 | AS196: 0 | AT196: 11 | AU196: 0 | AV196: 0 | AW196: 0 | AX196: 0 | AY196: 0 | AZ196: 0 | BA196: 2 | BB196: 0 | BC196: 0 | BD196: 0 | BE196: 0 | BF196: 7 | BG196: 0 | BH196: 1 | BI196: 5 | BJ196: 2 | BK196: 1 | BL196: 0 | BM196: 0 | BN196: 0 | BO196: 4 | BP196: 5 | BQ196: 1 | BR196: 0 | BS196: 7 | BT196: 0 | BU196: 0 | BV196: 0
A197: BAS_RHIN | B197: STRASBOURG | C197: BISCHHEIM | D197: 28 | E197: JBPe | F197: 170 | G197: 0 | H197: 170 | I197: 170 | J197: 160 | K197: 10 | L197: 170 | M197: 160 | N197: 6 | O197: 4 | P197: 21.57647059 | Q197: 7795.567 | R197: 1325246.39 | S197: 664357.04 | T197: 167 | U197: 148 | V197: 56 | W197: 43 | X197: 53 | Y197: 170 | Z197: 28 | AA197: 40 | AB197: 4 | AC197: 0 | AD197: 0 | AE197: 169 | AF197: 168 | AG197: 37 | AH197: 11 | AI197: 16 | AJ197: 3 | AK197: 8 | AL197: 7 | AM197: 152 | AN197: 0 | AO197: 150 | AP197: 1 | AQ197: 0 | AR197: 0 | AS197: 0 | AT197: 5 | AU197: 5 | AV197: 3 | AW197: 58 | AX197: 36 | AY197: 0 | AZ197: 0 | BA197: 0 | BB197: 23 | BC197: 2 | BD197: 4 | BE197: 0 | BF197: 26 | BG197: 9 | BH197: 5 | BI197: 20 | BJ197: 12 | BK197: 4 | BL197: 0 | BM197: 26 | BN197: 0 | BO197: 32 | BP197: 7 | BQ197: 8 | BR197: 15 | BS197: 149 | BT197: 0 | BU197: 140 | BV197: 69
A198: BAS_RHIN | B198: STRASBOURG | C198: BISCHHEIM | D198: 28 | E198: JBPne | F198: 51 | G198: 0 | H198: 51 | I198: 51 | J198: 47 | K198: 4 | L198: 51 | M198: 47 | N198: 6 | O198: 4 | P198: 20.78431373 | Q198: 1770.905882 | R198: 90316.2 | S198: 0 | T198: 33 | U198: 12 | V198: 0 | W198: 0 | X198: 1 | Y198: 47 | Z198: 1 | AA198: 3 | AC198: 0 | AD198: 0 | AE198: 48 | AF198: 47 | AG198: 0 | AK198: 0 | AL198: 0 | AM198: 30 | AN198: 0 | AO198: 28 | AP198: 0 | AQ198: 0 | AR198: 0 | AS198: 0 | AT198: 2 | AU198: 0 | AV198: 1 | AW198: 7 | AX198: 0 | AY198: 0 | AZ198: 0 | BA198: 0 | BB198: 0 | BC198: 0 | BD198: 0 | BE198: 0 | BF198: 8 | BG198: 0 | BH198: 0 | BI198: 0 | BJ198: 0 | BK198: 1 | BL198: 0 | BM198: 0 | BN198: 0 | BO198: 8 | BP198: 1 | BQ198: 1 | BR198: 4 | BS198: 40 | BT198: 0 | BU198: 43 | BV198: 11
A199: BAS_RHIN | B199: STRASBOURG | C199: BISCHHEIM | D199: 28 | E199: JDe | F199: 28 | G199: 0 | H199: 28 | I199: 28 | J199: 17 | K199: 11 | L199: 28 | M199: 17 | O199: 2 | P199: 19.10714286 | Q199: 10678.44929 | R199: 298996.58 | S199: 0 | T199: 2 | U199: 28 | V199: 27 | W199: 0 | X199: 0 | Y199: 6 | Z199: 0 | AA199: 0 | AC199: 0 | AD199: 0 | AE199: 6 | AF199: 6 | AG199: 0 | AK199: 0 | AL199: 0 | AM199: 27 | AN199: 0 | AO199: 19 | AP199: 0 | AQ199: 0 | AR199: 0 | AS199: 0 | AT199: 0 | AU199: 0 | AV199: 1 | AW199: 6 | AX199: 16 | AY199: 0 | AZ199: 0 | BA199: 0 | BB199: 9 | BC199: 0 | BD199: 1 | BE199: 0 | BF199: 7 | BG199: 4 | BH199: 0 | BI199: 0 | BJ199: 0 | BK199: 0 | BL199: 0 | BM199: 0 | BN199: 0 | BP199: 0 | BQ199: 0 | BR199: 0 | BS199: 5 | BT199: 0 | BU199: 2 | BV199: 0
A200: BAS_RHIN | B200: STRASBOURG | C200: BISCHHEIM | D200: 28 | E200: JDne | F200: 250 | G200: 0 | H200: 250 | I200: 250 | J200: 168 | K200: 82 | L200: 250 | M200: 168 | N200: 4 | O200: 26 | P200: 19.9 | Q200: 1973.10916 | R200: 493277.29 | S200: 0 | T200: 1 | U200: 95 | V200: 20 | W200: 2 | X200: 0 | Y200: 18 | Z200: 0 | AA200: 0 | AC200: 0 | AD200: 0 | AE200: 17 | AF200: 16 | AG200: 2 | AI200: 1 | AK200: 0 | AL200: 0 | AM200: 191 | AN200: 0 | AO200: 107 | AP200: 0 | AQ200: 0 | AR200: 0 | AS200: 0 | AT200: 0 | AU200: 0 | AV200: 2 | AW200: 19 | AX200: 2 | AY200: 0 | AZ200: 0 | BA200: 0 | BB200: 17 | BC200: 0 | BD200: 0 | BE200: 0 | BF200: 23 | BG200: 1 | BH200: 0 | BI200: 0 | BJ200: 0 | BK200: 0 | BL200: 0 | BM200: 0 | BN200: 0 | BO200: 2 | BP200: 0 | BQ200: 0 | BR200: 0 | BS200: 18 | BT200: 0 | BU200: 10 | BV200: 1
... 925 more rows

Sheet Feuil3
A1: http://commerciaux.celca.caisse-epargne.fr/download/166/segmentation-activation/8760/segmentation_cegee.pdf

Sheet Infos segmentation

Sheet EDS
A1: eds pdv | B1: pdv | C1: eds pdv | D1: agence | E1: territoire | F1: région | I1: AUBE_HAUTE_MARNE | J1: BAS_RHIN | K1: HAUT_RHIN | L1: MARNE_ARDENNES | M1: MEURTHE_ET_MOSELLE_MEUSE | N1: MOSELLE | O1: VOSGES | P1: BANQUE_DIGITALE | Q1: CEGEE | R1: CHAUMONT | S1: TROYES | T1: HAGUENAU | U1: SELESTAT | V1: STRASBOURG | W1: COLMAR | X1: MULHOUSE | Y1: CHALONS_EN_CHAMPAGNE | Z1: CHARLEVILLE_MEZIERES | AA1: REIMS | AB1: NANCY | AC1: PONT_A_MOUSSON | AD1: VERDUN | AE1: METZ | AF1: MOSELLE_EST | AG1: MOSELLE_NORD | AH1: EPINAL | AI1: SAINT_DIE | AJ1: MON_AGENCE | AK1: MON_BANQUIER_EN_LIGNE | AL1: EXPERTS_DIRECT
A2: 10560 | B2: BOURBONNE LES BAINS | C2: 410560 | D2: BOURBONNE LES BAINS | E2: CHAUMONT | F2: AUBE_HAUTE_MARNE | I2: CHAUMONT | J2: HAGUENAU | K2: COLMAR | L2: CHALONS_EN_CHAMPAGNE | M2: NANCY | N2: METZ | O2: EPINAL | P2: MON_AGENCE | R2: BOURBONNE LES BAINS | S2: AIX EN OTHE | T2: BISCHWILLER | U2: BARR | V2: BISCHHEIM | W2: COLMAR MARAICHERS | X2: ALTKIRCH | Y2: CHALONS ROOSEVELT | Z2: CARIGNAN | AA2: AY CHAMPAGNE | AB2: BACCARAT | AC2: BRIEY | AD2: BAR LE DUC | AE2: ARS SUR MOSELLE | AF2: BEHREN LES FORBACH | AG2: AUDUN LE TICHE | AH2: CHANTRAINE | AI2: BRUYERES | AJ2: MON AGENCE | AK2: MON BANQUIER EN LIGNE | AL2: EXPERTS DIRECT
A3: 10558 | B3: CHALINDREY | C3: 510558 | D3: CHALINDREY | E3: CHAUMONT | F3: AUBE_HAUTE_MARNE | I3: TROYES | J3: SELESTAT | K3: MULHOUSE | L3: CHARLEVILLE_MEZIERES | M3: PONT_A_MOUSSON | N3: MOSELLE_EST | O3: SAINT_DIE | P3: MON_BANQUIER_EN_LIGNE | R3: CHALINDREY | S3: ARCIS SUR AUBE | T3: DRUSENHEIM | U3: BENFELD | V3: LA WANTZENAU | W3: COLMAR REPUBLIQUE | X3: FERRETTE | Y3: CHALONS VIVIERS | Z3: CHARLEVILLE JEAN JAURES | AA3: BETHENY | AB3: BAYON | AC3: CHALIGNY NEUVES MAISONS | AD3: COMMERCY | AE3: BOULAY | AF3: BITCHE | AG3: BOUSSE | AH3: CHARMES | AI3: CORNIMONT LA BRESSE
A4: 10539 | B4: CHATEAUVILLAIN | C4: 410539 | D4: CHATEAUVILLAIN | E4: CHAUMONT | F4: AUBE_HAUTE_MARNE | J4: STRASBOURG | L4: REIMS | M4: VERDUN | N4: MOSELLE_NORD | P4: EXPERTS_DIRECT | R4: CHATEAUVILLAIN | S4: BAR SUR AUBE | T4: HERRLISHEIM | U4: ERSTEIN | V4: VENDENHEIM | W4: COLMAR SAINTE MARIE | X4: BRUNSTATT | Y4: FAGNIERES LECLERC | Z4: CHARLEVILLE MEZIERES | AA4: DAMERY | AB4: BLAINVILLE | AC4: CHAMPIGNEULLES | AD4: ETAIN | AE4: CLOUANGE | AF4: CHATEAU SALINS | AG4: BOUZONVILLE | AH4: CHATENOIS VOSGES | AI4: FRAIZE
A5: 10566 | B5: CHAUMONT HOTEL DE VILLE | C5: 410566 | D5: CHAUMONT HOTEL DE VILLE | E5: CHAUMONT | F5: AUBE_HAUTE_MARNE | R5: CHAUMONT HOTEL DE VILLE | S5: BAR SUR SEINE | T5: BOUXWILLER | U5: FEGERSHEIM | V5: MUNDOLSHEIM | W5: ENSISHEIM | X5: CERNAY | Y5: MONTMIRAIL | Z5: CHARLEVILLE MOHON | AA5: DORMANS | AB5: BLAMONT | AC5: DIEULOUARD | AD5: LIGNY EN BARROIS | AE5: MAIZIERES LES METZ | AF5: CREUTZWALD | AG5: CATTENOM | AH5: DARNEY | AI5: GERARDMER
A6: 10590 | B6: CHAUMONT REPUBLIQUE | C6: 510590 | D6: CHAUMONT REPUBLIQUE | E6: CHAUMONT | F6: AUBE_HAUTE_MARNE | R6: CHAUMONT REPUBLIQUE | S6: BRIENNE LE CHATEAU | T6: BRUMATH | U6: ILLKIRCH CENTRE | V6: OBERHAUSBERGEN | W6: PULVERSHEIM | X6: SEPPOIS LE BAS | Y6: SUIPPES | Z6: CHARLEVILLE NEVERS | AA6: EPERNAY | AB6: DOMBASLE SUR MEURTHE | AC6: FROUARD | AD6: LONGUYON | AE6: MARANGE SILVANGE | AF6: DIEUZE | AG6: FAMECK | AH6: DOCELLES | AI6: LE THILLOT
A7: 51154 | B7: JOINVILLE | C7: 451154 | D7: JOINVILLE | E7: CHAUMONT | F7: AUBE_HAUTE_MARNE | R7: JOINVILLE | S7: LA CHAPELLE ST LUC | T7: HAGUENAU HOUBLON | U7: ILLKIRCH NORD | V7: REICHSTETT | W7: GUEBWILLER | X7: DANNEMARIE | Y7: MOURMELON LE GRAND | Z7: GIVET | AA7: FISMES | AB7: ESSEY LES NANCY | AC7: JARNY | AD7: LONGWY BAS | AE7: MARLY | AF7: FAULQUEMONT | AG7: FLORANGE | AH7: ELOYES | AI7: MOYENMOUTIER
A8: 10541 | B8: LANGRES | C8: 410541 | D8: LANGRES | E8: CHAUMONT | F8: AUBE_HAUTE_MARNE | R8: LANGRES | S8: NOGENT SUR SEINE | T8: HAGUENAU MUSAU | U8: LINGOLSHEIM | V8: SCHILTIGHEIM CENTRE | W8: HORBOURG WIHR | X8: ILLZACH | Y8: SAINTE MENEHOULD | Z8: MOUZON | AA8: PIERRY LECLERC | AB8: JARVILLE LA MALGRANGE | AC8: JOEUF | AD8: LONGWY HAUT | AE8: METZ CATHEDRALE | AF8: FORBACH CENTRALE | AG8: FONTOY | AH8: EPINAL ARISTIDE BRIAND | AI8: RAMBERVILLERS
A9: 10582 | B9: NOGENT | C9: 410582 | D9: NOGENT | E9: CHAUMONT | F9: AUBE_HAUTE_MARNE | R9: NOGENT | S9: ROMILLY SUR SEINE | T9: HOCHFELDEN | U9: MARCKOLSHEIM | V9: SCHILTIGHEIM KLEBER | W9: INGERSHEIM | X9: MASEVAUX | Y9: SARRY | Z9: RETHEL | AA9: REIMS CENTRE VILLE | AB9: LUNEVILLE CARNOT | AC9: LAXOU ARISTIDE BRIAND | AD9: MONTMEDY | AE9: METZ MOZART | AF9: GROSBLIEDERSTROFF | AG9: GUENANGE | AH9: EPINAL AVRINSART | AI9: RAON L ETAPE
A10: 51156 | B10: SAINT DIZIER CENTRE | C10: 451156 | D10: SAINT DIZIER CENTRE | E10: CHAUMONT | F10: AUBE_HAUTE_MARNE | R10: SAINT DIZIER CENTRE | S10: SAINT ANDRE LES VERGERS | T10: HOERDT | U10: MARLENHEIM | V10: STRASBOURG ANVERS | W10: KAYSERSBERG | X10: MULHOUSE DORNACH | Y10: SEZANNE | Z10: REVIN | AA10: REIMS CHATILLONS | AB10: NANCY ARTEM | AC10: LAXOU BOUFFLERS | AD10: REVIGNY SUR ORNAIN | AE10: METZ PLAPPEVILLE | AF10: MERLEBACH | AG10: HAGONDANGE | AH10: EPINAL LEOPOLD BOURG | AI10: SAINT DIE
A11: 51157 | B11: SAINT DIZIER EUROPE | C11: 551157 | D11: SAINT DIZIER EUROPE | E11: CHAUMONT | F11: AUBE_HAUTE_MARNE | R11: SAINT DIZIER EUROPE | S11: SAINT JULIEN LES VILLAS | T11: INGWILLER | U11: MOLSHEIM | V11: STRASBOURG AUSTERLITZ | W11: MUNSTER | X11: MULHOUSE REUNION | Y11: VERTUS | Z11: ROCROI | AA11: REIMS EUROPE | AB11: NANCY JEAN JAURES | AC11: LUDRES | AD11: SAINT MIHIEL | AE11: METZ POMPIDOU | AF11: MORHANGE | AG11: HAYANGE | AH11: GOLBEY | AI11: SAINT DIE CATHEDRALE
A12: 51151 | B12: WASSY | C12: 451151 | D12: WASSY | E12: CHAUMONT | F12: AUBE_HAUTE_MARNE | R12: WASSY | S12: SAINTE SAVINE | T12: WINGEN SUR MODER | U12: MUTZIG | V12: STRASBOURG CRONENBOURG | W12: MUNTZENHEIM | X12: MULHOUSE ROOSEVELT | Y12: VITRY LE FRANCOIS | Z12: SEDAN | AA12: REIMS HIPPODROME | AB12: NANCY PLACE DOMBASLE | AC12: NANCY PLATEAU DE HAYE | AD12: STENAY | AE12: METZ REPUBLIQUE | AF12: NEUNKIRCH | AG12: HETTANGE GRANDE | AH12: LE VAL D AJOL | AI12: SENONES
A13: 10583 | B13: AIX EN OTHE | C13: 410583 | D13: AIX EN OTHE | E13: TROYES | F13: AUBE_HAUTE_MARNE | S13: TROYES 1ER MAI | T13: NIEDERBRONN LES BAINS | U13: OBERNAI | V13: STRASBOURG DANUBE | W13: NEUF BRISACH | X13: PFASTATT | Z13: VILLERS SEMEUSE CORA | AA13: REIMS HOTEL DE VILLE | AB13: NANCY POINT CENTRAL | AC13: NANCY TROIS MAISONS | AD13: VAUCOULEURS | AE13: METZ SAINT LIVIER | AF13: PHALSBOURG | AG13: METZERVISSE | AH13: MIRECOURT | AI13: VAGNEY
A14: 10530 | B14: ARCIS SUR AUBE | C14: 510530 | D14: ARCIS SUR AUBE | E14: TROYES | F14: AUBE_HAUTE_MARNE | S14: TROYES BROSSOLETTE | T14: REICHSHOFFEN | U14: ROSHEIM | V14: STRASBOURG ESPLANADE | W14: ORBEY | X14: RIEDISHEIM | Z14: VOUZIERS | AA14: REIMS JEAN JAURES | AB14: NANCY SAINT SEBASTIEN | AC14: PAGNY SUR MOSELLE | AD14: VERDUN CENTRALE | AE14: METZ SAINT LOUIS | AF14: PUTTELANGE AUX LACS | AG14: NILVANGE | AH14: NEUFCHATEAU
A15: 10550 | B15: BAR SUR AUBE | C15: 410550 | D15: BAR SUR AUBE | E15: TROYES | F15: AUBE_HAUTE_MARNE | S15: TROYES CHARTREUX | T15: GUNDERSHOFFEN | U15: SCHIRMECK | V15: STRASBOURG FRANCS BOURGEOIS | W15: LAPOUTROIE | X15: RIXHEIM | AA15: REIMS SAINT MARCEAUX | AB15: SAINT MAX | AC15: PIENNES | AD15: VERDUN MAZEL | AE15: METZ SAINT MAXIMIN | AF15: SAINT AVOLD | AG15: SIERCK LES BAINS | AH15: NOMEXY
A16: 10556 | B16: BAR SUR SEINE | C16: 510556 | D16: BAR SUR SEINE | E16: TROYES | F16: AUBE_HAUTE_MARNE | S16: TROYES GAMBETTA | T16: PFAFFENHOFFEN | U16: SELESTAT CENTRE | V16: ESPACE MESANGE | W16: RIBEAUVILLE | X16: SAINT LOUIS | AA16: REIMS SAINT REMI | AB16: SAINT NICOLAS DE PORT | AC16: POMPEY | AD16: VILLERUPT | AE16: METZ SARRE | AF16: SARREBOURG | AG16: TERVILLE | AH16: REMIREMONT
A17: 10551 | B17: BRIENNE LE CHATEAU | C17: 410551 | D17: BRIENNE LE CHATEAU | E17: TROYES | F17: AUBE_HAUTE_MARNE | S17: TROYES ZOLA | T17: DIEMERINGEN | U17: CHATENOIS | V17: STRASBOURG HALLES | W17: ROUFFACH | X17: HUNINGUE | AA17: REIMS SAINT THOMAS | AB17: TOMBLAINE | AC17: PONT A MOUSSON BREUIL | AE17: MONTIGNY LES METZ | AF17: SARREGUEMINES | AG17: THIONVILLE CENTRALE | AH17: THAON LES VOSGES
A18: 10523 | B18: LA CHAPELLE ST LUC | C18: 510523 | D18: LA CHAPELLE ST LUC | E18: TROYES | F18: AUBE_HAUTE_MARNE | T18: SARRE UNION | U18: SELESTAT OUEST | V18: STRASBOURG GARE | W18: SOULTZMATT | X18: SIERENTZ | AA18: REIMS SAINTE ANNE | AB18: VANDOEUVRE LES NANCY | AC18: PONT A MOUSSON CENTRALE | AE18: MOULINS LES METZ | AF18: STIRING WENDEL | AG18: THIONVILLE COTE DES ROSES | AH18: VITTEL
A19: 10570 | B19: NOGENT SUR SEINE | C19: 510570 | D19: NOGENT SUR SEINE | E19: TROYES | F19: AUBE_HAUTE_MARNE | T19: SAVERNE | U19: VILLE | V19: ECKBOLSHEIM | W19: SAINTE MARIE AUX MINES | X19: THANN | AA19: TINQUEUX | AC19: TOUL | AE19: REMILLY | AF19: VALMONT | AG19: UCKANGE | AH19: XERTIGNY
A20: 10571 | B20: ROMILLY SUR SEINE | C20: 410571 | D20: ROMILLY SUR SEINE | E20: TROYES | F20: AUBE_HAUTE_MARNE | T20: MARMOUTIER | U20: WASSELONNE | V20: STRASBOURG KOENIGSHOFFEN | W20: LIEPVRE | X20: SAINT AMARIN | AA20: VERZY | AC20: VEZELISE | AE20: ROMBAS | AG20: YUTZ
A21: 10520 | B21: SAINT ANDRE LES VERGERS | C21: 510520 | D21: SAINT ANDRE LES VERGERS | E21: TROYES | F21: AUBE_HAUTE_MARNE | T21: SCHWEIGHOUSE SUR MODER | V21: STRASBOURG MEINAU | W21: SOULTZ | X21: WITTELSHEIM | AC21: VILLERS GENERAL LECLERC | AE21: SAINT JULIEN LES METZ
A22: 10524 | B22: SAINT JULIEN LES VILLAS | C22: 410524 | D22: SAINT JULIEN LES VILLAS | E22: TROYES | F22: AUBE_HAUTE_MARNE | T22: SOUFFLENHEIM | V22: STRASBOURG MONTAGNE VERTE | W22: WINTZENHEIM | X22: WITTENHEIM | AE22: SAINTE MARIE AUX CHENES
A23: 10521 | B23: SAINTE SAVINE | C23: 410521 | D23: SAINTE SAVINE | E23: TROYES | F23: AUBE_HAUTE_MARNE | T23: SOULTZ SOUS FORETS | V23: STRASBOURG NEUDORF | AE23: WOIPPY
A24: 10513 | B24: TROYES 1ER MAI | C24: 510513 | D24: TROYES 1ER MAI | E24: TROYES | F24: AUBE_HAUTE_MARNE | T24: TRUCHTERSHEIM | V24: STRASBOURG ROBERTSAU
A25: 10511 | B25: TROYES BROSSOLETTE | C25: 510511 | D25: TROYES BROSSOLETTE | E25: TROYES | F25: AUBE_HAUTE_MARNE | T25: WISSEMBOURG | V25: STRASBOURG STOCKFELD
A26: 10522 | B26: TROYES CHARTREUX | C26: 510522 | D26: TROYES CHARTREUX | E26: TROYES | F26: AUBE_HAUTE_MARNE | T26: BETSCHDORF | V26: STRASBOURG VOSGES
A27: 10510 | B27: TROYES GAMBETTA | C27: 410510 | D27: TROYES GAMBETTA | E27: TROYES | F27: AUBE_HAUTE_MARNE | T27: SELTZ
A28: 10512 | B28: TROYES ZOLA | C28: 410512 | D28: TROYES ZOLA | E28: TROYES | F28: AUBE_HAUTE_MARNE | T28: LAUTERBOURG
A29: 57 | B29: BISCHWILLER | C29: 4057 | D29: BISCHWILLER | E29: HAGUENAU | F29: BAS_RHIN | T29: WOERTH
A30: 58 | B30: DRUSENHEIM | C30: 4057 | D30: BISCHWILLER | E30: HAGUENAU | F30: BAS_RHIN
A31: 59 | B31: HERRLISHEIM | C31: 4057 | D31: BISCHWILLER | E31: HAGUENAU | F31: BAS_RHIN
A32: 82 | B32: BOUXWILLER | C32: 4082 | D32: BOUXWILLER | E32: HAGUENAU | F32: BAS_RHIN
A33: 30 | B33: BRUMATH | C33: 4030 | D33: BRUMATH | E33: HAGUENAU | F33: BAS_RHIN
A34: 65 | B34: WEITBRUCH | C34: 4030 | D34: BRUMATH | E34: HAGUENAU | F34: BAS_RHIN
A35: 60 | B35: HAGUENAU HOUBLON | C35: 4060 | D35: HAGUENAU HOUBLON | E35: HAGUENAU | F35: BAS_RHIN
A36: 64 | B36: HAGUENAU MUSAU | C36: 4064 | D36: HAGUENAU MUSAU | E36: HAGUENAU | F36: BAS_RHIN
A37: 92 | B37: HOCHFELDEN | C37: 4092 | D37: HOCHFELDEN | E37: HAGUENAU | F37: BAS_RHIN
A38: 41 | B38: HOERDT | C38: 4041 | D38: HOERDT | E38: HAGUENAU | F38: BAS_RHIN
A39: 85 | B39: INGWILLER | C39: 4085 | D39: INGWILLER | E39: HAGUENAU | F39: BAS_RHIN
A40: 86 | B40: WINGEN SUR MODER | C40: 4085 | D40: INGWILLER | E40: HAGUENAU | F40: BAS_RHIN
A41: 66 | B41: NIEDERBRONN LES BAINS | C41: 4066 | D41: NIEDERBRONN LES BAINS | E41: HAGUENAU | F41: BAS_RHIN
A42: 68 | B42: REICHSHOFFEN | C42: 4066 | D42: NIEDERBRONN LES BAINS | E42: HAGUENAU | F42: BAS_RHIN
A43: 70 | B43: GUNDERSHOFFEN | C43: 4066 | D43: NIEDERBRONN LES BAINS | E43: HAGUENAU | F43: BAS_RHIN
A44: 67 | B44: PFAFFENHOFFEN | C44: 4067 | D44: PFAFFENHOFFEN | E44: HAGUENAU | F44: BAS_RHIN
A45: 89 | B45: DIEMERINGEN | C45: 4095 | D45: SARRE UNION | E45: HAGUENAU | F45: BAS_RHIN
A46: 95 | B46: SARRE UNION | C46: 4095 | D46: SARRE UNION | E46: HAGUENAU | F46: BAS_RHIN
A47: 87 | B47: SAVERNE | C47: 4087 | D47: SAVERNE | E47: HAGUENAU | F47: BAS_RHIN
A48: 93 | B48: MARMOUTIER | C48: 4087 | D48: SAVERNE | E48: HAGUENAU | F48: BAS_RHIN
A49: 73 | B49: SCHWEIGHOUSE SUR MODER | C49: 4073 | D49: SCHWEIGHOUSE SUR MODER | E49: HAGUENAU | F49: BAS_RHIN
A50: 74 | B50: SOUFFLENHEIM | C50: 4074 | D50: SOUFFLENHEIM | E50: HAGUENAU | F50: BAS_RHIN
A51: 79 | B51: SOULTZ SOUS FORETS | C51: 4079 | D51: SOULTZ SOUS FORETS | E51: HAGUENAU | F51: BAS_RHIN
A52: 31 | B52: TRUCHTERSHEIM | C52: 4031 | D52: TRUCHTERSHEIM | E52: HAGUENAU | F52: BAS_RHIN
A53: 71 | B53: WISSEMBOURG | C53: 4071 | D53: WISSEMBOURG | E53: HAGUENAU | F53: BAS_RHIN
A54: 76 | B54: BETSCHDORF | C54: 4071 | D54: WISSEMBOURG | E54: HAGUENAU | F54: BAS_RHIN
A55: 77 | B55: SELTZ | C55: 4071 | D55: WISSEMBOURG | E55: HAGUENAU | F55: BAS_RHIN
A56: 78 | B56: LAUTERBOURG | C56: 4071 | D56: WISSEMBOURG | E56: HAGUENAU | F56: BAS_RHIN
A57: 80 | B57: WOERTH | C57: 4080 | D57: WOERTH | E57: HAGUENAU | F57: BAS_RHIN
A58: 113 | B58: BARR | C58: 4113 | D58: BARR | E58: SELESTAT | F58: BAS_RHIN
A59: 111 | B59: BENFELD | C59: 4111 | D59: BENFELD | E59: SELESTAT | F59: BAS_RHIN
A60: 104 | B60: ERSTEIN | C60: 4104 | D60: ERSTEIN | E60: SELESTAT | F60: BAS_RHIN
A61: 8 | B61: FEGERSHEIM | C61: 4008 | D61: FEGERSHEIM | E61: SELESTAT | F61: BAS_RHIN
A62: 7 | B62: ILLKIRCH CENTRE | C62: 4007 | D62: ILLKIRCH CENTRE | E62: SELESTAT | F62: BAS_RHIN
A63: 13 | B63: ILLKIRCH NORD | C63: 4007 | D63: ILLKIRCH CENTRE | E63: SELESTAT | F63: BAS_RHIN
A64: 14 | B64: OSTWALD | C64: 4015 | D64: LINGOLSHEIM | E64: SELESTAT | F64: BAS_RHIN
A65: 15 | B65: LINGOLSHEIM | C65: 4015 | D65: LINGOLSHEIM | E65: SELESTAT | F65: BAS_RHIN
A66: 109 | B66: MARCKOLSHEIM | C66: 4109 | D66: MARCKOLSHEIM | E66: SELESTAT | F66: BAS_RHIN
A67: 129 | B67: MARLENHEIM | C67: 4129 | D67: MARLENHEIM | E67: SELESTAT | F67: BAS_RHIN
A68: 116 | B68: MOLSHEIM | C68: 4116 | D68: MOLSHEIM | E68: SELESTAT | F68: BAS_RHIN
A69: 126 | B69: MUTZIG | C69: 4126 | D69: MUTZIG | E69: SELESTAT | F69: BAS_RHIN
A70: 119 | B70: OBERNAI | C70: 4119 | D70: OBERNAI | E70: SELESTAT | F70: BAS_RHIN
A71: 127 | B71: ROSHEIM | C71: 4127 | D71: ROSHEIM | E71: SELESTAT | F71: BAS_RHIN
A72: 121 | B72: SCHIRMECK | C72: 4121 | D72: SCHIRMECK | E72: SELESTAT | F72: BAS_RHIN
A73: 101 | B73: SELESTAT CENTRE | C73: 4101 | D73: SELESTAT CENTRE | E73: SELESTAT | F73: BAS_RHIN
A74: 108 | B74: CHATENOIS | C74: 4101 | D74: SELESTAT CENTRE | E74: SELESTAT | F74: BAS_RHIN
A75: 110 | B75: SELESTAT OUEST | C75: 4110 | D75: SELESTAT OUEST | E75: SELESTAT | F75: BAS_RHIN
A76: 107 | B76: VILLE | C76: 4107 | D76: VILLE | E76: SELESTAT | F76: BAS_RHIN
A77: 120 | B77: WASSELONNE | C77: 4120 | D77: WASSELONNE | E77: SELESTAT | F77: BAS_RHIN
A78: 28 | B78: BISCHHEIM | C78: 4028 | D78: BISCHHEIM | E78: STRASBOURG | F78: BAS_RHIN
A79: 33 | B79: LA WANTZENAU | C79: 4033 | D79: LA WANTZENAU | E79: STRASBOURG | F79: BAS_RHIN
A80: 34 | B80: VENDENHEIM | C80: 4037 | D80: MUNDOLSHEIM | E80: STRASBOURG | F80: BAS_RHIN
A81: 37 | B81: MUNDOLSHEIM | C81: 4037 | D81: MUNDOLSHEIM | E81: STRASBOURG | F81: BAS_RHIN
A82: 38 | B82: OBERHAUSBERGEN | C82: 4038 | D82: OBERHAUSBERGEN | E82: STRASBOURG | F82: BAS_RHIN
A83: 39 | B83: REICHSTETT | C83: 4039 | D83: REICHSTETT | E83: STRASBOURG | F83: BAS_RHIN
A84: 27 | B84: SCHILTIGHEIM CENTRE | C84: 4027 | D84: SCHILTIGHEIM CENTRE | E84: STRASBOURG | F84: BAS_RHIN
A85: 29 | B85: SCHILTIGHEIM KLEBER | C85: 4029 | D85: SCHILTIGHEIM KLEBER | E85: STRASBOURG | F85: BAS_RHIN
A86: 19 | B86: STRASBOURG ANVERS | C86: 4019 | D86: STRASBOURG ANVERS | E86: STRASBOURG | F86: BAS_RHIN
A87: 24 | B87: STRASBOURG AUSTERLITZ | C87: 4024 | D87: STRASBOURG AUSTERLITZ | E87: STRASBOURG | F87: BAS_RHIN
A88: 47 | B88: STRASBOURG CRONENBOURG | C88: 4047 | D88: STRASBOURG CRONENBOURG | E88: STRASBOURG | F88: BAS_RHIN
A89: 26 | B89: STRASBOURG DANUBE | C89: 4026 | D89: STRASBOURG DANUBE | E89: STRASBOURG | F89: BAS_RHIN
A90: 25 | B90: STRASBOURG ESPLANADE | C90: 4025 | D90: STRASBOURG ESPLANADE | E90: STRASBOURG | F90: BAS_RHIN
A91: 45 | B91: STRASBOURG FRANCS BOURGEOIS | C91: 4045 | D91: STRASBOURG FRANCS BOURGEOIS | E91: STRASBOURG | F91: BAS_RHIN
A92: 18 | B92: ESPACE MESANGE | C92: 4043 | D92: STRASBOURG HALLES | E92: STRASBOURG | F92: BAS_RHIN
A93: 43 | B93: STRASBOURG HALLES | C93: 4043 | D93: STRASBOURG HALLES | E93: STRASBOURG | F93: BAS_RHIN
A94: 50 | B94: STRASBOURG GARE | C94: 4043 | D94: STRASBOURG HALLES | E94: STRASBOURG | F94: BAS_RHIN
A95: 40 | B95: ECKBOLSHEIM | C95: 4048 | D95: STRASBOURG KOENIGSHOFFEN | E95: STRASBOURG | F95: BAS_RHIN
A96: 48 | B96: STRASBOURG KOENIGSHOFFEN | C96: 4048 | D96: STRASBOURG KOENIGSHOFFEN | E96: STRASBOURG | F96: BAS_RHIN
A97: 10 | B97: STRASBOURG MEINAU | C97: 4010 | D97: STRASBOURG MEINAU | E97: STRASBOURG | F97: BAS_RHIN
A98: 54 | B98: STRASBOURG MONTAGNE VERTE | C98: 4054 | D98: STRASBOURG MONTAGNE VERTE | E98: STRASBOURG | F98: BAS_RHIN
A99: 6 | B99: STRASBOURG NEUDORF | C99: 4006 | D99: STRASBOURG NEUDORF | E99: STRASBOURG | F99: BAS_RHIN
A100: 20 | B100: STRASBOURG ROBERTSAU | C100: 4020 | D100: STRASBOURG ROBERTSAU | E100: STRASBOURG | F100: BAS_RHIN
A101: 12 | B101: STRASBOURG STOCKFELD | C101: 4012 | D101: STRASBOURG STOCKFELD | E101: STRASBOURG | F101: BAS_RHIN
A102: 23 | B102: STRASBOURG VOSGES | C102: 4023 | D102: STRASBOURG VOSGES | E102: STRASBOURG | F102: BAS_RHIN
A103: 132 | B103: COLMAR MARAICHERS | C103: 4132 | D103: COLMAR MARAICHERS | E103: COLMAR | F103: HAUT_RHIN
A104: 130 | B104: COLMAR REPUBLIQUE | C104: 4130 | D104: COLMAR REPUBLIQUE | E104: COLMAR | F104: HAUT_RHIN
A105: 134 | B105: COLMAR SAINT JOSEPH | C105: 4134 | D105: COLMAR SAINT JOSEPH | E105: COLMAR | F105: HAUT_RHIN
A106: 135 | B106: COLMAR SAINTE MARIE | C106: 4135 | D106: COLMAR SAINTE MARIE | E106: COLMAR | F106: HAUT_RHIN
A107: 133 | B107: COLMAR VAUBAN | C107: 4133 | D107: COLMAR VAUBAN | E107: COLMAR | F107: HAUT_RHIN
A108: 162 | B108: ENSISHEIM | C108: 4162 | D108: ENSISHEIM | E108: COLMAR | F108: HAUT_RHIN
A109: 163 | B109: PULVERSHEIM | C109: 4162 | D109: ENSISHEIM | E109: COLMAR | F109: HAUT_RHIN
A110: 147 | B110: GUEBWILLER | C110: 4147 | D110: GUEBWILLER | E110: COLMAR | F110: HAUT_RHIN
A111: 141 | B111: HORBOURG WIHR | C111: 4141 | D111: HORBOURG WIHR | E111: COLMAR | F111: HAUT_RHIN
A112: 139 | B112: INGERSHEIM | C112: 4139 | D112: INGERSHEIM | E112: COLMAR | F112: HAUT_RHIN
A113: 152 | B113: KAYSERSBERG | C113: 4139 | D113: INGERSHEIM | E113: COLMAR | F113: HAUT_RHIN
A114: 143 | B114: MUNSTER | C114: 4143 | D114: MUNSTER | E114: COLMAR | F114: HAUT_RHIN
A115: 159 | B115: MUNTZENHEIM | C115: 4159 | D115: MUNTZENHEIM | E115: COLMAR | F115: HAUT_RHIN
A116: 157 | B116: NEUF BRISACH | C116: 4157 | D116: NEUF BRISACH | E116: COLMAR | F116: HAUT_RHIN
A117: 148 | B117: ORBEY | C117: 4148 | D117: ORBEY | E117: COLMAR | F117: HAUT_RHIN
A118: 154 | B118: LAPOUTROIE | C118: 4148 | D118: ORBEY | E118: COLMAR | F118: HAUT_RHIN
A119: 144 | B119: RIBEAUVILLE | C119: 4144 | D119: RIBEAUVILLE | E119: COLMAR | F119: HAUT_RHIN
A120: 153 | B120: ROUFFACH | C120: 4153 | D120: ROUFFACH | E120: COLMAR | F120: HAUT_RHIN
A121: 156 | B121: SOULTZMATT | C121: 4153 | D121: ROUFFACH | E121: COLMAR | F121: HAUT_RHIN
A122: 164 | B122: SAINTE MARIE AUX MINES | C122: 4164 | D122: SAINTE MARIE AUX MINES | E122: COLMAR | F122: HAUT_RHIN
A123: 167 | B123: LIEPVRE | C123: 4164 | D123: SAINTE MARIE AUX MINES | E123: COLMAR | F123: HAUT_RHIN
A124: 160 | B124: SOULTZ | C124: 4160 | D124: SOULTZ | E124: COLMAR | F124: HAUT_RHIN
A125: 140 | B125: WINTZENHEIM | C125: 4140 | D125: WINTZENHEIM | E125: COLMAR | F125: HAUT_RHIN
A126: 189 | B126: ALTKIRCH | C126: 4189 | D126: ALTKIRCH | E126: MULHOUSE | F126: HAUT_RHIN
A127: 191 | B127: FERRETTE | C127: 4189 | D127: ALTKIRCH | E127: MULHOUSE | F127: HAUT_RHIN
A128: 186 | B128: BRUNSTATT | C128: 4186 | D128: BRUNSTATT | E128: MULHOUSE | F128: HAUT_RHIN
A129: 195 | B129: CERNAY | C129: 4195 | D129: CERNAY | E129: MULHOUSE | F129: HAUT_RHIN
A130: 192 | B130: SEPPOIS LE BAS | C130: 4193 | D130: DANNEMARIE | E130: MULHOUSE | F130: HAUT_RHIN
A131: 193 | B131: DANNEMARIE | C131: 4193 | D131: DANNEMARIE | E131: MULHOUSE | F131: HAUT_RHIN
A132: 184 | B132: ILLZACH | C132: 4184 | D132: ILLZACH | E132: MULHOUSE | F132: HAUT_RHIN
A133: 196 | B133: MASEVAUX | C133: 4196 | D133: MASEVAUX | E133: MULHOUSE | F133: HAUT_RHIN
A134: 174 | B134: MULHOUSE DORNACH | C134: 4174 | D134: MULHOUSE DORNACH | E134: MULHOUSE | F134: HAUT_RHIN
A135: 170 | B135: MULHOUSE REUNION | C135: 4170 | D135: MULHOUSE REUNION | E135: MULHOUSE | F135: HAUT_RHIN
A136: 169 | B136: MULHOUSE ROOSEVELT | C136: 4169 | D136: MULHOUSE ROOSEVELT | E136: MULHOUSE | F136: HAUT_RHIN
A137: 188 | B137: PFASTATT | C137: 4188 | D137: PFASTATT | E137: MULHOUSE | F137: HAUT_RHIN
A138: 180 | B138: RIEDISHEIM | C138: 4180 | D138: RIEDISHEIM | E138: MULHOUSE | F138: HAUT_RHIN
A139: 185 | B139: RIXHEIM | C139: 4185 | D139: RIXHEIM | E139: MULHOUSE | F139: HAUT_RHIN
A140: 178 | B140: SAINT LOUIS | C140: 4178 | D140: SAINT LOUIS | E140: MULHOUSE | F140: HAUT_RHIN
A141: 187 | B141: HUNINGUE | C141: 4178 | D141: SAINT LOUIS | E141: MULHOUSE | F141: HAUT_RHIN
A142: 179 | B142: SIERENTZ | C142: 4179 | D142: SIERENTZ | E142: MULHOUSE | F142: HAUT_RHIN
A143: 194 | B143: THANN | C143: 4194 | D143: THANN | E143: MULHOUSE | F143: HAUT_RHIN
A144: 198 | B144: SAINT AMARIN | C144: 4194 | D144: THANN | E144: MULHOUSE | F144: HAUT_RHIN
A145: 181 | B145: WITTELSHEIM | C145: 4181 | D145: WITTELSHEIM | E145: MULHOUSE | F145: HAUT_RHIN
A146: 183 | B146: WITTENHEIM | C146: 4183 | D146: WITTENHEIM | E146: MULHOUSE | F146: HAUT_RHIN
A147: 51110 | B147: CHALONS ROOSEVELT | C147: 551110 | D147: CHALONS ROOSEVELT | E147: CHALONS_EN_CHAMPAGNE | F147: MARNE_ARDENNES
A148: 51101 | B148: CHALONS VIVIERS | C148: 451101 | D148: CHALONS VIVIERS | E148: CHALONS_EN_CHAMPAGNE | F148: MARNE_ARDENNES
A149: 51103 | B149: FAGNIERES LECLERC | C149: 551103 | D149: FAGNIERES LECLERC | E149: CHALONS_EN_CHAMPAGNE | F149: MARNE_ARDENNES
A150: 51330 | B150: MONTMIRAIL | C150: 551330 | D150: MONTMIRAIL | E150: CHALONS_EN_CHAMPAGNE | F150: MARNE_ARDENNES
A151: 51114 | B151: SUIPPES | C151: 451115 | D151: MOURMELON LE GRAND | E151: CHALONS_EN_CHAMPAGNE | F151: MARNE_ARDENNES
A152: 51115 | B152: MOURMELON LE GRAND | C152: 451115 | D152: MOURMELON LE GRAND | E152: CHALONS_EN_CHAMPAGNE | F152: MARNE_ARDENNES
A153: 51128 | B153: SAINTE MENEHOULD | C153: 551128 | D153: SAINTE MENEHOULD | E153: CHALONS_EN_CHAMPAGNE | F153: MARNE_ARDENNES
A154: 51120 | B154: SARRY | C154: 451120 | D154: SARRY | E154: CHALONS_EN_CHAMPAGNE | F154: MARNE_ARDENNES
A155: 51381 | B155: SEZANNE | C155: 451381 | D155: SEZANNE | E155: CHALONS_EN_CHAMPAGNE | F155: MARNE_ARDENNES
A156: 51354 | B156: VERTUS | C156: 551354 | D156: VERTUS | E156: CHALONS_EN_CHAMPAGNE | F156: MARNE_ARDENNES
A157: 51166 | B157: VITRY LE FRANCOIS | C157: 451166 | D157: VITRY LE FRANCOIS | E157: CHALONS_EN_CHAMPAGNE | F157: MARNE_ARDENNES
A158: 8815 | B158: CARIGNAN | C158: 508815 | D158: CARIGNAN | E158: CHARLEVILLE_MEZIERES | F158: MARNE_ARDENNES
A159: 8801 | B159: CHARLEVILLE JEAN JAURES | C159: 408801 | D159: CHARLEVILLE JEAN JAURES | E159: CHARLEVILLE_MEZIERES | F159: MARNE_ARDENNES
A160: 8822 | B160: CHARLEVILLE MEZIERES | C160: 408822 | D160: CHARLEVILLE MEZIERES | E160: CHARLEVILLE_MEZIERES | F160: MARNE_ARDENNES
A161: 8817 | B161: CHARLEVILLE MOHON | C161: 508817 | D161: CHARLEVILLE MOHON | E161: CHARLEVILLE_MEZIERES | F161: MARNE_ARDENNES
A162: 8802 | B162: CHARLEVILLE NEVERS | C162: 508802 | D162: CHARLEVILLE NEVERS | E162: CHARLEVILLE_MEZIERES | F162: MARNE_ARDENNES
A163: 8839 | B163: GIVET | C163: 508839 | D163: GIVET | E163: CHARLEVILLE_MEZIERES | F163: MARNE_ARDENNES
A164: 8819 | B164: MOUZON | C164: 508819 | D164: MOUZON | E164: CHARLEVILLE_MEZIERES | F164: MARNE_ARDENNES
A165: 8840 | B165: RETHEL | C165: 408840 | D165: RETHEL | E165: CHARLEVILLE_MEZIERES | F165: MARNE_ARDENNES
A166: 8862 | B166: REVIN | C166: 408862 | D166: REVIN | E166: CHARLEVILLE_MEZIERES | F166: MARNE_ARDENNES
A167: 8860 | B167: ROCROI | C167: 508860 | D167: ROCROI | E167: CHARLEVILLE_MEZIERES | F167: MARNE_ARDENNES
A168: 8806 | B168: SEDAN | C168: 408806 | D168: SEDAN | E168: CHARLEVILLE_MEZIERES | F168: MARNE_ARDENNES
A169: 8833 | B169: VILLERS SEMEUSE CORA | C169: 508833 | D169: VILLERS SEMEUSE CORA | E169: CHARLEVILLE_MEZIERES | F169: MARNE_ARDENNES
A170: 8820 | B170: VOUZIERS | C170: 508820 | D170: VOUZIERS | E170: CHARLEVILLE_MEZIERES | F170: MARNE_ARDENNES
A171: 8814 | B171: VRIGNE AUX BOIS | C171: 408814 | D171: VRIGNE AUX BOIS | E171: CHARLEVILLE_MEZIERES | F171: MARNE_ARDENNES
A172: 51367 | B172: AY CHAMPAGNE | C172: 551367 | D172: AY CHAMPAGNE | E172: REIMS | F172: MARNE_ARDENNES
A173: 51340 | B173: BETHENY | C173: 551340 | D173: BETHENY | E173: REIMS | F173: MARNE_ARDENNES
A174: 51369 | B174: DAMERY | C174: 551369 | D174: DAMERY | E174: REIMS | F174: MARNE_ARDENNES
A175: 51365 | B175: DORMANS | C175: 551365 | D175: DORMANS | E175: REIMS | F175: MARNE_ARDENNES
A176: 51370 | B176: EPERNAY | C176: 451370 | D176: EPERNAY | E176: REIMS | F176: MARNE_ARDENNES
A177: 51314 | B177: FISMES | C177: 551314 | D177: FISMES | E177: REIMS | F177: MARNE_ARDENNES
A178: 51361 | B178: PIERRY LECLERC | C178: 451361 | D178: PIERRY LECLERC | E178: REIMS | F178: MARNE_ARDENNES
A179: 51350 | B179: REIMS CENTRE VILLE | C179: 451350 | D179: REIMS CENTRE VILLE | E179: REIMS | F179: MARNE_ARDENNES
A180: 51310 | B180: REIMS CHATILLONS | C180: 551310 | D180: REIMS CHATILLONS | E180: REIMS | F180: MARNE_ARDENNES
A181: 51309 | B181: REIMS EUROPE | C181: 551309 | D181: REIMS EUROPE | E181: REIMS | F181: MARNE_ARDENNES
A182: 51305 | B182: REIMS HIPPODROME | C182: 551305 | D182: REIMS HIPPODROME | E182: REIMS | F182: MARNE_ARDENNES
A183: 51301 | B183: REIMS HOTEL DE VILLE | C183: 451301 | D183: REIMS HOTEL DE VILLE | E183: REIMS | F183: MARNE_ARDENNES
A184: 51341 | B184: REIMS JEAN JAURES | C184: 551341 | D184: REIMS JEAN JAURES | E184: REIMS | F184: MARNE_ARDENNES
A185: 51306 | B185: REIMS SAINT MARCEAUX | C185: 551306 | D185: REIMS SAINT MARCEAUX | E185: REIMS | F185: MARNE_ARDENNES
A186: 51349 | B186: REIMS SAINT REMI | C186: 551349 | D186: REIMS SAINT REMI | E186: REIMS | F186: MARNE_ARDENNES
A187: 51308 | B187: REIMS SAINT THOMAS | C187: 451308 | D187: REIMS SAINT THOMAS | E187: REIMS | F187: MARNE_ARDENNES
A188: 51307 | B188: REIMS SAINTE ANNE | C188: 551307 | D188: REIMS SAINTE ANNE | E188: REIMS | F188: MARNE_ARDENNES
A189: 51336 | B189: TINQUEUX | C189: 451336 | D189: TINQUEUX | E189: REIMS | F189: MARNE_ARDENNES
A190: 51318 | B190: VERZY | C190: 451318 | D190: VERZY | E190: REIMS | F190: MARNE_ARDENNES
A191: 54116 | B191: BACCARAT | C191: 554116 | D191: BACCARAT | E191: NANCY | F191: MEURTHE_ET_MOSELLE_MEUSE
A192: 54161 | B192: BAYON | C192: 454161 | D192: BAYON | E192: NANCY | F192: MEURTHE_ET_MOSELLE_MEUSE
A193: 54166 | B193: BLAINVILLE | C193: 554166 | D193: BLAINVILLE | E193: NANCY | F193: MEURTHE_ET_MOSELLE_MEUSE
A194: 54171 | B194: BLAMONT | C194: 454171 | D194: BLAMONT | E194: NANCY | F194: MEURTHE_ET_MOSELLE_MEUSE
A195: 54266 | B195: DOMBASLE SUR MEURTHE | C195: 554266 | D195: DOMBASLE SUR MEURTHE | E195: NANCY | F195: MEURTHE_ET_MOSELLE_MEUSE
A196: 54296 | B196: ESSEY LES NANCY | C196: 554296 | D196: ESSEY LES NANCY | E196: NANCY | F196: MEURTHE_ET_MOSELLE_MEUSE
A197: 54356 | B197: JARVILLE LA MALGRANGE | C197: 554356 | D197: JARVILLE LA MALGRANGE | E197: NANCY | F197: MEURTHE_ET_MOSELLE_MEUSE
A198: 54426 | B198: LUNEVILLE CARNOT | C198: 454426 | D198: LUNEVILLE CARNOT | E198: NANCY | F198: MEURTHE_ET_MOSELLE_MEUSE
A199: 54431 | B199: LUNEVILLE CHATEAU | C199: 554431 | D199: LUNEVILLE CHATEAU | E199: NANCY | F199: MEURTHE_ET_MOSELLE_MEUSE
A200: 54476 | B200: NANCY ARTEM | C200: 554476 | D200: NANCY ARTEM | E200: NANCY | F200: MEURTHE_ET_MOSELLE_MEUSE
... 138 more rows

Sheet EDS 2
A1: territoire | B1: territoire | C1: région | D1: région
A2: CHAUMONT | B2: CHAUMONT | C2: AUBE HAUTE MARNE | D2: AUBE_HAUTE_MARNE
A3: CHAUMONT | B3: CHAUMONT | C3: AUBE HAUTE MARNE | D3: AUBE_HAUTE_MARNE
A4: CHAUMONT | B4: CHAUMONT | C4: AUBE HAUTE MARNE | D4: AUBE_HAUTE_MARNE
A5: CHAUMONT | B5: CHAUMONT | C5: AUBE HAUTE MARNE | D5: AUBE_HAUTE_MARNE
A6: CHAUMONT | B6: CHAUMONT | C6: AUBE HAUTE MARNE | D6: AUBE_HAUTE_MARNE
A7: CHAUMONT | B7: CHAUMONT | C7: AUBE HAUTE MARNE | D7: AUBE_HAUTE_MARNE
A8: CHAUMONT | B8: CHAUMONT | C8: AUBE HAUTE MARNE | D8: AUBE_HAUTE_MARNE
A9: CHAUMONT | B9: CHAUMONT | C9: AUBE HAUTE MARNE | D9: AUBE_HAUTE_MARNE
A10: CHAUMONT | B10: CHAUMONT | C10: AUBE HAUTE MARNE | D10: AUBE_HAUTE_MARNE
A11: CHAUMONT | B11: CHAUMONT | C11: AUBE HAUTE MARNE | D11: AUBE_HAUTE_MARNE
A12: CHAUMONT | B12: CHAUMONT | C12: AUBE HAUTE MARNE | D12: AUBE_HAUTE_MARNE
A13: TROYES | B13: TROYES | C13: AUBE HAUTE MARNE | D13: AUBE_HAUTE_MARNE
A14: TROYES | B14: TROYES | C14: AUBE HAUTE MARNE | D14: AUBE_HAUTE_MARNE
A15: TROYES | B15: TROYES | C15: AUBE HAUTE MARNE | D15: AUBE_HAUTE_MARNE
A16: TROYES | B16: TROYES | C16: AUBE HAUTE MARNE | D16: AUBE_HAUTE_MARNE
A17: TROYES | B17: TROYES | C17: AUBE HAUTE MARNE | D17: AUBE_HAUTE_MARNE
A18: TROYES | B18: TROYES | C18: AUBE HAUTE MARNE | D18: AUBE_HAUTE_MARNE
A19: TROYES | B19: TROYES | C19: AUBE HAUTE MARNE | D19: AUBE_HAUTE_MARNE
A20: TROYES | B20: TROYES | C20: AUBE HAUTE MARNE | D20: AUBE_HAUTE_MARNE
A21: TROYES | B21: TROYES | C21: AUBE HAUTE MARNE | D21: AUBE_HAUTE_MARNE
A22: TROYES | B22: TROYES | C22: AUBE HAUTE MARNE | D22: AUBE_HAUTE_MARNE
A23: TROYES | B23: TROYES | C23: AUBE HAUTE MARNE | D23: AUBE_HAUTE_MARNE
A24: TROYES | B24: TROYES | C24: AUBE HAUTE MARNE | D24: AUBE_HAUTE_MARNE
A25: TROYES | B25: TROYES | C25: AUBE HAUTE MARNE | D25: AUBE_HAUTE_MARNE
A26: TROYES | B26: TROYES | C26: AUBE HAUTE MARNE | D26: AUBE_HAUTE_MARNE
A27: TROYES | B27: TROYES | C27: AUBE HAUTE MARNE | D27: AUBE_HAUTE_MARNE
A28: TROYES | B28: TROYES | C28: AUBE HAUTE MARNE | D28: AUBE_HAUTE_MARNE
A29: HAGUENAU | B29: HAGUENAU | C29: BAS RHIN | D29: BAS_RHIN
A30: HAGUENAU | B30: HAGUENAU | C30: BAS RHIN | D30: BAS_RHIN
A31: HAGUENAU | B31: HAGUENAU | C31: BAS RHIN | D31: BAS_RHIN
A32: HAGUENAU | B32: HAGUENAU | C32: BAS RHIN | D32: BAS_RHIN
A33: HAGUENAU | B33: HAGUENAU | C33: BAS RHIN | D33: BAS_RHIN
A34: HAGUENAU | B34: HAGUENAU | C34: BAS RHIN | D34: BAS_RHIN
A35: HAGUENAU | B35: HAGUENAU | C35: BAS RHIN | D35: BAS_RHIN
A36: HAGUENAU | B36: HAGUENAU | C36: BAS RHIN | D36: BAS_RHIN
A37: HAGUENAU | B37: HAGUENAU | C37: BAS RHIN | D37: BAS_RHIN
A38: HAGUENAU | B38: HAGUENAU | C38: BAS RHIN | D38: BAS_RHIN
A39: HAGUENAU | B39: HAGUENAU | C39: BAS RHIN | D39: BAS_RHIN
A40: HAGUENAU | B40: HAGUENAU | C40: BAS RHIN | D40: BAS_RHIN
A41: HAGUENAU | B41: HAGUENAU | C41: BAS RHIN | D41: BAS_RHIN
A42: HAGUENAU | B42: HAGUENAU | C42: BAS RHIN | D42: BAS_RHIN
A43: HAGUENAU | B43: HAGUENAU | C43: BAS RHIN | D43: BAS_RHIN
A44: HAGUENAU | B44: HAGUENAU | C44: BAS RHIN | D44: BAS_RHIN
A45: HAGUENAU | B45: HAGUENAU | C45: BAS RHIN | D45: BAS_RHIN
A46: HAGUENAU | B46: HAGUENAU | C46: BAS RHIN | D46: BAS_RHIN
A47: HAGUENAU | B47: HAGUENAU | C47: BAS RHIN | D47: BAS_RHIN
A48: HAGUENAU | B48: HAGUENAU | C48: BAS RHIN | D48: BAS_RHIN
A49: HAGUENAU | B49: HAGUENAU | C49: BAS RHIN | D49: BAS_RHIN
A50: HAGUENAU | B50: HAGUENAU | C50: BAS RHIN | D50: BAS_RHIN
A51: HAGUENAU | B51: HAGUENAU | C51: BAS RHIN | D51: BAS_RHIN
A52: HAGUENAU | B52: HAGUENAU | C52: BAS RHIN | D52: BAS_RHIN
A53: HAGUENAU | B53: HAGUENAU | C53: BAS RHIN | D53: BAS_RHIN
A54: HAGUENAU | B54: HAGUENAU | C54: BAS RHIN | D54: BAS_RHIN
A55: HAGUENAU | B55: HAGUENAU | C55: BAS RHIN | D55: BAS_RHIN
A56: HAGUENAU | B56: HAGUENAU | C56: BAS RHIN | D56: BAS_RHIN
A57: HAGUENAU | B57: HAGUENAU | C57: BAS RHIN | D57: BAS_RHIN
A58: SELESTAT | B58: SELESTAT | C58: BAS RHIN | D58: BAS_RHIN
A59: SELESTAT | B59: SELESTAT | C59: BAS RHIN | D59: BAS_RHIN
A60: SELESTAT | B60: SELESTAT | C60: BAS RHIN | D60: BAS_RHIN
A61: SELESTAT | B61: SELESTAT | C61: BAS RHIN | D61: BAS_RHIN
A62: SELESTAT | B62: SELESTAT | C62: BAS RHIN | D62: BAS_RHIN
A63: SELESTAT | B63: SELESTAT | C63: BAS RHIN | D63: BAS_RHIN
A64: SELESTAT | B64: SELESTAT | C64: BAS RHIN | D64: BAS_RHIN
A65: SELESTAT | B65: SELESTAT | C65: BAS RHIN | D65: BAS_RHIN
A66: SELESTAT | B66: SELESTAT | C66: BAS RHIN | D66: BAS_RHIN
A67: SELESTAT | B67: SELESTAT | C67: BAS RHIN | D67: BAS_RHIN
A68: SELESTAT | B68: SELESTAT | C68: BAS RHIN | D68: BAS_RHIN
A69: SELESTAT | B69: SELESTAT | C69: BAS RHIN | D69: BAS_RHIN
A70: SELESTAT | B70: SELESTAT | C70: BAS RHIN | D70: BAS_RHIN
A71: SELESTAT | B71: SELESTAT | C71: BAS RHIN | D71: BAS_RHIN
A72: SELESTAT | B72: SELESTAT | C72: BAS RHIN | D72: BAS_RHIN
A73: SELESTAT | B73: SELESTAT | C73: BAS RHIN | D73: BAS_RHIN
A74: SELESTAT | B74: SELESTAT | C74: BAS RHIN | D74: BAS_RHIN
A75: SELESTAT | B75: SELESTAT | C75: BAS RHIN | D75: BAS_RHIN
A76: SELESTAT | B76: SELESTAT | C76: BAS RHIN | D76: BAS_RHIN
A77: SELESTAT | B77: SELESTAT | C77: BAS RHIN | D77: BAS_RHIN
A78: STRASBOURG | B78: STRASBOURG | C78: BAS RHIN | D78: BAS_RHIN
A79: STRASBOURG | B79: STRASBOURG | C79: BAS RHIN | D79: BAS_RHIN
A80: STRASBOURG | B80: STRASBOURG | C80: BAS RHIN | D80: BAS_RHIN
A81: STRASBOURG | B81: STRASBOURG | C81: BAS RHIN | D81: BAS_RHIN
A82: STRASBOURG | B82: STRASBOURG | C82: BAS RHIN | D82: BAS_RHIN
A83: STRASBOURG | B83: STRASBOURG | C83: BAS RHIN | D83: BAS_RHIN
A84: STRASBOURG | B84: STRASBOURG | C84: BAS RHIN | D84: BAS_RHIN
A85: STRASBOURG | B85: STRASBOURG | C85: BAS RHIN | D85: BAS_RHIN
A86: STRASBOURG | B86: STRASBOURG | C86: BAS RHIN | D86: BAS_RHIN
A87: STRASBOURG | B87: STRASBOURG | C87: BAS RHIN | D87: BAS_RHIN
A88: STRASBOURG | B88: STRASBOURG | C88: BAS RHIN | D88: BAS_RHIN
A89: STRASBOURG | B89: STRASBOURG | C89: BAS RHIN | D89: BAS_RHIN
A90: STRASBOURG | B90: STRASBOURG | C90: BAS RHIN | D90: BAS_RHIN
A91: STRASBOURG | B91: STRASBOURG | C91: BAS RHIN | D91: BAS_RHIN
A92: STRASBOURG | B92: STRASBOURG | C92: BAS RHIN | D92: BAS_RHIN
A93: STRASBOURG | B93: STRASBOURG | C93: BAS RHIN | D93: BAS_RHIN
A94: STRASBOURG | B94: STRASBOURG | C94: BAS RHIN | D94: BAS_RHIN
A95: STRASBOURG | B95: STRASBOURG | C95: BAS RHIN | D95: BAS_RHIN
A96: STRASBOURG | B96: STRASBOURG | C96: BAS RHIN | D96: BAS_RHIN
A97: STRASBOURG | B97: STRASBOURG | C97: BAS RHIN | D97: BAS_RHIN
A98: STRASBOURG | B98: STRASBOURG | C98: BAS RHIN | D98: BAS_RHIN
A99: STRASBOURG | B99: STRASBOURG | C99: BAS RHIN | D99: BAS_RHIN
A100: STRASBOURG | B100: STRASBOURG | C100: BAS RHIN | D100: BAS_RHIN
A101: STRASBOURG | B101: STRASBOURG | C101: BAS RHIN | D101: BAS_RHIN
A102: STRASBOURG | B102: STRASBOURG | C102: BAS RHIN | D102: BAS_RHIN
A103: COLMAR | B103: COLMAR | C103: HAUT RHIN | D103: HAUT_RHIN
A104: COLMAR | B104: COLMAR | C104: HAUT RHIN | D104: HAUT_RHIN
A105: COLMAR | B105: COLMAR | C105: HAUT RHIN | D105: HAUT_RHIN
A106: COLMAR | B106: COLMAR | C106: HAUT RHIN | D106: HAUT_RHIN
A107: COLMAR | B107: COLMAR | C107: HAUT RHIN | D107: HAUT_RHIN
A108: COLMAR | B108: COLMAR | C108: HAUT RHIN | D108: HAUT_RHIN
A109: COLMAR | B109: COLMAR | C109: HAUT RHIN | D109: HAUT_RHIN
A110: COLMAR | B110: COLMAR | C110: HAUT RHIN | D110: HAUT_RHIN
A111: COLMAR | B111: COLMAR | C111: HAUT RHIN | D111: HAUT_RHIN
A112: COLMAR | B112: COLMAR | C112: HAUT RHIN | D112: HAUT_RHIN
A113: COLMAR | B113: COLMAR | C113: HAUT RHIN | D113: HAUT_RHIN
A114: COLMAR | B114: COLMAR | C114: HAUT RHIN | D114: HAUT_RHIN
A115: COLMAR | B115: COLMAR | C115: HAUT RHIN | D115: HAUT_RHIN
A116: COLMAR | B116: COLMAR | C116: HAUT RHIN | D116: HAUT_RHIN
A117: COLMAR | B117: COLMAR | C117: HAUT RHIN | D117: HAUT_RHIN
A118: COLMAR | B118: COLMAR | C118: HAUT RHIN | D118: HAUT_RHIN
A119: COLMAR | B119: COLMAR | C119: HAUT RHIN | D119: HAUT_RHIN
A120: COLMAR | B120: COLMAR | C120: HAUT RHIN | D120: HAUT_RHIN
A121: COLMAR | B121: COLMAR | C121: HAUT RHIN | D121: HAUT_RHIN
A122: COLMAR | B122: COLMAR | C122: HAUT RHIN | D122: HAUT_RHIN
A123: COLMAR | B123: COLMAR | C123: HAUT RHIN | D123: HAUT_RHIN
A124: COLMAR | B124: COLMAR | C124: HAUT RHIN | D124: HAUT_RHIN
A125: COLMAR | B125: COLMAR | C125: HAUT RHIN | D125: HAUT_RHIN
A126: MULHOUSE | B126: MULHOUSE | C126: HAUT RHIN | D126: HAUT_RHIN
A127: MULHOUSE | B127: MULHOUSE | C127: HAUT RHIN | D127: HAUT_RHIN
A128: MULHOUSE | B128: MULHOUSE | C128: HAUT RHIN | D128: HAUT_RHIN
A129: MULHOUSE | B129: MULHOUSE | C129: HAUT RHIN | D129: HAUT_RHIN
A130: MULHOUSE | B130: MULHOUSE | C130: HAUT RHIN | D130: HAUT_RHIN
A131: MULHOUSE | B131: MULHOUSE | C131: HAUT RHIN | D131: HAUT_RHIN
A132: MULHOUSE | B132: MULHOUSE | C132: HAUT RHIN | D132: HAUT_RHIN
A133: MULHOUSE | B133: MULHOUSE | C133: HAUT RHIN | D133: HAUT_RHIN
A134: MULHOUSE | B134: MULHOUSE | C134: HAUT RHIN | D134: HAUT_RHIN
A135: MULHOUSE | B135: MULHOUSE | C135: HAUT RHIN | D135: HAUT_RHIN
A136: MULHOUSE | B136: MULHOUSE | C136: HAUT RHIN | D136: HAUT_RHIN
A137: MULHOUSE | B137: MULHOUSE | C137: HAUT RHIN | D137: HAUT_RHIN
A138: MULHOUSE | B138: MULHOUSE | C138: HAUT RHIN | D138: HAUT_RHIN
A139: MULHOUSE | B139: MULHOUSE | C139: HAUT RHIN | D139: HAUT_RHIN
A140: MULHOUSE | B140: MULHOUSE | C140: HAUT RHIN | D140: HAUT_RHIN
A141: MULHOUSE | B141: MULHOUSE | C141: HAUT RHIN | D141: HAUT_RHIN
A142: MULHOUSE | B142: MULHOUSE | C142: HAUT RHIN | D142: HAUT_RHIN
A143: MULHOUSE | B143: MULHOUSE | C143: HAUT RHIN | D143: HAUT_RHIN
A144: MULHOUSE | B144: MULHOUSE | C144: HAUT RHIN | D144: HAUT_RHIN
A145: MULHOUSE | B145: MULHOUSE | C145: HAUT RHIN | D145: HAUT_RHIN
A146: MULHOUSE | B146: MULHOUSE | C146: HAUT RHIN | D146: HAUT_RHIN
A147: CHALONS EN CHAMPAGNE | B147: CHALONS_EN_CHAMPAGNE | C147: MARNE ARDENNES | D147: MARNE_ARDENNES
A148: CHALONS EN CHAMPAGNE | B148: CHALONS_EN_CHAMPAGNE | C148: MARNE ARDENNES | D148: MARNE_ARDENNES
A149: CHALONS EN CHAMPAGNE | B149: CHALONS_EN_CHAMPAGNE | C149: MARNE ARDENNES | D149: MARNE_ARDENNES
A150: CHALONS EN CHAMPAGNE | B150: CHALONS_EN_CHAMPAGNE | C150: MARNE ARDENNES | D150: MARNE_ARDENNES
A151: CHALONS EN CHAMPAGNE | B151: CHALONS_EN_CHAMPAGNE | C151: MARNE ARDENNES | D151: MARNE_ARDENNES
A152: CHALONS EN CHAMPAGNE | B152: CHALONS_EN_CHAMPAGNE | C152: MARNE ARDENNES | D152: MARNE_ARDENNES
A153: CHALONS EN CHAMPAGNE | B153: CHALONS_EN_CHAMPAGNE | C153: MARNE ARDENNES | D153: MARNE_ARDENNES
A154: CHALONS EN CHAMPAGNE | B154: CHALONS_EN_CHAMPAGNE | C154: MARNE ARDENNES | D154: MARNE_ARDENNES
A155: CHALONS EN CHAMPAGNE | B155: CHALONS_EN_CHAMPAGNE | C155: MARNE ARDENNES | D155: MARNE_ARDENNES
A156: CHALONS EN CHAMPAGNE | B156: CHALONS_EN_CHAMPAGNE | C156: MARNE ARDENNES | D156: MARNE_ARDENNES
A157: CHALONS EN CHAMPAGNE | B157: CHALONS_EN_CHAMPAGNE | C157: MARNE ARDENNES | D157: MARNE_ARDENNES
A158: CHARLEVILLE MEZIERES | B158: CHARLEVILLE_MEZIERES | C158: MARNE ARDENNES | D158: MARNE_ARDENNES
A159: CHARLEVILLE MEZIERES | B159: CHARLEVILLE_MEZIERES | C159: MARNE ARDENNES | D159: MARNE_ARDENNES
A160: CHARLEVILLE MEZIERES | B160: CHARLEVILLE_MEZIERES | C160: MARNE ARDENNES | D160: MARNE_ARDENNES
A161: CHARLEVILLE MEZIERES | B161: CHARLEVILLE_MEZIERES | C161: MARNE ARDENNES | D161: MARNE_ARDENNES
A162: CHARLEVILLE MEZIERES | B162: CHARLEVILLE_MEZIERES | C162: MARNE ARDENNES | D162: MARNE_ARDENNES
A163: CHARLEVILLE MEZIERES | B163: CHARLEVILLE_MEZIERES | C163: MARNE ARDENNES | D163: MARNE_ARDENNES
A164: CHARLEVILLE MEZIERES | B164: CHARLEVILLE_MEZIERES | C164: MARNE ARDENNES | D164: MARNE_ARDENNES
A165: CHARLEVILLE MEZIERES | B165: CHARLEVILLE_MEZIERES | C165: MARNE ARDENNES | D165: MARNE_ARDENNES
A166: CHARLEVILLE MEZIERES | B166: CHARLEVILLE_MEZIERES | C166: MARNE ARDENNES | D166: MARNE_ARDENNES
A167: CHARLEVILLE MEZIERES | B167: CHARLEVILLE_MEZIERES | C167: MARNE ARDENNES | D167: MARNE_ARDENNES
A168: CHARLEVILLE MEZIERES | B168: CHARLEVILLE_MEZIERES | C168: MARNE ARDENNES | D168: MARNE_ARDENNES
A169: CHARLEVILLE MEZIERES | B169: CHARLEVILLE_MEZIERES | C169: MARNE ARDENNES | D169: MARNE_ARDENNES
A170: CHARLEVILLE MEZIERES | B170: CHARLEVILLE_MEZIERES | C170: MARNE ARDENNES | D170: MARNE_ARDENNES
A171: CHARLEVILLE MEZIERES | B171: CHARLEVILLE_MEZIERES | C171: MARNE ARDENNES | D171: MARNE_ARDENNES
A172: REIMS | B172: REIMS | C172: MARNE ARDENNES | D172: MARNE_ARDENNES
A173: REIMS | B173: REIMS | C173: MARNE ARDENNES | D173: MARNE_ARDENNES
A174: REIMS | B174: REIMS | C174: MARNE ARDENNES | D174: MARNE_ARDENNES
A175: REIMS | B175: REIMS | C175: MARNE ARDENNES | D175: MARNE_ARDENNES
A176: REIMS | B176: REIMS | C176: MARNE ARDENNES | D176: MARNE_ARDENNES
A177: REIMS | B177: REIMS | C177: MARNE ARDENNES | D177: MARNE_ARDENNES
A178: REIMS | B178: REIMS | C178: MARNE ARDENNES | D178: MARNE_ARDENNES
A179: REIMS | B179: REIMS | C179: MARNE ARDENNES | D179: MARNE_ARDENNES
A180: REIMS | B180: REIMS | C180: MARNE ARDENNES | D180: MARNE_ARDENNES
A181: REIMS | B181: REIMS | C181: MARNE ARDENNES | D181: MARNE_ARDENNES
A182: REIMS | B182: REIMS | C182: MARNE ARDENNES | D182: MARNE_ARDENNES
A183: REIMS | B183: REIMS | C183: MARNE ARDENNES | D183: MARNE_ARDENNES
A184: REIMS | B184: REIMS | C184: MARNE ARDENNES | D184: MARNE_ARDENNES
A185: REIMS | B185: REIMS | C185: MARNE ARDENNES | D185: MARNE_ARDENNES
A186: REIMS | B186: REIMS | C186: MARNE ARDENNES | D186: MARNE_ARDENNES
A187: REIMS | B187: REIMS | C187: MARNE ARDENNES | D187: MARNE_ARDENNES
A188: REIMS | B188: REIMS | C188: MARNE ARDENNES | D188: MARNE_ARDENNES
A189: REIMS | B189: REIMS | C189: MARNE ARDENNES | D189: MARNE_ARDENNES
A190: REIMS | B190: REIMS | C190: MARNE ARDENNES | D190: MARNE_ARDENNES
A191: NANCY | B191: NANCY | C191: MEURTHE ET MOSELLE MEUSE | D191: MEURTHE_ET_MOSELLE_MEUSE
A192: NANCY | B192: NANCY | C192: MEURTHE ET MOSELLE MEUSE | D192: MEURTHE_ET_MOSELLE_MEUSE
A193: NANCY | B193: NANCY | C193: MEURTHE ET MOSELLE MEUSE | D193: MEURTHE_ET_MOSELLE_MEUSE
A194: NANCY | B194: NANCY | C194: MEURTHE ET MOSELLE MEUSE | D194: MEURTHE_ET_MOSELLE_MEUSE
A195: NANCY | B195: NANCY | C195: MEURTHE ET MOSELLE MEUSE | D195: MEURTHE_ET_MOSELLE_MEUSE
A196: NANCY | B196: NANCY | C196: MEURTHE ET MOSELLE MEUSE | D196: MEURTHE_ET_MOSELLE_MEUSE
A197: NANCY | B197: NANCY | C197: MEURTHE ET MOSELLE MEUSE | D197: MEURTHE_ET_MOSELLE_MEUSE
A198: NANCY | B198: NANCY | C198: MEURTHE ET MOSELLE MEUSE | D198: MEURTHE_ET_MOSELLE_MEUSE
A199: NANCY | B199: NANCY | C199: MEURTHE ET MOSELLE MEUSE | D199: MEURTHE_ET_MOSELLE_MEUSE
A200: NANCY | B200: NANCY | C200: MEURTHE ET MOSELLE MEUSE | D200: MEURTHE_ET_MOSELLE_MEUSE
... 138 more rows

Sheet Menu
C2: Evolution du Fonds de Commerce

Sheet Activation
B2: FDC ET EQUIPEMENT PAR SEGMENT ACTIVATION
C4: REGION | F4: TERRITOIRE | J4: PDV
C5: CEGEE
D8: Tous segments | F8: Segments Activation - 10/2020
D9: 2020-10-01 | E9: 2019-12-01 | F9: BPe | G9: BPne | H9: De | I9: Dne | J9: JBPe | K9: JBPne | L9: JDe | M9: JDne | N9: Ee | O9: Ene | P9: I
B10: Fonds de commerce | C10: Nombre clients | D10: =SUM(F10:P10) -> 1428382 | E10: =IF(ISBLANK($F$5),SUMIFS('Données FDC déc 2019'!$F:$F,'Données FDC déc 2019'!$A:$A,Activation!$C$5),IF(ISBLANK($J$5),SUMIFS('Données FDC déc 2019'!$F:$F,'Données FDC déc 2019'!$B:$B,Activation!$F$5),SUMIFS('Données FDC déc 2019'!$F:$F,'Données FDC déc 2019'!$C:$C,Activation!$J$5))) -> 1469706 | F10: =IF(ISBLANK($F$5),SUMIFS('Données FDC'!$F:$F,'Données FDC'!$A:$A,Activation!$C$5,'Données FDC'!$E:$E,Activation!F$9),IF(ISBLANK($J$5),SUMIFS('Données FDC'!$F:$F,'Données FDC'!$B:$B,Activation!$F$5,'Données FDC'!$E:$E,Activation!F$9),SUMIFS('Données FDC'!$F:$F,'Données FDC'!$C:$C,Activation!$J$5,'Données FDC'!$E:$E,Activation!F$9))) -> 279604 | G10: =IF(ISBLANK($F$5),SUMIFS('Données FDC'!$F:$F,'Données FDC'!$A:$A,Activation!$C$5,'Données FDC'!$E:$E,Activation!G$9),IF(ISBLANK($J$5),SUMIFS('Données FDC'!$F:$F,'Données FDC'!$B:$B,Activation!$F$5,'Données FDC'!$E:$E,Activation!G$9),SUMIFS('Données FDC'!$F:$F,'Données FDC'!$C:$C,Activation!$J$5,'Données FDC'!$E:$E,Activation!G$9))) -> 156604 | H10: =IF(ISBLANK($F$5),SUMIFS('Données FDC'!$F:$F,'Données FDC'!$A:$A,Activation!$C$5,'Données FDC'!$E:$E,Activation!H$9),IF(ISBLANK($J$5),SUMIFS('Données FDC'!$F:$F,'Données FDC'!$B:$B,Activation!$F$5,'Données FDC'!$E:$E,Activation!H$9),SUMIFS('Données FDC'!$F:$F,'Données FDC'!$C:$C,Activation!$J$5,'Données FDC'!$E:$E,Activation!H$9))) -> 166491 | I10: =IF(ISBLANK($F$5),SUMIFS('Données FDC'!$F:$F,'Données FDC'!$A:$A,Activation!$C$5,'Données FDC'!$E:$E,Activation!I$9),IF(ISBLANK($J$5),SUMIFS('Données FDC'!$F:$F,'Données FDC'!$B:$B,Activation!$F$5,'Données FDC'!$E:$E,Activation!I$9),SUMIFS('Données FDC'!$F:$F,'Données FDC'!$C:$C,Activation!$J$5,'Données FDC'!$E:$E,Activation!I$9))) -> 343520 | J10: =IF(ISBLANK($F$5),SUMIFS('Données FDC'!$F:$F,'Données FDC'!$A:$A,Activation!$C$5,'Données FDC'!$E:$E,Activation!J$9),IF(ISBLANK($J$5),SUMIFS('Données FDC'!$F:$F,'Données FDC'!$B:$B,Activation!$F$5,'Données FDC'!$E:$E,Activation!J$9),SUMIFS('Données FDC'!$F:$F,'Données FDC'!$C:$C,Activation!$J$5,'Données FDC'!$E:$E,Activation!J$9))) -> 61134 | K10: =IF(ISBLANK($F$5),SUMIFS('Données FDC'!$F:$F,'Données FDC'!$A:$A,Activation!$C$5,'Données FDC'!$E:$E,Activation!K$9),IF(ISBLANK($J$5),SUMIFS('Données FDC'!$F:$F,'Données FDC'!$B:$B,Activation!$F$5,'Données FDC'!$E:$E,Activation!K$9),SUMIFS('Données FDC'!$F:$F,'Données FDC'!$C:$C,Activation!$J$5,'Données FDC'!$E:$E,Activation!K$9))) -> 15672 | L10: =IF(ISBLANK($F$5),SUMIFS('Données FDC'!$F:$F,'Données FDC'!$A:$A,Activation!$C$5,'Données FDC'!$E:$E,Activation!L$9),IF(ISBLANK($J$5),SUMIFS('Données FDC'!$F:$F,'Données FDC'!$B:$B,Activation!$F$5,'Données FDC'!$E:$E,Activation!L$9),SUMIFS('Données FDC'!$F:$F,'Données FDC'!$C:$C,Activation!$J$5,'Données FDC'!$E:$E,Activation!L$9))) -> 10328 | M10: =IF(ISBLANK($F$5),SUMIFS('Données FDC'!$F:$F,'Données FDC'!$A:$A,Activation!$C$5,'Données FDC'!$E:$E,Activation!M$9),IF(ISBLANK($J$5),SUMIFS('Données FDC'!$F:$F,'Données FDC'!$B:$B,Activation!$F$5,'Données FDC'!$E:$E,Activation!M$9),SUMIFS('Données FDC'!$F:$F,'Données FDC'!$C:$C,Activation!$J$5,'Données FDC'!$E:$E,Activation!M$9))) -> 71178 | N10: =IF(ISBLANK($F$5),SUMIFS('Données FDC'!$F:$F,'Données FDC'!$A:$A,Activation!$C$5,'Données FDC'!$E:$E,Activation!N$9),IF(ISBLANK($J$5),SUMIFS('Données FDC'!$F:$F,'Données FDC'!$B:$B,Activation!$F$5,'Données FDC'!$E:$E,Activation!N$9),SUMIFS('Données FDC'!$F:$F,'Données FDC'!$C:$C,Activation!$J$5,'Données FDC'!$E:$E,Activation!N$9))) -> 82920 | O10: =IF(ISBLANK($F$5),SUMIFS('Données FDC'!$F:$F,'Données FDC'!$A:$A,Activation!$C$5,'Données FDC'!$E:$E,Activation!O$9),IF(ISBLANK($J$5),SUMIFS('Données FDC'!$F:$F,'Données FDC'!$B:$B,Activation!$F$5,'Données FDC'!$E:$E,Activation!O$9),SUMIFS('Données FDC'!$F:$F,'Données FDC'!$C:$C,Activation!$J$5,'Données FDC'!$E:$E,Activation!O$9))) -> 59049 | P10: =IF(ISBLANK($F$5),SUMIFS('Données FDC'!$F:$F,'Données FDC'!$A:$A,Activation!$C$5,'Données FDC'!$E:$E,Activation!P$9),IF(ISBLANK($J$5),SUMIFS('Données FDC'!$F:$F,'Données FDC'!$B:$B,Activation!$F$5,'Données FDC'!$E:$E,Activation!P$9),SUMIFS('Données FDC'!$F:$F,'Données FDC'!$C:$C,Activation!$J$5,'Données FDC'!$E:$E,Activation!P$9))) -> 181882
C11: Poids | D11: =SUM(F11:P11) -> 1 | F11: =F10/$D10 -> 0.1957487563 | G11: =G10/$D10 -> 0.1096373379 | H11: 0.1165591557 | I11: 0.2404958898 | J11: 0.04279947521 | K11: 0.01097185487 | L11: 0.007230558772 | M11: 0.04983120762 | N11: 0.05805169766 | O11: 0.04133978166 | P11: 0.1273342845
C12: Poids CEGEE | D12: =SUM(F12:P12) -> 1 | F12: =SUMIF('Données FDC'!$E:$E,Activation!F$9,'Données FDC'!$F:$F)/SUM('Données FDC'!$F:$F) -> 0.1957487563 | G12: =SUMIF('Données FDC'!$E:$E,Activation!G$9,'Données FDC'!$F:$F)/SUM('Données FDC'!$F:$F) -> 0.1096373379 | H12: =SUMIF('Données FDC'!$E:$E,Activation!H$9,'Données FDC'!$F:$F)/SUM('Données FDC'!$F:$F) -> 0.1165591557 | I12: =SUMIF('Données FDC'!$E:$E,Activation!I$9,'Données FDC'!$F:$F)/SUM('Données FDC'!$F:$F) -> 0.2404958898 | J12: =SUMIF('Données FDC'!$E:$E,Activation!J$9,'Données FDC'!$F:$F)/SUM('Données FDC'!$F:$F) -> 0.04279947521 | K12: =SUMIF('Données FDC'!$E:$E,Activation!K$9,'Données FDC'!$F:$F)/SUM('Données FDC'!$F:$F) -> 0.01097185487 | L12: =SUMIF('Données FDC'!$E:$E,Activation!L$9,'Données FDC'!$F:$F)/SUM('Données FDC'!$F:$F) -> 0.007230558772 | M12: =SUMIF('Données FDC'!$E:$E,Activation!M$9,'Données FDC'!$F:$F)/SUM('Données FDC'!$F:$F) -> 0.04983120762 | N12: =SUMIF('Données FDC'!$E:$E,Activation!N$9,'Données FDC'!$F:$F)/SUM('Données FDC'!$F:$F) -> 0.05805169766 | O12: =SUMIF('Données FDC'!$E:$E,Activation!O$9,'Données FDC'!$F:$F)/SUM('Données FDC'!$F:$F) -> 0.04133978166 | P12: =SUMIF('Données FDC'!$E:$E,Activation!P$9,'Données FDC'!$F:$F)/SUM('Données FDC'!$F:$F) -> 0.1273342845
C13: Variation annuelle en nb | D13: =SUM(F13:P13) -> -41324 | F13: =F10-IF(ISBLANK($F$5),SUMIFS('Données FDC déc 2019'!$F:$F,'Données FDC déc 2019'!$A:$A,Activation!$C$5,'Données FDC déc 2019'!$E:$E,Activation!F$9),IF(ISBLANK($J$5),SUMIFS('Données FDC déc 2019'!$F:$F,'Données FDC déc 2019'!$B:$B,Activation!$F$5,'Données FDC déc 2019'!$E:$E,Activation!F$9),SUMIFS('Données FDC déc 2019'!$F:$F,'Données FDC déc 2019'!$C:$C,Activation!$J$5,'Données FDC déc 2019'!$E:$E,Activation!F$9))) -> 1395 | G13: =G10-IF(ISBLANK($F$5),SUMIFS('Données FDC déc 2019'!$F:$F,'Données FDC déc 2019'!$A:$A,Activation!$C$5,'Données FDC déc 2019'!$E:$E,Activation!G$9),IF(ISBLANK($J$5),SUMIFS('Données FDC déc 2019'!$F:$F,'Données FDC déc 2019'!$B:$B,Activation!$F$5,'Données FDC déc 2019'!$E:$E,Activation!G$9),SUMIFS('Données FDC déc 2019'!$F:$F,'Données FDC déc 2019'!$C:$C,Activation!$J$5,'Données FDC déc 2019'!$E:$E,Activation!G$9))) -> -3260 | H13: =H10-IF(ISBLANK($F$5),SUMIFS('Données FDC déc 2019'!$F:$F,'Données FDC déc 2019'!$A:$A,Activation!$C$5,'Données FDC déc 2019'!$E:$E,Activation!H$9),IF(ISBLANK($J$5),SUMIFS('Données FDC déc 2019'!$F:$F,'Données FDC déc 2019'!$B:$B,Activation!$F$5,'Données FDC déc 2019'!$E:$E,Activation!H$9),SUMIFS('Données FDC déc 2019'!$F:$F,'Données FDC déc 2019'!$C:$C,Activation!$J$5,'Données FDC déc 2019'!$E:$E,Activation!H$9))) -> -1828 | I13: =I10-IF(ISBLANK($F$5),SUMIFS('Données FDC déc 2019'!$F:$F,'Données FDC déc 2019'!$A:$A,Activation!$C$5,'Données FDC déc 2019'!$E:$E,Activation!I$9),IF(ISBLANK($J$5),SUMIFS('Données FDC déc 2019'!$F:$F,'Données FDC déc 2019'!$B:$B,Activation!$F$5,'Données FDC déc 2019'!$E:$E,Activation!I$9),SUMIFS('Données FDC déc 2019'!$F:$F,'Données FDC déc 2019'!$C:$C,Activation!$J$5,'Données FDC déc 2019'!$E:$E,Activation!I$9))) -> -10570 | J13: =J10-IF(ISBLANK($F$5),SUMIFS('Données FDC déc 2019'!$F:$F,'Données FDC déc 2019'!$A:$A,Activation!$C$5,'Données FDC déc 2019'!$E:$E,Activation!J$9),IF(ISBLANK($J$5),SUMIFS('Données FDC déc 2019'!$F:$F,'Données FDC déc 2019'!$B:$B,Activation!$F$5,'Données FDC déc 2019'!$E:$E,Activation!J$9),SUMIFS('Données FDC déc 2019'!$F:$F,'Données FDC déc 2019'!$C:$C,Activation!$J$5,'Données FDC déc 2019'!$E:$E,Activation!J$9))) -> -523 | K13: =K10-IF(ISBLANK($F$5),SUMIFS('Données FDC déc 2019'!$F:$F,'Données FDC déc 2019'!$A:$A,Activation!$C$5,'Données FDC déc 2019'!$E:$E,Activation!K$9),IF(ISBLANK($J$5),SUMIFS('Données FDC déc 2019'!$F:$F,'Données FDC déc 2019'!$B:$B,Activation!$F$5,'Données FDC déc 2019'!$E:$E,Activation!K$9),SUMIFS('Données FDC déc 2019'!$F:$F,'Données FDC déc 2019'!$C:$C,Activation!$J$5,'Données FDC déc 2019'!$E:$E,Activation!K$9))) -> -1801 | L13: =L10-IF(ISBLANK($F$5),SUMIFS('Données FDC déc 2019'!$F:$F,'Données FDC déc 2019'!$A:$A,Activation!$C$5,'Données FDC déc 2019'!$E:$E,Activation!L$9),IF(ISBLANK($J$5),SUMIFS('Données FDC déc 2019'!$F:$F,'Données FDC déc 2019'!$B:$B,Activation!$F$5,'Données FDC déc 2019'!$E:$E,Activation!L$9),SUMIFS('Données FDC déc 2019'!$F:$F,'Données FDC déc 2019'!$C:$C,Activation!$J$5,'Données FDC déc 2019'!$E:$E,Activation!L$9))) -> 50 | M13: =M10-IF(ISBLANK($F$5),SUMIFS('Données FDC déc 2019'!$F:$F,'Données FDC déc 2019'!$A:$A,Activation!$C$5,'Données FDC déc 2019'!$E:$E,Activation!M$9),IF(ISBLANK($J$5),SUMIFS('Données FDC déc 2019'!$F:$F,'Données FDC déc 2019'!$B:$B,Activation!$F$5,'Données FDC déc 2019'!$E:$E,Activation!M$9),SUMIFS('Données FDC déc 2019'!$F:$F,'Données FDC déc 2019'!$C:$C,Activation!$J$5,'Données FDC déc 2019'!$E:$E,Activation!M$9))) -> -2255 | N13: =N10-IF(ISBLANK($F$5),SUMIFS('Données FDC déc 2019'!$F:$F,'Données FDC déc 2019'!$A:$A,Activation!$C$5,'Données FDC déc 2019'!$E:$E,Activation!N$9),IF(ISBLANK($J$5),SUMIFS('Données FDC déc 2019'!$F:$F,'Données FDC déc 2019'!$B:$B,Activation!$F$5,'Données FDC déc 2019'!$E:$E,Activation!N$9),SUMIFS('Données FDC déc 2019'!$F:$F,'Données FDC déc 2019'!$C:$C,Activation!$J$5,'Données FDC déc 2019'!$E:$E,Activation!N$9))) -> -3594 | O13: =O10-IF(ISBLANK($F$5),SUMIFS('Données FDC déc 2019'!$F:$F,'Données FDC déc 2019'!$A:$A,Activation!$C$5,'Données FDC déc 2019'!$E:$E,Activation!O$9),IF(ISBLANK($J$5),SUMIFS('Données FDC déc 2019'!$F:$F,'Données FDC déc 2019'!$B:$B,Activation!$F$5,'Données FDC déc 2019'!$E:$E,Activation!O$9),SUMIFS('Données FDC déc 2019'!$F:$F,'Données FDC déc 2019'!$C:$C,Activation!$J$5,'Données FDC déc 2019'!$E:$E,Activation!O$9))) -> -3747 | P13: =P10-IF(ISBLANK($F$5),SUMIFS('Données FDC déc 2019'!$F:$F,'Données FDC déc 2019'!$A:$A,Activation!$C$5,'Données FDC déc 2019'!$E:$E,Activation!P$9),IF(ISBLANK($J$5),SUMIFS('Données FDC déc 2019'!$F:$F,'Données FDC déc 2019'!$B:$B,Activation!$F$5,'Données FDC déc 2019'!$E:$E,Activation!P$9),SUMIFS('Données FDC déc 2019'!$F:$F,'Données FDC déc 2019'!$C:$C,Activation!$J$5,'Données FDC déc 2019'!$E:$E,Activation!P$9))) -> -15191
C14: Variation annuelle en % | D14: =D13/IF(ISBLANK($F$5),SUMIFS('Données FDC déc 2019'!$F:$F,'Données FDC déc 2019'!$A:$A,Activation!$C$5),IF(ISBLANK($J$5),SUMIFS('Données FDC déc 2019'!$F:$F,'Données FDC déc 2019'!$B:$B,Activation!$F$5),SUMIFS('Données FDC déc 2019'!$F:$F,'Données FDC déc 2019'!$C:$C,Activation!$J$5))) -> -0.02811718806 | F14: =F13/IF(ISBLANK($F$5),SUMIFS('Données FDC déc 2019'!$F:$F,'Données FDC déc 2019'!$A:$A,Activation!$C$5,'Données FDC déc 2019'!$E:$E,Activation!F$9),IF(ISBLANK($J$5),SUMIFS('Données FDC déc 2019'!$F:$F,'Données FDC déc 2019'!$B:$B,Activation!$F$5,'Données FDC déc 2019'!$E:$E,Activation!F$9),SUMIFS('Données FDC déc 2019'!$F:$F,'Données FDC déc 2019'!$C:$C,Activation!$J$5,'Données FDC déc 2019'!$E:$E,Activation!F$9))) -> 0.005014215931 | G14: =G13/IF(ISBLANK($F$5),SUMIFS('Données FDC déc 2019'!$F:$F,'Données FDC déc 2019'!$A:$A,Activation!$C$5,'Données FDC déc 2019'!$E:$E,Activation!G$9),IF(ISBLANK($J$5),SUMIFS('Données FDC déc 2019'!$F:$F,'Données FDC déc 2019'!$B:$B,Activation!$F$5,'Données FDC déc 2019'!$E:$E,Activation!G$9),SUMIFS('Données FDC déc 2019'!$F:$F,'Données FDC déc 2019'!$C:$C,Activation!$J$5,'Données FDC déc 2019'!$E:$E,Activation!G$9))) -> -0.02039233348 | H14: =H13/IF(ISBLANK($F$5),SUMIFS('Données FDC déc 2019'!$F:$F,'Données FDC déc 2019'!$A:$A,Activation!$C$5,'Données FDC déc 2019'!$E:$E,Activation!H$9),IF(ISBLANK($J$5),SUMIFS('Données FDC déc 2019'!$F:$F,'Données FDC déc 2019'!$B:$B,Activation!$F$5,'Données FDC déc 2019'!$E:$E,Activation!H$9),SUMIFS('Données FDC déc 2019'!$F:$F,'Données FDC déc 2019'!$C:$C,Activation!$J$5,'Données FDC déc 2019'!$E:$E,Activation!H$9))) -> -0.01086033068 | I14: =I13/IF(ISBLANK($F$5),SUMIFS('Données FDC déc 2019'!$F:$F,'Données FDC déc 2019'!$A:$A,Activation!$C$5,'Données FDC déc 2019'!$E:$E,Activation!I$9),IF(ISBLANK($J$5),SUMIFS('Données FDC déc 2019'!$F:$F,'Données FDC déc 2019'!$B:$B,Activation!$F$5,'Données FDC déc 2019'!$E:$E,Activation!I$9),SUMIFS('Données FDC déc 2019'!$F:$F,'Données FDC déc 2019'!$C:$C,Activation!$J$5,'Données FDC déc 2019'!$E:$E,Activation!I$9))) -> -0.02985116778 | J14: =J13/IF(ISBLANK($F$5),SUMIFS('Données FDC déc 2019'!$F:$F,'Données FDC déc 2019'!$A:$A,Activation!$C$5,'Données FDC déc 2019'!$E:$E,Activation!J$9),IF(ISBLANK($J$5),SUMIFS('Données FDC déc 2019'!$F:$F,'Données FDC déc 2019'!$B:$B,Activation!$F$5,'Données FDC déc 2019'!$E:$E,Activation!J$9),SUMIFS('Données FDC déc 2019'!$F:$F,'Données FDC déc 2019'!$C:$C,Activation!$J$5,'Données FDC déc 2019'!$E:$E,Activation!J$9))) -> -0.008482410756 | K14: =K13/IF(ISBLANK($F$5),SUMIFS('Données FDC déc 2019'!$F:$F,'Données FDC déc 2019'!$A:$A,Activation!$C$5,'Données FDC déc 2019'!$E:$E,Activation!K$9),IF(ISBLANK($J$5),SUMIFS('Données FDC déc 2019'!$F:$F,'Données FDC déc 2019'!$B:$B,Activation!$F$5,'Données FDC déc 2019'!$E:$E,Activation!K$9),SUMIFS('Données FDC déc 2019'!$F:$F,'Données FDC déc 2019'!$C:$C,Activation!$J$5,'Données FDC déc 2019'!$E:$E,Activation!K$9))) -> -0.1030733131 | L14: =L13/IF(ISBLANK($F$5),SUMIFS('Données FDC déc 2019'!$F:$F,'Données FDC déc 2019'!$A:$A,Activation!$C$5,'Données FDC déc 2019'!$E:$E,Activation!L$9),IF(ISBLANK($J$5),SUMIFS('Données FDC déc 2019'!$F:$F,'Données FDC déc 2019'!$B:$B,Activation!$F$5,'Données FDC déc 2019'!$E:$E,Activation!L$9),SUMIFS('Données FDC déc 2019'!$F:$F,'Données FDC déc 2019'!$C:$C,Activation!$J$5,'Données FDC déc 2019'!$E:$E,Activation!L$9))) -> 0.004864759681 | M14: =M13/IF(ISBLANK($F$5),SUMIFS('Données FDC déc 2019'!$F:$F,'Données FDC déc 2019'!$A:$A,Activation!$C$5,'Données FDC déc 2019'!$E:$E,Activation!M$9),IF(ISBLANK($J$5),SUMIFS('Données FDC déc 2019'!$F:$F,'Données FDC déc 2019'!$B:$B,Activation!$F$5,'Données FDC déc 2019'!$E:$E,Activation!M$9),SUMIFS('Données FDC déc 2019'!$F:$F,'Données FDC déc 2019'!$C:$C,Activation!$J$5,'Données FDC déc 2019'!$E:$E,Activation!M$9))) -> -0.03070826468 | N14: =N13/IF(ISBLANK($F$5),SUMIFS('Données FDC déc 2019'!$F:$F,'Données FDC déc 2019'!$A:$A,Activation!$C$5,'Données FDC déc 2019'!$E:$E,Activation!N$9),IF(ISBLANK($J$5),SUMIFS('Données FDC déc 2019'!$F:$F,'Données FDC déc 2019'!$B:$B,Activation!$F$5,'Données FDC déc 2019'!$E:$E,Activation!N$9),SUMIFS('Données FDC déc 2019'!$F:$F,'Données FDC déc 2019'!$C:$C,Activation!$J$5,'Données FDC déc 2019'!$E:$E,Activation!N$9))) -> -0.04154240932 | O14: =O13/IF(ISBLANK($F$5),SUMIFS('Données FDC déc 2019'!$F:$F,'Données FDC déc 2019'!$A:$A,Activation!$C$5,'Données FDC déc 2019'!$E:$E,Activation!O$9),IF(ISBLANK($J$5),SUMIFS('Données FDC déc 2019'!$F:$F,'Données FDC déc 2019'!$B:$B,Activation!$F$5,'Données FDC déc 2019'!$E:$E,Activation!O$9),SUMIFS('Données FDC déc 2019'!$F:$F,'Données FDC déc 2019'!$C:$C,Activation!$J$5,'Données FDC déc 2019'!$E:$E,Activation!O$9))) -> -0.05966940569 | P14: =P13/IF(ISBLANK($F$5),SUMIFS('Données FDC déc 2019'!$F:$F,'Données FDC déc 2019'!$A:$A,Activation!$C$5,'Données FDC déc 2019'!$E:$E,Activation!P$9),IF(ISBLANK($J$5),SUMIFS('Données FDC déc 2019'!$F:$F,'Données FDC déc 2019'!$B:$B,Activation!$F$5,'Données FDC déc 2019'!$E:$E,Activation!P$9),SUMIFS('Données FDC déc 2019'!$F:$F,'Données FDC déc 2019'!$C:$C,Activation!$J$5,'Données FDC déc 2019'!$E:$E,Activation!P$9))) -> -0.07708311133
C15: Variation en % CEGEE | D15: =SUM('Données FDC'!$F:$F)/SUM('Données FDC déc 2019'!$F:$F)-1 -> -0.02905793506 | F15: =IF(ISBLANK($F$5),SUMIFS('Données FDC'!$F:$F,'Données FDC'!$E:$E,Activation!F$9),IF(ISBLANK($J$5),SUMIFS('Données FDC'!$F:$F,'Données FDC'!$E:$E,Activation!F$9),SUMIFS('Données FDC'!$F:$F,'Données FDC'!$E:$E,Activation!F$9)))/(IF(ISBLANK($F$5),SUMIFS('Données FDC déc 2019'!$F:$F,'Données FDC déc 2019'!$E:$E,Activation!F$9),IF(ISBLANK($J$5),SUMIFS('Données FDC déc 2019'!$F:$F,'Données FDC déc 2019'!$E:$E,Activation!F$9),SUMIFS('Données FDC déc 2019'!$F:$F,'Données FDC déc 2019'!$E:$E,Activation!F$9))))-1 -> 0.003681188606 | G15: =IF(ISBLANK($F$5),SUMIFS('Données FDC'!$F:$F,'Données FDC'!$E:$E,Activation!G$9),IF(ISBLANK($J$5),SUMIFS('Données FDC'!$F:$F,'Données FDC'!$E:$E,Activation!G$9),SUMIFS('Données FDC'!$F:$F,'Données FDC'!$E:$E,Activation!G$9)))/(IF(ISBLANK($F$5),SUMIFS('Données FDC déc 2019'!$F:$F,'Données FDC déc 2019'!$E:$E,Activation!G$9),IF(ISBLANK($J$5),SUMIFS('Données FDC déc 2019'!$F:$F,'Données FDC déc 2019'!$E:$E,Activation!G$9),SUMIFS('Données FDC déc 2019'!$F:$F,'Données FDC déc 2019'!$E:$E,Activation!G$9))))-1 -> -0.02167136244 | H15: =IF(ISBLANK($F$5),SUMIFS('Données FDC'!$F:$F,'Données FDC'!$E:$E,Activation!H$9),IF(ISBLANK($J$5),SUMIFS('Données FDC'!$F:$F,'Données FDC'!$E:$E,Activation!H$9),SUMIFS('Données FDC'!$F:$F,'Données FDC'!$E:$E,Activation!H$9)))/(IF(ISBLANK($F$5),SUMIFS('Données FDC déc 2019'!$F:$F,'Données FDC déc 2019'!$E:$E,Activation!H$9),IF(ISBLANK($J$5),SUMIFS('Données FDC déc 2019'!$F:$F,'Données FDC déc 2019'!$E:$E,Activation!H$9),SUMIFS('Données FDC déc 2019'!$F:$F,'Données FDC déc 2019'!$E:$E,Activation!H$9))))-1 -> -0.01159729169 | I15: =IF(ISBLANK($F$5),SUMIFS('Données FDC'!$F:$F,'Données FDC'!$E:$E,Activation!I$9),IF(ISBLANK($J$5),SUMIFS('Données FDC'!$F:$F,'Données FDC'!$E:$E,Activation!I$9),SUMIFS('Données FDC'!$F:$F,'Données FDC'!$E:$E,Activation!I$9)))/(IF(ISBLANK($F$5),SUMIFS('Données FDC déc 2019'!$F:$F,'Données FDC déc 2019'!$E:$E,Activation!I$9),IF(ISBLANK($J$5),SUMIFS('Données FDC déc 2019'!$F:$F,'Données FDC déc 2019'!$E:$E,Activation!I$9),SUMIFS('Données FDC déc 2019'!$F:$F,'Données FDC déc 2019'!$E:$E,Activation!I$9))))-1 -> -0.03059036009 | J15: =IF(ISBLANK($F$5),SUMIFS('Données FDC'!$F:$F,'Données FDC'!$E:$E,Activation!J$9),IF(ISBLANK($J$5),SUMIFS('Données FDC'!$F:$F,'Données FDC'!$E:$E,Activation!J$9),SUMIFS('Données FDC'!$F:$F,'Données FDC'!$E:$E,Activation!J$9)))/(IF(ISBLANK($F$5),SUMIFS('Données FDC déc 2019'!$F:$F,'Données FDC déc 2019'!$E:$E,Activation!J$9),IF(ISBLANK($J$5),SUMIFS('Données FDC déc 2019'!$F:$F,'Données FDC déc 2019'!$E:$E,Activation!J$9),SUMIFS('Données FDC déc 2019'!$F:$F,'Données FDC déc 2019'!$E:$E,Activation!J$9))))-1 -> -0.009366087633 | K15: =IF(ISBLANK($F$5),SUMIFS('Données FDC'!$F:$F,'Données FDC'!$E:$E,Activation!K$9),IF(ISBLANK($J$5),SUMIFS('Données FDC'!$F:$F,'Données FDC'!$E:$E,Activation!K$9),SUMIFS('Données FDC'!$F:$F,'Données FDC'!$E:$E,Activation!K$9)))/(IF(ISBLANK($F$5),SUMIFS('Données FDC déc 2019'!$F:$F,'Données FDC déc 2019'!$E:$E,Activation!K$9),IF(ISBLANK($J$5),SUMIFS('Données FDC déc 2019'!$F:$F,'Données FDC déc 2019'!$E:$E,Activation!K$9),SUMIFS('Données FDC déc 2019'!$F:$F,'Données FDC déc 2019'!$E:$E,Activation!K$9))))-1 -> -0.1036376115 | L15: =IF(ISBLANK($F$5),SUMIFS('Données FDC'!$F:$F,'Données FDC'!$E:$E,Activation!L$9),IF(ISBLANK($J$5),SUMIFS('Données FDC'!$F:$F,'Données FDC'!$E:$E,Activation!L$9),SUMIFS('Données FDC'!$F:$F,'Données FDC'!$E:$E,Activation!L$9)))/(IF(ISBLANK($F$5),SUMIFS('Données FDC déc 2019'!$F:$F,'Données FDC déc 2019'!$E:$E,Activation!L$9),IF(ISBLANK($J$5),SUMIFS('Données FDC déc 2019'!$F:$F,'Données FDC déc 2019'!$E:$E,Activation!L$9),SUMIFS('Données FDC déc 2019'!$F:$F,'Données FDC déc 2019'!$E:$E,Activation!L$9))))-1 -> 0.003839237984 | M15: =IF(ISBLANK($F$5),SUMIFS('Données FDC'!$F:$F,'Données FDC'!$E:$E,Activation!M$9),IF(ISBLANK($J$5),SUMIFS('Données FDC'!$F:$F,'Données FDC'!$E:$E,Activation!M$9),SUMIFS('Données FDC'!$F:$F,'Données FDC'!$E:$E,Activation!M$9)))/(IF(ISBLANK($F$5),SUMIFS('Données FDC déc 2019'!$F:$F,'Données FDC déc 2019'!$E:$E,Activation!M$9),IF(ISBLANK($J$5),SUMIFS('Données FDC déc 2019'!$F:$F,'Données FDC déc 2019'!$E:$E,Activation!M$9),SUMIFS('Données FDC déc 2019'!$F:$F,'Données FDC déc 2019'!$E:$E,Activation!M$9))))-1 -> -0.03145347295 | N15: =IF(ISBLANK($F$5),SUMIFS('Données FDC'!$F:$F,'Données FDC'!$E:$E,Activation!N$9),IF(ISBLANK($J$5),SUMIFS('Données FDC'!$F:$F,'Données FDC'!$E:$E,Activation!N$9),SUMIFS('Données FDC'!$F:$F,'Données FDC'!$E:$E,Activation!N$9)))/(IF(ISBLANK($F$5),SUMIFS('Données FDC déc 2019'!$F:$F,'Données FDC déc 2019'!$E:$E,Activation!N$9),IF(ISBLANK($J$5),SUMIFS('Données FDC déc 2019'!$F:$F,'Données FDC déc 2019'!$E:$E,Activation!N$9),SUMIFS('Données FDC déc 2019'!$F:$F,'Données FDC déc 2019'!$E:$E,Activation!N$9))))-1 -> -0.04261030706 | O15: =IF(ISBLANK($F$5),SUMIFS('Données FDC'!$F:$F,'Données FDC'!$E:$E,Activation!O$9),IF(ISBLANK($J$5),SUMIFS('Données FDC'!$F:$F,'Données FDC'!$E:$E,Activation!O$9),SUMIFS('Données FDC'!$F:$F,'Données FDC'!$E:$E,Activation!O$9)))/(IF(ISBLANK($F$5),SUMIFS('Données FDC déc 2019'!$F:$F,'Données FDC déc 2019'!$E:$E,Activation!O$9),IF(ISBLANK($J$5),SUMIFS('Données FDC déc 2019'!$F:$F,'Données FDC déc 2019'!$E:$E,Activation!O$9),SUMIFS('Données FDC déc 2019'!$F:$F,'Données FDC déc 2019'!$E:$E,Activation!O$9))))-1 -> -0.06073138531 | P15: =IF(ISBLANK($F$5),SUMIFS('Données FDC'!$F:$F,'Données FDC'!$E:$E,Activation!P$9),IF(ISBLANK($J$5),SUMIFS('Données FDC'!$F:$F,'Données FDC'!$E:$E,Activation!P$9),SUMIFS('Données FDC'!$F:$F,'Données FDC'!$E:$E,Activation!P$9)))/(IF(ISBLANK($F$5),SUMIFS('Données FDC déc 2019'!$F:$F,'Données FDC déc 2019'!$E:$E,Activation!P$9),IF(ISBLANK($J$5),SUMIFS('Données FDC déc 2019'!$F:$F,'Données FDC déc 2019'!$E:$E,Activation!P$9),SUMIFS('Données FDC déc 2019'!$F:$F,'Données FDC déc 2019'!$E:$E,Activation!P$9))))-1 -> -0.07778270735
C16: Nouveaux clients | D16: =SUM(F16:P16) -> 25784 | F16: =IF(ISBLANK($F$5),SUMIFS('Données FDC'!$N:$N,'Données FDC'!$A:$A,Activation!$C$5,'Données FDC'!$E:$E,Activation!F$9),IF(ISBLANK($J$5),SUMIFS('Données FDC'!$N:$N,'Données FDC'!$B:$B,Activation!$F$5,'Données FDC'!$E:$E,Activation!F$9),SUMIFS('Données FDC'!$N:$N,'Données FDC'!$C:$C,Activation!$J$5,'Données FDC'!$E:$E,Activation!F$9))) -> 3066 | G16: =IF(ISBLANK($F$5),SUMIFS('Données FDC'!$N:$N,'Données FDC'!$A:$A,Activation!$C$5,'Données FDC'!$E:$E,Activation!G$9),IF(ISBLANK($J$5),SUMIFS('Données FDC'!$N:$N,'Données FDC'!$B:$B,Activation!$F$5,'Données FDC'!$E:$E,Activation!G$9),SUMIFS('Données FDC'!$N:$N,'Données FDC'!$C:$C,Activation!$J$5,'Données FDC'!$E:$E,Activation!G$9))) -> 1967 | H16: =IF(ISBLANK($F$5),SUMIFS('Données FDC'!$N:$N,'Données FDC'!$A:$A,Activation!$C$5,'Données FDC'!$E:$E,Activation!H$9),IF(ISBLANK($J$5),SUMIFS('Données FDC'!$N:$N,'Données FDC'!$B:$B,Activation!$F$5,'Données FDC'!$E:$E,Activation!H$9),SUMIFS('Données FDC'!$N:$N,'Données FDC'!$C:$C,Activation!$J$5,'Données FDC'!$E:$E,Activation!H$9))) -> 1905 | I16: =IF(ISBLANK($F$5),SUMIFS('Données FDC'!$N:$N,'Données FDC'!$A:$A,Activation!$C$5,'Données FDC'!$E:$E,Activation!I$9),IF(ISBLANK($J$5),SUMIFS('Données FDC'!$N:$N,'Données FDC'!$B:$B,Activation!$F$5,'Données FDC'!$E:$E,Activation!I$9),SUMIFS('Données FDC'!$N:$N,'Données FDC'!$C:$C,Activation!$J$5,'Données FDC'!$E:$E,Activation!I$9))) -> 6540 | J16: =IF(ISBLANK($F$5),SUMIFS('Données FDC'!$N:$N,'Données FDC'!$A:$A,Activation!$C$5,'Données FDC'!$E:$E,Activation!J$9),IF(ISBLANK($J$5),SUMIFS('Données FDC'!$N:$N,'Données FDC'!$B:$B,Activation!$F$5,'Données FDC'!$E:$E,Activation!J$9),SUMIFS('Données FDC'!$N:$N,'Données FDC'!$C:$C,Activation!$J$5,'Données FDC'!$E:$E,Activation!J$9))) -> 1684 | K16: =IF(ISBLANK($F$5),SUMIFS('Données FDC'!$N:$N,'Données FDC'!$A:$A,Activation!$C$5,'Données FDC'!$E:$E,Activation!K$9),IF(ISBLANK($J$5),SUMIFS('Données FDC'!$N:$N,'Données FDC'!$B:$B,Activation!$F$5,'Données FDC'!$E:$E,Activation!K$9),SUMIFS('Données FDC'!$N:$N,'Données FDC'!$C:$C,Activation!$J$5,'Données FDC'!$E:$E,Activation!K$9))) -> 1151 | L16: =IF(ISBLANK($F$5),SUMIFS('Données FDC'!$N:$N,'Données FDC'!$A:$A,Activation!$C$5,'Données FDC'!$E:$E,Activation!L$9),IF(ISBLANK($J$5),SUMIFS('Données FDC'!$N:$N,'Données FDC'!$B:$B,Activation!$F$5,'Données FDC'!$E:$E,Activation!L$9),SUMIFS('Données FDC'!$N:$N,'Données FDC'!$C:$C,Activation!$J$5,'Données FDC'!$E:$E,Activation!L$9))) -> 158 | M16: =IF(ISBLANK($F$5),SUMIFS('Données FDC'!$N:$N,'Données FDC'!$A:$A,Activation!$C$5,'Données FDC'!$E:$E,Activation!M$9),IF(ISBLANK($J$5),SUMIFS('Données FDC'!$N:$N,'Données FDC'!$B:$B,Activation!$F$5,'Données FDC'!$E:$E,Activation!M$9),SUMIFS('Données FDC'!$N:$N,'Données FDC'!$C:$C,Activation!$J$5,'Données FDC'!$E:$E,Activation!M$9))) -> 2086 | N16: =IF(ISBLANK($F$5),SUMIFS('Données FDC'!$N:$N,'Données FDC'!$A:$A,Activation!$C$5,'Données FDC'!$E:$E,Activation!N$9),IF(ISBLANK($J$5),SUMIFS('Données FDC'!$N:$N,'Données FDC'!$B:$B,Activation!$F$5,'Données FDC'!$E:$E,Activation!N$9),SUMIFS('Données FDC'!$N:$N,'Données FDC'!$C:$C,Activation!$J$5,'Données FDC'!$E:$E,Activation!N$9))) -> 4430 | O16: =IF(ISBLANK($F$5),SUMIFS('Données FDC'!$N:$N,'Données FDC'!$A:$A,Activation!$C$5,'Données FDC'!$E:$E,Activation!O$9),IF(ISBLANK($J$5),SUMIFS('Données FDC'!$N:$N,'Données FDC'!$B:$B,Activation!$F$5,'Données FDC'!$E:$E,Activation!O$9),SUMIFS('Données FDC'!$N:$N,'Données FDC'!$C:$C,Activation!$J$5,'Données FDC'!$E:$E,Activation!O$9))) -> 2498 | P16: =IF(ISBLANK($F$5),SUMIFS('Données FDC'!$N:$N,'Données FDC'!$A:$A,Activation!$C$5,'Données FDC'!$E:$E,Activation!P$9),IF(ISBLANK($J$5),SUMIFS('Données FDC'!$N:$N,'Données FDC'!$B:$B,Activation!$F$5,'Données FDC'!$E:$E,Activation!P$9),SUMIFS('Données FDC'!$N:$N,'Données FDC'!$C:$C,Activation!$J$5,'Données FDC'!$E:$E,Activation!P$9))) -> 299
C17: % Conquête | D17: =D16/E10 -> 0.01754364478 | F17: =F16/IF(ISBLANK($F$5),SUMIFS('Données FDC déc 2019'!$F:$F,'Données FDC déc 2019'!$A:$A,Activation!$C$5,'Données FDC déc 2019'!$E:$E,Activation!F$9),IF(ISBLANK($J$5),SUMIFS('Données FDC déc 2019'!$F:$F,'Données FDC déc 2019'!$B:$B,Activation!$F$5,'Données FDC déc 2019'!$E:$E,Activation!F$9),SUMIFS('Données FDC déc 2019'!$F:$F,'Données FDC déc 2019'!$C:$C,Activation!$J$5,'Données FDC déc 2019'!$E:$E,Activation!F$9))) -> 0.01102049179 | G17: =G16/IF(ISBLANK($F$5),SUMIFS('Données FDC déc 2019'!$F:$F,'Données FDC déc 2019'!$A:$A,Activation!$C$5,'Données FDC déc 2019'!$E:$E,Activation!G$9),IF(ISBLANK($J$5),SUMIFS('Données FDC déc 2019'!$F:$F,'Données FDC déc 2019'!$B:$B,Activation!$F$5,'Données FDC déc 2019'!$E:$E,Activation!G$9),SUMIFS('Données FDC déc 2019'!$F:$F,'Données FDC déc 2019'!$C:$C,Activation!$J$5,'Données FDC déc 2019'!$E:$E,Activation!G$9))) -> 0.01230420858 | H17: =H16/IF(ISBLANK($F$5),SUMIFS('Données FDC déc 2019'!$F:$F,'Données FDC déc 2019'!$A:$A,Activation!$C$5,'Données FDC déc 2019'!$E:$E,Activation!H$9),IF(ISBLANK($J$5),SUMIFS('Données FDC déc 2019'!$F:$F,'Données FDC déc 2019'!$B:$B,Activation!$F$5,'Données FDC déc 2019'!$E:$E,Activation!H$9),SUMIFS('Données FDC déc 2019'!$F:$F,'Données FDC déc 2019'!$C:$C,Activation!$J$5,'Données FDC déc 2019'!$E:$E,Activation!H$9))) -> 0.01131779538 | I17: =I16/IF(ISBLANK($F$5),SUMIFS('Données FDC déc 2019'!$F:$F,'Données FDC déc 2019'!$A:$A,Activation!$C$5,'Données FDC déc 2019'!$E:$E,Activation!I$9),IF(ISBLANK($J$5),SUMIFS('Données FDC déc 2019'!$F:$F,'Données FDC déc 2019'!$B:$B,Activation!$F$5,'Données FDC déc 2019'!$E:$E,Activation!I$9),SUMIFS('Données FDC déc 2019'!$F:$F,'Données FDC déc 2019'!$C:$C,Activation!$J$5,'Données FDC déc 2019'!$E:$E,Activation!I$9))) -> 0.01846988054 | J17: =J16/IF(ISBLANK($F$5),SUMIFS('Données FDC déc 2019'!$F:$F,'Données FDC déc 2019'!$A:$A,Activation!$C$5,'Données FDC déc 2019'!$E:$E,Activation!J$9),IF(ISBLANK($J$5),SUMIFS('Données FDC déc 2019'!$F:$F,'Données FDC déc 2019'!$B:$B,Activation!$F$5,'Données FDC déc 2019'!$E:$E,Activation!J$9),SUMIFS('Données FDC déc 2019'!$F:$F,'Données FDC déc 2019'!$C:$C,Activation!$J$5,'Données FDC déc 2019'!$E:$E,Activation!J$9))) -> 0.02731238951 | K17: =K16/IF(ISBLANK($F$5),SUMIFS('Données FDC déc 2019'!$F:$F,'Données FDC déc 2019'!$A:$A,Activation!$C$5,'Données FDC déc 2019'!$E:$E,Activation!K$9),IF(ISBLANK($J$5),SUMIFS('Données FDC déc 2019'!$F:$F,'Données FDC déc 2019'!$B:$B,Activation!$F$5,'Données FDC déc 2019'!$E:$E,Activation!K$9),SUMIFS('Données FDC déc 2019'!$F:$F,'Données FDC déc 2019'!$C:$C,Activation!$J$5,'Données FDC déc 2019'!$E:$E,Activation!K$9))) -> 0.06587306129 | L17: =L16/IF(ISBLANK($F$5),SUMIFS('Données FDC déc 2019'!$F:$F,'Données FDC déc 2019'!$A:$A,Activation!$C$5,'Données FDC déc 2019'!$E:$E,Activation!L$9),IF(ISBLANK($J$5),SUMIFS('Données FDC déc 2019'!$F:$F,'Données FDC déc 2019'!$B:$B,Activation!$F$5,'Données FDC déc 2019'!$E:$E,Activation!L$9),SUMIFS('Données FDC déc 2019'!$F:$F,'Données FDC déc 2019'!$C:$C,Activation!$J$5,'Données FDC déc 2019'!$E:$E,Activation!L$9))) -> 0.01537264059 | M17: =M16/IF(ISBLANK($F$5),SUMIFS('Données FDC déc 2019'!$F:$F,'Données FDC déc 2019'!$A:$A,Activation!$C$5,'Données FDC déc 2019'!$E:$E,Activation!M$9),IF(ISBLANK($J$5),SUMIFS('Données FDC déc 2019'!$F:$F,'Données FDC déc 2019'!$B:$B,Activation!$F$5,'Données FDC déc 2019'!$E:$E,Activation!M$9),SUMIFS('Données FDC déc 2019'!$F:$F,'Données FDC déc 2019'!$C:$C,Activation!$J$5,'Données FDC déc 2019'!$E:$E,Activation!M$9))) -> 0.02840684706 | N17: =N16/IF(ISBLANK($F$5),SUMIFS('Données FDC déc 2019'!$F:$F,'Données FDC déc 2019'!$A:$A,Activation!$C$5,'Données FDC déc 2019'!$E:$E,Activation!N$9),IF(ISBLANK($J$5),SUMIFS('Données FDC déc 2019'!$F:$F,'Données FDC déc 2019'!$B:$B,Activation!$F$5,'Données FDC déc 2019'!$E:$E,Activation!N$9),SUMIFS('Données FDC déc 2019'!$F:$F,'Données FDC déc 2019'!$C:$C,Activation!$J$5,'Données FDC déc 2019'!$E:$E,Activation!N$9))) -> 0.05120558522 | O17: =O16/IF(ISBLANK($F$5),SUMIFS('Données FDC déc 2019'!$F:$F,'Données FDC déc 2019'!$A:$A,Activation!$C$5,'Données FDC déc 2019'!$E:$E,Activation!O$9),IF(ISBLANK($J$5),SUMIFS('Données FDC déc 2019'!$F:$F,'Données FDC déc 2019'!$B:$B,Activation!$F$5,'Données FDC déc 2019'!$E:$E,Activation!O$9),SUMIFS('Données FDC déc 2019'!$F:$F,'Données FDC déc 2019'!$C:$C,Activation!$J$5,'Données FDC déc 2019'!$E:$E,Activation!O$9))) -> 0.0397796038 | P17: =P16/IF(ISBLANK($F$5),SUMIFS('Données FDC déc 2019'!$F:$F,'Données FDC déc 2019'!$A:$A,Activation!$C$5,'Données FDC déc 2019'!$E:$E,Activation!P$9),IF(ISBLANK($J$5),SUMIFS('Données FDC déc 2019'!$F:$F,'Données FDC déc 2019'!$B:$B,Activation!$F$5,'Données FDC déc 2019'!$E:$E,Activation!P$9),SUMIFS('Données FDC déc 2019'!$F:$F,'Données FDC déc 2019'!$C:$C,Activation!$J$5,'Données FDC déc 2019'!$E:$E,Activation!P$9))) -> 0.001517204285
C18: % Conquête CEGEE | D18: =SUM('Données FDC'!$N:$N)/SUM('Données FDC déc 2019'!$F:$F) -> 0.01752666318 | F18: =SUMIF('Données FDC'!$E:$E,Activation!F$9,'Données FDC'!$N:$N)/SUMIF('Données FDC déc 2019'!$E:$E,Activation!F$9,'Données FDC déc 2019'!$F:$F) -> 0.01100587447 | G18: =SUMIF('Données FDC'!$E:$E,Activation!G$9,'Données FDC'!$N:$N)/SUMIF('Données FDC déc 2019'!$E:$E,Activation!G$9,'Données FDC déc 2019'!$F:$F) -> 0.01228814353 | H18: =SUMIF('Données FDC'!$E:$E,Activation!H$9,'Données FDC'!$N:$N)/SUMIF('Données FDC déc 2019'!$E:$E,Activation!H$9,'Données FDC déc 2019'!$F:$F) -> 0.01130936302 | I18: =SUMIF('Données FDC'!$E:$E,Activation!I$9,'Données FDC'!$N:$N)/SUMIF('Données FDC déc 2019'!$E:$E,Activation!I$9,'Données FDC déc 2019'!$F:$F) -> 0.01845580765 | J18: =SUMIF('Données FDC'!$E:$E,Activation!J$9,'Données FDC'!$N:$N)/SUMIF('Données FDC déc 2019'!$E:$E,Activation!J$9,'Données FDC déc 2019'!$F:$F) -> 0.02728804771 | K18: =SUMIF('Données FDC'!$E:$E,Activation!K$9,'Données FDC'!$N:$N)/SUMIF('Données FDC déc 2019'!$E:$E,Activation!K$9,'Données FDC déc 2019'!$F:$F) -> 0.06583161748 | L18: =SUMIF('Données FDC'!$E:$E,Activation!L$9,'Données FDC'!$N:$N)/SUMIF('Données FDC déc 2019'!$E:$E,Activation!L$9,'Données FDC déc 2019'!$F:$F) -> 0.01535695194 | M18: =SUMIF('Données FDC'!$E:$E,Activation!M$9,'Données FDC'!$N:$N)/SUMIF('Données FDC déc 2019'!$E:$E,Activation!M$9,'Données FDC déc 2019'!$F:$F) -> 0.02838500738 | N18: =SUMIF('Données FDC'!$E:$E,Activation!N$9,'Données FDC'!$N:$N)/SUMIF('Données FDC déc 2019'!$E:$E,Activation!N$9,'Données FDC déc 2019'!$F:$F) -> 0.0511485328 | O18: =SUMIF('Données FDC'!$E:$E,Activation!O$9,'Données FDC'!$N:$N)/SUMIF('Données FDC déc 2019'!$E:$E,Activation!O$9,'Données FDC déc 2019'!$F:$F) -> 0.03973467797 | P18: =SUMIF('Données FDC'!$E:$E,Activation!P$9,'Données FDC'!$N:$N)/SUMIF('Données FDC déc 2019'!$E:$E,Activation!P$9,'Données FDC déc 2019'!$F:$F) -> 0.001516054203
C19: Clients sortants | D19: =SUM(F19:P19) -> 66113 | F19: =IF(ISBLANK($F$5),SUMIFS('Données FDC'!$O:$O,'Données FDC'!$A:$A,Activation!$C$5,'Données FDC'!$E:$E,Activation!F$9),IF(ISBLANK($J$5),SUMIFS('Données FDC'!$O:$O,'Données FDC'!$B:$B,Activation!$F$5,'Données FDC'!$E:$E,Activation!F$9),SUMIFS('Données FDC'!$O:$O,'Données FDC'!$C:$C,Activation!$J$5,'Données FDC'!$E:$E,Activation!F$9))) -> 1696 | G19: =IF(ISBLANK($F$5),SUMIFS('Données FDC'!$O:$O,'Données FDC'!$A:$A,Activation!$C$5,'Données FDC'!$E:$E,Activation!G$9),IF(ISBLANK($J$5),SUMIFS('Données FDC'!$O:$O,'Données FDC'!$B:$B,Activation!$F$5,'Données FDC'!$E:$E,Activation!G$9),SUMIFS('Données FDC'!$O:$O,'Données FDC'!$C:$C,Activation!$J$5,'Données FDC'!$E:$E,Activation!G$9))) -> 3633 | H19: =IF(ISBLANK($F$5),SUMIFS('Données FDC'!$O:$O,'Données FDC'!$A:$A,Activation!$C$5,'Données FDC'!$E:$E,Activation!H$9),IF(ISBLANK($J$5),SUMIFS('Données FDC'!$O:$O,'Données FDC'!$B:$B,Activation!$F$5,'Données FDC'!$E:$E,Activation!H$9),SUMIFS('Données FDC'!$O:$O,'Données FDC'!$C:$C,Activation!$J$5,'Données FDC'!$E:$E,Activation!H$9))) -> 4876 | I19: =IF(ISBLANK($F$5),SUMIFS('Données FDC'!$O:$O,'Données FDC'!$A:$A,Activation!$C$5,'Données FDC'!$E:$E,Activation!I$9),IF(ISBLANK($J$5),SUMIFS('Données FDC'!$O:$O,'Données FDC'!$B:$B,Activation!$F$5,'Données FDC'!$E:$E,Activation!I$9),SUMIFS('Données FDC'!$O:$O,'Données FDC'!$C:$C,Activation!$J$5,'Données FDC'!$E:$E,Activation!I$9))) -> 20051 | J19: =IF(ISBLANK($F$5),SUMIFS('Données FDC'!$O:$O,'Données FDC'!$A:$A,Activation!$C$5,'Données FDC'!$E:$E,Activation!J$9),IF(ISBLANK($J$5),SUMIFS('Données FDC'!$O:$O,'Données FDC'!$B:$B,Activation!$F$5,'Données FDC'!$E:$E,Activation!J$9),SUMIFS('Données FDC'!$O:$O,'Données FDC'!$C:$C,Activation!$J$5,'Données FDC'!$E:$E,Activation!J$9))) -> 688 | K19: =IF(ISBLANK($F$5),SUMIFS('Données FDC'!$O:$O,'Données FDC'!$A:$A,Activation!$C$5,'Données FDC'!$E:$E,Activation!K$9),IF(ISBLANK($J$5),SUMIFS('Données FDC'!$O:$O,'Données FDC'!$B:$B,Activation!$F$5,'Données FDC'!$E:$E,Activation!K$9),SUMIFS('Données FDC'!$O:$O,'Données FDC'!$C:$C,Activation!$J$5,'Données FDC'!$E:$E,Activation!K$9))) -> 1324 | L19: =IF(ISBLANK($F$5),SUMIFS('Données FDC'!$O:$O,'Données FDC'!$A:$A,Activation!$C$5,'Données FDC'!$E:$E,Activation!L$9),IF(ISBLANK($J$5),SUMIFS('Données FDC'!$O:$O,'Données FDC'!$B:$B,Activation!$F$5,'Données FDC'!$E:$E,Activation!L$9),SUMIFS('Données FDC'!$O:$O,'Données FDC'!$C:$C,Activation!$J$5,'Données FDC'!$E:$E,Activation!L$9))) -> 139 | M19: =IF(ISBLANK($F$5),SUMIFS('Données FDC'!$O:$O,'Données FDC'!$A:$A,Activation!$C$5,'Données FDC'!$E:$E,Activation!M$9),IF(ISBLANK($J$5),SUMIFS('Données FDC'!$O:$O,'Données FDC'!$B:$B,Activation!$F$5,'Données FDC'!$E:$E,Activation!M$9),SUMIFS('Données FDC'!$O:$O,'Données FDC'!$C:$C,Activation!$J$5,'Données FDC'!$E:$E,Activation!M$9))) -> 4578 | N19: =IF(ISBLANK($F$5),SUMIFS('Données FDC'!$O:$O,'Données FDC'!$A:$A,Activation!$C$5,'Données FDC'!$E:$E,Activation!N$9),IF(ISBLANK($J$5),SUMIFS('Données FDC'!$O:$O,'Données FDC'!$B:$B,Activation!$F$5,'Données FDC'!$E:$E,Activation!N$9),SUMIFS('Données FDC'!$O:$O,'Données FDC'!$C:$C,Activation!$J$5,'Données FDC'!$E:$E,Activation!N$9))) -> 1480 | O19: =IF(ISBLANK($F$5),SUMIFS('Données FDC'!$O:$O,'Données FDC'!$A:$A,Activation!$C$5,'Données FDC'!$E:$E,Activation!O$9),IF(ISBLANK($J$5),SUMIFS('Données FDC'!$O:$O,'Données FDC'!$B:$B,Activation!$F$5,'Données FDC'!$E:$E,Activation!O$9),SUMIFS('Données FDC'!$O:$O,'Données FDC'!$C:$C,Activation!$J$5,'Données FDC'!$E:$E,Activation!O$9))) -> 1545 | P19: =IF(ISBLANK($F$5),SUMIFS('Données FDC'!$O:$O,'Données FDC'!$A:$A,Activation!$C$5,'Données FDC'!$E:$E,Activation!P$9),IF(ISBLANK($J$5),SUMIFS('Données FDC'!$O:$O,'Données FDC'!$B:$B,Activation!$F$5,'Données FDC'!$E:$E,Activation!P$9),SUMIFS('Données FDC'!$O:$O,'Données FDC'!$C:$C,Activation!$J$5,'Données FDC'!$E:$E,Activation!P$9))) -> 26103
C20: % Attrition | D20: =D19/E10 -> 0.0449838267 | F20: =F19/IF(ISBLANK($F$5),SUMIFS('Données FDC déc 2019'!$F:$F,'Données FDC déc 2019'!$A:$A,Activation!$C$5,'Données FDC déc 2019'!$E:$E,Activation!F$9),IF(ISBLANK($J$5),SUMIFS('Données FDC déc 2019'!$F:$F,'Données FDC déc 2019'!$B:$B,Activation!$F$5,'Données FDC déc 2019'!$E:$E,Activation!F$9),SUMIFS('Données FDC déc 2019'!$F:$F,'Données FDC déc 2019'!$C:$C,Activation!$J$5,'Données FDC déc 2019'!$E:$E,Activation!F$9))) -> 0.006096136358 | G20: =G19/IF(ISBLANK($F$5),SUMIFS('Données FDC déc 2019'!$F:$F,'Données FDC déc 2019'!$A:$A,Activation!$C$5,'Données FDC déc 2019'!$E:$E,Activation!G$9),IF(ISBLANK($J$5),SUMIFS('Données FDC déc 2019'!$F:$F,'Données FDC déc 2019'!$B:$B,Activation!$F$5,'Données FDC déc 2019'!$E:$E,Activation!G$9),SUMIFS('Données FDC déc 2019'!$F:$F,'Données FDC déc 2019'!$C:$C,Activation!$J$5,'Données FDC déc 2019'!$E:$E,Activation!G$9))) -> 0.02272556673 | H20: =H19/IF(ISBLANK($F$5),SUMIFS('Données FDC déc 2019'!$F:$F,'Données FDC déc 2019'!$A:$A,Activation!$C$5,'Données FDC déc 2019'!$E:$E,Activation!H$9),IF(ISBLANK($J$5),SUMIFS('Données FDC déc 2019'!$F:$F,'Données FDC déc 2019'!$B:$B,Activation!$F$5,'Données FDC déc 2019'!$E:$E,Activation!H$9),SUMIFS('Données FDC déc 2019'!$F:$F,'Données FDC déc 2019'!$C:$C,Activation!$J$5,'Données FDC déc 2019'!$E:$E,Activation!H$9))) -> 0.02896880328 | I20: =I19/IF(ISBLANK($F$5),SUMIFS('Données FDC déc 2019'!$F:$F,'Données FDC déc 2019'!$A:$A,Activation!$C$5,'Données FDC déc 2019'!$E:$E,Activation!I$9),IF(ISBLANK($J$5),SUMIFS('Données FDC déc 2019'!$F:$F,'Données FDC déc 2019'!$B:$B,Activation!$F$5,'Données FDC déc 2019'!$E:$E,Activation!I$9),SUMIFS('Données FDC déc 2019'!$F:$F,'Données FDC déc 2019'!$C:$C,Activation!$J$5,'Données FDC déc 2019'!$E:$E,Activation!I$9))) -> 0.05662684628 | J20: =J19/IF(ISBLANK($F$5),SUMIFS('Données FDC déc 2019'!$F:$F,'Données FDC déc 2019'!$A:$A,Activation!$C$5,'Données FDC déc 2019'!$E:$E,Activation!J$9),IF(ISBLANK($J$5),SUMIFS('Données FDC déc 2019'!$F:$F,'Données FDC déc 2019'!$B:$B,Activation!$F$5,'Données FDC déc 2019'!$E:$E,Activation!J$9),SUMIFS('Données FDC déc 2019'!$F:$F,'Données FDC déc 2019'!$C:$C,Activation!$J$5,'Données FDC déc 2019'!$E:$E,Activation!J$9))) -> 0.01115850593 | K20: =K19/IF(ISBLANK($F$5),SUMIFS('Données FDC déc 2019'!$F:$F,'Données FDC déc 2019'!$A:$A,Activation!$C$5,'Données FDC déc 2019'!$E:$E,Activation!K$9),IF(ISBLANK($J$5),SUMIFS('Données FDC déc 2019'!$F:$F,'Données FDC déc 2019'!$B:$B,Activation!$F$5,'Données FDC déc 2019'!$E:$E,Activation!K$9),SUMIFS('Données FDC déc 2019'!$F:$F,'Données FDC déc 2019'!$C:$C,Activation!$J$5,'Données FDC déc 2019'!$E:$E,Activation!K$9))) -> 0.07577405139 | L20: =L19/IF(ISBLANK($F$5),SUMIFS('Données FDC déc 2019'!$F:$F,'Données FDC déc 2019'!$A:$A,Activation!$C$5,'Données FDC déc 2019'!$E:$E,Activation!L$9),IF(ISBLANK($J$5),SUMIFS('Données FDC déc 2019'!$F:$F,'Données FDC déc 2019'!$B:$B,Activation!$F$5,'Données FDC déc 2019'!$E:$E,Activation!L$9),SUMIFS('Données FDC déc 2019'!$F:$F,'Données FDC déc 2019'!$C:$C,Activation!$J$5,'Données FDC déc 2019'!$E:$E,Activation!L$9))) -> 0.01352403191 | M20: =M19/IF(ISBLANK($F$5),SUMIFS('Données FDC déc 2019'!$F:$F,'Données FDC déc 2019'!$A:$A,Activation!$C$5,'Données FDC déc 2019'!$E:$E,Activation!M$9),IF(ISBLANK($J$5),SUMIFS('Données FDC déc 2019'!$F:$F,'Données FDC déc 2019'!$B:$B,Activation!$F$5,'Données FDC déc 2019'!$E:$E,Activation!M$9),SUMIFS('Données FDC déc 2019'!$F:$F,'Données FDC déc 2019'!$C:$C,Activation!$J$5,'Données FDC déc 2019'!$E:$E,Activation!M$9))) -> 0.06234254354 | N20: =N19/IF(ISBLANK($F$5),SUMIFS('Données FDC déc 2019'!$F:$F,'Données FDC déc 2019'!$A:$A,Activation!$C$5,'Données FDC déc 2019'!$E:$E,Activation!N$9),IF(ISBLANK($J$5),SUMIFS('Données FDC déc 2019'!$F:$F,'Données FDC déc 2019'!$B:$B,Activation!$F$5,'Données FDC déc 2019'!$E:$E,Activation!N$9),SUMIFS('Données FDC déc 2019'!$F:$F,'Données FDC déc 2019'!$C:$C,Activation!$J$5,'Données FDC déc 2019'!$E:$E,Activation!N$9))) -> 0.01710705782 | O20: =O19/IF(ISBLANK($F$5),SUMIFS('Données FDC déc 2019'!$F:$F,'Données FDC déc 2019'!$A:$A,Activation!$C$5,'Données FDC déc 2019'!$E:$E,Activation!O$9),IF(ISBLANK($J$5),SUMIFS('Données FDC déc 2019'!$F:$F,'Données FDC déc 2019'!$B:$B,Activation!$F$5,'Données FDC déc 2019'!$E:$E,Activation!O$9),SUMIFS('Données FDC déc 2019'!$F:$F,'Données FDC déc 2019'!$C:$C,Activation!$J$5,'Données FDC déc 2019'!$E:$E,Activation!O$9))) -> 0.02460347793 | P20: =P19/IF(ISBLANK($F$5),SUMIFS('Données FDC déc 2019'!$F:$F,'Données FDC déc 2019'!$A:$A,Activation!$C$5,'Données FDC déc 2019'!$E:$E,Activation!P$9),IF(ISBLANK($J$5),SUMIFS('Données FDC déc 2019'!$F:$F,'Données FDC déc 2019'!$B:$B,Activation!$F$5,'Données FDC déc 2019'!$E:$E,Activation!P$9),SUMIFS('Données FDC déc 2019'!$F:$F,'Données FDC déc 2019'!$C:$C,Activation!$J$5,'Données FDC déc 2019'!$E:$E,Activation!P$9))) -> 0.1324534563
C21: % Attrition CEGEE | D21: =SUM('Données FDC'!$O:$O)/SUM('Données FDC déc 2019'!$F:$F) -> 0.044940284 | F21: =SUMIF('Données FDC'!$E:$E,Activation!F$9,'Données FDC'!$O:$O)/SUMIF('Données FDC déc 2019'!$E:$E,Activation!F$9,'Données FDC déc 2019'!$F:$F) -> 0.006088050585 | G21: =SUMIF('Données FDC'!$E:$E,Activation!G$9,'Données FDC'!$O:$O)/SUMIF('Données FDC déc 2019'!$E:$E,Activation!G$9,'Données FDC déc 2019'!$F:$F) -> 0.022695895 | H21: =SUMIF('Données FDC'!$E:$E,Activation!H$9,'Données FDC'!$O:$O)/SUMIF('Données FDC déc 2019'!$E:$E,Activation!H$9,'Données FDC déc 2019'!$F:$F) -> 0.02894722 | I21: =SUMIF('Données FDC'!$E:$E,Activation!I$9,'Données FDC'!$O:$O)/SUMIF('Données FDC déc 2019'!$E:$E,Activation!I$9,'Données FDC déc 2019'!$F:$F) -> 0.05658370019 | J21: =SUMIF('Données FDC'!$E:$E,Activation!J$9,'Données FDC'!$O:$O)/SUMIF('Données FDC déc 2019'!$E:$E,Activation!J$9,'Données FDC déc 2019'!$F:$F) -> 0.01114856106 | K21: =SUMIF('Données FDC'!$E:$E,Activation!K$9,'Données FDC'!$O:$O)/SUMIF('Données FDC déc 2019'!$E:$E,Activation!K$9,'Données FDC déc 2019'!$F:$F) -> 0.0757263784 | L21: =SUMIF('Données FDC'!$E:$E,Activation!L$9,'Données FDC'!$O:$O)/SUMIF('Données FDC déc 2019'!$E:$E,Activation!L$9,'Données FDC déc 2019'!$F:$F) -> 0.01351022987 | M21: =SUMIF('Données FDC'!$E:$E,Activation!M$9,'Données FDC'!$O:$O)/SUMIF('Données FDC déc 2019'!$E:$E,Activation!M$9,'Données FDC déc 2019'!$F:$F) -> 0.06229461352 | N21: =SUMIF('Données FDC'!$E:$E,Activation!N$9,'Données FDC'!$O:$O)/SUMIF('Données FDC déc 2019'!$E:$E,Activation!N$9,'Données FDC déc 2019'!$F:$F) -> 0.01708799741 | O21: =SUMIF('Données FDC'!$E:$E,Activation!O$9,'Données FDC'!$O:$O)/SUMIF('Données FDC déc 2019'!$E:$E,Activation!O$9,'Données FDC déc 2019'!$F:$F) -> 0.02457569154 | P21: =SUMIF('Données FDC'!$E:$E,Activation!P$9,'Données FDC'!$O:$O)/SUMIF('Données FDC déc 2019'!$E:$E,Activation!P$9,'Données FDC déc 2019'!$F:$F) -> 0.132353053
B22: Age | C22: Moyenne | D22: =IF(ISBLANK($F$5),SUMIFS('Données pour moyenne'!$S:$S,'Données pour moyenne'!$Q:$Q,Activation!$C$5),IF(ISBLANK($J$5),SUMIFS('Données pour moyenne'!$H:$H,'Données pour moyenne'!$F:$F,Activation!$F$5),SUMIFS('Données pour moyenne'!$C:$C,'Données pour moyenne'!$A:$A,Activation!$J$5))) -> 46.31787933 | E22: =IF(ISBLANK($F$5),SUMIFS('Données pour moyenne 2019'!$S:$S,'Données pour moyenne 2019'!$Q:$Q,Activation!$C$5),IF(ISBLANK($J$5),SUMIFS('Données pour moyenne 2019'!$H:$H,'Données pour moyenne 2019'!$F:$F,Activation!$F$5),SUMIFS('Données pour moyenne 2019'!$C:$C,'Données pour moyenne 2019'!$A:$A,Activation!$J$5))) -> 46 | F22: =IF(ISBLANK($F$5),SUMIFS('Données pour moyenne'!$Y:$Y,'Données pour moyenne'!$V:$V,Activation!$C$5,'Données pour moyenne'!$X:$X,Activation!F$9),IF(ISBLANK($J$5),SUMIFS('Données pour moyenne'!$N:$N,'Données pour moyenne'!$K:$K,Activation!$F$5,'Données pour moyenne'!$M:$M,Activation!F$9),SUMIFS('Données FDC'!$P:$P,'Données FDC'!$C:$C,Activation!$J$5,'Données FDC'!$E:$E,Activation!F$9))) -> 49.68717307 | G22: =IF(ISBLANK($F$5),SUMIFS('Données pour moyenne'!$Y:$Y,'Données pour moyenne'!$V:$V,Activation!$C$5,'Données pour moyenne'!$X:$X,Activation!G$9),IF(ISBLANK($J$5),SUMIFS('Données pour moyenne'!$N:$N,'Données pour moyenne'!$K:$K,Activation!$F$5,'Données pour moyenne'!$M:$M,Activation!G$9),SUMIFS('Données FDC'!$P:$P,'Données FDC'!$C:$C,Activation!$J$5,'Données FDC'!$E:$E,Activation!G$9))) -> 52.49699681 | H22: =IF(ISBLANK($F$5),SUMIFS('Données pour moyenne'!$Y:$Y,'Données pour moyenne'!$V:$V,Activation!$C$5,'Données pour moyenne'!$X:$X,Activation!H$9),IF(ISBLANK($J$5),SUMIFS('Données pour moyenne'!$N:$N,'Données pour moyenne'!$K:$K,Activation!$F$5,'Données pour moyenne'!$M:$M,Activation!H$9),SUMIFS('Données FDC'!$P:$P,'Données FDC'!$C:$C,Activation!$J$5,'Données FDC'!$E:$E,Activation!H$9))) -> 64.24665477 | I22: =IF(ISBLANK($F$5),SUMIFS('Données pour moyenne'!$Y:$Y,'Données pour moyenne'!$V:$V,Activation!$C$5,'Données pour moyenne'!$X:$X,Activation!I$9),IF(ISBLANK($J$5),SUMIFS('Données pour moyenne'!$N:$N,'Données pour moyenne'!$K:$K,Activation!$F$5,'Données pour moyenne'!$M:$M,Activation!I$9),SUMIFS('Données FDC'!$P:$P,'Données FDC'!$C:$C,Activation!$J$5,'Données FDC'!$E:$E,Activation!I$9))) -> 57.34849116 | J22: =IF(ISBLANK($F$5),SUMIFS('Données pour moyenne'!$Y:$Y,'Données pour moyenne'!$V:$V,Activation!$C$5,'Données pour moyenne'!$X:$X,Activation!J$9),IF(ISBLANK($J$5),SUMIFS('Données pour moyenne'!$N:$N,'Données pour moyenne'!$K:$K,Activation!$F$5,'Données pour moyenne'!$M:$M,Activation!J$9),SUMIFS('Données FDC'!$P:$P,'Données FDC'!$C:$C,Activation!$J$5,'Données FDC'!$E:$E,Activation!J$9))) -> 21.60622822 | K22: =IF(ISBLANK($F$5),SUMIFS('Données pour moyenne'!$Y:$Y,'Données pour moyenne'!$V:$V,Activation!$C$5,'Données pour moyenne'!$X:$X,Activation!K$9),IF(ISBLANK($J$5),SUMIFS('Données pour moyenne'!$N:$N,'Données pour moyenne'!$K:$K,Activation!$F$5,'Données pour moyenne'!$M:$M,Activation!K$9),SUMIFS('Données FDC'!$P:$P,'Données FDC'!$C:$C,Activation!$J$5,'Données FDC'!$E:$E,Activation!K$9))) -> 20.95104359 | L22: =IF(ISBLANK($F$5),SUMIFS('Données pour moyenne'!$Y:$Y,'Données pour moyenne'!$V:$V,Activation!$C$5,'Données pour moyenne'!$X:$X,Activation!L$9),IF(ISBLANK($J$5),SUMIFS('Données pour moyenne'!$N:$N,'Données pour moyenne'!$K:$K,Activation!$F$5,'Données pour moyenne'!$M:$M,Activation!L$9),SUMIFS('Données FDC'!$P:$P,'Données FDC'!$C:$C,Activation!$J$5,'Données FDC'!$E:$E,Activation!L$9))) -> 19.13697569 | M22: =IF(ISBLANK($F$5),SUMIFS('Données pour moyenne'!$Y:$Y,'Données pour moyenne'!$V:$V,Activation!$C$5,'Données pour moyenne'!$X:$X,Activation!M$9),IF(ISBLANK($J$5),SUMIFS('Données pour moyenne'!$N:$N,'Données pour moyenne'!$K:$K,Activation!$F$5,'Données pour moyenne'!$M:$M,Activation!M$9),SUMIFS('Données FDC'!$P:$P,'Données FDC'!$C:$C,Activation!$J$5,'Données FDC'!$E:$E,Activation!M$9))) -> 19.99381736 | N22: =IF(ISBLANK($F$5),SUMIFS('Données pour moyenne'!$Y:$Y,'Données pour moyenne'!$V:$V,Activation!$C$5,'Données pour moyenne'!$X:$X,Activation!N$9),IF(ISBLANK($J$5),SUMIFS('Données pour moyenne'!$N:$N,'Données pour moyenne'!$K:$K,Activation!$F$5,'Données pour moyenne'!$M:$M,Activation!N$9),SUMIFS('Données FDC'!$P:$P,'Données FDC'!$C:$C,Activation!$J$5,'Données FDC'!$E:$E,Activation!N$9))) -> 8.170997708 | O22: =IF(ISBLANK($F$5),SUMIFS('Données pour moyenne'!$Y:$Y,'Données pour moyenne'!$V:$V,Activation!$C$5,'Données pour moyenne'!$X:$X,Activation!O$9),IF(ISBLANK($J$5),SUMIFS('Données pour moyenne'!$N:$N,'Données pour moyenne'!$K:$K,Activation!$F$5,'Données pour moyenne'!$M:$M,Activation!O$9),SUMIFS('Données FDC'!$P:$P,'Données FDC'!$C:$C,Activation!$J$5,'Données FDC'!$E:$E,Activation!O$9))) -> 10.3056793 | P22: =IF(ISBLANK($F$5),SUMIFS('Données pour moyenne'!$Y:$Y,'Données pour moyenne'!$V:$V,Activation!$C$5,'Données pour moyenne'!$X:$X,Activation!P$9),IF(ISBLANK($J$5),SUMIFS('Données pour moyenne'!$N:$N,'Données pour moyenne'!$K:$K,Activation!$F$5,'Données pour moyenne'!$M:$M,Activation!P$9),SUMIFS('Données FDC'!$P:$P,'Données FDC'!$C:$C,Activation!$J$5,'Données FDC'!$E:$E,Activation!P$9))) -> 50.01096053
C23: Moyenne CEGEE | D23: ='Données pour moyenne'!AC2 -> 46.31787933 | E23: ='Données pour moyenne 2019'!AC2 -> 46 | F23: =VLOOKUP(F$9,'Données pour moyenne'!$AF:$AG,2,FALSE) -> 49.68717307 | G23: =VLOOKUP(G$9,'Données pour moyenne'!$AF:$AG,2,FALSE) -> 52.49699681 | H23: =VLOOKUP(H$9,'Données pour moyenne'!$AF:$AG,2,FALSE) -> 64.24665477 | I23: =VLOOKUP(I$9,'Données pour moyenne'!$AF:$AG,2,FALSE) -> 57.34849116 | J23: =VLOOKUP(J$9,'Données pour moyenne'!$AF:$AG,2,FALSE) -> 21.60622822 | K23: =VLOOKUP(K$9,'Données pour moyenne'!$AF:$AG,2,FALSE) -> 20.95104359 | L23: =VLOOKUP(L$9,'Données pour moyenne'!$AF:$AG,2,FALSE) -> 19.13697569 | M23: =VLOOKUP(M$9,'Données pour moyenne'!$AF:$AG,2,FALSE) -> 19.99381736 | N23: =VLOOKUP(N$9,'Données pour moyenne'!$AF:$AG,2,FALSE) -> 8.170997708 | O23: =VLOOKUP(O$9,'Données pour moyenne'!$AF:$AG,2,FALSE) -> 10.3056793 | P23: =VLOOKUP(P$9,'Données pour moyenne'!$AF:$AG,2,FALSE) -> 50.01096053
B24: PNB client annuel (en €) | C24: Moyenne | D24: =IF(ISBLANK($F$5),SUMIFS('Données pour moyenne'!$BJ:$BJ,'Données pour moyenne'!$BH:$BH,Activation!$C$5),IF(ISBLANK($J$5),SUMIFS('Données pour moyenne'!$BA:$BA,'Données pour moyenne'!$AY:$AY,Activation!$F$5),SUMIFS('Données pour moyenne'!$AR:$AR,'Données pour moyenne'!$AP:$AP,Activation!$J$5))) -> 321.4263531 | E24: =IF(ISBLANK($F$5),SUMIFS('Données pour moyenne 2019'!$BJ:$BJ,'Données pour moyenne 2019'!$BH:$BH,Activation!$C$5),IF(ISBLANK($J$5),SUMIFS('Données pour moyenne 2019'!$BA:$BA,'Données pour moyenne 2019'!$AY:$AY,Activation!$F$5),SUMIFS('Données pour moyenne 2019'!$AR:$AR,'Données pour moyenne 2019'!$AP:$AP,Activation!$J$5))) -> 323.4841 | F24: =IF(ISBLANK($F$5),SUMIFS('Données pour moyenne'!$BF:$BF,'Données pour moyenne'!$BC:$BC,Activation!$C$5,'Données pour moyenne'!$BE:$BE,Activation!F$9),IF(ISBLANK($J$5),SUMIFS('Données pour moyenne'!$AW:$AW,'Données pour moyenne'!$AT:$AT,Activation!$F$5,'Données pour moyenne'!$AV:$AV,Activation!F$9),SUMIFS('Données pour moyenne'!$AM:$AM,'Données pour moyenne'!$AJ:$AJ,Activation!$J$5,'Données pour moyenne'!$AL:$AL,Activation!F$9))) -> 616.7171668 | G24: =IF(ISBLANK($F$5),SUMIFS('Données pour moyenne'!$BF:$BF,'Données pour moyenne'!$BC:$BC,Activation!$C$5,'Données pour moyenne'!$BE:$BE,Activation!G$9),IF(ISBLANK($J$5),SUMIFS('Données pour moyenne'!$AW:$AW,'Données pour moyenne'!$AT:$AT,Activation!$F$5,'Données pour moyenne'!$AV:$AV,Activation!G$9),SUMIFS('Données pour moyenne'!$AM:$AM,'Données pour moyenne'!$AJ:$AJ,Activation!$J$5,'Données pour moyenne'!$AL:$AL,Activation!G$9))) -> 319.6246178 | H24: =IF(ISBLANK($F$5),SUMIFS('Données pour moyenne'!$BF:$BF,'Données pour moyenne'!$BC:$BC,Activation!$C$5,'Données pour moyenne'!$BE:$BE,Activation!H$9),IF(ISBLANK($J$5),SUMIFS('Données pour moyenne'!$AW:$AW,'Données pour moyenne'!$AT:$AT,Activation!$F$5,'Données pour moyenne'!$AV:$AV,Activation!H$9),SUMIFS('Données pour moyenne'!$AM:$AM,'Données pour moyenne'!$AJ:$AJ,Activation!$J$5,'Données pour moyenne'!$AL:$AL,Activation!H$9))) -> 429.7915146 | I24: =IF(ISBLANK($F$5),SUMIFS('Données pour moyenne'!$BF:$BF,'Données pour moyenne'!$BC:$BC,Activation!$C$5,'Données pour moyenne'!$BE:$BE,Activation!I$9),IF(ISBLANK($J$5),SUMIFS('Données pour moyenne'!$AW:$AW,'Données pour moyenne'!$AT:$AT,Activation!$F$5,'Données pour moyenne'!$AV:$AV,Activation!I$9),SUMIFS('Données pour moyenne'!$AM:$AM,'Données pour moyenne'!$AJ:$AJ,Activation!$J$5,'Données pour moyenne'!$AL:$AL,Activation!I$9))) -> 102.4556819 | J24: =IF(ISBLANK($F$5),SUMIFS('Données pour moyenne'!$BF:$BF,'Données pour moyenne'!$BC:$BC,Activation!$C$5,'Données pour moyenne'!$BE:$BE,Activation!J$9),IF(ISBLANK($J$5),SUMIFS('Données pour moyenne'!$AW:$AW,'Données pour moyenne'!$AT:$AT,Activation!$F$5,'Données pour moyenne'!$AV:$AV,Activation!J$9),SUMIFS('Données pour moyenne'!$AM:$AM,'Données pour moyenne'!$AJ:$AJ,Activation!$J$5,'Données pour moyenne'!$AL:$AL,Activation!J$9))) -> 224.5631564 | K24: =IF(ISBLANK($F$5),SUMIFS('Données pour moyenne'!$BF:$BF,'Données pour moyenne'!$BC:$BC,Activation!$C$5,'Données pour moyenne'!$BE:$BE,Activation!K$9),IF(ISBLANK($J$5),SUMIFS('Données pour moyenne'!$AW:$AW,'Données pour moyenne'!$AT:$AT,Activation!$F$5,'Données pour moyenne'!$AV:$AV,Activation!K$9),SUMIFS('Données pour moyenne'!$AM:$AM,'Données pour moyenne'!$AJ:$AJ,Activation!$J$5,'Données pour moyenne'!$AL:$AL,Activation!K$9))) -> 137.3484532 | L24: =IF(ISBLANK($F$5),SUMIFS('Données pour moyenne'!$BF:$BF,'Données pour moyenne'!$BC:$BC,Activation!$C$5,'Données pour moyenne'!$BE:$BE,Activation!L$9),IF(ISBLANK($J$5),SUMIFS('Données pour moyenne'!$AW:$AW,'Données pour moyenne'!$AT:$AT,Activation!$F$5,'Données pour moyenne'!$AV:$AV,Activation!L$9),SUMIFS('Données pour moyenne'!$AM:$AM,'Données pour moyenne'!$AJ:$AJ,Activation!$J$5,'Données pour moyenne'!$AL:$AL,Activation!L$9))) -> 106.2451478 | M24: =IF(ISBLANK($F$5),SUMIFS('Données pour moyenne'!$BF:$BF,'Données pour moyenne'!$BC:$BC,Activation!$C$5,'Données pour moyenne'!$BE:$BE,Activation!M$9),IF(ISBLANK($J$5),SUMIFS('Données pour moyenne'!$AW:$AW,'Données pour moyenne'!$AT:$AT,Activation!$F$5,'Données pour moyenne'!$AV:$AV,Activation!M$9),SUMIFS('Données pour moyenne'!$AM:$AM,'Données pour moyenne'!$AJ:$AJ,Activation!$J$5,'Données pour moyenne'!$AL:$AL,Activation!M$9))) -> 17.87214254
C25: Moyenne CEGEE | D25: ='Données pour moyenne'!BN2 -> 321.4263531 | E25: ='Données pour moyenne 2019'!BN2 -> 323.4841 | F25: =SUMIF('Données pour moyenne'!$BQ:$BQ,Activation!F$9,'Données pour moyenne'!$BR:$BR) -> 616.7171668 | G25: =SUMIF('Données pour moyenne'!$BQ:$BQ,Activation!G$9,'Données pour moyenne'!$BR:$BR) -> 319.6246178 | H25: =SUMIF('Données pour moyenne'!$BQ:$BQ,Activation!H$9,'Données pour moyenne'!$BR:$BR) -> 429.7915146 | I25: =SUMIF('Données pour moyenne'!$BQ:$BQ,Activation!I$9,'Données pour moyenne'!$BR:$BR) -> 102.4556819 | J25: =SUMIF('Données pour moyenne'!$BQ:$BQ,Activation!J$9,'Données pour moyenne'!$BR:$BR) -> 224.5631564 | K25: =SUMIF('Données pour moyenne'!$BQ:$BQ,Activation!K$9,'Données pour moyenne'!$BR:$BR) -> 137.3484532 | L25: =SUMIF('Données pour moyenne'!$BQ:$BQ,Activation!L$9,'Données pour moyenne'!$BR:$BR) -> 106.2451478 | M25: =SUMIF('Données pour moyenne'!$BQ:$BQ,Activation!M$9,'Données pour moyenne'!$BR:$BR) -> 17.87214254
C26: Variation | D26: =D24/(IF(ISBLANK($F$5),SUMIFS('Données pour moyenne 2019'!$BJ:$BJ,'Données pour moyenne 2019'!$BH:$BH,Activation!$C$5),IF(ISBLANK($J$5),SUMIFS('Données pour moyenne 2019'!$BA:$BA,'Données pour moyenne 2019'!$AY:$AY,Activation!$F$5),SUMIFS('Données pour moyenne 2019'!$AR:$AR,'Données pour moyenne 2019'!$AP:$AP,Activation!$J$5))))-1 -> -0.006361199392 | F26: =F24/(IF(ISBLANK($F$5),SUMIFS('Données pour moyenne 2019'!$BF:$BF,'Données pour moyenne 2019'!$BC:$BC,Activation!$C$5,'Données pour moyenne 2019'!$BE:$BE,Activation!F$9),IF(ISBLANK($J$5),SUMIFS('Données pour moyenne 2019'!$AW:$AW,'Données pour moyenne 2019'!$AT:$AT,Activation!$F$5,'Données pour moyenne 2019'!$AV:$AV,Activation!F$9),SUMIFS('Données pour moyenne 2019'!$AM:$AM,'Données pour moyenne 2019'!$AJ:$AJ,Activation!$J$5,'Données pour moyenne 2019'!$AL:$AL,Activation!F$9))))-1 -> 0.01574331428 | G26: =G24/(IF(ISBLANK($F$5),SUMIFS('Données pour moyenne 2019'!$BF:$BF,'Données pour moyenne 2019'!$BC:$BC,Activation!$C$5,'Données pour moyenne 2019'!$BE:$BE,Activation!G$9),IF(ISBLANK($J$5),SUMIFS('Données pour moyenne 2019'!$AW:$AW,'Données pour moyenne 2019'!$AT:$AT,Activation!$F$5,'Données pour moyenne 2019'!$AV:$AV,Activation!G$9),SUMIFS('Données pour moyenne 2019'!$AM:$AM,'Données pour moyenne 2019'!$AJ:$AJ,Activation!$J$5,'Données pour moyenne 2019'!$AL:$AL,Activation!G$9))))-1 -> -0.1135589963 | H26: =H24/(IF(ISBLANK($F$5),SUMIFS('Données pour moyenne 2019'!$BF:$BF,'Données pour moyenne 2019'!$BC:$BC,Activation!$C$5,'Données pour moyenne 2019'!$BE:$BE,Activation!H$9),IF(ISBLANK($J$5),SUMIFS('Données pour moyenne 2019'!$AW:$AW,'Données pour moyenne 2019'!$AT:$AT,Activation!$F$5,'Données pour moyenne 2019'!$AV:$AV,Activation!H$9),SUMIFS('Données pour moyenne 2019'!$AM:$AM,'Données pour moyenne 2019'!$AJ:$AJ,Activation!$J$5,'Données pour moyenne 2019'!$AL:$AL,Activation!H$9))))-1 -> -0.04597104249 | I26: =I24/(IF(ISBLANK($F$5),SUMIFS('Données pour moyenne 2019'!$BF:$BF,'Données pour moyenne 2019'!$BC:$BC,Activation!$C$5,'Données pour moyenne 2019'!$BE:$BE,Activation!I$9),IF(ISBLANK($J$5),SUMIFS('Données pour moyenne 2019'!$AW:$AW,'Données pour moyenne 2019'!$AT:$AT,Activation!$F$5,'Données pour moyenne 2019'!$AV:$AV,Activation!I$9),SUMIFS('Données pour moyenne 2019'!$AM:$AM,'Données pour moyenne 2019'!$AJ:$AJ,Activation!$J$5,'Données pour moyenne 2019'!$AL:$AL,Activation!I$9))))-1 -> -0.04295379485 | J26: =J24/(IF(ISBLANK($F$5),SUMIFS('Données pour moyenne 2019'!$BF:$BF,'Données pour moyenne 2019'!$BC:$BC,Activation!$C$5,'Données pour moyenne 2019'!$BE:$BE,Activation!J$9),IF(ISBLANK($J$5),SUMIFS('Données pour moyenne 2019'!$AW:$AW,'Données pour moyenne 2019'!$AT:$AT,Activation!$F$5,'Données pour moyenne 2019'!$AV:$AV,Activation!J$9),SUMIFS('Données pour moyenne 2019'!$AM:$AM,'Données pour moyenne 2019'!$AJ:$AJ,Activation!$J$5,'Données pour moyenne 2019'!$AL:$AL,Activation!J$9))))-1 -> -0.03102733045 | K26: =K24/(IF(ISBLANK($F$5),SUMIFS('Données pour moyenne 2019'!$BF:$BF,'Données pour moyenne 2019'!$BC:$BC,Activation!$C$5,'Données pour moyenne 2019'!$BE:$BE,Activation!K$9),IF(ISBLANK($J$5),SUMIFS('Données pour moyenne 2019'!$AW:$AW,'Données pour moyenne 2019'!$AT:$AT,Activation!$F$5,'Données pour moyenne 2019'!$AV:$AV,Activation!K$9),SUMIFS('Données pour moyenne 2019'!$AM:$AM,'Données pour moyenne 2019'!$AJ:$AJ,Activation!$J$5,'Données pour moyenne 2019'!$AL:$AL,Activation!K$9))))-1 -> -0.1497879786 | L26: =L24/(IF(ISBLANK($F$5),SUMIFS('Données pour moyenne 2019'!$BF:$BF,'Données pour moyenne 2019'!$BC:$BC,Activation!$C$5,'Données pour moyenne 2019'!$BE:$BE,Activation!L$9),IF(ISBLANK($J$5),SUMIFS('Données pour moyenne 2019'!$AW:$AW,'Données pour moyenne 2019'!$AT:$AT,Activation!$F$5,'Données pour moyenne 2019'!$AV:$AV,Activation!L$9),SUMIFS('Données pour moyenne 2019'!$AM:$AM,'Données pour moyenne 2019'!$AJ:$AJ,Activation!$J$5,'Données pour moyenne 2019'!$AL:$AL,Activation!L$9))))-1 -> -0.04555195393 | M26: =M24/(IF(ISBLANK($F$5),SUMIFS('Données pour moyenne 2019'!$BF:$BF,'Données pour moyenne 2019'!$BC:$BC,Activation!$C$5,'Données pour moyenne 2019'!$BE:$BE,Activation!M$9),IF(ISBLANK($J$5),SUMIFS('Données pour moyenne 2019'!$AW:$AW,'Données pour moyenne 2019'!$AT:$AT,Activation!$F$5,'Données pour moyenne 2019'!$AV:$AV,Activation!M$9),SUMIFS('Données pour moyenne 2019'!$AM:$AM,'Données pour moyenne 2019'!$AJ:$AJ,Activation!$J$5,'Données pour moyenne 2019'!$AL:$AL,Activation!M$9))))-1 -> -0.08242206725
C27: Variation CEGEE | D27: =(D25-E25)/E25 -> -0.006361199392 | F27: =(F25/SUMIF('Données pour moyenne 2019'!$BQ:$BQ,Activation!F$9,'Données pour moyenne 2019'!$BR:$BR))-1 -> 0.01574331428 | G27: =(G25/SUMIF('Données pour moyenne 2019'!$BQ:$BQ,Activation!G$9,'Données pour moyenne 2019'!$BR:$BR))-1 -> -0.1135589963 | H27: =(H25/SUMIF('Données pour moyenne 2019'!$BQ:$BQ,Activation!H$9,'Données pour moyenne 2019'!$BR:$BR))-1 -> -0.04597104249 | I27: =(I25/SUMIF('Données pour moyenne 2019'!$BQ:$BQ,Activation!I$9,'Données pour moyenne 2019'!$BR:$BR))-1 -> -0.04295379485 | J27: =(J25/SUMIF('Données pour moyenne 2019'!$BQ:$BQ,Activation!J$9,'Données pour moyenne 2019'!$BR:$BR))-1 -> -0.03102733045 | K27: =(K25/SUMIF('Données pour moyenne 2019'!$BQ:$BQ,Activation!K$9,'Données pour moyenne 2019'!$BR:$BR))-1 -> -0.1497879786 | L27: =(L25/SUMIF('Données pour moyenne 2019'!$BQ:$BQ,Activation!L$9,'Données pour moyenne 2019'!$BR:$BR))-1 -> -0.04555195393 | M27: =(M25/SUMIF('Données pour moyenne 2019'!$BQ:$BQ,Activation!M$9,'Données pour moyenne 2019'!$BR:$BR))-1 -> -0.08242206725
B28: SF totale moyenne (en €) | C28: Moyenne | D28: =IF(ISBLANK($F$5),SUMIFS('Données pour moyenne'!$T:$T,'Données pour moyenne'!$Q:$Q,Activation!$C$5),IF(ISBLANK($J$5),SUMIFS('Données pour moyenne'!$I:$I,'Données pour moyenne'!$F:$F,Activation!$F$5),SUMIFS('Données pour moyenne'!$D:$D,'Données pour moyenne'!$A:$A,Activation!$J$5))) -> 21586.78488 | E28: =IF(ISBLANK($F$5),SUMIFS('Données pour moyenne 2019'!$T:$T,'Données pour moyenne 2019'!$Q:$Q,Activation!$C$5),IF(ISBLANK($J$5),SUMIFS('Données pour moyenne 2019'!$I:$I,'Données pour moyenne 2019'!$F:$F,Activation!$F$5),SUMIFS('Données pour moyenne 2019'!$D:$D,'Données pour moyenne 2019'!$A:$A,Activation!$J$5))) -> 20565.5405 | F28: =IF(ISBLANK($F$5),SUMIFS('Données pour moyenne'!$Z:$Z,'Données pour moyenne'!$V:$V,Activation!$C$5,'Données pour moyenne'!$X:$X,Activation!F$9),IF(ISBLANK($J$5),SUMIFS('Données pour moyenne'!$O:$O,'Données pour moyenne'!$K:$K,Activation!$F$5,'Données pour moyenne'!$M:$M,Activation!F$9),SUMIFS('Données FDC'!$Q:$Q,'Données FDC'!$C:$C,Activation!$J$5,'Données FDC'!$E:$E,Activation!F$9))) -> 41591.68179 | G28: =IF(ISBLANK($F$5),SUMIFS('Données pour moyenne'!$Z:$Z,'Données pour moyenne'!$V:$V,Activation!$C$5,'Données pour moyenne'!$X:$X,Activation!G$9),IF(ISBLANK($J$5),SUMIFS('Données pour moyenne'!$O:$O,'Données pour moyenne'!$K:$K,Activation!$F$5,'Données pour moyenne'!$M:$M,Activation!G$9),SUMIFS('Données FDC'!$Q:$Q,'Données FDC'!$C:$C,Activation!$J$5,'Données FDC'!$E:$E,Activation!G$9))) -> 17553.85144 | H28: =IF(ISBLANK($F$5),SUMIFS('Données pour moyenne'!$Z:$Z,'Données pour moyenne'!$V:$V,Activation!$C$5,'Données pour moyenne'!$X:$X,Activation!H$9),IF(ISBLANK($J$5),SUMIFS('Données pour moyenne'!$O:$O,'Données pour moyenne'!$K:$K,Activation!$F$5,'Données pour moyenne'!$M:$M,Activation!H$9),SUMIFS('Données FDC'!$Q:$Q,'Données FDC'!$C:$C,Activation!$J$5,'Données FDC'!$E:$E,Activation!H$9))) -> 67965.46603 | I28: =IF(ISBLANK($F$5),SUMIFS('Données pour moyenne'!$Z:$Z,'Données pour moyenne'!$V:$V,Activation!$C$5,'Données pour moyenne'!$X:$X,Activation!I$9),IF(ISBLANK($J$5),SUMIFS('Données pour moyenne'!$O:$O,'Données pour moyenne'!$K:$K,Activation!$F$5,'Données pour moyenne'!$M:$M,Activation!I$9),SUMIFS('Données FDC'!$Q:$Q,'Données FDC'!$C:$C,Activation!$J$5,'Données FDC'!$E:$E,Activation!I$9))) -> 10790.09461 | J28: =IF(ISBLANK($F$5),SUMIFS('Données pour moyenne'!$Z:$Z,'Données pour moyenne'!$V:$V,Activation!$C$5,'Données pour moyenne'!$X:$X,Activation!J$9),IF(ISBLANK($J$5),SUMIFS('Données pour moyenne'!$O:$O,'Données pour moyenne'!$K:$K,Activation!$F$5,'Données pour moyenne'!$M:$M,Activation!J$9),SUMIFS('Données FDC'!$Q:$Q,'Données FDC'!$C:$C,Activation!$J$5,'Données FDC'!$E:$E,Activation!J$9))) -> 10403.53538 | K28: =IF(ISBLANK($F$5),SUMIFS('Données pour moyenne'!$Z:$Z,'Données pour moyenne'!$V:$V,Activation!$C$5,'Données pour moyenne'!$X:$X,Activation!K$9),IF(ISBLANK($J$5),SUMIFS('Données pour moyenne'!$O:$O,'Données pour moyenne'!$K:$K,Activation!$F$5,'Données pour moyenne'!$M:$M,Activation!K$9),SUMIFS('Données FDC'!$Q:$Q,'Données FDC'!$C:$C,Activation!$J$5,'Données FDC'!$E:$E,Activation!K$9))) -> 1318.528774 | L28: =IF(ISBLANK($F$5),SUMIFS('Données pour moyenne'!$Z:$Z,'Données pour moyenne'!$V:$V,Activation!$C$5,'Données pour moyenne'!$X:$X,Activation!L$9),IF(ISBLANK($J$5),SUMIFS('Données pour moyenne'!$O:$O,'Données pour moyenne'!$K:$K,Activation!$F$5,'Données pour moyenne'!$M:$M,Activation!L$9),SUMIFS('Données FDC'!$Q:$Q,'Données FDC'!$C:$C,Activation!$J$5,'Données FDC'!$E:$E,Activation!L$9))) -> 16666.00551 | M28: =IF(ISBLANK($F$5),SUMIFS('Données pour moyenne'!$Z:$Z,'Données pour moyenne'!$V:$V,Activation!$C$5,'Données pour moyenne'!$X:$X,Activation!M$9),IF(ISBLANK($J$5),SUMIFS('Données pour moyenne'!$O:$O,'Données pour moyenne'!$K:$K,Activation!$F$5,'Données pour moyenne'!$M:$M,Activation!M$9),SUMIFS('Données FDC'!$Q:$Q,'Données FDC'!$C:$C,Activation!$J$5,'Données FDC'!$E:$E,Activation!M$9))) -> 2231.597885 | N28: =IF(ISBLANK($F$5),SUMIFS('Données pour moyenne'!$Z:$Z,'Données pour moyenne'!$V:$V,Activation!$C$5,'Données pour moyenne'!$X:$X,Activation!N$9),IF(ISBLANK($J$5),SUMIFS('Données pour moyenne'!$O:$O,'Données pour moyenne'!$K:$K,Activation!$F$5,'Données pour moyenne'!$M:$M,Activation!N$9),SUMIFS('Données FDC'!$Q:$Q,'Données FDC'!$C:$C,Activation!$J$5,'Données FDC'!$E:$E,Activation!N$9))) -> 4524.331639 | O28: =IF(ISBLANK($F$5),SUMIFS('Données pour moyenne'!$Z:$Z,'Données pour moyenne'!$V:$V,Activation!$C$5,'Données pour moyenne'!$X:$X,Activation!O$9),IF(ISBLANK($J$5),SUMIFS('Données pour moyenne'!$O:$O,'Données pour moyenne'!$K:$K,Activation!$F$5,'Données pour moyenne'!$M:$M,Activation!O$9),SUMIFS('Données FDC'!$Q:$Q,'Données FDC'!$C:$C,Activation!$J$5,'Données FDC'!$E:$E,Activation!O$9))) -> 1096.922199 | P28: =IF(ISBLANK($F$5),SUMIFS('Données pour moyenne'!$Z:$Z,'Données pour moyenne'!$V:$V,Activation!$C$5,'Données pour moyenne'!$X:$X,Activation!P$9),IF(ISBLANK($J$5),SUMIFS('Données pour moyenne'!$O:$O,'Données pour moyenne'!$K:$K,Activation!$F$5,'Données pour moyenne'!$M:$M,Activation!P$9),SUMIFS('Données FDC'!$Q:$Q,'Données FDC'!$C:$C,Activation!$J$5,'Données FDC'!$E:$E,Activation!P$9))) -> 17.17035748
C29: Moyenne CEGEE | D29: ='Données pour moyenne'!AD2 -> 21586.78488 | E29: ='Données pour moyenne 2019'!AD2 -> 20565.5405 | F29: =VLOOKUP(F$9,'Données pour moyenne'!$AF:$AH,3,FALSE) -> 41591.68179 | G29: =VLOOKUP(G$9,'Données pour moyenne'!$AF:$AH,3,FALSE) -> 17553.85144 | H29: =VLOOKUP(H$9,'Données pour moyenne'!$AF:$AH,3,FALSE) -> 67965.46603 | I29: =VLOOKUP(I$9,'Données pour moyenne'!$AF:$AH,3,FALSE) -> 10790.09461 | J29: =VLOOKUP(J$9,'Données pour moyenne'!$AF:$AH,3,FALSE) -> 10403.53538 | K29: =VLOOKUP(K$9,'Données pour moyenne'!$AF:$AH,3,FALSE) -> 1318.528774 | L29: =VLOOKUP(L$9,'Données pour moyenne'!$AF:$AH,3,FALSE) -> 16666.00551 | M29: =VLOOKUP(M$9,'Données pour moyenne'!$AF:$AH,3,FALSE) -> 2231.597885 | N29: =VLOOKUP(N$9,'Données pour moyenne'!$AF:$AH,3,FALSE) -> 4524.331639 | O29: =VLOOKUP(O$9,'Données pour moyenne'!$AF:$AH,3,FALSE) -> 1096.922199 | P29: =VLOOKUP(P$9,'Données pour moyenne'!$AF:$AH,3,FALSE) -> 17.17035748
C30: Variation | D30: =(D28-E28)/E28 -> 0.04965803793 | F30: =F28/(IF(ISBLANK($F$5),SUMIFS('Données pour moyenne 2019'!$Z:$Z,'Données pour moyenne 2019'!$V:$V,Activation!$C$5,'Données pour moyenne 2019'!$X:$X,Activation!F$9),IF(ISBLANK($J$5),SUMIFS('Données pour moyenne 2019'!$O:$O,'Données pour moyenne 2019'!$K:$K,Activation!$F$5,'Données pour moyenne 2019'!$M:$M,Activation!F$9),SUMIFS('Données FDC déc 2019'!$Q:$Q,'Données FDC déc 2019'!$C:$C,Activation!$J$5,'Données FDC déc 2019'!$E:$E,Activation!F$9))))-1 -> 0.02550896068 | G30: =G28/(IF(ISBLANK($F$5),SUMIFS('Données pour moyenne 2019'!$Z:$Z,'Données pour moyenne 2019'!$V:$V,Activation!$C$5,'Données pour moyenne 2019'!$X:$X,Activation!G$9),IF(ISBLANK($J$5),SUMIFS('Données pour moyenne 2019'!$O:$O,'Données pour moyenne 2019'!$K:$K,Activation!$F$5,'Données pour moyenne 2019'!$M:$M,Activation!G$9),SUMIFS('Données FDC déc 2019'!$Q:$Q,'Données FDC déc 2019'!$C:$C,Activation!$J$5,'Données FDC déc 2019'!$E:$E,Activation!G$9))))-1 -> 0.06233930764 | H30: =H28/(IF(ISBLANK($F$5),SUMIFS('Données pour moyenne 2019'!$Z:$Z,'Données pour moyenne 2019'!$V:$V,Activation!$C$5,'Données pour moyenne 2019'!$X:$X,Activation!H$9),IF(ISBLANK($J$5),SUMIFS('Données pour moyenne 2019'!$O:$O,'Données pour moyenne 2019'!$K:$K,Activation!$F$5,'Données pour moyenne 2019'!$M:$M,Activation!H$9),SUMIFS('Données FDC déc 2019'!$Q:$Q,'Données FDC déc 2019'!$C:$C,Activation!$J$5,'Données FDC déc 2019'!$E:$E,Activation!H$9))))-1 -> 0.01424952629 | I30: =I28/(IF(ISBLANK($F$5),SUMIFS('Données pour moyenne 2019'!$Z:$Z,'Données pour moyenne 2019'!$V:$V,Activation!$C$5,'Données pour moyenne 2019'!$X:$X,Activation!I$9),IF(ISBLANK($J$5),SUMIFS('Données pour moyenne 2019'!$O:$O,'Données pour moyenne 2019'!$K:$K,Activation!$F$5,'Données pour moyenne 2019'!$M:$M,Activation!I$9),SUMIFS('Données FDC déc 2019'!$Q:$Q,'Données FDC déc 2019'!$C:$C,Activation!$J$5,'Données FDC déc 2019'!$E:$E,Activation!I$9))))-1 -> 0.05485428727 | J30: =J28/(IF(ISBLANK($F$5),SUMIFS('Données pour moyenne 2019'!$Z:$Z,'Données pour moyenne 2019'!$V:$V,Activation!$C$5,'Données pour moyenne 2019'!$X:$X,Activation!J$9),IF(ISBLANK($J$5),SUMIFS('Données pour moyenne 2019'!$O:$O,'Données pour moyenne 2019'!$K:$K,Activation!$F$5,'Données pour moyenne 2019'!$M:$M,Activation!J$9),SUMIFS('Données FDC déc 2019'!$Q:$Q,'Données FDC déc 2019'!$C:$C,Activation!$J$5,'Données FDC déc 2019'!$E:$E,Activation!J$9))))-1 -> 0.05692809347 | K30: =K28/(IF(ISBLANK($F$5),SUMIFS('Données pour moyenne 2019'!$Z:$Z,'Données pour moyenne 2019'!$V:$V,Activation!$C$5,'Données pour moyenne 2019'!$X:$X,Activation!K$9),IF(ISBLANK($J$5),SUMIFS('Données pour moyenne 2019'!$O:$O,'Données pour moyenne 2019'!$K:$K,Activation!$F$5,'Données pour moyenne 2019'!$M:$M,Activation!K$9),SUMIFS('Données FDC déc 2019'!$Q:$Q,'Données FDC déc 2019'!$C:$C,Activation!$J$5,'Données FDC déc 2019'!$E:$E,Activation!K$9))))-1 -> 0.21246441 | L30: =L28/(IF(ISBLANK($F$5),SUMIFS('Données pour moyenne 2019'!$Z:$Z,'Données pour moyenne 2019'!$V:$V,Activation!$C$5,'Données pour moyenne 2019'!$X:$X,Activation!L$9),IF(ISBLANK($J$5),SUMIFS('Données pour moyenne 2019'!$O:$O,'Données pour moyenne 2019'!$K:$K,Activation!$F$5,'Données pour moyenne 2019'!$M:$M,Activation!L$9),SUMIFS('Données FDC déc 2019'!$Q:$Q,'Données FDC déc 2019'!$C:$C,Activation!$J$5,'Données FDC déc 2019'!$E:$E,Activation!L$9))))-1 -> -0.004374831097 | M30: =M28/(IF(ISBLANK($F$5),SUMIFS('Données pour moyenne 2019'!$Z:$Z,'Données pour moyenne 2019'!$V:$V,Activation!$C$5,'Données pour moyenne 2019'!$X:$X,Activation!M$9),IF(ISBLANK($J$5),SUMIFS('Données pour moyenne 2019'!$O:$O,'Données pour moyenne 2019'!$K:$K,Activation!$F$5,'Données pour moyenne 2019'!$M:$M,Activation!M$9),SUMIFS('Données FDC déc 2019'!$Q:$Q,'Données FDC déc 2019'!$C:$C,Activation!$J$5,'Données FDC déc 2019'!$E:$E,Activation!M$9))))-1 -> 0.05949898589 | N30: =N28/(IF(ISBLANK($F$5),SUMIFS('Données pour moyenne 2019'!$Z:$Z,'Données pour moyenne 2019'!$V:$V,Activation!$C$5,'Données pour moyenne 2019'!$X:$X,Activation!N$9),IF(ISBLANK($J$5),SUMIFS('Données pour moyenne 2019'!$O:$O,'Données pour moyenne 2019'!$K:$K,Activation!$F$5,'Données pour moyenne 2019'!$M:$M,Activation!N$9),SUMIFS('Données FDC déc 2019'!$Q:$Q,'Données FDC déc 2019'!$C:$C,Activation!$J$5,'Données FDC déc 2019'!$E:$E,Activation!N$9))))-1 -> 0.03235617266 | O30: =O28/(IF(ISBLANK($F$5),SUMIFS('Données pour moyenne 2019'!$Z:$Z,'Données pour moyenne 2019'!$V:$V,Activation!$C$5,'Données pour moyenne 2019'!$X:$X,Activation!O$9),IF(ISBLANK($J$5),SUMIFS('Données pour moyenne 2019'!$O:$O,'Données pour moyenne 2019'!$K:$K,Activation!$F$5,'Données pour moyenne 2019'!$M:$M,Activation!O$9),SUMIFS('Données FDC déc 2019'!$Q:$Q,'Données FDC déc 2019'!$C:$C,Activation!$J$5,'Données FDC déc 2019'!$E:$E,Activation!O$9))))-1 -> 0.07229474735 | P30: =P28/(IF(ISBLANK($F$5),SUMIFS('Données pour moyenne 2019'!$Z:$Z,'Données pour moyenne 2019'!$V:$V,Activation!$C$5,'Données pour moyenne 2019'!$X:$X,Activation!P$9),IF(ISBLANK($J$5),SUMIFS('Données pour moyenne 2019'!$O:$O,'Données pour moyenne 2019'!$K:$K,Activation!$F$5,'Données pour moyenne 2019'!$M:$M,Activation!P$9),SUMIFS('Données FDC déc 2019'!$Q:$Q,'Données FDC déc 2019'!$C:$C,Activation!$J$5,'Données FDC déc 2019'!$E:$E,Activation!P$9))))-1 -> 0.04388464049
C31: Variation CEGEE | D31: =(D29-E29)/E29 -> 0.04965803793 | F31: =F29/VLOOKUP(F$9,'Données pour moyenne 2019'!$AF:$AH,3,FALSE)-1 -> 0.02550896068 | G31: =G29/VLOOKUP(G$9,'Données pour moyenne 2019'!$AF:$AH,3,FALSE)-1 -> 0.06233930764 | H31: =H29/VLOOKUP(H$9,'Données pour moyenne 2019'!$AF:$AH,3,FALSE)-1 -> 0.01424952629 | I31: =I29/VLOOKUP(I$9,'Données pour moyenne 2019'!$AF:$AH,3,FALSE)-1 -> 0.05485428727 | J31: =J29/VLOOKUP(J$9,'Données pour moyenne 2019'!$AF:$AH,3,FALSE)-1 -> 0.05692809347 | K31: =K29/VLOOKUP(K$9,'Données pour moyenne 2019'!$AF:$AH,3,FALSE)-1 -> 0.21246441 | L31: =L29/VLOOKUP(L$9,'Données pour moyenne 2019'!$AF:$AH,3,FALSE)-1 -> -0.004374831097 | M31: =M29/VLOOKUP(M$9,'Données pour moyenne 2019'!$AF:$AH,3,FALSE)-1 -> 0.05949898589 | N31: =N29/VLOOKUP(N$9,'Données pour moyenne 2019'!$AF:$AH,3,FALSE)-1 -> 0.03235617266 | O31: =O29/VLOOKUP(O$9,'Données pour moyenne 2019'!$AF:$AH,3,FALSE)-1 -> 0.07229474735 | P31: =P29/VLOOKUP(P$9,'Données pour moyenne 2019'!$AF:$AH,3,FALSE)-1 -> 0.04388464049
B32: Encours de collecte (en K€) | C32: Montant | D32: =SUM(F32:P32) -> 30903699.33 | E32: =IF(ISBLANK($F$5),(SUMIFS('Données FDC déc 2019'!$R:$R,'Données FDC déc 2019'!$A:$A,Activation!$C$5))/1000,IF(ISBLANK($J$5),(SUMIFS('Données FDC déc 2019'!$R:$R,'Données FDC déc 2019'!$B:$B,Activation!$F$5))/1000,(SUMIFS('Données FDC déc 2019'!$R:$R,'Données FDC déc 2019'!$C:$C,Activation!$J$5))/1000)) -> 30225298.26 | F32: =IF(ISBLANK($F$5),(SUMIFS('Données FDC'!$R:$R,'Données FDC'!$A:$A,Activation!$C$5,'Données FDC'!$E:$E,Activation!F$9))/1000,IF(ISBLANK($J$5),(SUMIFS('Données FDC'!$R:$R,'Données FDC'!$B:$B,Activation!$F$5,'Données FDC'!$E:$E,Activation!F$9))/1000,(SUMIFS('Données FDC'!$R:$R,'Données FDC'!$C:$C,Activation!$J$5,'Données FDC'!$E:$E,Activation!F$9))/1000)) -> 11656615.47 | G32: =IF(ISBLANK($F$5),(SUMIFS('Données FDC'!$R:$R,'Données FDC'!$A:$A,Activation!$C$5,'Données FDC'!$E:$E,Activation!G$9))/1000,IF(ISBLANK($J$5),(SUMIFS('Données FDC'!$R:$R,'Données FDC'!$B:$B,Activation!$F$5,'Données FDC'!$E:$E,Activation!G$9))/1000,(SUMIFS('Données FDC'!$R:$R,'Données FDC'!$C:$C,Activation!$J$5,'Données FDC'!$E:$E,Activation!G$9))/1000)) -> 2759540.239 | H32: =IF(ISBLANK($F$5),(SUMIFS('Données FDC'!$R:$R,'Données FDC'!$A:$A,Activation!$C$5,'Données FDC'!$E:$E,Activation!H$9))/1000,IF(ISBLANK($J$5),(SUMIFS('Données FDC'!$R:$R,'Données FDC'!$B:$B,Activation!$F$5,'Données FDC'!$E:$E,Activation!H$9))/1000,(SUMIFS('Données FDC'!$R:$R,'Données FDC'!$C:$C,Activation!$J$5,'Données FDC'!$E:$E,Activation!H$9))/1000)) -> 11321109.73 | I32: =IF(ISBLANK($F$5),(SUMIFS('Données FDC'!$R:$R,'Données FDC'!$A:$A,Activation!$C$5,'Données FDC'!$E:$E,Activation!I$9))/1000,IF(ISBLANK($J$5),(SUMIFS('Données FDC'!$R:$R,'Données FDC'!$B:$B,Activation!$F$5,'Données FDC'!$E:$E,Activation!I$9))/1000,(SUMIFS('Données FDC'!$R:$R,'Données FDC'!$C:$C,Activation!$J$5,'Données FDC'!$E:$E,Activation!I$9))/1000)) -> 3733210.227 | J32: =IF(ISBLANK($F$5),(SUMIFS('Données FDC'!$R:$R,'Données FDC'!$A:$A,Activation!$C$5,'Données FDC'!$E:$E,Activation!J$9))/1000,IF(ISBLANK($J$5),(SUMIFS('Données FDC'!$R:$R,'Données FDC'!$B:$B,Activation!$F$5,'Données FDC'!$E:$E,Activation!J$9))/1000,(SUMIFS('Données FDC'!$R:$R,'Données FDC'!$C:$C,Activation!$J$5,'Données FDC'!$E:$E,Activation!J$9))/1000)) -> 636327.1797 | K32: =IF(ISBLANK($F$5),(SUMIFS('Données FDC'!$R:$R,'Données FDC'!$A:$A,Activation!$C$5,'Données FDC'!$E:$E,Activation!K$9))/1000,IF(ISBLANK($J$5),(SUMIFS('Données FDC'!$R:$R,'Données FDC'!$B:$B,Activation!$F$5,'Données FDC'!$E:$E,Activation!K$9))/1000,(SUMIFS('Données FDC'!$R:$R,'Données FDC'!$C:$C,Activation!$J$5,'Données FDC'!$E:$E,Activation!K$9))/1000)) -> 20658.12396 | L32: =IF(ISBLANK($F$5),(SUMIFS('Données FDC'!$R:$R,'Données FDC'!$A:$A,Activation!$C$5,'Données FDC'!$E:$E,Activation!L$9))/1000,IF(ISBLANK($J$5),(SUMIFS('Données FDC'!$R:$R,'Données FDC'!$B:$B,Activation!$F$5,'Données FDC'!$E:$E,Activation!L$9))/1000,(SUMIFS('Données FDC'!$R:$R,'Données FDC'!$C:$C,Activation!$J$5,'Données FDC'!$E:$E,Activation!L$9))/1000)) -> 172099.1104 | M32: =IF(ISBLANK($F$5),(SUMIFS('Données FDC'!$R:$R,'Données FDC'!$A:$A,Activation!$C$5,'Données FDC'!$E:$E,Activation!M$9))/1000,IF(ISBLANK($J$5),(SUMIFS('Données FDC'!$R:$R,'Données FDC'!$B:$B,Activation!$F$5,'Données FDC'!$E:$E,Activation!M$9))/1000,(SUMIFS('Données FDC'!$R:$R,'Données FDC'!$C:$C,Activation!$J$5,'Données FDC'!$E:$E,Activation!M$9))/1000)) -> 159027.6327 | N32: =IF(ISBLANK($F$5),(SUMIFS('Données FDC'!$R:$R,'Données FDC'!$A:$A,Activation!$C$5,'Données FDC'!$E:$E,Activation!N$9))/1000,IF(ISBLANK($J$5),(SUMIFS('Données FDC'!$R:$R,'Données FDC'!$B:$B,Activation!$F$5,'Données FDC'!$E:$E,Activation!N$9))/1000,(SUMIFS('Données FDC'!$R:$R,'Données FDC'!$C:$C,Activation!$J$5,'Données FDC'!$E:$E,Activation!N$9))/1000)) -> 376230.7852 | O32: =IF(ISBLANK($F$5),(SUMIFS('Données FDC'!$R:$R,'Données FDC'!$A:$A,Activation!$C$5,'Données FDC'!$E:$E,Activation!O$9))/1000,IF(ISBLANK($J$5),(SUMIFS('Données FDC'!$R:$R,'Données FDC'!$B:$B,Activation!$F$5,'Données FDC'!$E:$E,Activation!O$9))/1000,(SUMIFS('Données FDC'!$R:$R,'Données FDC'!$C:$C,Activation!$J$5,'Données FDC'!$E:$E,Activation!O$9))/1000)) -> 65759.3569 | P32: =IF(ISBLANK($F$5),(SUMIFS('Données FDC'!$R:$R,'Données FDC'!$A:$A,Activation!$C$5,'Données FDC'!$E:$E,Activation!P$9))/1000,IF(ISBLANK($J$5),(SUMIFS('Données FDC'!$R:$R,'Données FDC'!$B:$B,Activation!$F$5,'Données FDC'!$E:$E,Activation!P$9))/1000,(SUMIFS('Données FDC'!$R:$R,'Données FDC'!$C:$C,Activation!$J$5,'Données FDC'!$E:$E,Activation!P$9))/1000)) -> 3121.47557
C33: Variation | D33: =D32/(IF(ISBLANK($F$5),SUMIFS('Données FDC déc 2019'!$R:$R,'Données FDC déc 2019'!$A:$A,Activation!$C$5)/1000,IF(ISBLANK($J$5),SUMIFS('Données FDC déc 2019'!$R:$R,'Données FDC déc 2019'!$B:$B,Activation!$F$5)/1000,SUMIFS('Données FDC déc 2019'!$R:$R,'Données FDC déc 2019'!$C:$C,Activation!$J$5)/1000)))-1 -> 0.02244480972 | F33: =F32/(IF(ISBLANK($F$5),SUMIFS('Données FDC déc 2019'!$R:$R,'Données FDC déc 2019'!$A:$A,Activation!$C$5,'Données FDC déc 2019'!$E:$E,Activation!F$9)/1000,IF(ISBLANK($J$5),SUMIFS('Données FDC déc 2019'!$R:$R,'Données FDC déc 2019'!$B:$B,Activation!$F$5,'Données FDC déc 2019'!$E:$E,Activation!F$9)/1000,SUMIFS('Données FDC déc 2019'!$R:$R,'Données FDC déc 2019'!$C:$C,Activation!$J$5,'Données FDC déc 2019'!$E:$E,Activation!F$9)/1000)))-1 -> 0.03308075807 | G33: =G32/(IF(ISBLANK($F$5),SUMIFS('Données FDC déc 2019'!$R:$R,'Données FDC déc 2019'!$A:$A,Activation!$C$5,'Données FDC déc 2019'!$E:$E,Activation!G$9)/1000,IF(ISBLANK($J$5),SUMIFS('Données FDC déc 2019'!$R:$R,'Données FDC déc 2019'!$B:$B,Activation!$F$5,'Données FDC déc 2019'!$E:$E,Activation!G$9)/1000,SUMIFS('Données FDC déc 2019'!$R:$R,'Données FDC déc 2019'!$C:$C,Activation!$J$5,'Données FDC déc 2019'!$E:$E,Activation!G$9)/1000)))-1 -> 0.04466462458 | H33: =H32/(IF(ISBLANK($F$5),SUMIFS('Données FDC déc 2019'!$R:$R,'Données FDC déc 2019'!$A:$A,Activation!$C$5,'Données FDC déc 2019'!$E:$E,Activation!H$9)/1000,IF(ISBLANK($J$5),SUMIFS('Données FDC déc 2019'!$R:$R,'Données FDC déc 2019'!$B:$B,Activation!$F$5,'Données FDC déc 2019'!$E:$E,Activation!H$9)/1000,SUMIFS('Données FDC déc 2019'!$R:$R,'Données FDC déc 2019'!$C:$C,Activation!$J$5,'Données FDC déc 2019'!$E:$E,Activation!H$9)/1000)))-1 -> 0.003719523859 | I33: =I32/(IF(ISBLANK($F$5),SUMIFS('Données FDC déc 2019'!$R:$R,'Données FDC déc 2019'!$A:$A,Activation!$C$5,'Données FDC déc 2019'!$E:$E,Activation!I$9)/1000,IF(ISBLANK($J$5),SUMIFS('Données FDC déc 2019'!$R:$R,'Données FDC déc 2019'!$B:$B,Activation!$F$5,'Données FDC déc 2019'!$E:$E,Activation!I$9)/1000,SUMIFS('Données FDC déc 2019'!$R:$R,'Données FDC déc 2019'!$C:$C,Activation!$J$5,'Données FDC déc 2019'!$E:$E,Activation!I$9)/1000)))-1 -> 0.03070884932 | J33: =J32/(IF(ISBLANK($F$5),SUMIFS('Données FDC déc 2019'!$R:$R,'Données FDC déc 2019'!$A:$A,Activation!$C$5,'Données FDC déc 2019'!$E:$E,Activation!J$9)/1000,IF(ISBLANK($J$5),SUMIFS('Données FDC déc 2019'!$R:$R,'Données FDC déc 2019'!$B:$B,Activation!$F$5,'Données FDC déc 2019'!$E:$E,Activation!J$9)/1000,SUMIFS('Données FDC déc 2019'!$R:$R,'Données FDC déc 2019'!$C:$C,Activation!$J$5,'Données FDC déc 2019'!$E:$E,Activation!J$9)/1000)))-1 -> 0.04848585872 | K33: =K32/(IF(ISBLANK($F$5),SUMIFS('Données FDC déc 2019'!$R:$R,'Données FDC déc 2019'!$A:$A,Activation!$C$5,'Données FDC déc 2019'!$E:$E,Activation!K$9)/1000,IF(ISBLANK($J$5),SUMIFS('Données FDC déc 2019'!$R:$R,'Données FDC déc 2019'!$B:$B,Activation!$F$5,'Données FDC déc 2019'!$E:$E,Activation!K$9)/1000,SUMIFS('Données FDC déc 2019'!$R:$R,'Données FDC déc 2019'!$C:$C,Activation!$J$5,'Données FDC déc 2019'!$E:$E,Activation!K$9)/1000)))-1 -> 0.08718334315 | L33: =L32/(IF(ISBLANK($F$5),SUMIFS('Données FDC déc 2019'!$R:$R,'Données FDC déc 2019'!$A:$A,Activation!$C$5,'Données FDC déc 2019'!$E:$E,Activation!L$9)/1000,IF(ISBLANK($J$5),SUMIFS('Données FDC déc 2019'!$R:$R,'Données FDC déc 2019'!$B:$B,Activation!$F$5,'Données FDC déc 2019'!$E:$E,Activation!L$9)/1000,SUMIFS('Données FDC déc 2019'!$R:$R,'Données FDC déc 2019'!$C:$C,Activation!$J$5,'Données FDC déc 2019'!$E:$E,Activation!L$9)/1000)))-1 -> 0.0003094181108 | M33: =M32/(IF(ISBLANK($F$5),SUMIFS('Données FDC déc 2019'!$R:$R,'Données FDC déc 2019'!$A:$A,Activation!$C$5,'Données FDC déc 2019'!$E:$E,Activation!M$9)/1000,IF(ISBLANK($J$5),SUMIFS('Données FDC déc 2019'!$R:$R,'Données FDC déc 2019'!$B:$B,Activation!$F$5,'Données FDC déc 2019'!$E:$E,Activation!M$9)/1000,SUMIFS('Données FDC déc 2019'!$R:$R,'Données FDC déc 2019'!$C:$C,Activation!$J$5,'Données FDC déc 2019'!$E:$E,Activation!M$9)/1000)))-1 -> 0.02817236573 | N33: =N32/(IF(ISBLANK($F$5),SUMIFS('Données FDC déc 2019'!$R:$R,'Données FDC déc 2019'!$A:$A,Activation!$C$5,'Données FDC déc 2019'!$E:$E,Activation!N$9)/1000,IF(ISBLANK($J$5),SUMIFS('Données FDC déc 2019'!$R:$R,'Données FDC déc 2019'!$B:$B,Activation!$F$5,'Données FDC déc 2019'!$E:$E,Activation!N$9)/1000,SUMIFS('Données FDC déc 2019'!$R:$R,'Données FDC déc 2019'!$C:$C,Activation!$J$5,'Données FDC déc 2019'!$E:$E,Activation!N$9)/1000)))-1 -> -0.007699834481 | O33: =O32/(IF(ISBLANK($F$5),SUMIFS('Données FDC déc 2019'!$R:$R,'Données FDC déc 2019'!$A:$A,Activation!$C$5,'Données FDC déc 2019'!$E:$E,Activation!O$9)/1000,IF(ISBLANK($J$5),SUMIFS('Données FDC déc 2019'!$R:$R,'Données FDC déc 2019'!$B:$B,Activation!$F$5,'Données FDC déc 2019'!$E:$E,Activation!O$9)/1000,SUMIFS('Données FDC déc 2019'!$R:$R,'Données FDC déc 2019'!$C:$C,Activation!$J$5,'Données FDC déc 2019'!$E:$E,Activation!O$9)/1000)))-1 -> 0.02367931937 | P33: =P32/(IF(ISBLANK($F$5),SUMIFS('Données FDC déc 2019'!$R:$R,'Données FDC déc 2019'!$A:$A,Activation!$C$5,'Données FDC déc 2019'!$E:$E,Activation!P$9)/1000,IF(ISBLANK($J$5),SUMIFS('Données FDC déc 2019'!$R:$R,'Données FDC déc 2019'!$B:$B,Activation!$F$5,'Données FDC déc 2019'!$E:$E,Activation!P$9)/1000,SUMIFS('Données FDC déc 2019'!$R:$R,'Données FDC déc 2019'!$C:$C,Activation!$J$5,'Données FDC déc 2019'!$E:$E,Activation!P$9)/1000)))-1 -> -0.03704502142
C34: Variation CEGEE | D34: =(SUM('Données FDC'!$R:$R)/1000)/(SUM('Données FDC déc 2019'!$R:$R)/1000)-1 -> 0.02156246811 | F34: =IF(ISBLANK($F$5),SUMIFS('Données FDC'!$R:$R,'Données FDC'!$E:$E,Activation!F$9)/1000,IF(ISBLANK($J$5),SUMIFS('Données FDC'!$R:$R,'Données FDC'!$E:$E,Activation!F$9)/1000,SUMIFS('Données FDC'!$R:$R,'Données FDC'!$E:$E,Activation!F$9)/1000))/(IF(ISBLANK($F$5),SUMIFS('Données FDC déc 2019'!$R:$R,'Données FDC déc 2019'!$E:$E,Activation!F$9)/1000,IF(ISBLANK($J$5),SUMIFS('Données FDC déc 2019'!$R:$R,'Données FDC déc 2019'!$E:$E,Activation!F$9)/1000,SUMIFS('Données FDC déc 2019'!$R:$R,'Données FDC déc 2019'!$E:$E,Activation!F$9)/1000)))-1 -> 0.03194231411 | G34: =IF(ISBLANK($F$5),SUMIFS('Données FDC'!$R:$R,'Données FDC'!$E:$E,Activation!G$9)/1000,IF(ISBLANK($J$5),SUMIFS('Données FDC'!$R:$R,'Données FDC'!$E:$E,Activation!G$9)/1000,SUMIFS('Données FDC'!$R:$R,'Données FDC'!$E:$E,Activation!G$9)/1000))/(IF(ISBLANK($F$5),SUMIFS('Données FDC déc 2019'!$R:$R,'Données FDC déc 2019'!$E:$E,Activation!G$9)/1000,IF(ISBLANK($J$5),SUMIFS('Données FDC déc 2019'!$R:$R,'Données FDC déc 2019'!$E:$E,Activation!G$9)/1000,SUMIFS('Données FDC déc 2019'!$R:$R,'Données FDC déc 2019'!$E:$E,Activation!G$9)/1000)))-1 -> 0.04357084828 | H34: =IF(ISBLANK($F$5),SUMIFS('Données FDC'!$R:$R,'Données FDC'!$E:$E,Activation!H$9)/1000,IF(ISBLANK($J$5),SUMIFS('Données FDC'!$R:$R,'Données FDC'!$E:$E,Activation!H$9)/1000,SUMIFS('Données FDC'!$R:$R,'Données FDC'!$E:$E,Activation!H$9)/1000))/(IF(ISBLANK($F$5),SUMIFS('Données FDC déc 2019'!$R:$R,'Données FDC déc 2019'!$E:$E,Activation!H$9)/1000,IF(ISBLANK($J$5),SUMIFS('Données FDC déc 2019'!$R:$R,'Données FDC déc 2019'!$E:$E,Activation!H$9)/1000,SUMIFS('Données FDC déc 2019'!$R:$R,'Données FDC déc 2019'!$E:$E,Activation!H$9)/1000)))-1 -> 0.003088976602 | I34: =IF(ISBLANK($F$5),SUMIFS('Données FDC'!$R:$R,'Données FDC'!$E:$E,Activation!I$9)/1000,IF(ISBLANK($J$5),SUMIFS('Données FDC'!$R:$R,'Données FDC'!$E:$E,Activation!I$9)/1000,SUMIFS('Données FDC'!$R:$R,'Données FDC'!$E:$E,Activation!I$9)/1000))/(IF(ISBLANK($F$5),SUMIFS('Données FDC déc 2019'!$R:$R,'Données FDC déc 2019'!$E:$E,Activation!I$9)/1000,IF(ISBLANK($J$5),SUMIFS('Données FDC déc 2019'!$R:$R,'Données FDC déc 2019'!$E:$E,Activation!I$9)/1000,SUMIFS('Données FDC déc 2019'!$R:$R,'Données FDC déc 2019'!$E:$E,Activation!I$9)/1000)))-1 -> 0.03002305058 | J34: =IF(ISBLANK($F$5),SUMIFS('Données FDC'!$R:$R,'Données FDC'!$E:$E,Activation!J$9)/1000,IF(ISBLANK($J$5),SUMIFS('Données FDC'!$R:$R,'Données FDC'!$E:$E,Activation!J$9)/1000,SUMIFS('Données FDC'!$R:$R,'Données FDC'!$E:$E,Activation!J$9)/1000))/(IF(ISBLANK($F$5),SUMIFS('Données FDC déc 2019'!$R:$R,'Données FDC déc 2019'!$E:$E,Activation!J$9)/1000,IF(ISBLANK($J$5),SUMIFS('Données FDC déc 2019'!$R:$R,'Données FDC déc 2019'!$E:$E,Activation!J$9)/1000,SUMIFS('Données FDC déc 2019'!$R:$R,'Données FDC déc 2019'!$E:$E,Activation!J$9)/1000)))-1 -> 0.04720133023 | K34: =IF(ISBLANK($F$5),SUMIFS('Données FDC'!$R:$R,'Données FDC'!$E:$E,Activation!K$9)/1000,IF(ISBLANK($J$5),SUMIFS('Données FDC'!$R:$R,'Données FDC'!$E:$E,Activation!K$9)/1000,SUMIFS('Données FDC'!$R:$R,'Données FDC'!$E:$E,Activation!K$9)/1000))/(IF(ISBLANK($F$5),SUMIFS('Données FDC déc 2019'!$R:$R,'Données FDC déc 2019'!$E:$E,Activation!K$9)/1000,IF(ISBLANK($J$5),SUMIFS('Données FDC déc 2019'!$R:$R,'Données FDC déc 2019'!$E:$E,Activation!K$9)/1000,SUMIFS('Données FDC déc 2019'!$R:$R,'Données FDC déc 2019'!$E:$E,Activation!K$9)/1000)))-1 -> 0.08671703559 | L34: =IF(ISBLANK($F$5),SUMIFS('Données FDC'!$R:$R,'Données FDC'!$E:$E,Activation!L$9)/1000,IF(ISBLANK($J$5),SUMIFS('Données FDC'!$R:$R,'Données FDC'!$E:$E,Activation!L$9)/1000,SUMIFS('Données FDC'!$R:$R,'Données FDC'!$E:$E,Activation!L$9)/1000))/(IF(ISBLANK($F$5),SUMIFS('Données FDC déc 2019'!$R:$R,'Données FDC déc 2019'!$E:$E,Activation!L$9)/1000,IF(ISBLANK($J$5),SUMIFS('Données FDC déc 2019'!$R:$R,'Données FDC déc 2019'!$E:$E,Activation!L$9)/1000,SUMIFS('Données FDC déc 2019'!$R:$R,'Données FDC déc 2019'!$E:$E,Activation!L$9)/1000)))-1 -> -0.0002615098789 | M34: =IF(ISBLANK($F$5),SUMIFS('Données FDC'!$R:$R,'Données FDC'!$E:$E,Activation!M$9)/1000,IF(ISBLANK($J$5),SUMIFS('Données FDC'!$R:$R,'Données FDC'!$E:$E,Activation!M$9)/1000,SUMIFS('Données FDC'!$R:$R,'Données FDC'!$E:$E,Activation!M$9)/1000))/(IF(ISBLANK($F$5),SUMIFS('Données FDC déc 2019'!$R:$R,'Données FDC déc 2019'!$E:$E,Activation!M$9)/1000,IF(ISBLANK($J$5),SUMIFS('Données FDC déc 2019'!$R:$R,'Données FDC déc 2019'!$E:$E,Activation!M$9)/1000,SUMIFS('Données FDC déc 2019'!$R:$R,'Données FDC déc 2019'!$E:$E,Activation!M$9)/1000)))-1 -> 0.0276693486 | N34: =IF(ISBLANK($F$5),SUMIFS('Données FDC'!$R:$R,'Données FDC'!$E:$E,Activation!N$9)/1000,IF(ISBLANK($J$5),SUMIFS('Données FDC'!$R:$R,'Données FDC'!$E:$E,Activation!N$9)/1000,SUMIFS('Données FDC'!$R:$R,'Données FDC'!$E:$E,Activation!N$9)/1000))/(IF(ISBLANK($F$5),SUMIFS('Données FDC déc 2019'!$R:$R,'Données FDC déc 2019'!$E:$E,Activation!N$9)/1000,IF(ISBLANK($J$5),SUMIFS('Données FDC déc 2019'!$R:$R,'Données FDC déc 2019'!$E:$E,Activation!N$9)/1000,SUMIFS('Données FDC déc 2019'!$R:$R,'Données FDC déc 2019'!$E:$E,Activation!N$9)/1000)))-1 -> -0.008675136627 | O34: =IF(ISBLANK($F$5),SUMIFS('Données FDC'!$R:$R,'Données FDC'!$E:$E,Activation!O$9)/1000,IF(ISBLANK($J$5),SUMIFS('Données FDC'!$R:$R,'Données FDC'!$E:$E,Activation!O$9)/1000,SUMIFS('Données FDC'!$R:$R,'Données FDC'!$E:$E,Activation!O$9)/1000))/(IF(ISBLANK($F$5),SUMIFS('Données FDC déc 2019'!$R:$R,'Données FDC déc 2019'!$E:$E,Activation!O$9)/1000,IF(ISBLANK($J$5),SUMIFS('Données FDC déc 2019'!$R:$R,'Données FDC déc 2019'!$E:$E,Activation!O$9)/1000,SUMIFS('Données FDC déc 2019'!$R:$R,'Données FDC déc 2019'!$E:$E,Activation!O$9)/1000)))-1 -> 0.02231058876 | P34: =IF(ISBLANK($F$5),SUMIFS('Données FDC'!$R:$R,'Données FDC'!$E:$E,Activation!P$9)/1000,IF(ISBLANK($J$5),SUMIFS('Données FDC'!$R:$R,'Données FDC'!$E:$E,Activation!P$9)/1000,SUMIFS('Données FDC'!$R:$R,'Données FDC'!$E:$E,Activation!P$9)/1000))/(IF(ISBLANK($F$5),SUMIFS('Données FDC déc 2019'!$R:$R,'Données FDC déc 2019'!$E:$E,Activation!P$9)/1000,IF(ISBLANK($J$5),SUMIFS('Données FDC déc 2019'!$R:$R,'Données FDC déc 2019'!$E:$E,Activation!P$9)/1000,SUMIFS('Données FDC déc 2019'!$R:$R,'Données FDC déc 2019'!$E:$E,Activation!P$9)/1000)))-1 -> -0.0377460306
B35: Encours de crédit (en K€) | C35: Montant | D35: =SUM(F35:P35) -> 11442423.24 | E35: =IF(ISBLANK($F$5),(SUMIFS('Données FDC déc 2019'!$S:$S,'Données FDC déc 2019'!$A:$A,Activation!$C$5))/1000,IF(ISBLANK($J$5),(SUMIFS('Données FDC déc 2019'!$S:$S,'Données FDC déc 2019'!$B:$B,Activation!$F$5))/1000,(SUMIFS('Données FDC déc 2019'!$S:$S,'Données FDC déc 2019'!$C:$C,Activation!$J$5))/1000)) -> 10914569.59 | F35: =IF(ISBLANK($F$5),(SUMIFS('Données FDC'!$S:$S,'Données FDC'!$A:$A,Activation!$C$5,'Données FDC'!$E:$E,Activation!F$9))/1000,IF(ISBLANK($J$5),(SUMIFS('Données FDC'!$S:$S,'Données FDC'!$B:$B,Activation!$F$5,'Données FDC'!$E:$E,Activation!F$9))/1000,(SUMIFS('Données FDC'!$S:$S,'Données FDC'!$C:$C,Activation!$J$5,'Données FDC'!$E:$E,Activation!F$9))/1000)) -> 8838839.775 | G35: =IF(ISBLANK($F$5),(SUMIFS('Données FDC'!$S:$S,'Données FDC'!$A:$A,Activation!$C$5,'Données FDC'!$E:$E,Activation!G$9))/1000,IF(ISBLANK($J$5),(SUMIFS('Données FDC'!$S:$S,'Données FDC'!$B:$B,Activation!$F$5,'Données FDC'!$E:$E,Activation!G$9))/1000,(SUMIFS('Données FDC'!$S:$S,'Données FDC'!$C:$C,Activation!$J$5,'Données FDC'!$E:$E,Activation!G$9))/1000)) -> 949276.9413 | H35: =IF(ISBLANK($F$5),(SUMIFS('Données FDC'!$S:$S,'Données FDC'!$A:$A,Activation!$C$5,'Données FDC'!$E:$E,Activation!H$9))/1000,IF(ISBLANK($J$5),(SUMIFS('Données FDC'!$S:$S,'Données FDC'!$B:$B,Activation!$F$5,'Données FDC'!$E:$E,Activation!H$9))/1000,(SUMIFS('Données FDC'!$S:$S,'Données FDC'!$C:$C,Activation!$J$5,'Données FDC'!$E:$E,Activation!H$9))/1000)) -> 874477.334 | I35: =IF(ISBLANK($F$5),(SUMIFS('Données FDC'!$S:$S,'Données FDC'!$A:$A,Activation!$C$5,'Données FDC'!$E:$E,Activation!I$9))/1000,IF(ISBLANK($J$5),(SUMIFS('Données FDC'!$S:$S,'Données FDC'!$B:$B,Activation!$F$5,'Données FDC'!$E:$E,Activation!I$9))/1000,(SUMIFS('Données FDC'!$S:$S,'Données FDC'!$C:$C,Activation!$J$5,'Données FDC'!$E:$E,Activation!I$9))/1000)) -> 472367.8498 | J35: =IF(ISBLANK($F$5),(SUMIFS('Données FDC'!$S:$S,'Données FDC'!$A:$A,Activation!$C$5,'Données FDC'!$E:$E,Activation!J$9))/1000,IF(ISBLANK($J$5),(SUMIFS('Données FDC'!$S:$S,'Données FDC'!$B:$B,Activation!$F$5,'Données FDC'!$E:$E,Activation!J$9))/1000,(SUMIFS('Données FDC'!$S:$S,'Données FDC'!$C:$C,Activation!$J$5,'Données FDC'!$E:$E,Activation!J$9))/1000)) -> 289890.2006 | K35: =IF(ISBLANK($F$5),(SUMIFS('Données FDC'!$S:$S,'Données FDC'!$A:$A,Activation!$C$5,'Données FDC'!$E:$E,Activation!K$9))/1000,IF(ISBLANK($J$5),(SUMIFS('Données FDC'!$S:$S,'Données FDC'!$B:$B,Activation!$F$5,'Données FDC'!$E:$E,Activation!K$9))/1000,(SUMIFS('Données FDC'!$S:$S,'Données FDC'!$C:$C,Activation!$J$5,'Données FDC'!$E:$E,Activation!K$9))/1000)) -> 7513.24744 | L35: =IF(ISBLANK($F$5),(SUMIFS('Données FDC'!$S:$S,'Données FDC'!$A:$A,Activation!$C$5,'Données FDC'!$E:$E,Activation!L$9))/1000,IF(ISBLANK($J$5),(SUMIFS('Données FDC'!$S:$S,'Données FDC'!$B:$B,Activation!$F$5,'Données FDC'!$E:$E,Activation!L$9))/1000,(SUMIFS('Données FDC'!$S:$S,'Données FDC'!$C:$C,Activation!$J$5,'Données FDC'!$E:$E,Activation!L$9))/1000)) -> 7449.35076 | M35: =IF(ISBLANK($F$5),(SUMIFS('Données FDC'!$S:$S,'Données FDC'!$A:$A,Activation!$C$5,'Données FDC'!$E:$E,Activation!M$9))/1000,IF(ISBLANK($J$5),(SUMIFS('Données FDC'!$S:$S,'Données FDC'!$B:$B,Activation!$F$5,'Données FDC'!$E:$E,Activation!M$9))/1000,(SUMIFS('Données FDC'!$S:$S,'Données FDC'!$C:$C,Activation!$J$5,'Données FDC'!$E:$E,Activation!M$9))/1000)) -> 2608.54149
